Workbook

Sheet MENU
L4: =+TABLAS!A92 -> 1-5-2-3-4-6-11-10-9-8-7-T
L5: =+TABLAS!A122 -> 1-5-2-3-4-6-11-10-9-8-7-Total general
L6: =+TABLAS!A152 -> 1-5-2-3-4-6-11-10-9-8-7-Total general
L7: =+TABLAS!A183 -> 1-5-2-3-4-6-11-10-9-8-7-Total general
L8: =+TABLAS!A216 -> 1-5-2-3-4-6-11-10-9-8-7-Total general
L9: =+TABLAS!A247 -> 1-5-2-3-4-6-11-10-9-8-7-Total general
L10: =+TABLAS!A277 -> 1-5-2-3-4-6-11-10-9-8-7-Total general
L11: =+TABLAS!A308 -> 1-5-3-4-6-2-11-10-9-8-7-Total general
L12: =+TABLAS!A338 -> 1-5-2-3-4-6-11-10-9-8-7-Total general
L13: =+TABLAS!A368 -> 1-5-2-3-4-6-11-10-9-8-7-Total general
L14: =+TABLAS!A398 -> 1-5-2-3-4-6-11-10-9-8-7-Total general
L15: =+TABLAS!A428 -> 1-5-2-3-4-6-11-10-9-8-7-Total general
L16: =+TABLAS!A458 -> 1-5-2-3-4-6-11-10-9-8-7-Total general
L17: =+TABLAS!A488 -> 1-5-2-3-4-6-11-10-9-8-7-Total general
L18: =+TABLAS!A518 -> 1-5-2-3-4-6-11-10-9-8-7-Total general
L19: =+TABLAS!A548 -> 1-5-2-3-4-6-11-10-9-8-7-Total general
L20: =+TABLAS!A578 -> 1-5-2-3-4-6-11-10-9-8-7-Total general
L21: =+TABLAS!A608 -> 1-5-2-3-4-6-11-10-9-8-7-Total general
L22: =+TABLAS!A638 -> 1-5-2-3-4-6-11-10-9-8-7-Total general
L23: =+TABLAS!A668 -> 1-5-2-3-4-6-11-10-9-8-7-Total general
L24: =+TABLAS!A698 -> 1-5-2-3-4-6-11-10-9-8-7-Total general
L25: =+TABLAS!A728 -> 1-5-2-3-4-6-11-10-9-8-7-Total general
L26: =+TABLAS!A758 -> 1-5-2-3-4-6-11-10-9-8-7-Total general
H27: CONTROL DE MESES | L27: =+TABLAS!A788 -> 1-5-2-3-4-6-11-10-9-8-7-Total general
L28: =+TABLAS!A818 -> 1-5-2-3-4-6-11-10-9-8-7-Total general
H29: =+TABLAS!A92 -> 1-5-2-3-4-6-11-10-9-8-7-T | L29: =+TABLAS!A848 -> 1-5-2-3-4-6-11-10-9-8-7-Total general
L30: =+TABLAS!A878 -> 1-5-2-3-4-6-11-10-9-8-7-Total general
L31: =+TABLAS!A908 -> 1-5-2-3-4-6-11-10-9-8-7-Total general
L32: =+TABLAS!A938 -> 1-5-2-3-4-6-11-10-9-8-7-Total general
L33: =+TABLAS!A968 -> -----------
L34: =+TABLAS!A998 -> 1-5-2-3-4-6-11-10-9-8-7-Total general
L35: =+TABLAS!A1028 -> 1-5-2-3-4-6-11-10-9-8-7-Total general

Sheet TABLAS (hidden)
C8: Valores | I8: Tabla | J8: =IF(I9="(Todas)","CUSCO ","") ->  | O8: =MID(D9,6,5) -> LA CO
C9: RED | D9: 03 - LA CONVENCION | I9: =IF(MID(D9,1,2)="99","(All)",MID(D9,1,2)) -> 03 | J9: =IF(I9="(All)"," ",I9) -> 03 | M9: =LEN(MID(D9,5,90)) -> 14 | O9: =IF(MID(D9,6,5)="(All)","",D9) -> 03 - LA CONVENCION
C10: Micro RED | D10: 0399 - (All) | I10: =IF(MID(D10,3,2)="99","(All)",MID(D10,1,4)) -> (All) | M10: =LEN(MID(D10,7,90)) -> 6 | O10: =IF(MID(D10,8,5)="(All)","",D10) -> 
C11: Establecimiento | D11: 999999999 - (All) | I11: =IF(OR(MID(D11,1,9)="999999999",MID(D11,1,9)="000000000"),"(All)",MID(D11,1,9)) -> (All) | M11: =LEN(MID(D11,12,90)) -> 6 | O11: =IF(MID(D11,13,5)="(All)","",D11) -> 
C12: Provincia | D12: 00 - (All) | I12: =IF(MID(D12,1,2)="00","(All)",MID(D12,1,2)) -> (All) | M12: =LEN(MID(D12,6,90)) -> 5 | O12: =IF(MID(D12,6,5)="(All)","",D12) -> 
C13: Distrito | D13: 0000 - (All) | I13: =IF(OR(MID(D13,1,4)="0000",MID(D13,3,2)="00"),"(All)",MID(D13,1,4)) -> (All) | M13: =LEN(MID(D13,8,90)) -> 5 | O13: =IF(MID(D13,8,5)="(All)","",D13) -> 
C14: Ejecutora | D14: 99 - (ALL) | I14: =IF(MID(D14,1,2)="99","(All)",MID(D14,1,2)) -> (All) | M14: =LEN(MID(D14,5,90)) -> 6 | O14: =IF(MID(D14,6,5)="(All)","",D14) -> 
C16: Año | D16: 2024 | I16: =+D16 -> 2024 | J16: =IF(I16="(Todas)"," ",I16) -> 2024
B20: 1 | C20: 1 | D20: 1 | E20: 1 | F20: 1 | G20: 1 | H20: 1 | I20: 1 | J20: 1 | K20: 1 | L20: 1 | M20: 0 | N20: =SUM(B20:M20) -> 11
B21: =IF(B20=1,"ENERO","") -> ENERO | C21: =IF(C20=1,"FEBRERO","") -> FEBRERO | D21: =IF(D20=1,"MARZO","") -> MARZO | E21: =IF(E20=1,"ABRIL","") -> ABRIL | F21: =IF(F20=1,"MAYO","") -> MAYO | G21: =IF(G20=1,"JUNIO","") -> JUNIO | H21: =IF(H20=1,"JULIO","") -> JULIO | I21: =IF(I20=1,"AGOSTO","") -> AGOSTO | J21: =IF(J20=1,"SETIEMBRE","") -> SETIEMBRE | K21: =IF(K20=1,"OCTUBRE","") -> OCTUBRE | L21: =IF(L20=1,"NOVIEMBRE","") -> NOVIEMBRE | M21: =IF(M20=1,"DICIEMBRE","") ->  | N21: =IF(B20=1,B21,IF(C20=1,C21,IF(D20=1,D21,IF(E20=1,E21,IF(F20=1,F21,IF(G20=1,G21,IF(H20=1,H21,IF(I20=1,I21,IF(J20=1,J21,IF(K20=1,K21,IF(L20=1,L21,IF(M20=1,M21,"")))))))))))) -> ENERO
N22: =IF(N20=1,N21,"") -> 
B23: 2 | C23: 4 | D23: 6 | E23: 8 | F23: 10 | G23: 12 | H23: 14 | I23: 16 | J23: 18 | K23: 20 | L23: 22 | N23: =MIN(B23:M23) -> 2 | O23: =MAX(B23:M23) -> 22 | P23: =MAX(C23:N23) -> 22
B24: =IF(B23=2,"ENE","") -> ENE | C24: =IF(C23=4,"FEB","") -> FEB | D24: =IF(D23=6,"MAR","") -> MAR | E24: =IF(E23=8,"ABR","") -> ABR | F24: =IF(F23=10,"MAY","") -> MAY | G24: =IF(G23=12,"JUN","") -> JUN | H24: =IF(H23=14,"JUL","") -> JUL | I24: =IF(I23=16,"AGO","") -> AGO | J24: =IF(J23=18,"SET","") -> SET | K24: =IF(K23=20,"OCT","") -> OCT | L24: =IF(L23=22,"NOV","") -> NOV | M24: =IF(M23=24,"DIC","") ->  | N24: =IF(N23=B23,B24,IF(N23=C23,C24,IF(N23=D23,D24,IF(N23=E23,E24,IF(N23=F23,F24,IF(N23=G23,G24,IF(N23=H23,H58,IF(N23=I23,I24,IF(N23=J23,J24,IF(N23=K23,K24,IF(N23=L23,L24,IF(N23=M23,M24,"")))))))))))) -> ENE | O24: =IF(O23=C23,C24,IF(O23=D23,D24,IF(O23=E23,E24,IF(O23=F23,F24,IF(O23=G23,G24,IF(O23=H23,H24,IF(O23=I23,I24,IF(O23=J23,J24,IF(O23=K23,K24,IF(O23=L23,L24,IF(O23=M23,M24,""))))))))))) -> NOV | P24: =IF(P23=D23,D24,IF(P23=E23,E24,IF(P23=F23,F24,IF(P23=G23,G24,IF(P23=H23,H24,IF(P23=I23,I24,IF(P23=J23,J24,IF(P23=K23,K24,IF(P23=L23,L24,IF(P23=M23,M24,IF(P23=N23,N24,""))))))))))) -> NOV
N25: =CONCATENATE(N24," - ",O24) -> ENE - NOV
N26: =IF(N23=O23,N22,N25) -> ENE - NOV
A66: AB142007
A67: anno | B67: 2024
A68: cod_red | B68: 03
A69: codmic | B69: (Todas)
A70: cod_prov | B70: (Todas)
A71: coddist | B71: (Todas)
A72: cod_estab | B72: (Todas)
A73: cod_eje | B73: (Todas)
B75: Valores
A76: Etiquetas de fila | B76: BAS001 | C76: BAS002 | D76: BAS003 | E76: BAS004 | F76: BAS005 | G76: BAS006 | H76: BAS007 | I76: BAS008 | J76: BAS009 | K76: BAS010 | L76: BAS011 | M76: BAS012 | N76: BAS013 | O76: BAS014 | P76: BAS015 | Q76: BAS016 | R76: BAS017 | S76: BAS018 | T76: BAS019 | U76: BAS020 | V76: BAS021 | W76: BAS022 | X76: BAS023 | Y76: BAS024 | Z76: BAS025 | AA76: BAS026 | AB76: BAS027 | AC76: BAS028 | AD76: BAS029 | AE76: BAS030 | AF76: BAS031 | AG76: BAS032 | AH76: BAS033 | AI76: BAS034 | AJ76: BAS035 | AK76: BAS036 | AL76: BAS037 | AM76: BAS038 | AN76: BAS039 | AO76: BAS040 | AP76: BAS041 | AQ76: BAS042 | AR76: BAS043 | AS76: BAS044 | AT76: BAS045 | AU76: BAS046 | AV76: BAS047 | AW76: BAS048 | AX76: BAS049 | AY76: BAS050 | AZ76: BAS051 | BA76: BAS052 | BB76: BAS053 | BC76: BAS054 | BD76: BAS055 | BE76: BAS056 | BF76: BAS057 | BG76: BAS058 | BH76: BAS059 | BI76: BAS060 | BJ76: BAS061 | BK76: BAS062 | BL76: BAS063 | BM76: BAS064 | BN76: BAS065 | BO76: BAS066 | BP76: BAS067 | BQ76: BAS068 | BR76: BAS069 | BS76: BAS070 | BT76: BAS071 | BU76: BAS072 | BV76: BAS073 | BW76: BAS074 | BX76: BAS075 | BY76: BAS076 | BZ76: BAS077 | CA76: BAS078 | CB76: BAS079 | CC76: BAS080 | CD76: BAS081 | CE76: BAS082 | CF76: BAS083 | CG76: BAS084 | CH76: BAS085 | CI76: BAS086 | CJ76: BAS087 | CK76: BAS088 | CL76: BAS089 | CM76: BAS090 | CN76: BAS091 | CO76: BAS092 | CP76: BAS093 | CQ76: BAS094 | CR76: BAS095 | CS76: BAS096 | CT76: BAS097 | CU76: BAS098 | CV76: BAS099 | CW76: BAS100 | CX76: BAS101 | CY76: BAS102 | CZ76: BAS103 | DA76: BAS104 | DB76: BAS105 | DC76: BAS106 | DD76: BAS107 | DE76: BAS108 | DF76: BAS109 | DG76: BAS110 | DH76: BAS111 | DI76: BAS112 | DJ76: BAS113 | DK76: BAS114 | DL76: BAS115 | DM76: BAS116 | DN76: BAS117 | DO76: BAS118 | DP76: BAS119 | DQ76: BAS120 | DR76: BAS121 | DS76: BAS122 | DT76: BAS123 | DU76: BAS124 | DV76: BAS125 | DW76: BAS126 | DX76: BAS127 | DY76: BAS128 | DZ76: BAS129 | EA76: BAS130 | EB76: BAS131 | EC76: BAS132 | ED76: BAS133 | EE76: BAS134 | EF76: BAS135 | EG76: BAS136 | EH76: BAS137 | EI76: BAS138 | EJ76: BAS139 | EK76: BAS140 | EL76: BAS141 | EM76: BAS142 | EN76: BAS143 | EO76: BAS144 | EP76: BAS145 | EQ76: BAS146 | ER76: BAS147 | ES76: BAS148 | ET76: BAS149 | EU76: BAS150 | EV76: BAS151 | EW76: BAS152 | EX76: BAS153 | EY76: BAS154 | EZ76: BAS155 | FA76: BAS156 | FB76: BAS157 | FC76: BAS158 | FD76: BAS159 | FE76: BAS160 | FF76: BAS161 | FG76: BAS162 | FH76: BAS163 | FI76: BAS164 | FJ76: BAS165 | FK76: BAS166 | FL76: BAS167 | FM76: BAS168 | FN76: BAS169 | FO76: BAS170 | FP76: BAS171 | FQ76: BAS172 | FR76: BAS173 | FS76: BAS174 | FT76: BAS175 | FU76: BAS176 | FV76: BAS177 | FW76: BAS178 | FX76: BAS179 | FY76: BAS180 | FZ76: BAS181 | GA76: BAS182 | GB76: BAS183 | GC76: BAS184 | GD76: BAS185 | GE76: BAS186 | GF76: BAS187 | GG76: BAS188 | GH76: BAS189 | GI76: BAS190 | GJ76: BAS191 | GK76: BAS192 | GL76: BAS193 | GM76: BAS194 | GN76: BAS195 | GO76: BAS196 | GP76: BAS197 | GQ76: BAS198 | GR76: BAS199 | GS76: BAS200 | GT76: BAS201 | GU76: BAS202 | GV76: BAS203 | GW76: BAS204 | GX76: BAS205 | GY76: BAS206 | GZ76: BAS207 | HA76: BAS208 | HB76: BAS209 | HC76: BAS210 | HD76: BAS211 | HE76: BAS212 | HF76: BAS213 | HG76: BAS214 | HH76: BAS215 | HI76: BAS216 | HJ76: BAS217 | HK76: BAS218 | HL76: BAS219 | HM76: BAS220 | HN76: BAS221 | HO76: BAS222 | HP76: BAS223 | HQ76: BAS224 | HR76: BAS225 | HS76: BAS226 | HT76: BAS227 | HU76: BAS228 | HV76: BAS229 | HW76: BAS230
A77: 1 | B77: 0 | C77: 0 | D77: 0 | E77: 0 | F77: 0 | G77: 0 | H77: 0 | I77: 0 | J77: 0 | K77: 0 | L77: 0 | M77: 0 | N77: 0 | O77: 0 | P77: 0 | Q77: 0 | R77: 0 | S77: 0 | T77: 0 | U77: 0 | V77: 0 | W77: 0 | X77: 0 | Y77: 0 | Z77: 0 | AA77: 0 | AB77: 0 | AC77: 0 | AD77: 0 | AE77: 0 | AF77: 0 | AG77: 0 | AH77: 0 | AI77: 0 | AJ77: 0 | AK77: 0 | AL77: 0 | AM77: 0 | AN77: 0 | AO77: 0 | AP77: 0 | AQ77: 0 | AR77: 0 | AS77: 0 | AT77: 0 | AU77: 0 | AV77: 0 | AW77: 0 | AX77: 0 | AY77: 0 | AZ77: 0 | BA77: 0 | BB77: 0 | BC77: 0 | BD77: 0 | BE77: 0 | BF77: 0 | BG77: 0 | BH77: 0 | BI77: 0 | BJ77: 0 | BK77: 0 | BL77: 0 | BM77: 0 | BN77: 0 | BO77: 0 | BP77: 0 | BQ77: 0 | BR77: 0 | BS77: 0 | BT77: 0 | BU77: 0 | BV77: 0 | BW77: 0 | BX77: 0 | BY77: 0 | BZ77: 0 | CA77: 0 | CB77: 0 | CC77: 0 | CD77: 0 | CE77: 0 | CF77: 0 | CG77: 0 | CH77: 0 | CI77: 0 | CJ77: 0 | CK77: 0 | CL77: 0 | CM77: 0 | CN77: 0 | CO77: 0 | CP77: 0 | CQ77: 0 | CR77: 0 | CS77: 0 | CT77: 0 | CU77: 0 | CV77: 0 | CW77: 0 | CX77: 0 | CY77: 0 | CZ77: 0 | DA77: 0 | DB77: 0 | DC77: 0 | DD77: 0 | DE77: 0 | DF77: 0 | DG77: 0 | DH77: 0 | DI77: 0 | DJ77: 0 | DK77: 0 | DL77: 0 | DM77: 0 | DN77: 0 | DO77: 0 | DP77: 0 | DQ77: 0 | DR77: 0 | DS77: 0 | DT77: 0 | DU77: 0 | DV77: 0 | DW77: 0 | DX77: 0 | DY77: 0 | DZ77: 0 | EA77: 0 | EB77: 0 | EC77: 0 | ED77: 0 | EE77: 0 | EF77: 0 | EG77: 0 | EH77: 0 | EI77: 0 | EJ77: 0 | EK77: 0 | EL77: 0 | EM77: 0 | EN77: 0 | EO77: 0 | EP77: 0 | EQ77: 0 | ER77: 0 | ES77: 0 | ET77: 0 | EU77: 0 | EV77: 0 | EW77: 0 | EX77: 0 | EY77: 0 | EZ77: 0 | FA77: 0 | FB77: 0 | FC77: 0 | FD77: 0 | FE77: 0 | FF77: 0 | FG77: 0 | FH77: 0 | FI77: 0 | FJ77: 0 | FK77: 0 | FL77: 0 | FM77: 0 | FN77: 0 | FO77: 0 | FP77: 0 | FQ77: 0 | FR77: 0 | FS77: 0 | FT77: 0 | FU77: 0 | FV77: 0 | FW77: 0 | FX77: 0 | FY77: 0 | FZ77: 0 | GA77: 0 | GB77: 0 | GC77: 0 | GD77: 0 | GE77: 0 | GF77: 0 | GG77: 0 | GH77: 0 | GI77: 0 | GJ77: 0 | GK77: 0 | GL77: 0 | GM77: 0 | GN77: 0 | GO77: 0 | GP77: 0 | GQ77: 0 | GR77: 0 | GS77: 0 | GT77: 0 | GU77: 0 | GV77: 0 | GW77: 0 | GX77: 0 | GY77: 0 | GZ77: 0 | HA77: 0 | HB77: 0 | HC77: 0 | HD77: 0 | HE77: 0 | HF77: 0 | HG77: 0 | HH77: 0 | HI77: 0 | HJ77: 0 | HK77: 0 | HL77: 0 | HM77: 0 | HN77: 0 | HO77: 0 | HP77: 0 | HQ77: 0 | HR77: 0 | HS77: 0 | HT77: 0 | HU77: 0 | HV77: 0 | HW77: 0
A78: 5 | B78: 0 | C78: 0 | D78: 0 | E78: 0 | F78: 0 | G78: 0 | H78: 0 | I78: 0 | J78: 0 | K78: 0 | L78: 0 | M78: 0 | N78: 0 | O78: 0 | P78: 0 | Q78: 0 | R78: 0 | S78: 0 | T78: 0 | U78: 0 | V78: 0 | W78: 0 | X78: 0 | Y78: 0 | Z78: 0 | AA78: 0 | AB78: 0 | AC78: 0 | AD78: 0 | AE78: 0 | AF78: 0 | AG78: 0 | AH78: 0 | AI78: 0 | AJ78: 0 | AK78: 0 | AL78: 0 | AM78: 0 | AN78: 0 | AO78: 0 | AP78: 0 | AQ78: 0 | AR78: 0 | AS78: 0 | AT78: 0 | AU78: 0 | AV78: 0 | AW78: 0 | AX78: 0 | AY78: 0 | AZ78: 0 | BA78: 0 | BB78: 0 | BC78: 0 | BD78: 0 | BE78: 0 | BF78: 0 | BG78: 0 | BH78: 0 | BI78: 0 | BJ78: 0 | BK78: 0 | BL78: 0 | BM78: 0 | BN78: 0 | BO78: 0 | BP78: 0 | BQ78: 0 | BR78: 0 | BS78: 0 | BT78: 0 | BU78: 0 | BV78: 0 | BW78: 0 | BX78: 0 | BY78: 0 | BZ78: 0 | CA78: 0 | CB78: 0 | CC78: 0 | CD78: 0 | CE78: 0 | CF78: 0 | CG78: 0 | CH78: 0 | CI78: 0 | CJ78: 0 | CK78: 0 | CL78: 0 | CM78: 0 | CN78: 0 | CO78: 0 | CP78: 0 | CQ78: 0 | CR78: 0 | CS78: 0 | CT78: 0 | CU78: 0 | CV78: 0 | CW78: 0 | CX78: 0 | CY78: 0 | CZ78: 0 | DA78: 0 | DB78: 0 | DC78: 0 | DD78: 0 | DE78: 0 | DF78: 0 | DG78: 0 | DH78: 0 | DI78: 0 | DJ78: 0 | DK78: 0 | DL78: 0 | DM78: 0 | DN78: 0 | DO78: 0 | DP78: 0 | DQ78: 0 | DR78: 0 | DS78: 0 | DT78: 0 | DU78: 0 | DV78: 0 | DW78: 0 | DX78: 0 | DY78: 0 | DZ78: 0 | EA78: 0 | EB78: 0 | EC78: 0 | ED78: 0 | EE78: 0 | EF78: 0 | EG78: 0 | EH78: 0 | EI78: 0 | EJ78: 0 | EK78: 0 | EL78: 0 | EM78: 0 | EN78: 0 | EO78: 0 | EP78: 0 | EQ78: 0 | ER78: 0 | ES78: 0 | ET78: 0 | EU78: 0 | EV78: 0 | EW78: 0 | EX78: 0 | EY78: 0 | EZ78: 0 | FA78: 0 | FB78: 0 | FC78: 0 | FD78: 0 | FE78: 0 | FF78: 0 | FG78: 0 | FH78: 0 | FI78: 0 | FJ78: 0 | FK78: 0 | FL78: 0 | FM78: 0 | FN78: 0 | FO78: 0 | FP78: 0 | FQ78: 0 | FR78: 0 | FS78: 0 | FT78: 0 | FU78: 0 | FV78: 0 | FW78: 0 | FX78: 0 | FY78: 0 | FZ78: 0 | GA78: 0 | GB78: 0 | GC78: 0 | GD78: 0 | GE78: 0 | GF78: 0 | GG78: 0 | GH78: 0 | GI78: 0 | GJ78: 0 | GK78: 0 | GL78: 0 | GM78: 0 | GN78: 0 | GO78: 0 | GP78: 0 | GQ78: 0 | GR78: 0 | GS78: 0 | GT78: 0 | GU78: 0 | GV78: 0 | GW78: 0 | GX78: 0 | GY78: 0 | GZ78: 0 | HA78: 0 | HB78: 0 | HC78: 0 | HD78: 0 | HE78: 0 | HF78: 0 | HG78: 0 | HH78: 0 | HI78: 0 | HJ78: 0 | HK78: 0 | HL78: 0 | HM78: 0 | HN78: 0 | HO78: 0 | HP78: 0 | HQ78: 0 | HR78: 0 | HS78: 0 | HT78: 0 | HU78: 0 | HV78: 0 | HW78: 0
A79: 2 | B79: 0 | C79: 0 | D79: 0 | E79: 0 | F79: 0 | G79: 0 | H79: 0 | I79: 0 | J79: 0 | K79: 0 | L79: 0 | M79: 0 | N79: 0 | O79: 0 | P79: 0 | Q79: 0 | R79: 0 | S79: 0 | T79: 0 | U79: 0 | V79: 0 | W79: 0 | X79: 0 | Y79: 0 | Z79: 0 | AA79: 0 | AB79: 0 | AC79: 0 | AD79: 0 | AE79: 0 | AF79: 0 | AG79: 0 | AH79: 0 | AI79: 0 | AJ79: 0 | AK79: 0 | AL79: 0 | AM79: 0 | AN79: 0 | AO79: 0 | AP79: 0 | AQ79: 0 | AR79: 0 | AS79: 0 | AT79: 0 | AU79: 0 | AV79: 0 | AW79: 0 | AX79: 0 | AY79: 0 | AZ79: 0 | BA79: 0 | BB79: 0 | BC79: 0 | BD79: 0 | BE79: 0 | BF79: 0 | BG79: 0 | BH79: 0 | BI79: 0 | BJ79: 0 | BK79: 0 | BL79: 0 | BM79: 0 | BN79: 0 | BO79: 0 | BP79: 0 | BQ79: 0 | BR79: 0 | BS79: 0 | BT79: 0 | BU79: 0 | BV79: 0 | BW79: 0 | BX79: 0 | BY79: 0 | BZ79: 0 | CA79: 0 | CB79: 0 | CC79: 0 | CD79: 0 | CE79: 0 | CF79: 0 | CG79: 0 | CH79: 0 | CI79: 0 | CJ79: 0 | CK79: 0 | CL79: 0 | CM79: 0 | CN79: 0 | CO79: 0 | CP79: 0 | CQ79: 0 | CR79: 0 | CS79: 0 | CT79: 0 | CU79: 0 | CV79: 0 | CW79: 0 | CX79: 0 | CY79: 0 | CZ79: 0 | DA79: 0 | DB79: 0 | DC79: 0 | DD79: 0 | DE79: 0 | DF79: 0 | DG79: 0 | DH79: 0 | DI79: 0 | DJ79: 0 | DK79: 0 | DL79: 0 | DM79: 0 | DN79: 0 | DO79: 0 | DP79: 0 | DQ79: 0 | DR79: 0 | DS79: 0 | DT79: 0 | DU79: 0 | DV79: 0 | DW79: 0 | DX79: 0 | DY79: 0 | DZ79: 0 | EA79: 0 | EB79: 0 | EC79: 0 | ED79: 0 | EE79: 0 | EF79: 0 | EG79: 0 | EH79: 0 | EI79: 0 | EJ79: 0 | EK79: 0 | EL79: 0 | EM79: 0 | EN79: 0 | EO79: 0 | EP79: 0 | EQ79: 0 | ER79: 0 | ES79: 0 | ET79: 0 | EU79: 0 | EV79: 0 | EW79: 0 | EX79: 0 | EY79: 0 | EZ79: 0 | FA79: 0 | FB79: 0 | FC79: 0 | FD79: 0 | FE79: 0 | FF79: 0 | FG79: 0 | FH79: 0 | FI79: 0 | FJ79: 0 | FK79: 0 | FL79: 0 | FM79: 0 | FN79: 0 | FO79: 0 | FP79: 0 | FQ79: 0 | FR79: 0 | FS79: 0 | FT79: 0 | FU79: 0 | FV79: 0 | FW79: 0 | FX79: 0 | FY79: 0 | FZ79: 0 | GA79: 0 | GB79: 0 | GC79: 0 | GD79: 0 | GE79: 0 | GF79: 0 | GG79: 0 | GH79: 0 | GI79: 0 | GJ79: 0 | GK79: 0 | GL79: 0 | GM79: 0 | GN79: 0 | GO79: 0 | GP79: 0 | GQ79: 0 | GR79: 0 | GS79: 0 | GT79: 0 | GU79: 0 | GV79: 0 | GW79: 0 | GX79: 0 | GY79: 0 | GZ79: 0 | HA79: 0 | HB79: 0 | HC79: 0 | HD79: 0 | HE79: 0 | HF79: 0 | HG79: 0 | HH79: 0 | HI79: 0 | HJ79: 0 | HK79: 0 | HL79: 0 | HM79: 0 | HN79: 0 | HO79: 0 | HP79: 0 | HQ79: 0 | HR79: 0 | HS79: 0 | HT79: 0 | HU79: 0 | HV79: 0 | HW79: 0
A80: 3 | B80: 0 | C80: 0 | D80: 0 | E80: 0 | F80: 0 | G80: 0 | H80: 0 | I80: 0 | J80: 0 | K80: 0 | L80: 0 | M80: 0 | N80: 0 | O80: 0 | P80: 0 | Q80: 0 | R80: 0 | S80: 0 | T80: 0 | U80: 0 | V80: 0 | W80: 0 | X80: 0 | Y80: 0 | Z80: 0 | AA80: 0 | AB80: 0 | AC80: 0 | AD80: 0 | AE80: 0 | AF80: 0 | AG80: 0 | AH80: 0 | AI80: 0 | AJ80: 0 | AK80: 0 | AL80: 0 | AM80: 0 | AN80: 0 | AO80: 0 | AP80: 0 | AQ80: 0 | AR80: 0 | AS80: 0 | AT80: 0 | AU80: 0 | AV80: 0 | AW80: 0 | AX80: 0 | AY80: 0 | AZ80: 0 | BA80: 0 | BB80: 0 | BC80: 0 | BD80: 0 | BE80: 0 | BF80: 0 | BG80: 0 | BH80: 0 | BI80: 0 | BJ80: 0 | BK80: 0 | BL80: 0 | BM80: 0 | BN80: 0 | BO80: 0 | BP80: 0 | BQ80: 0 | BR80: 0 | BS80: 0 | BT80: 0 | BU80: 0 | BV80: 0 | BW80: 0 | BX80: 0 | BY80: 0 | BZ80: 0 | CA80: 0 | CB80: 0 | CC80: 0 | CD80: 0 | CE80: 0 | CF80: 0 | CG80: 0 | CH80: 0 | CI80: 0 | CJ80: 0 | CK80: 0 | CL80: 0 | CM80: 0 | CN80: 0 | CO80: 0 | CP80: 0 | CQ80: 0 | CR80: 0 | CS80: 0 | CT80: 0 | CU80: 0 | CV80: 0 | CW80: 0 | CX80: 0 | CY80: 0 | CZ80: 0 | DA80: 0 | DB80: 0 | DC80: 0 | DD80: 0 | DE80: 0 | DF80: 0 | DG80: 0 | DH80: 0 | DI80: 0 | DJ80: 0 | DK80: 0 | DL80: 0 | DM80: 0 | DN80: 0 | DO80: 0 | DP80: 0 | DQ80: 0 | DR80: 0 | DS80: 0 | DT80: 0 | DU80: 0 | DV80: 0 | DW80: 0 | DX80: 0 | DY80: 0 | DZ80: 0 | EA80: 0 | EB80: 0 | EC80: 0 | ED80: 0 | EE80: 0 | EF80: 0 | EG80: 0 | EH80: 0 | EI80: 0 | EJ80: 0 | EK80: 0 | EL80: 0 | EM80: 0 | EN80: 0 | EO80: 0 | EP80: 0 | EQ80: 0 | ER80: 0 | ES80: 0 | ET80: 0 | EU80: 0 | EV80: 0 | EW80: 0 | EX80: 0 | EY80: 0 | EZ80: 0 | FA80: 0 | FB80: 0 | FC80: 0 | FD80: 0 | FE80: 0 | FF80: 0 | FG80: 0 | FH80: 0 | FI80: 0 | FJ80: 0 | FK80: 0 | FL80: 0 | FM80: 0 | FN80: 0 | FO80: 0 | FP80: 0 | FQ80: 0 | FR80: 0 | FS80: 0 | FT80: 0 | FU80: 0 | FV80: 0 | FW80: 0 | FX80: 0 | FY80: 0 | FZ80: 0 | GA80: 0 | GB80: 0 | GC80: 0 | GD80: 0 | GE80: 0 | GF80: 0 | GG80: 0 | GH80: 0 | GI80: 0 | GJ80: 0 | GK80: 0 | GL80: 0 | GM80: 0 | GN80: 0 | GO80: 0 | GP80: 0 | GQ80: 0 | GR80: 0 | GS80: 0 | GT80: 0 | GU80: 0 | GV80: 0 | GW80: 0 | GX80: 0 | GY80: 0 | GZ80: 0 | HA80: 0 | HB80: 0 | HC80: 0 | HD80: 0 | HE80: 0 | HF80: 0 | HG80: 0 | HH80: 0 | HI80: 0 | HJ80: 0 | HK80: 0 | HL80: 0 | HM80: 0 | HN80: 0 | HO80: 0 | HP80: 0 | HQ80: 0 | HR80: 0 | HS80: 0 | HT80: 0 | HU80: 0 | HV80: 0 | HW80: 0
A81: 4 | B81: 0 | C81: 0 | D81: 0 | E81: 0 | F81: 0 | G81: 0 | H81: 0 | I81: 0 | J81: 0 | K81: 0 | L81: 0 | M81: 0 | N81: 0 | O81: 0 | P81: 0 | Q81: 0 | R81: 0 | S81: 0 | T81: 0 | U81: 0 | V81: 0 | W81: 0 | X81: 0 | Y81: 0 | Z81: 0 | AA81: 0 | AB81: 0 | AC81: 0 | AD81: 0 | AE81: 0 | AF81: 0 | AG81: 0 | AH81: 0 | AI81: 0 | AJ81: 0 | AK81: 0 | AL81: 0 | AM81: 0 | AN81: 0 | AO81: 0 | AP81: 0 | AQ81: 0 | AR81: 0 | AS81: 0 | AT81: 0 | AU81: 0 | AV81: 0 | AW81: 0 | AX81: 0 | AY81: 0 | AZ81: 0 | BA81: 0 | BB81: 0 | BC81: 0 | BD81: 0 | BE81: 0 | BF81: 0 | BG81: 0 | BH81: 0 | BI81: 0 | BJ81: 0 | BK81: 0 | BL81: 0 | BM81: 0 | BN81: 0 | BO81: 0 | BP81: 0 | BQ81: 0 | BR81: 0 | BS81: 0 | BT81: 0 | BU81: 0 | BV81: 0 | BW81: 0 | BX81: 0 | BY81: 0 | BZ81: 0 | CA81: 0 | CB81: 0 | CC81: 0 | CD81: 0 | CE81: 0 | CF81: 0 | CG81: 0 | CH81: 0 | CI81: 0 | CJ81: 0 | CK81: 0 | CL81: 0 | CM81: 0 | CN81: 0 | CO81: 0 | CP81: 0 | CQ81: 0 | CR81: 0 | CS81: 0 | CT81: 0 | CU81: 0 | CV81: 0 | CW81: 0 | CX81: 0 | CY81: 0 | CZ81: 0 | DA81: 0 | DB81: 0 | DC81: 0 | DD81: 0 | DE81: 0 | DF81: 0 | DG81: 0 | DH81: 0 | DI81: 0 | DJ81: 0 | DK81: 0 | DL81: 0 | DM81: 0 | DN81: 0 | DO81: 0 | DP81: 0 | DQ81: 0 | DR81: 0 | DS81: 0 | DT81: 0 | DU81: 0 | DV81: 0 | DW81: 0 | DX81: 0 | DY81: 0 | DZ81: 0 | EA81: 0 | EB81: 0 | EC81: 0 | ED81: 0 | EE81: 0 | EF81: 0 | EG81: 0 | EH81: 0 | EI81: 0 | EJ81: 0 | EK81: 0 | EL81: 0 | EM81: 0 | EN81: 0 | EO81: 0 | EP81: 0 | EQ81: 0 | ER81: 0 | ES81: 0 | ET81: 0 | EU81: 0 | EV81: 0 | EW81: 0 | EX81: 0 | EY81: 0 | EZ81: 0 | FA81: 0 | FB81: 0 | FC81: 0 | FD81: 0 | FE81: 0 | FF81: 0 | FG81: 0 | FH81: 0 | FI81: 0 | FJ81: 0 | FK81: 0 | FL81: 0 | FM81: 0 | FN81: 0 | FO81: 0 | FP81: 0 | FQ81: 0 | FR81: 0 | FS81: 0 | FT81: 0 | FU81: 0 | FV81: 0 | FW81: 0 | FX81: 0 | FY81: 0 | FZ81: 0 | GA81: 0 | GB81: 0 | GC81: 0 | GD81: 0 | GE81: 0 | GF81: 0 | GG81: 0 | GH81: 0 | GI81: 0 | GJ81: 0 | GK81: 0 | GL81: 0 | GM81: 0 | GN81: 0 | GO81: 0 | GP81: 0 | GQ81: 0 | GR81: 0 | GS81: 0 | GT81: 0 | GU81: 0 | GV81: 0 | GW81: 0 | GX81: 0 | GY81: 0 | GZ81: 0 | HA81: 0 | HB81: 0 | HC81: 0 | HD81: 0 | HE81: 0 | HF81: 0 | HG81: 0 | HH81: 0 | HI81: 0 | HJ81: 0 | HK81: 0 | HL81: 0 | HM81: 0 | HN81: 0 | HO81: 0 | HP81: 0 | HQ81: 0 | HR81: 0 | HS81: 0 | HT81: 0 | HU81: 0 | HV81: 0 | HW81: 0
A82: 6 | B82: 0 | C82: 0 | D82: 0 | E82: 0 | F82: 0 | G82: 0 | H82: 0 | I82: 0 | J82: 0 | K82: 0 | L82: 0 | M82: 0 | N82: 0 | O82: 0 | P82: 0 | Q82: 0 | R82: 0 | S82: 0 | T82: 0 | U82: 0 | V82: 0 | W82: 0 | X82: 0 | Y82: 0 | Z82: 0 | AA82: 0 | AB82: 0 | AC82: 0 | AD82: 0 | AE82: 0 | AF82: 0 | AG82: 0 | AH82: 0 | AI82: 0 | AJ82: 0 | AK82: 0 | AL82: 0 | AM82: 0 | AN82: 0 | AO82: 0 | AP82: 0 | AQ82: 0 | AR82: 0 | AS82: 0 | AT82: 0 | AU82: 0 | AV82: 0 | AW82: 0 | AX82: 0 | AY82: 0 | AZ82: 0 | BA82: 0 | BB82: 0 | BC82: 0 | BD82: 0 | BE82: 0 | BF82: 0 | BG82: 0 | BH82: 0 | BI82: 0 | BJ82: 0 | BK82: 0 | BL82: 0 | BM82: 0 | BN82: 0 | BO82: 0 | BP82: 0 | BQ82: 0 | BR82: 0 | BS82: 0 | BT82: 0 | BU82: 0 | BV82: 0 | BW82: 0 | BX82: 0 | BY82: 0 | BZ82: 0 | CA82: 0 | CB82: 0 | CC82: 0 | CD82: 0 | CE82: 0 | CF82: 0 | CG82: 0 | CH82: 0 | CI82: 0 | CJ82: 0 | CK82: 0 | CL82: 0 | CM82: 0 | CN82: 0 | CO82: 0 | CP82: 0 | CQ82: 0 | CR82: 0 | CS82: 0 | CT82: 0 | CU82: 0 | CV82: 0 | CW82: 0 | CX82: 0 | CY82: 0 | CZ82: 0 | DA82: 0 | DB82: 0 | DC82: 0 | DD82: 0 | DE82: 0 | DF82: 0 | DG82: 0 | DH82: 0 | DI82: 0 | DJ82: 0 | DK82: 0 | DL82: 0 | DM82: 0 | DN82: 0 | DO82: 0 | DP82: 0 | DQ82: 0 | DR82: 0 | DS82: 0 | DT82: 0 | DU82: 0 | DV82: 0 | DW82: 0 | DX82: 0 | DY82: 0 | DZ82: 0 | EA82: 0 | EB82: 0 | EC82: 0 | ED82: 0 | EE82: 0 | EF82: 0 | EG82: 0 | EH82: 0 | EI82: 0 | EJ82: 0 | EK82: 0 | EL82: 0 | EM82: 0 | EN82: 0 | EO82: 0 | EP82: 0 | EQ82: 0 | ER82: 0 | ES82: 0 | ET82: 0 | EU82: 0 | EV82: 0 | EW82: 0 | EX82: 0 | EY82: 0 | EZ82: 0 | FA82: 0 | FB82: 0 | FC82: 0 | FD82: 0 | FE82: 0 | FF82: 0 | FG82: 0 | FH82: 0 | FI82: 0 | FJ82: 0 | FK82: 0 | FL82: 0 | FM82: 0 | FN82: 0 | FO82: 0 | FP82: 0 | FQ82: 0 | FR82: 0 | FS82: 0 | FT82: 0 | FU82: 0 | FV82: 0 | FW82: 0 | FX82: 0 | FY82: 0 | FZ82: 0 | GA82: 0 | GB82: 0 | GC82: 0 | GD82: 0 | GE82: 0 | GF82: 0 | GG82: 0 | GH82: 0 | GI82: 0 | GJ82: 0 | GK82: 0 | GL82: 0 | GM82: 0 | GN82: 0 | GO82: 0 | GP82: 0 | GQ82: 0 | GR82: 0 | GS82: 0 | GT82: 0 | GU82: 0 | GV82: 0 | GW82: 0 | GX82: 0 | GY82: 0 | GZ82: 0 | HA82: 0 | HB82: 0 | HC82: 0 | HD82: 0 | HE82: 0 | HF82: 0 | HG82: 0 | HH82: 0 | HI82: 0 | HJ82: 0 | HK82: 0 | HL82: 0 | HM82: 0 | HN82: 0 | HO82: 0 | HP82: 0 | HQ82: 0 | HR82: 0 | HS82: 0 | HT82: 0 | HU82: 0 | HV82: 0 | HW82: 0
A83: 11 | B83: 0 | C83: 0 | D83: 0 | E83: 0 | F83: 0 | G83: 0 | H83: 0 | I83: 0 | J83: 0 | K83: 0 | L83: 0 | M83: 0 | N83: 0 | O83: 0 | P83: 0 | Q83: 0 | R83: 0 | S83: 0 | T83: 0 | U83: 0 | V83: 0 | W83: 0 | X83: 0 | Y83: 0 | Z83: 0 | AA83: 0 | AB83: 0 | AC83: 0 | AD83: 0 | AE83: 0 | AF83: 0 | AG83: 0 | AH83: 0 | AI83: 0 | AJ83: 0 | AK83: 0 | AL83: 0 | AM83: 0 | AN83: 0 | AO83: 0 | AP83: 0 | AQ83: 0 | AR83: 0 | AS83: 0 | AT83: 0 | AU83: 0 | AV83: 0 | AW83: 0 | AX83: 0 | AY83: 0 | AZ83: 0 | BA83: 0 | BB83: 0 | BC83: 0 | BD83: 0 | BE83: 0 | BF83: 0 | BG83: 0 | BH83: 0 | BI83: 0 | BJ83: 0 | BK83: 0 | BL83: 0 | BM83: 0 | BN83: 0 | BO83: 0 | BP83: 0 | BQ83: 0 | BR83: 0 | BS83: 0 | BT83: 0 | BU83: 0 | BV83: 0 | BW83: 0 | BX83: 0 | BY83: 0 | BZ83: 0 | CA83: 0 | CB83: 0 | CC83: 0 | CD83: 0 | CE83: 0 | CF83: 0 | CG83: 0 | CH83: 0 | CI83: 0 | CJ83: 0 | CK83: 0 | CL83: 0 | CM83: 0 | CN83: 0 | CO83: 0 | CP83: 0 | CQ83: 0 | CR83: 0 | CS83: 0 | CT83: 0 | CU83: 0 | CV83: 0 | CW83: 0 | CX83: 0 | CY83: 0 | CZ83: 0 | DA83: 0 | DB83: 0 | DC83: 0 | DD83: 0 | DE83: 0 | DF83: 0 | DG83: 0 | DH83: 0 | DI83: 0 | DJ83: 0 | DK83: 0 | DL83: 0 | DM83: 0 | DN83: 0 | DO83: 0 | DP83: 0 | DQ83: 0 | DR83: 0 | DS83: 0 | DT83: 0 | DU83: 0 | DV83: 0 | DW83: 0 | DX83: 0 | DY83: 0 | DZ83: 0 | EA83: 0 | EB83: 0 | EC83: 0 | ED83: 0 | EE83: 0 | EF83: 0 | EG83: 0 | EH83: 0 | EI83: 0 | EJ83: 0 | EK83: 0 | EL83: 0 | EM83: 0 | EN83: 0 | EO83: 0 | EP83: 0 | EQ83: 0 | ER83: 0 | ES83: 0 | ET83: 0 | EU83: 0 | EV83: 0 | EW83: 0 | EX83: 0 | EY83: 0 | EZ83: 0 | FA83: 0 | FB83: 0 | FC83: 0 | FD83: 0 | FE83: 0 | FF83: 0 | FG83: 0 | FH83: 0 | FI83: 0 | FJ83: 0 | FK83: 0 | FL83: 0 | FM83: 0 | FN83: 0 | FO83: 0 | FP83: 0 | FQ83: 0 | FR83: 0 | FS83: 0 | FT83: 0 | FU83: 0 | FV83: 0 | FW83: 0 | FX83: 0 | FY83: 0 | FZ83: 0 | GA83: 0 | GB83: 0 | GC83: 0 | GD83: 0 | GE83: 0 | GF83: 0 | GG83: 0 | GH83: 0 | GI83: 0 | GJ83: 0 | GK83: 0 | GL83: 0 | GM83: 0 | GN83: 0 | GO83: 0 | GP83: 0 | GQ83: 0 | GR83: 0 | GS83: 0 | GT83: 0 | GU83: 0 | GV83: 0 | GW83: 0 | GX83: 0 | GY83: 0 | GZ83: 0 | HA83: 0 | HB83: 0 | HC83: 0 | HD83: 0 | HE83: 0 | HF83: 0 | HG83: 0 | HH83: 0 | HI83: 0 | HJ83: 0 | HK83: 0 | HL83: 0 | HM83: 0 | HN83: 0 | HO83: 0 | HP83: 0 | HQ83: 0 | HR83: 0 | HS83: 0 | HT83: 0 | HU83: 0 | HV83: 0 | HW83: 0
A84: 10 | B84: 0 | C84: 0 | D84: 0 | E84: 0 | F84: 0 | G84: 0 | H84: 0 | I84: 0 | J84: 0 | K84: 0 | L84: 0 | M84: 0 | N84: 0 | O84: 0 | P84: 0 | Q84: 0 | R84: 0 | S84: 0 | T84: 0 | U84: 0 | V84: 0 | W84: 0 | X84: 0 | Y84: 0 | Z84: 0 | AA84: 0 | AB84: 0 | AC84: 0 | AD84: 0 | AE84: 0 | AF84: 0 | AG84: 0 | AH84: 0 | AI84: 0 | AJ84: 0 | AK84: 0 | AL84: 0 | AM84: 0 | AN84: 0 | AO84: 0 | AP84: 0 | AQ84: 0 | AR84: 0 | AS84: 0 | AT84: 0 | AU84: 0 | AV84: 0 | AW84: 0 | AX84: 0 | AY84: 0 | AZ84: 0 | BA84: 0 | BB84: 0 | BC84: 0 | BD84: 0 | BE84: 0 | BF84: 0 | BG84: 0 | BH84: 0 | BI84: 0 | BJ84: 0 | BK84: 0 | BL84: 0 | BM84: 0 | BN84: 0 | BO84: 0 | BP84: 0 | BQ84: 0 | BR84: 0 | BS84: 0 | BT84: 0 | BU84: 0 | BV84: 0 | BW84: 0 | BX84: 0 | BY84: 0 | BZ84: 0 | CA84: 0 | CB84: 0 | CC84: 0 | CD84: 0 | CE84: 0 | CF84: 0 | CG84: 0 | CH84: 0 | CI84: 0 | CJ84: 0 | CK84: 0 | CL84: 0 | CM84: 0 | CN84: 0 | CO84: 0 | CP84: 0 | CQ84: 0 | CR84: 0 | CS84: 0 | CT84: 0 | CU84: 0 | CV84: 0 | CW84: 0 | CX84: 0 | CY84: 0 | CZ84: 0 | DA84: 0 | DB84: 0 | DC84: 0 | DD84: 0 | DE84: 0 | DF84: 0 | DG84: 0 | DH84: 0 | DI84: 0 | DJ84: 0 | DK84: 0 | DL84: 0 | DM84: 0 | DN84: 0 | DO84: 0 | DP84: 0 | DQ84: 0 | DR84: 0 | DS84: 0 | DT84: 0 | DU84: 0 | DV84: 0 | DW84: 0 | DX84: 0 | DY84: 0 | DZ84: 0 | EA84: 0 | EB84: 0 | EC84: 0 | ED84: 0 | EE84: 0 | EF84: 0 | EG84: 0 | EH84: 0 | EI84: 0 | EJ84: 0 | EK84: 0 | EL84: 0 | EM84: 0 | EN84: 0 | EO84: 0 | EP84: 0 | EQ84: 0 | ER84: 0 | ES84: 0 | ET84: 0 | EU84: 0 | EV84: 0 | EW84: 0 | EX84: 0 | EY84: 0 | EZ84: 0 | FA84: 0 | FB84: 0 | FC84: 0 | FD84: 0 | FE84: 0 | FF84: 0 | FG84: 0 | FH84: 0 | FI84: 0 | FJ84: 0 | FK84: 0 | FL84: 0 | FM84: 0 | FN84: 0 | FO84: 0 | FP84: 0 | FQ84: 0 | FR84: 0 | FS84: 0 | FT84: 0 | FU84: 0 | FV84: 0 | FW84: 0 | FX84: 0 | FY84: 0 | FZ84: 0 | GA84: 0 | GB84: 0 | GC84: 0 | GD84: 0 | GE84: 0 | GF84: 0 | GG84: 0 | GH84: 0 | GI84: 0 | GJ84: 0 | GK84: 0 | GL84: 0 | GM84: 0 | GN84: 0 | GO84: 0 | GP84: 0 | GQ84: 0 | GR84: 0 | GS84: 0 | GT84: 0 | GU84: 0 | GV84: 0 | GW84: 0 | GX84: 0 | GY84: 0 | GZ84: 0 | HA84: 0 | HB84: 0 | HC84: 0 | HD84: 0 | HE84: 0 | HF84: 0 | HG84: 0 | HH84: 0 | HI84: 0 | HJ84: 0 | HK84: 0 | HL84: 0 | HM84: 0 | HN84: 0 | HO84: 0 | HP84: 0 | HQ84: 0 | HR84: 0 | HS84: 0 | HT84: 0 | HU84: 0 | HV84: 0 | HW84: 0
A85: 9 | B85: 0 | C85: 0 | D85: 0 | E85: 0 | F85: 0 | G85: 0 | H85: 0 | I85: 0 | J85: 0 | K85: 0 | L85: 0 | M85: 0 | N85: 0 | O85: 0 | P85: 0 | Q85: 0 | R85: 0 | S85: 0 | T85: 0 | U85: 0 | V85: 0 | W85: 0 | X85: 0 | Y85: 0 | Z85: 0 | AA85: 0 | AB85: 0 | AC85: 0 | AD85: 0 | AE85: 0 | AF85: 0 | AG85: 0 | AH85: 0 | AI85: 0 | AJ85: 0 | AK85: 0 | AL85: 0 | AM85: 0 | AN85: 0 | AO85: 0 | AP85: 0 | AQ85: 0 | AR85: 0 | AS85: 0 | AT85: 0 | AU85: 0 | AV85: 0 | AW85: 0 | AX85: 0 | AY85: 0 | AZ85: 0 | BA85: 0 | BB85: 0 | BC85: 0 | BD85: 0 | BE85: 0 | BF85: 0 | BG85: 0 | BH85: 0 | BI85: 0 | BJ85: 0 | BK85: 0 | BL85: 0 | BM85: 0 | BN85: 0 | BO85: 0 | BP85: 0 | BQ85: 0 | BR85: 0 | BS85: 0 | BT85: 0 | BU85: 0 | BV85: 0 | BW85: 0 | BX85: 0 | BY85: 0 | BZ85: 0 | CA85: 0 | CB85: 0 | CC85: 0 | CD85: 0 | CE85: 0 | CF85: 0 | CG85: 0 | CH85: 0 | CI85: 0 | CJ85: 0 | CK85: 0 | CL85: 0 | CM85: 0 | CN85: 0 | CO85: 0 | CP85: 0 | CQ85: 0 | CR85: 0 | CS85: 0 | CT85: 0 | CU85: 0 | CV85: 0 | CW85: 0 | CX85: 0 | CY85: 0 | CZ85: 0 | DA85: 0 | DB85: 0 | DC85: 0 | DD85: 0 | DE85: 0 | DF85: 0 | DG85: 0 | DH85: 0 | DI85: 0 | DJ85: 0 | DK85: 0 | DL85: 0 | DM85: 0 | DN85: 0 | DO85: 0 | DP85: 0 | DQ85: 0 | DR85: 0 | DS85: 0 | DT85: 0 | DU85: 0 | DV85: 0 | DW85: 0 | DX85: 0 | DY85: 0 | DZ85: 0 | EA85: 0 | EB85: 0 | EC85: 0 | ED85: 0 | EE85: 0 | EF85: 0 | EG85: 0 | EH85: 0 | EI85: 0 | EJ85: 0 | EK85: 0 | EL85: 0 | EM85: 0 | EN85: 0 | EO85: 0 | EP85: 0 | EQ85: 0 | ER85: 0 | ES85: 0 | ET85: 0 | EU85: 0 | EV85: 0 | EW85: 0 | EX85: 0 | EY85: 0 | EZ85: 0 | FA85: 0 | FB85: 0 | FC85: 0 | FD85: 0 | FE85: 0 | FF85: 0 | FG85: 0 | FH85: 0 | FI85: 0 | FJ85: 0 | FK85: 0 | FL85: 0 | FM85: 0 | FN85: 0 | FO85: 0 | FP85: 0 | FQ85: 0 | FR85: 0 | FS85: 0 | FT85: 0 | FU85: 0 | FV85: 0 | FW85: 0 | FX85: 0 | FY85: 0 | FZ85: 0 | GA85: 0 | GB85: 0 | GC85: 0 | GD85: 0 | GE85: 0 | GF85: 0 | GG85: 0 | GH85: 0 | GI85: 0 | GJ85: 0 | GK85: 0 | GL85: 0 | GM85: 0 | GN85: 0 | GO85: 0 | GP85: 0 | GQ85: 0 | GR85: 0 | GS85: 0 | GT85: 0 | GU85: 0 | GV85: 0 | GW85: 0 | GX85: 0 | GY85: 0 | GZ85: 0 | HA85: 0 | HB85: 0 | HC85: 0 | HD85: 0 | HE85: 0 | HF85: 0 | HG85: 0 | HH85: 0 | HI85: 0 | HJ85: 0 | HK85: 0 | HL85: 0 | HM85: 0 | HN85: 0 | HO85: 0 | HP85: 0 | HQ85: 0 | HR85: 0 | HS85: 0 | HT85: 0 | HU85: 0 | HV85: 0 | HW85: 0
A86: 8 | B86: 0 | C86: 0 | D86: 0 | E86: 0 | F86: 0 | G86: 0 | H86: 0 | I86: 0 | J86: 0 | K86: 0 | L86: 0 | M86: 0 | N86: 0 | O86: 0 | P86: 0 | Q86: 0 | R86: 0 | S86: 0 | T86: 0 | U86: 0 | V86: 0 | W86: 0 | X86: 0 | Y86: 0 | Z86: 0 | AA86: 0 | AB86: 0 | AC86: 0 | AD86: 0 | AE86: 0 | AF86: 0 | AG86: 0 | AH86: 0 | AI86: 0 | AJ86: 0 | AK86: 0 | AL86: 0 | AM86: 0 | AN86: 0 | AO86: 0 | AP86: 0 | AQ86: 0 | AR86: 0 | AS86: 0 | AT86: 0 | AU86: 0 | AV86: 0 | AW86: 0 | AX86: 0 | AY86: 0 | AZ86: 0 | BA86: 0 | BB86: 0 | BC86: 0 | BD86: 0 | BE86: 0 | BF86: 0 | BG86: 0 | BH86: 0 | BI86: 0 | BJ86: 0 | BK86: 0 | BL86: 0 | BM86: 0 | BN86: 0 | BO86: 0 | BP86: 0 | BQ86: 0 | BR86: 0 | BS86: 0 | BT86: 0 | BU86: 0 | BV86: 0 | BW86: 0 | BX86: 0 | BY86: 0 | BZ86: 0 | CA86: 0 | CB86: 0 | CC86: 0 | CD86: 0 | CE86: 0 | CF86: 0 | CG86: 0 | CH86: 0 | CI86: 0 | CJ86: 0 | CK86: 0 | CL86: 0 | CM86: 0 | CN86: 0 | CO86: 0 | CP86: 0 | CQ86: 0 | CR86: 0 | CS86: 0 | CT86: 0 | CU86: 0 | CV86: 0 | CW86: 0 | CX86: 0 | CY86: 0 | CZ86: 0 | DA86: 0 | DB86: 0 | DC86: 0 | DD86: 0 | DE86: 0 | DF86: 0 | DG86: 0 | DH86: 0 | DI86: 0 | DJ86: 0 | DK86: 0 | DL86: 0 | DM86: 0 | DN86: 0 | DO86: 0 | DP86: 0 | DQ86: 0 | DR86: 0 | DS86: 0 | DT86: 0 | DU86: 0 | DV86: 0 | DW86: 0 | DX86: 0 | DY86: 0 | DZ86: 0 | EA86: 0 | EB86: 0 | EC86: 0 | ED86: 0 | EE86: 0 | EF86: 0 | EG86: 0 | EH86: 0 | EI86: 0 | EJ86: 0 | EK86: 0 | EL86: 0 | EM86: 0 | EN86: 0 | EO86: 0 | EP86: 0 | EQ86: 0 | ER86: 0 | ES86: 0 | ET86: 0 | EU86: 0 | EV86: 0 | EW86: 0 | EX86: 0 | EY86: 0 | EZ86: 0 | FA86: 0 | FB86: 0 | FC86: 0 | FD86: 0 | FE86: 0 | FF86: 0 | FG86: 0 | FH86: 0 | FI86: 0 | FJ86: 0 | FK86: 0 | FL86: 0 | FM86: 0 | FN86: 0 | FO86: 0 | FP86: 0 | FQ86: 0 | FR86: 0 | FS86: 0 | FT86: 0 | FU86: 0 | FV86: 0 | FW86: 0 | FX86: 0 | FY86: 0 | FZ86: 0 | GA86: 0 | GB86: 0 | GC86: 0 | GD86: 0 | GE86: 0 | GF86: 0 | GG86: 0 | GH86: 0 | GI86: 0 | GJ86: 0 | GK86: 0 | GL86: 0 | GM86: 0 | GN86: 0 | GO86: 0 | GP86: 0 | GQ86: 0 | GR86: 0 | GS86: 0 | GT86: 0 | GU86: 0 | GV86: 0 | GW86: 0 | GX86: 0 | GY86: 0 | GZ86: 0 | HA86: 0 | HB86: 0 | HC86: 0 | HD86: 0 | HE86: 0 | HF86: 0 | HG86: 0 | HH86: 0 | HI86: 0 | HJ86: 0 | HK86: 0 | HL86: 0 | HM86: 0 | HN86: 0 | HO86: 0 | HP86: 0 | HQ86: 0 | HR86: 0 | HS86: 0 | HT86: 0 | HU86: 0 | HV86: 0 | HW86: 0
A87: 7 | B87: 0 | C87: 0 | D87: 0 | E87: 0 | F87: 0 | G87: 0 | H87: 0 | I87: 0 | J87: 0 | K87: 0 | L87: 0 | M87: 0 | N87: 0 | O87: 0 | P87: 0 | Q87: 0 | R87: 0 | S87: 0 | T87: 0 | U87: 0 | V87: 0 | W87: 0 | X87: 0 | Y87: 0 | Z87: 0 | AA87: 0 | AB87: 0 | AC87: 0 | AD87: 0 | AE87: 0 | AF87: 0 | AG87: 0 | AH87: 0 | AI87: 0 | AJ87: 0 | AK87: 0 | AL87: 0 | AM87: 0 | AN87: 0 | AO87: 0 | AP87: 0 | AQ87: 0 | AR87: 0 | AS87: 0 | AT87: 0 | AU87: 0 | AV87: 0 | AW87: 0 | AX87: 0 | AY87: 0 | AZ87: 0 | BA87: 0 | BB87: 0 | BC87: 0 | BD87: 0 | BE87: 0 | BF87: 0 | BG87: 0 | BH87: 0 | BI87: 0 | BJ87: 0 | BK87: 0 | BL87: 0 | BM87: 0 | BN87: 0 | BO87: 0 | BP87: 0 | BQ87: 0 | BR87: 0 | BS87: 0 | BT87: 0 | BU87: 0 | BV87: 0 | BW87: 0 | BX87: 0 | BY87: 0 | BZ87: 0 | CA87: 0 | CB87: 0 | CC87: 0 | CD87: 0 | CE87: 0 | CF87: 0 | CG87: 0 | CH87: 0 | CI87: 0 | CJ87: 0 | CK87: 0 | CL87: 0 | CM87: 0 | CN87: 0 | CO87: 0 | CP87: 0 | CQ87: 0 | CR87: 0 | CS87: 0 | CT87: 0 | CU87: 0 | CV87: 0 | CW87: 0 | CX87: 0 | CY87: 0 | CZ87: 0 | DA87: 0 | DB87: 0 | DC87: 0 | DD87: 0 | DE87: 0 | DF87: 0 | DG87: 0 | DH87: 0 | DI87: 0 | DJ87: 0 | DK87: 0 | DL87: 0 | DM87: 0 | DN87: 0 | DO87: 0 | DP87: 0 | DQ87: 0 | DR87: 0 | DS87: 0 | DT87: 0 | DU87: 0 | DV87: 0 | DW87: 0 | DX87: 0 | DY87: 0 | DZ87: 0 | EA87: 0 | EB87: 0 | EC87: 0 | ED87: 0 | EE87: 0 | EF87: 0 | EG87: 0 | EH87: 0 | EI87: 0 | EJ87: 0 | EK87: 0 | EL87: 0 | EM87: 0 | EN87: 0 | EO87: 0 | EP87: 0 | EQ87: 0 | ER87: 0 | ES87: 0 | ET87: 0 | EU87: 0 | EV87: 0 | EW87: 0 | EX87: 0 | EY87: 0 | EZ87: 0 | FA87: 0 | FB87: 0 | FC87: 0 | FD87: 0 | FE87: 0 | FF87: 0 | FG87: 0 | FH87: 0 | FI87: 0 | FJ87: 0 | FK87: 0 | FL87: 0 | FM87: 0 | FN87: 0 | FO87: 0 | FP87: 0 | FQ87: 0 | FR87: 0 | FS87: 0 | FT87: 0 | FU87: 0 | FV87: 0 | FW87: 0 | FX87: 0 | FY87: 0 | FZ87: 0 | GA87: 0 | GB87: 0 | GC87: 0 | GD87: 0 | GE87: 0 | GF87: 0 | GG87: 0 | GH87: 0 | GI87: 0 | GJ87: 0 | GK87: 0 | GL87: 0 | GM87: 0 | GN87: 0 | GO87: 0 | GP87: 0 | GQ87: 0 | GR87: 0 | GS87: 0 | GT87: 0 | GU87: 0 | GV87: 0 | GW87: 0 | GX87: 0 | GY87: 0 | GZ87: 0 | HA87: 0 | HB87: 0 | HC87: 0 | HD87: 0 | HE87: 0 | HF87: 0 | HG87: 0 | HH87: 0 | HI87: 0 | HJ87: 0 | HK87: 0 | HL87: 0 | HM87: 0 | HN87: 0 | HO87: 0 | HP87: 0 | HQ87: 0 | HR87: 0 | HS87: 0 | HT87: 0 | HU87: 0 | HV87: 0 | HW87: 0
A88: T | B88: 0 | C88: 0 | D88: 0 | E88: 0 | F88: 0 | G88: 0 | H88: 0 | I88: 0 | J88: 0 | K88: 0 | L88: 0 | M88: 0 | N88: 0 | O88: 0 | P88: 0 | Q88: 0 | R88: 0 | S88: 0 | T88: 0 | U88: 0 | V88: 0 | W88: 0 | X88: 0 | Y88: 0 | Z88: 0 | AA88: 0 | AB88: 0 | AC88: 0 | AD88: 0 | AE88: 0 | AF88: 0 | AG88: 0 | AH88: 0 | AI88: 0 | AJ88: 0 | AK88: 0 | AL88: 0 | AM88: 0 | AN88: 0 | AO88: 0 | AP88: 0 | AQ88: 0 | AR88: 0 | AS88: 0 | AT88: 0 | AU88: 0 | AV88: 0 | AW88: 0 | AX88: 0 | AY88: 0 | AZ88: 0 | BA88: 0 | BB88: 0 | BC88: 0 | BD88: 0 | BE88: 0 | BF88: 0 | BG88: 0 | BH88: 0 | BI88: 0 | BJ88: 0 | BK88: 0 | BL88: 0 | BM88: 0 | BN88: 0 | BO88: 0 | BP88: 0 | BQ88: 0 | BR88: 0 | BS88: 0 | BT88: 0 | BU88: 0 | BV88: 0 | BW88: 0 | BX88: 0 | BY88: 0 | BZ88: 0 | CA88: 0 | CB88: 0 | CC88: 0 | CD88: 0 | CE88: 0 | CF88: 0 | CG88: 0 | CH88: 0 | CI88: 0 | CJ88: 0 | CK88: 0 | CL88: 0 | CM88: 0 | CN88: 0 | CO88: 0 | CP88: 0 | CQ88: 0 | CR88: 0 | CS88: 0 | CT88: 0 | CU88: 0 | CV88: 0 | CW88: 0 | CX88: 0 | CY88: 0 | CZ88: 0 | DA88: 0 | DB88: 0 | DC88: 0 | DD88: 0 | DE88: 0 | DF88: 0 | DG88: 0 | DH88: 0 | DI88: 0 | DJ88: 0 | DK88: 0 | DL88: 0 | DM88: 0 | DN88: 0 | DO88: 0 | DP88: 0 | DQ88: 0 | DR88: 0 | DS88: 0 | DT88: 0 | DU88: 0 | DV88: 0 | DW88: 0 | DX88: 0 | DY88: 0 | DZ88: 0 | EA88: 0 | EB88: 0 | EC88: 0 | ED88: 0 | EE88: 0 | EF88: 0 | EG88: 0 | EH88: 0 | EI88: 0 | EJ88: 0 | EK88: 0 | EL88: 0 | EM88: 0 | EN88: 0 | EO88: 0 | EP88: 0 | EQ88: 0 | ER88: 0 | ES88: 0 | ET88: 0 | EU88: 0 | EV88: 0 | EW88: 0 | EX88: 0 | EY88: 0 | EZ88: 0 | FA88: 0 | FB88: 0 | FC88: 0 | FD88: 0 | FE88: 0 | FF88: 0 | FG88: 0 | FH88: 0 | FI88: 0 | FJ88: 0 | FK88: 0 | FL88: 0 | FM88: 0 | FN88: 0 | FO88: 0 | FP88: 0 | FQ88: 0 | FR88: 0 | FS88: 0 | FT88: 0 | FU88: 0 | FV88: 0 | FW88: 0 | FX88: 0 | FY88: 0 | FZ88: 0 | GA88: 0 | GB88: 0 | GC88: 0 | GD88: 0 | GE88: 0 | GF88: 0 | GG88: 0 | GH88: 0 | GI88: 0 | GJ88: 0 | GK88: 0 | GL88: 0 | GM88: 0 | GN88: 0 | GO88: 0 | GP88: 0 | GQ88: 0 | GR88: 0 | GS88: 0 | GT88: 0 | GU88: 0 | GV88: 0 | GW88: 0 | GX88: 0 | GY88: 0 | GZ88: 0 | HA88: 0 | HB88: 0 | HC88: 0 | HD88: 0 | HE88: 0 | HF88: 0 | HG88: 0 | HH88: 0 | HI88: 0 | HJ88: 0 | HK88: 0 | HL88: 0 | HM88: 0 | HN88: 0 | HO88: 0 | HP88: 0 | HQ88: 0 | HR88: 0 | HS88: 0 | HT88: 0 | HU88: 0 | HV88: 0 | HW88: 0
A90: TOTAL
A91: =COUNT(A77:A88) -> 11 | B91: =SUM(B77:B88) -> 0 | C91: =SUM(C77:C88) -> 0 | D91: 0 | E91: 0 | F91: 0 | G91: 0 | H91: 0 | I91: 0 | J91: 0 | K91: 0 | L91: 0 | M91: 0 | N91: 0 | O91: 0 | P91: 0 | Q91: 0 | R91: 0 | S91: 0 | T91: 0 | U91: 0 | V91: 0 | W91: 0 | X91: 0 | Y91: 0 | Z91: 0 | AA91: 0 | AB91: 0 | AC91: 0 | AD91: 0 | AE91: 0 | AF91: 0 | AG91: 0 | AH91: 0 | AI91: 0 | AJ91: 0 | AK91: 0 | AL91: 0 | AM91: 0 | AN91: 0 | AO91: 0 | AP91: 0 | AQ91: 0 | AR91: 0 | AS91: 0 | AT91: 0 | AU91: 0 | AV91: 0 | AW91: 0 | AX91: 0 | AY91: 0 | AZ91: 0 | BA91: 0 | BB91: 0 | BC91: 0 | BD91: 0 | BE91: 0 | BF91: 0 | BG91: 0 | BH91: 0 | BI91: 0 | BJ91: 0 | BK91: 0 | BL91: 0 | BM91: 0 | BN91: 0 | BO91: =SUM(BO77:BO88) -> 0 | BP91: 0 | BQ91: 0 | BR91: 0 | BS91: 0 | BT91: 0 | BU91: 0 | BV91: 0 | BW91: 0 | BX91: 0 | BY91: 0 | BZ91: 0 | CA91: 0 | CB91: 0 | CC91: 0 | CD91: 0 | CE91: 0 | CF91: 0 | CG91: 0 | CH91: 0 | CI91: 0 | CJ91: 0 | CK91: 0 | CL91: 0 | CM91: 0 | CN91: 0 | CO91: 0 | CP91: 0 | CQ91: 0 | CR91: 0 | CS91: 0 | CT91: 0 | CU91: 0 | CV91: 0 | CW91: 0 | CX91: 0 | CY91: 0 | CZ91: 0 | DA91: 0 | DB91: 0 | DC91: 0 | DD91: 0 | DE91: 0 | DF91: 0 | DG91: 0 | DH91: 0 | DI91: 0 | DJ91: 0 | DK91: 0 | DL91: 0 | DM91: 0 | DN91: 0 | DO91: 0 | DP91: 0 | DQ91: 0 | DR91: 0 | DS91: 0 | DT91: 0 | DU91: 0 | DV91: 0 | DW91: 0 | DX91: 0 | DY91: 0 | DZ91: 0 | EA91: =SUM(EA77:EA88) -> 0 | EB91: 0 | EC91: 0 | ED91: 0 | EE91: 0 | EF91: 0 | EG91: 0 | EH91: 0 | EI91: 0 | EJ91: 0 | EK91: 0 | EL91: 0 | EM91: 0 | EN91: 0 | EO91: 0 | EP91: 0 | EQ91: 0 | ER91: 0 | ES91: 0 | ET91: 0 | EU91: 0 | EV91: 0 | EW91: 0 | EX91: 0 | EY91: 0 | EZ91: 0 | FA91: 0 | FB91: 0 | FC91: 0 | FD91: 0 | FE91: 0 | FF91: 0 | FG91: 0 | FH91: 0 | FI91: 0 | FJ91: 0 | FK91: 0 | FL91: 0 | FM91: 0 | FN91: 0 | FO91: 0 | FP91: 0 | FQ91: 0 | FR91: 0 | FS91: 0 | FT91: 0 | FU91: 0 | FV91: 0 | FW91: 0 | FX91: 0 | FY91: 0 | FZ91: 0 | GA91: 0 | GB91: 0 | GC91: 0 | GD91: 0 | GE91: 0 | GF91: 0 | GG91: 0 | GH91: 0 | GI91: 0 | GJ91: 0 | GK91: 0 | GL91: 0 | GM91: =SUM(GM77:GM88) -> 0 | GN91: 0 | GO91: 0 | GP91: 0 | GQ91: 0 | GR91: 0 | GS91: 0 | GT91: 0 | GU91: 0 | GV91: 0 | GW91: 0 | GX91: 0 | GY91: 0 | GZ91: 0 | HA91: 0 | HB91: 0 | HC91: 0 | HD91: 0 | HE91: 0 | HF91: 0 | HG91: 0 | HH91: 0 | HI91: 0 | HJ91: 0 | HK91: 0 | HL91: 0 | HM91: 0 | HN91: 0 | HO91: 0 | HP91: 0 | HQ91: 0 | HR91: 0 | HS91: 0 | HT91: 0 | HU91: 0 | HV91: 0 | HW91: 0
A92: =CONCATENATE(A77,"-",A78,"-",A79,"-",A80,"-",A81,"-",A82,"-",A83,"-",A84,"-",A85,"-",A86,"-",A87,"-",A88) -> 1-5-2-3-4-6-11-10-9-8-7-T
B93: BAS001 | C93: BAS002 | D93: BAS003 | E93: BAS004 | F93: BAS005 | G93: BAS006 | H93: BAS007 | I93: BAS008 | J93: BAS009 | K93: BAS010 | L93: BAS011 | M93: BAS012 | N93: BAS013 | O93: BAS014 | P93: BAS015 | Q93: BAS016 | R93: BAS017 | S93: BAS018 | T93: BAS019 | U93: BAS020 | V93: BAS021 | W93: BAS022 | X93: BAS023 | Y93: BAS024 | Z93: BAS025 | AA93: BAS026 | AB93: BAS027 | AC93: BAS028 | AD93: BAS029 | AE93: BAS030 | AF93: BAS031 | AG93: BAS032 | AH93: BAS033 | AI93: BAS034 | AJ93: BAS035 | AK93: BAS036 | AL93: BAS037 | AM93: BAS038 | AN93: BAS039 | AO93: BAS040 | AP93: BAS041 | AQ93: BAS042 | AR93: BAS043 | AS93: BAS044 | AT93: BAS045 | AU93: BAS046 | AV93: BAS047 | AW93: BAS048 | AX93: BAS049 | AY93: BAS050 | AZ93: BAS051 | BA93: BAS052 | BB93: BAS053 | BC93: BAS054 | BD93: BAS055 | BE93: BAS056 | BF93: BAS057 | BG93: BAS058 | BH93: BAS059 | BI93: BAS060 | BJ93: BAS061 | BK93: BAS062 | BL93: BAS063 | BM93: BAS064 | BN93: BAS065 | BO93: BAS066 | BP93: BAS067 | BQ93: BAS068 | BR93: BAS069 | BS93: BAS070 | BT93: BAS071 | BU93: BAS072 | BV93: BAS073 | BW93: BAS074 | BX93: BAS075 | BY93: BAS076 | BZ93: BAS077 | CA93: BAS078 | CB93: BAS079 | CC93: BAS080 | CD93: BAS081 | CE93: BAS082 | CF93: BAS083 | CG93: BAS084 | CH93: BAS085 | CI93: BAS086 | CJ93: BAS087 | CK93: BAS088 | CL93: BAS089 | CM93: BAS090 | CN93: BAS091 | CO93: BAS092 | CP93: BAS093 | CQ93: BAS094 | CR93: BAS095 | CS93: BAS096 | CT93: BAS097 | CU93: BAS098 | CV93: BAS099 | CW93: BAS100 | CX93: BAS101 | CY93: BAS102 | CZ93: BAS103 | DA93: BAS104 | DB93: BAS105 | DC93: BAS106 | DD93: BAS107 | DE93: BAS108 | DF93: BAS109 | DG93: BAS110 | DH93: BAS111 | DI93: BAS112 | DJ93: BAS113 | DK93: BAS114 | DL93: BAS115 | DM93: BAS116 | DN93: BAS117 | DO93: BAS118 | DP93: BAS119 | DQ93: BAS120 | DR93: BAS121 | DS93: BAS122 | DT93: BAS123 | DU93: BAS124 | DV93: BAS125 | DW93: BAS126 | DX93: BAS127 | DY93: BAS128 | DZ93: BAS129 | EA93: BAS130 | EB93: BAS131 | EC93: BAS132 | ED93: BAS133 | EE93: BAS134 | EF93: BAS135 | EG93: BAS136 | EH93: BAS137 | EI93: BAS138 | EJ93: BAS139 | EK93: BAS140 | EL93: BAS141 | EM93: BAS142 | EN93: BAS143 | EO93: BAS144 | EP93: BAS145 | EQ93: BAS146 | ER93: BAS147 | ES93: BAS148 | ET93: BAS149 | EU93: BAS150 | EV93: BAS151 | EW93: BAS152 | EX93: BAS153 | EY93: BAS154 | EZ93: BAS155 | FA93: BAS156 | FB93: BAS157 | FC93: BAS158 | FD93: BAS159 | FE93: BAS160 | FF93: BAS161 | FG93: BAS162 | FH93: BAS163 | FI93: BAS164 | FJ93: BAS165 | FK93: BAS166 | FL93: BAS167 | FM93: BAS168 | FN93: BAS169 | FO93: BAS170 | FP93: BAS171 | FQ93: BAS172 | FR93: BAS173 | FS93: BAS174 | FT93: BAS175 | FU93: BAS176 | FV93: BAS177 | FW93: BAS178 | FX93: BAS179 | FY93: BAS180 | FZ93: BAS181 | GA93: BAS182 | GB93: BAS183 | GC93: BAS184 | GD93: BAS185 | GE93: BAS186 | GF93: BAS187 | GG93: BAS188 | GH93: BAS189 | GI93: BAS190 | GJ93: BAS191 | GK93: BAS192 | GL93: BAS193 | GM93: BAS194 | GN93: BAS195 | GO93: BAS196 | GP93: BAS197 | GQ93: BAS198 | GR93: BAS199 | GS93: BAS200 | GT93: BAS201 | GU93: BAS202 | GV93: BAS203 | GW93: BAS204 | GX93: BAS205 | GY93: BAS206 | GZ93: BAS207 | HA93: BAS208 | HB93: BAS209 | HC93: BAS210 | HD93: BAS211 | HE93: BAS212 | HF93: BAS213 | HG93: BAS214 | HH93: BAS215 | HI93: BAS216 | HJ93: BAS217 | HK93: BAS218 | HL93: BAS219 | HM93: BAS220 | HN93: BAS221 | HO93: BAS222 | HP93: BAS223 | HQ93: BAS224 | HR93: BAS225 | HS93: BAS226 | HT93: BAS227 | HU93: BAS228 | HV93: BAS229 | HW93: BAS230
B94: =IF(B93=B76,"SI","NO") -> SI | C94: =IF(C93=C76,"SI","NO") -> SI | D94: SI | E94: SI | F94: SI | G94: SI | H94: SI | I94: SI | J94: SI | K94: SI | L94: SI | M94: SI | N94: SI | O94: SI | P94: SI | Q94: SI | R94: SI | S94: SI | T94: SI | U94: SI | V94: SI | W94: SI | X94: SI | Y94: SI | Z94: SI | AA94: SI | AB94: SI | AC94: SI | AD94: SI | AE94: SI | AF94: SI | AG94: SI | AH94: SI | AI94: SI | AJ94: SI | AK94: SI | AL94: SI | AM94: SI | AN94: SI | AO94: SI | AP94: SI | AQ94: SI | AR94: SI | AS94: SI | AT94: SI | AU94: SI | AV94: SI | AW94: SI | AX94: SI | AY94: SI | AZ94: SI | BA94: SI | BB94: SI | BC94: SI | BD94: SI | BE94: SI | BF94: SI | BG94: SI | BH94: SI | BI94: SI | BJ94: SI | BK94: SI | BL94: SI | BM94: SI | BN94: SI | BO94: =IF(BO93=BO76,"SI","NO") -> SI | BP94: SI | BQ94: SI | BR94: SI | BS94: SI | BT94: SI | BU94: SI | BV94: SI | BW94: SI | BX94: SI | BY94: SI | BZ94: SI | CA94: SI | CB94: SI | CC94: SI | CD94: SI | CE94: SI | CF94: SI | CG94: SI | CH94: SI | CI94: SI | CJ94: SI | CK94: SI | CL94: SI | CM94: SI | CN94: SI | CO94: SI | CP94: SI | CQ94: SI | CR94: SI | CS94: SI | CT94: SI | CU94: SI | CV94: SI | CW94: SI | CX94: SI | CY94: SI | CZ94: SI | DA94: SI | DB94: SI | DC94: SI | DD94: SI | DE94: SI | DF94: SI | DG94: SI | DH94: SI | DI94: SI | DJ94: SI | DK94: SI | DL94: SI | DM94: SI | DN94: SI | DO94: SI | DP94: SI | DQ94: SI | DR94: SI | DS94: SI | DT94: SI | DU94: SI | DV94: SI | DW94: SI | DX94: SI | DY94: SI | DZ94: SI | EA94: =IF(EA93=EA76,"SI","NO") -> SI | EB94: SI | EC94: SI | ED94: SI | EE94: SI | EF94: SI | EG94: SI | EH94: SI | EI94: SI | EJ94: SI | EK94: SI | EL94: SI | EM94: SI | EN94: SI | EO94: SI | EP94: SI | EQ94: SI | ER94: SI | ES94: SI | ET94: SI | EU94: SI | EV94: SI | EW94: SI | EX94: SI | EY94: SI | EZ94: SI | FA94: SI | FB94: SI | FC94: SI | FD94: SI | FE94: SI | FF94: SI | FG94: SI | FH94: SI | FI94: SI | FJ94: SI | FK94: SI | FL94: SI | FM94: SI | FN94: SI | FO94: SI | FP94: SI | FQ94: SI | FR94: SI | FS94: SI | FT94: SI | FU94: SI | FV94: SI | FW94: SI | FX94: SI | FY94: SI | FZ94: SI | GA94: SI | GB94: SI | GC94: SI | GD94: SI | GE94: SI | GF94: SI | GG94: SI | GH94: SI | GI94: SI | GJ94: SI | GK94: SI | GL94: SI | GM94: =IF(GM93=GM76,"SI","NO") -> SI | GN94: SI | GO94: SI | GP94: SI | GQ94: SI | GR94: SI | GS94: SI | GT94: SI | GU94: SI | GV94: SI | GW94: SI | GX94: SI | GY94: SI | GZ94: SI | HA94: SI | HB94: SI | HC94: SI | HD94: SI | HE94: SI | HF94: SI | HG94: SI | HH94: SI | HI94: SI | HJ94: SI | HK94: SI | HL94: SI | HM94: SI | HN94: SI | HO94: SI | HP94: SI | HQ94: SI | HR94: SI | HS94: SI | HT94: SI | HU94: SI | HV94: SI | HW94: SI
A96: AB152007
A97: anno | B97: 2024
A98: cod_red | B98: 03
A99: codmic | B99: (Todas)
A100: cod_prov | B100: (Todas)
A101: coddist | B101: (Todas)
A102: cod_estab | B102: (Todas)
A103: cod_eje | B103: (Todas)
B105: Valores
A106: Etiquetas de fila | B106: BAS001 | C106: BAS002 | D106: BAS003 | E106: BAS004 | F106: BAS005 | G106: BAS006 | H106: BAS007 | I106: BAS008 | J106: BAS009 | K106: BAS010 | L106: BAS011 | M106: BAS012 | N106: BAS013 | O106: BAS014 | P106: BAS015 | Q106: BAS016 | R106: BAS017 | S106: BAS018 | T106: BAS019 | U106: BAS020 | V106: BAS021 | W106: BAS022 | X106: BAS023 | Y106: BAS024 | Z106: BAS025 | AA106: BAS026 | AB106: BAS027 | AC106: BAS028 | AD106: BAS029 | AE106: BAS030 | AF106: BAS031 | AG106: BAS032 | AH106: BAS033 | AI106: BAS034 | AJ106: BAS035 | AK106: BAS036 | AL106: BAS037 | AM106: BAS038 | AN106: BAS039 | AO106: BAS040 | AP106: BAS041 | AQ106: BAS042 | AR106: BAS043 | AS106: BAS044 | AT106: BAS045 | AU106: BAS046 | AV106: BAS047 | AW106: BAS048 | AX106: BAS049 | AY106: BAS050 | AZ106: BAS051 | BA106: BAS052 | BB106: BAS053 | BC106: BAS054 | BD106: BAS055 | BE106: BAS056 | BF106: BAS057 | BG106: BAS058 | BH106: BAS059 | BI106: BAS060 | BJ106: BAS061 | BK106: BAS062 | BL106: BAS063 | BM106: BAS064 | BN106: BAS065 | BO106: BAS066 | BP106: BAS067 | BQ106: BAS068 | BR106: BAS069 | BS106: BAS070 | BT106: BAS071 | BU106: BAS072 | BV106: BAS073 | BW106: BAS074 | BX106: BAS075 | BY106: BAS076 | BZ106: BAS077 | CA106: BAS078 | CB106: BAS079 | CC106: BAS080 | CD106: BAS081 | CE106: BAS082 | CF106: BAS083 | CG106: BAS084 | CH106: BAS085 | CI106: BAS086 | CJ106: BAS087 | CK106: BAS088 | CL106: BAS089 | CM106: BAS090 | CN106: BAS091 | CO106: BAS092 | CP106: BAS093 | CQ106: BAS094 | CR106: BAS095 | CS106: BAS096 | CT106: BAS097 | CU106: BAS098 | CV106: BAS099 | CW106: BAS100 | CX106: BAS101 | CY106: BAS102 | CZ106: BAS103 | DA106: BAS104 | DB106: BAS105 | DC106: BAS106 | DD106: BAS107 | DE106: BAS108 | DF106: BAS109 | DG106: BAS110 | DH106: BAS111 | DI106: BAS112 | DJ106: BAS113 | DK106: BAS114 | DL106: BAS115 | DM106: BAS116 | DN106: BAS117 | DO106: BAS118 | DP106: BAS119 | DQ106: BAS120 | DR106: BAS121 | DS106: BAS122 | DT106: BAS123 | DU106: BAS124 | DV106: BAS125 | DW106: BAS126 | DX106: BAS127 | DY106: BAS128 | DZ106: BAS129 | EA106: BAS130 | EB106: BAS131 | EC106: BAS132 | ED106: BAS133 | EE106: BAS134 | EF106: BAS135 | EG106: BAS136 | EH106: BAS137 | EI106: BAS138 | EJ106: BAS139 | EK106: BAS140 | EL106: BAS141 | EM106: BAS142 | EN106: BAS143 | EO106: BAS144 | EP106: BAS145 | EQ106: BAS146 | ER106: BAS147 | ES106: BAS148 | ET106: BAS149 | EU106: BAS150 | EV106: BAS151 | EW106: BAS152 | EX106: BAS153 | EY106: BAS154 | EZ106: BAS155 | FA106: BAS156 | FB106: BAS157 | FC106: BAS158 | FD106: BAS159 | FE106: BAS160 | FF106: BAS161 | FG106: BAS162 | FH106: BAS163 | FI106: BAS164 | FJ106: BAS165 | FK106: BAS166 | FL106: BAS167 | FM106: BAS168 | FN106: BAS169 | FO106: BAS170 | FP106: BAS171 | FQ106: BAS172 | FR106: BAS173 | FS106: BAS174 | FT106: BAS175 | FU106: BAS176 | FV106: BAS177 | FW106: BAS178 | FX106: BAS179 | FY106: BAS180 | FZ106: BAS181 | GA106: BAS182 | GB106: BAS183 | GC106: BAS184 | GD106: BAS185 | GE106: BAS186 | GF106: BAS187 | GG106: BAS188 | GH106: BAS189 | GI106: BAS190 | GJ106: BAS191 | GK106: BAS192 | GL106: BAS193 | GM106: BAS194 | GN106: BAS195 | GO106: BAS196 | GP106: BAS197 | GQ106: BAS198 | GR106: BAS199 | GS106: BAS200 | GT106: BAS201 | GU106: BAS202 | GV106: BAS203 | GW106: BAS204 | GX106: BAS205 | GY106: BAS206 | GZ106: BAS207 | HA106: BAS208 | HB106: BAS209 | HC106: BAS210 | HD106: BAS211 | HE106: BAS212 | HF106: BAS213 | HG106: BAS214 | HH106: BAS215 | HI106: BAS216 | HJ106: BAS217 | HK106: BAS218 | HL106: BAS219 | HM106: BAS220 | HN106: BAS221 | HO106: BAS222 | HP106: BAS223 | HQ106: BAS224 | HR106: BAS225 | HS106: BAS226 | HT106: BAS227 | HU106: BAS228 | HV106: BAS229 | HW106: BAS230
A107: 1 | B107: 0 | C107: 0 | D107: 0 | E107: 0 | F107: 0 | G107: 0 | H107: 0 | I107: 0 | J107: 0 | K107: 0 | L107: 0 | M107: 0 | N107: 0 | O107: 0 | P107: 0 | Q107: 0 | R107: 0 | S107: 0 | T107: 0 | U107: 0 | V107: 0 | W107: 0 | X107: 0 | Y107: 0 | Z107: 0 | AA107: 0 | AB107: 0 | AC107: 0 | AD107: 0 | AE107: 0 | AF107: 0 | AG107: 0 | AH107: 0 | AI107: 0 | AJ107: 0 | AK107: 0 | AL107: 0 | AM107: 0 | AN107: 0 | AO107: 0 | AP107: 0 | AQ107: 0 | AR107: 0 | AS107: 0 | AT107: 0 | AU107: 0 | AV107: 0 | AW107: 0 | AX107: 0 | AY107: 0 | AZ107: 0 | BA107: 0 | BB107: 0 | BC107: 0 | BD107: 0 | BE107: 0 | BF107: 0 | BG107: 0 | BH107: 0 | BI107: 0 | BJ107: 0 | BK107: 0 | BL107: 0 | BM107: 0 | BN107: 0 | BO107: 0 | BP107: 0 | BQ107: 0 | BR107: 0 | BS107: 0 | BT107: 0 | BU107: 0 | BV107: 0 | BW107: 0 | BX107: 0 | BY107: 0 | BZ107: 0 | CA107: 0 | CB107: 0 | CC107: 0 | CD107: 0 | CE107: 0 | CF107: 0 | CG107: 0 | CH107: 0 | CI107: 0 | CJ107: 0 | CK107: 0 | CL107: 0 | CM107: 0 | CN107: 0 | CO107: 0 | CP107: 0 | CQ107: 0 | CR107: 0 | CS107: 0 | CT107: 0 | CU107: 0 | CV107: 0 | CW107: 0 | CX107: 0 | CY107: 0 | CZ107: 0 | DA107: 0 | DB107: 0 | DC107: 0 | DD107: 0 | DE107: 0 | DF107: 0 | DG107: 0 | DH107: 0 | DI107: 0 | DJ107: 0 | DK107: 0 | DL107: 0 | DM107: 0 | DN107: 0 | DO107: 0 | DP107: 0 | DQ107: 0 | DR107: 0 | DS107: 0 | DT107: 0 | DU107: 0 | DV107: 0 | DW107: 0 | DX107: 0 | DY107: 0 | DZ107: 0 | EA107: 0 | EB107: 0 | EC107: 0 | ED107: 0 | EE107: 0 | EF107: 0 | EG107: 0 | EH107: 0 | EI107: 0 | EJ107: 0 | EK107: 0 | EL107: 0 | EM107: 0 | EN107: 0 | EO107: 0 | EP107: 0 | EQ107: 0 | ER107: 0 | ES107: 0 | ET107: 0 | EU107: 0 | EV107: 0 | EW107: 0 | EX107: 0 | EY107: 0 | EZ107: 0 | FA107: 0 | FB107: 0 | FC107: 0 | FD107: 0 | FE107: 0 | FF107: 0 | FG107: 0 | FH107: 0 | FI107: 0 | FJ107: 0 | FK107: 0 | FL107: 0 | FM107: 0 | FN107: 0 | FO107: 0 | FP107: 0 | FQ107: 0 | FR107: 0 | FS107: 0 | FT107: 0 | FU107: 0 | FV107: 0 | FW107: 0 | FX107: 0 | FY107: 0 | FZ107: 0 | GA107: 0 | GB107: 0 | GC107: 0 | GD107: 0 | GE107: 0 | GF107: 0 | GG107: 0 | GH107: 0 | GI107: 0 | GJ107: 0 | GK107: 0 | GL107: 0 | GM107: 0 | GN107: 0 | GO107: 0 | GP107: 0 | GQ107: 0 | GR107: 0 | GS107: 0 | GT107: 0 | GU107: 0 | GV107: 0 | GW107: 0 | GX107: 0 | GY107: 0 | GZ107: 0 | HA107: 0 | HB107: 0 | HC107: 0 | HD107: 0 | HE107: 0 | HF107: 0 | HG107: 0 | HH107: 0 | HI107: 0 | HJ107: 0 | HK107: 0 | HL107: 0 | HM107: 0 | HN107: 0 | HO107: 0 | HP107: 0 | HQ107: 0 | HR107: 0 | HS107: 0 | HT107: 0 | HU107: 0 | HV107: 0 | HW107: 0
A108: 5 | B108: 0 | C108: 0 | D108: 0 | E108: 0 | F108: 0 | G108: 0 | H108: 0 | I108: 0 | J108: 0 | K108: 0 | L108: 0 | M108: 0 | N108: 0 | O108: 0 | P108: 0 | Q108: 0 | R108: 0 | S108: 0 | T108: 0 | U108: 0 | V108: 0 | W108: 0 | X108: 0 | Y108: 0 | Z108: 0 | AA108: 0 | AB108: 0 | AC108: 0 | AD108: 0 | AE108: 0 | AF108: 0 | AG108: 0 | AH108: 0 | AI108: 0 | AJ108: 0 | AK108: 0 | AL108: 0 | AM108: 0 | AN108: 0 | AO108: 0 | AP108: 0 | AQ108: 0 | AR108: 0 | AS108: 0 | AT108: 0 | AU108: 0 | AV108: 0 | AW108: 0 | AX108: 0 | AY108: 0 | AZ108: 0 | BA108: 0 | BB108: 0 | BC108: 0 | BD108: 0 | BE108: 0 | BF108: 0 | BG108: 0 | BH108: 0 | BI108: 0 | BJ108: 0 | BK108: 0 | BL108: 0 | BM108: 0 | BN108: 0 | BO108: 0 | BP108: 0 | BQ108: 0 | BR108: 0 | BS108: 0 | BT108: 0 | BU108: 0 | BV108: 0 | BW108: 0 | BX108: 0 | BY108: 0 | BZ108: 0 | CA108: 0 | CB108: 0 | CC108: 0 | CD108: 0 | CE108: 0 | CF108: 0 | CG108: 0 | CH108: 0 | CI108: 0 | CJ108: 0 | CK108: 0 | CL108: 0 | CM108: 0 | CN108: 0 | CO108: 0 | CP108: 0 | CQ108: 0 | CR108: 0 | CS108: 0 | CT108: 0 | CU108: 0 | CV108: 0 | CW108: 0 | CX108: 0 | CY108: 0 | CZ108: 0 | DA108: 0 | DB108: 0 | DC108: 0 | DD108: 0 | DE108: 0 | DF108: 0 | DG108: 0 | DH108: 0 | DI108: 0 | DJ108: 0 | DK108: 0 | DL108: 0 | DM108: 0 | DN108: 0 | DO108: 0 | DP108: 0 | DQ108: 0 | DR108: 0 | DS108: 0 | DT108: 0 | DU108: 0 | DV108: 0 | DW108: 0 | DX108: 0 | DY108: 0 | DZ108: 0 | EA108: 0 | EB108: 0 | EC108: 0 | ED108: 0 | EE108: 0 | EF108: 0 | EG108: 0 | EH108: 0 | EI108: 0 | EJ108: 0 | EK108: 0 | EL108: 0 | EM108: 0 | EN108: 0 | EO108: 0 | EP108: 0 | EQ108: 0 | ER108: 0 | ES108: 0 | ET108: 0 | EU108: 0 | EV108: 0 | EW108: 0 | EX108: 0 | EY108: 0 | EZ108: 0 | FA108: 0 | FB108: 0 | FC108: 0 | FD108: 0 | FE108: 0 | FF108: 0 | FG108: 0 | FH108: 0 | FI108: 0 | FJ108: 0 | FK108: 0 | FL108: 0 | FM108: 0 | FN108: 0 | FO108: 0 | FP108: 0 | FQ108: 0 | FR108: 0 | FS108: 0 | FT108: 0 | FU108: 0 | FV108: 0 | FW108: 0 | FX108: 0 | FY108: 0 | FZ108: 0 | GA108: 0 | GB108: 0 | GC108: 0 | GD108: 0 | GE108: 0 | GF108: 0 | GG108: 0 | GH108: 0 | GI108: 0 | GJ108: 0 | GK108: 0 | GL108: 0 | GM108: 0 | GN108: 0 | GO108: 0 | GP108: 0 | GQ108: 0 | GR108: 0 | GS108: 0 | GT108: 0 | GU108: 0 | GV108: 0 | GW108: 0 | GX108: 0 | GY108: 0 | GZ108: 0 | HA108: 0 | HB108: 0 | HC108: 0 | HD108: 0 | HE108: 0 | HF108: 0 | HG108: 0 | HH108: 0 | HI108: 0 | HJ108: 0 | HK108: 0 | HL108: 0 | HM108: 0 | HN108: 0 | HO108: 0 | HP108: 0 | HQ108: 0 | HR108: 0 | HS108: 0 | HT108: 0 | HU108: 0 | HV108: 0 | HW108: 0
A109: 2 | B109: 0 | C109: 0 | D109: 0 | E109: 0 | F109: 0 | G109: 0 | H109: 0 | I109: 0 | J109: 0 | K109: 0 | L109: 0 | M109: 0 | N109: 0 | O109: 0 | P109: 0 | Q109: 0 | R109: 0 | S109: 0 | T109: 0 | U109: 0 | V109: 0 | W109: 0 | X109: 0 | Y109: 0 | Z109: 0 | AA109: 0 | AB109: 0 | AC109: 0 | AD109: 0 | AE109: 0 | AF109: 0 | AG109: 0 | AH109: 0 | AI109: 0 | AJ109: 0 | AK109: 0 | AL109: 0 | AM109: 0 | AN109: 0 | AO109: 0 | AP109: 0 | AQ109: 0 | AR109: 0 | AS109: 0 | AT109: 0 | AU109: 0 | AV109: 0 | AW109: 0 | AX109: 0 | AY109: 0 | AZ109: 0 | BA109: 0 | BB109: 0 | BC109: 0 | BD109: 0 | BE109: 0 | BF109: 0 | BG109: 0 | BH109: 0 | BI109: 0 | BJ109: 0 | BK109: 0 | BL109: 0 | BM109: 0 | BN109: 0 | BO109: 0 | BP109: 0 | BQ109: 0 | BR109: 0 | BS109: 0 | BT109: 0 | BU109: 0 | BV109: 0 | BW109: 0 | BX109: 0 | BY109: 0 | BZ109: 0 | CA109: 0 | CB109: 0 | CC109: 0 | CD109: 0 | CE109: 0 | CF109: 0 | CG109: 0 | CH109: 0 | CI109: 0 | CJ109: 0 | CK109: 0 | CL109: 0 | CM109: 0 | CN109: 0 | CO109: 0 | CP109: 0 | CQ109: 0 | CR109: 0 | CS109: 0 | CT109: 0 | CU109: 0 | CV109: 0 | CW109: 0 | CX109: 0 | CY109: 0 | CZ109: 0 | DA109: 0 | DB109: 0 | DC109: 0 | DD109: 0 | DE109: 0 | DF109: 0 | DG109: 0 | DH109: 0 | DI109: 0 | DJ109: 0 | DK109: 0 | DL109: 0 | DM109: 0 | DN109: 0 | DO109: 0 | DP109: 0 | DQ109: 0 | DR109: 0 | DS109: 0 | DT109: 0 | DU109: 0 | DV109: 0 | DW109: 0 | DX109: 0 | DY109: 0 | DZ109: 0 | EA109: 0 | EB109: 0 | EC109: 0 | ED109: 0 | EE109: 0 | EF109: 0 | EG109: 0 | EH109: 0 | EI109: 0 | EJ109: 0 | EK109: 0 | EL109: 0 | EM109: 0 | EN109: 0 | EO109: 0 | EP109: 0 | EQ109: 0 | ER109: 0 | ES109: 0 | ET109: 0 | EU109: 0 | EV109: 0 | EW109: 0 | EX109: 0 | EY109: 0 | EZ109: 0 | FA109: 0 | FB109: 0 | FC109: 0 | FD109: 0 | FE109: 0 | FF109: 0 | FG109: 0 | FH109: 0 | FI109: 0 | FJ109: 0 | FK109: 0 | FL109: 0 | FM109: 0 | FN109: 0 | FO109: 0 | FP109: 0 | FQ109: 0 | FR109: 0 | FS109: 0 | FT109: 0 | FU109: 0 | FV109: 0 | FW109: 0 | FX109: 0 | FY109: 0 | FZ109: 0 | GA109: 0 | GB109: 0 | GC109: 0 | GD109: 0 | GE109: 0 | GF109: 0 | GG109: 0 | GH109: 0 | GI109: 0 | GJ109: 0 | GK109: 0 | GL109: 0 | GM109: 0 | GN109: 0 | GO109: 0 | GP109: 0 | GQ109: 0 | GR109: 0 | GS109: 0 | GT109: 0 | GU109: 0 | GV109: 0 | GW109: 0 | GX109: 0 | GY109: 0 | GZ109: 0 | HA109: 0 | HB109: 0 | HC109: 0 | HD109: 0 | HE109: 0 | HF109: 0 | HG109: 0 | HH109: 0 | HI109: 0 | HJ109: 0 | HK109: 0 | HL109: 0 | HM109: 0 | HN109: 0 | HO109: 0 | HP109: 0 | HQ109: 0 | HR109: 0 | HS109: 0 | HT109: 0 | HU109: 0 | HV109: 0 | HW109: 0
A110: 3 | B110: 0 | C110: 0 | D110: 0 | E110: 0 | F110: 0 | G110: 0 | H110: 0 | I110: 0 | J110: 0 | K110: 0 | L110: 0 | M110: 0 | N110: 0 | O110: 0 | P110: 0 | Q110: 0 | R110: 0 | S110: 0 | T110: 0 | U110: 0 | V110: 0 | W110: 0 | X110: 0 | Y110: 0 | Z110: 0 | AA110: 0 | AB110: 0 | AC110: 0 | AD110: 0 | AE110: 0 | AF110: 0 | AG110: 0 | AH110: 0 | AI110: 0 | AJ110: 0 | AK110: 0 | AL110: 0 | AM110: 0 | AN110: 0 | AO110: 0 | AP110: 0 | AQ110: 0 | AR110: 0 | AS110: 0 | AT110: 0 | AU110: 0 | AV110: 0 | AW110: 0 | AX110: 0 | AY110: 0 | AZ110: 0 | BA110: 0 | BB110: 0 | BC110: 0 | BD110: 0 | BE110: 0 | BF110: 0 | BG110: 0 | BH110: 0 | BI110: 0 | BJ110: 0 | BK110: 0 | BL110: 0 | BM110: 0 | BN110: 0 | BO110: 0 | BP110: 0 | BQ110: 0 | BR110: 0 | BS110: 0 | BT110: 0 | BU110: 0 | BV110: 0 | BW110: 0 | BX110: 0 | BY110: 0 | BZ110: 0 | CA110: 0 | CB110: 0 | CC110: 0 | CD110: 0 | CE110: 0 | CF110: 0 | CG110: 0 | CH110: 0 | CI110: 0 | CJ110: 0 | CK110: 0 | CL110: 0 | CM110: 0 | CN110: 0 | CO110: 0 | CP110: 0 | CQ110: 0 | CR110: 0 | CS110: 0 | CT110: 0 | CU110: 0 | CV110: 0 | CW110: 0 | CX110: 0 | CY110: 0 | CZ110: 0 | DA110: 0 | DB110: 0 | DC110: 0 | DD110: 0 | DE110: 0 | DF110: 0 | DG110: 0 | DH110: 0 | DI110: 0 | DJ110: 0 | DK110: 0 | DL110: 0 | DM110: 0 | DN110: 0 | DO110: 0 | DP110: 0 | DQ110: 0 | DR110: 0 | DS110: 0 | DT110: 0 | DU110: 0 | DV110: 0 | DW110: 0 | DX110: 0 | DY110: 0 | DZ110: 0 | EA110: 0 | EB110: 0 | EC110: 0 | ED110: 0 | EE110: 0 | EF110: 0 | EG110: 0 | EH110: 0 | EI110: 0 | EJ110: 0 | EK110: 0 | EL110: 0 | EM110: 0 | EN110: 0 | EO110: 0 | EP110: 0 | EQ110: 0 | ER110: 0 | ES110: 0 | ET110: 0 | EU110: 0 | EV110: 0 | EW110: 0 | EX110: 0 | EY110: 0 | EZ110: 0 | FA110: 0 | FB110: 0 | FC110: 0 | FD110: 0 | FE110: 0 | FF110: 0 | FG110: 0 | FH110: 0 | FI110: 0 | FJ110: 0 | FK110: 0 | FL110: 0 | FM110: 0 | FN110: 0 | FO110: 0 | FP110: 0 | FQ110: 0 | FR110: 0 | FS110: 0 | FT110: 0 | FU110: 0 | FV110: 0 | FW110: 0 | FX110: 0 | FY110: 0 | FZ110: 0 | GA110: 0 | GB110: 0 | GC110: 0 | GD110: 0 | GE110: 0 | GF110: 0 | GG110: 0 | GH110: 0 | GI110: 0 | GJ110: 0 | GK110: 0 | GL110: 0 | GM110: 0 | GN110: 0 | GO110: 0 | GP110: 0 | GQ110: 0 | GR110: 0 | GS110: 0 | GT110: 0 | GU110: 0 | GV110: 0 | GW110: 0 | GX110: 0 | GY110: 0 | GZ110: 0 | HA110: 0 | HB110: 0 | HC110: 0 | HD110: 0 | HE110: 0 | HF110: 0 | HG110: 0 | HH110: 0 | HI110: 0 | HJ110: 0 | HK110: 0 | HL110: 0 | HM110: 0 | HN110: 0 | HO110: 0 | HP110: 0 | HQ110: 0 | HR110: 0 | HS110: 0 | HT110: 0 | HU110: 0 | HV110: 0 | HW110: 0
A111: 4 | B111: 0 | C111: 0 | D111: 0 | E111: 0 | F111: 0 | G111: 0 | H111: 0 | I111: 0 | J111: 0 | K111: 0 | L111: 0 | M111: 0 | N111: 0 | O111: 0 | P111: 0 | Q111: 0 | R111: 0 | S111: 0 | T111: 0 | U111: 0 | V111: 0 | W111: 0 | X111: 0 | Y111: 0 | Z111: 0 | AA111: 0 | AB111: 0 | AC111: 0 | AD111: 0 | AE111: 0 | AF111: 0 | AG111: 0 | AH111: 0 | AI111: 0 | AJ111: 0 | AK111: 0 | AL111: 0 | AM111: 0 | AN111: 0 | AO111: 0 | AP111: 0 | AQ111: 0 | AR111: 0 | AS111: 0 | AT111: 0 | AU111: 0 | AV111: 0 | AW111: 0 | AX111: 0 | AY111: 0 | AZ111: 0 | BA111: 0 | BB111: 0 | BC111: 0 | BD111: 0 | BE111: 0 | BF111: 0 | BG111: 0 | BH111: 0 | BI111: 0 | BJ111: 0 | BK111: 0 | BL111: 0 | BM111: 0 | BN111: 0 | BO111: 0 | BP111: 0 | BQ111: 0 | BR111: 0 | BS111: 0 | BT111: 0 | BU111: 0 | BV111: 0 | BW111: 0 | BX111: 0 | BY111: 0 | BZ111: 0 | CA111: 0 | CB111: 0 | CC111: 0 | CD111: 0 | CE111: 0 | CF111: 0 | CG111: 0 | CH111: 0 | CI111: 0 | CJ111: 0 | CK111: 0 | CL111: 0 | CM111: 0 | CN111: 0 | CO111: 0 | CP111: 0 | CQ111: 0 | CR111: 0 | CS111: 0 | CT111: 0 | CU111: 0 | CV111: 0 | CW111: 0 | CX111: 0 | CY111: 0 | CZ111: 0 | DA111: 0 | DB111: 0 | DC111: 0 | DD111: 0 | DE111: 0 | DF111: 0 | DG111: 0 | DH111: 0 | DI111: 0 | DJ111: 0 | DK111: 0 | DL111: 0 | DM111: 0 | DN111: 0 | DO111: 0 | DP111: 0 | DQ111: 0 | DR111: 0 | DS111: 0 | DT111: 0 | DU111: 0 | DV111: 0 | DW111: 0 | DX111: 0 | DY111: 0 | DZ111: 0 | EA111: 0 | EB111: 0 | EC111: 0 | ED111: 0 | EE111: 0 | EF111: 0 | EG111: 0 | EH111: 0 | EI111: 0 | EJ111: 0 | EK111: 0 | EL111: 0 | EM111: 0 | EN111: 0 | EO111: 0 | EP111: 0 | EQ111: 0 | ER111: 0 | ES111: 0 | ET111: 0 | EU111: 0 | EV111: 0 | EW111: 0 | EX111: 0 | EY111: 0 | EZ111: 0 | FA111: 0 | FB111: 0 | FC111: 0 | FD111: 0 | FE111: 0 | FF111: 0 | FG111: 0 | FH111: 0 | FI111: 0 | FJ111: 0 | FK111: 0 | FL111: 0 | FM111: 0 | FN111: 0 | FO111: 0 | FP111: 0 | FQ111: 0 | FR111: 0 | FS111: 0 | FT111: 0 | FU111: 0 | FV111: 0 | FW111: 0 | FX111: 0 | FY111: 0 | FZ111: 0 | GA111: 0 | GB111: 0 | GC111: 0 | GD111: 0 | GE111: 0 | GF111: 0 | GG111: 0 | GH111: 0 | GI111: 0 | GJ111: 0 | GK111: 0 | GL111: 0 | GM111: 0 | GN111: 0 | GO111: 0 | GP111: 0 | GQ111: 0 | GR111: 0 | GS111: 0 | GT111: 0 | GU111: 0 | GV111: 0 | GW111: 0 | GX111: 0 | GY111: 0 | GZ111: 0 | HA111: 0 | HB111: 0 | HC111: 0 | HD111: 0 | HE111: 0 | HF111: 0 | HG111: 0 | HH111: 0 | HI111: 0 | HJ111: 0 | HK111: 0 | HL111: 0 | HM111: 0 | HN111: 0 | HO111: 0 | HP111: 0 | HQ111: 0 | HR111: 0 | HS111: 0 | HT111: 0 | HU111: 0 | HV111: 0 | HW111: 0
A112: 6 | B112: 0 | C112: 0 | D112: 0 | E112: 0 | F112: 0 | G112: 0 | H112: 0 | I112: 0 | J112: 0 | K112: 0 | L112: 0 | M112: 0 | N112: 0 | O112: 0 | P112: 0 | Q112: 0 | R112: 0 | S112: 0 | T112: 0 | U112: 0 | V112: 0 | W112: 0 | X112: 0 | Y112: 0 | Z112: 0 | AA112: 0 | AB112: 0 | AC112: 0 | AD112: 0 | AE112: 0 | AF112: 0 | AG112: 0 | AH112: 0 | AI112: 0 | AJ112: 0 | AK112: 0 | AL112: 0 | AM112: 0 | AN112: 0 | AO112: 0 | AP112: 0 | AQ112: 0 | AR112: 0 | AS112: 0 | AT112: 0 | AU112: 0 | AV112: 0 | AW112: 0 | AX112: 0 | AY112: 0 | AZ112: 0 | BA112: 0 | BB112: 0 | BC112: 0 | BD112: 0 | BE112: 0 | BF112: 0 | BG112: 0 | BH112: 0 | BI112: 0 | BJ112: 0 | BK112: 0 | BL112: 0 | BM112: 0 | BN112: 0 | BO112: 0 | BP112: 0 | BQ112: 0 | BR112: 0 | BS112: 0 | BT112: 0 | BU112: 0 | BV112: 0 | BW112: 0 | BX112: 0 | BY112: 0 | BZ112: 0 | CA112: 0 | CB112: 0 | CC112: 0 | CD112: 0 | CE112: 0 | CF112: 0 | CG112: 0 | CH112: 0 | CI112: 0 | CJ112: 0 | CK112: 0 | CL112: 0 | CM112: 0 | CN112: 0 | CO112: 0 | CP112: 0 | CQ112: 0 | CR112: 0 | CS112: 0 | CT112: 0 | CU112: 0 | CV112: 0 | CW112: 0 | CX112: 0 | CY112: 0 | CZ112: 0 | DA112: 0 | DB112: 0 | DC112: 0 | DD112: 0 | DE112: 0 | DF112: 0 | DG112: 0 | DH112: 0 | DI112: 0 | DJ112: 0 | DK112: 0 | DL112: 0 | DM112: 0 | DN112: 0 | DO112: 0 | DP112: 0 | DQ112: 0 | DR112: 0 | DS112: 0 | DT112: 0 | DU112: 0 | DV112: 0 | DW112: 0 | DX112: 0 | DY112: 0 | DZ112: 0 | EA112: 0 | EB112: 0 | EC112: 0 | ED112: 0 | EE112: 0 | EF112: 0 | EG112: 0 | EH112: 0 | EI112: 0 | EJ112: 0 | EK112: 0 | EL112: 0 | EM112: 0 | EN112: 0 | EO112: 0 | EP112: 0 | EQ112: 0 | ER112: 0 | ES112: 0 | ET112: 0 | EU112: 0 | EV112: 0 | EW112: 0 | EX112: 0 | EY112: 0 | EZ112: 0 | FA112: 0 | FB112: 0 | FC112: 0 | FD112: 0 | FE112: 0 | FF112: 0 | FG112: 0 | FH112: 0 | FI112: 0 | FJ112: 0 | FK112: 0 | FL112: 0 | FM112: 0 | FN112: 0 | FO112: 0 | FP112: 0 | FQ112: 0 | FR112: 0 | FS112: 0 | FT112: 0 | FU112: 0 | FV112: 0 | FW112: 0 | FX112: 0 | FY112: 0 | FZ112: 0 | GA112: 0 | GB112: 0 | GC112: 0 | GD112: 0 | GE112: 0 | GF112: 0 | GG112: 0 | GH112: 0 | GI112: 0 | GJ112: 0 | GK112: 0 | GL112: 0 | GM112: 0 | GN112: 0 | GO112: 0 | GP112: 0 | GQ112: 0 | GR112: 0 | GS112: 0 | GT112: 0 | GU112: 0 | GV112: 0 | GW112: 0 | GX112: 0 | GY112: 0 | GZ112: 0 | HA112: 0 | HB112: 0 | HC112: 0 | HD112: 0 | HE112: 0 | HF112: 0 | HG112: 0 | HH112: 0 | HI112: 0 | HJ112: 0 | HK112: 0 | HL112: 0 | HM112: 0 | HN112: 0 | HO112: 0 | HP112: 0 | HQ112: 0 | HR112: 0 | HS112: 0 | HT112: 0 | HU112: 0 | HV112: 0 | HW112: 0
A113: 11 | B113: 0 | C113: 0 | D113: 0 | E113: 0 | F113: 0 | G113: 0 | H113: 0 | I113: 0 | J113: 0 | K113: 0 | L113: 0 | M113: 0 | N113: 0 | O113: 0 | P113: 0 | Q113: 0 | R113: 0 | S113: 0 | T113: 0 | U113: 0 | V113: 0 | W113: 0 | X113: 0 | Y113: 0 | Z113: 0 | AA113: 0 | AB113: 0 | AC113: 0 | AD113: 0 | AE113: 0 | AF113: 0 | AG113: 0 | AH113: 0 | AI113: 0 | AJ113: 0 | AK113: 0 | AL113: 0 | AM113: 0 | AN113: 0 | AO113: 0 | AP113: 0 | AQ113: 0 | AR113: 0 | AS113: 0 | AT113: 0 | AU113: 0 | AV113: 0 | AW113: 0 | AX113: 0 | AY113: 0 | AZ113: 0 | BA113: 0 | BB113: 0 | BC113: 0 | BD113: 0 | BE113: 0 | BF113: 0 | BG113: 0 | BH113: 0 | BI113: 0 | BJ113: 0 | BK113: 0 | BL113: 0 | BM113: 0 | BN113: 0 | BO113: 0 | BP113: 0 | BQ113: 0 | BR113: 0 | BS113: 0 | BT113: 0 | BU113: 0 | BV113: 0 | BW113: 0 | BX113: 0 | BY113: 0 | BZ113: 0 | CA113: 0 | CB113: 0 | CC113: 0 | CD113: 0 | CE113: 0 | CF113: 0 | CG113: 0 | CH113: 0 | CI113: 0 | CJ113: 0 | CK113: 0 | CL113: 0 | CM113: 0 | CN113: 0 | CO113: 0 | CP113: 0 | CQ113: 0 | CR113: 0 | CS113: 0 | CT113: 0 | CU113: 0 | CV113: 0 | CW113: 0 | CX113: 0 | CY113: 0 | CZ113: 0 | DA113: 0 | DB113: 0 | DC113: 0 | DD113: 0 | DE113: 0 | DF113: 0 | DG113: 0 | DH113: 0 | DI113: 0 | DJ113: 0 | DK113: 0 | DL113: 0 | DM113: 0 | DN113: 0 | DO113: 0 | DP113: 0 | DQ113: 0 | DR113: 0 | DS113: 0 | DT113: 0 | DU113: 0 | DV113: 0 | DW113: 0 | DX113: 0 | DY113: 0 | DZ113: 0 | EA113: 0 | EB113: 0 | EC113: 0 | ED113: 0 | EE113: 0 | EF113: 0 | EG113: 0 | EH113: 0 | EI113: 0 | EJ113: 0 | EK113: 0 | EL113: 0 | EM113: 0 | EN113: 0 | EO113: 0 | EP113: 0 | EQ113: 0 | ER113: 0 | ES113: 0 | ET113: 0 | EU113: 0 | EV113: 0 | EW113: 0 | EX113: 0 | EY113: 0 | EZ113: 0 | FA113: 0 | FB113: 0 | FC113: 0 | FD113: 0 | FE113: 0 | FF113: 0 | FG113: 0 | FH113: 0 | FI113: 0 | FJ113: 0 | FK113: 0 | FL113: 0 | FM113: 0 | FN113: 0 | FO113: 0 | FP113: 0 | FQ113: 0 | FR113: 0 | FS113: 0 | FT113: 0 | FU113: 0 | FV113: 0 | FW113: 0 | FX113: 0 | FY113: 0 | FZ113: 0 | GA113: 0 | GB113: 0 | GC113: 0 | GD113: 0 | GE113: 0 | GF113: 0 | GG113: 0 | GH113: 0 | GI113: 0 | GJ113: 0 | GK113: 0 | GL113: 0 | GM113: 0 | GN113: 0 | GO113: 0 | GP113: 0 | GQ113: 0 | GR113: 0 | GS113: 0 | GT113: 0 | GU113: 0 | GV113: 0 | GW113: 0 | GX113: 0 | GY113: 0 | GZ113: 0 | HA113: 0 | HB113: 0 | HC113: 0 | HD113: 0 | HE113: 0 | HF113: 0 | HG113: 0 | HH113: 0 | HI113: 0 | HJ113: 0 | HK113: 0 | HL113: 0 | HM113: 0 | HN113: 0 | HO113: 0 | HP113: 0 | HQ113: 0 | HR113: 0 | HS113: 0 | HT113: 0 | HU113: 0 | HV113: 0 | HW113: 0
A114: 10 | B114: 0 | C114: 0 | D114: 0 | E114: 0 | F114: 0 | G114: 0 | H114: 0 | I114: 0 | J114: 0 | K114: 0 | L114: 0 | M114: 0 | N114: 0 | O114: 0 | P114: 0 | Q114: 0 | R114: 0 | S114: 0 | T114: 0 | U114: 0 | V114: 0 | W114: 0 | X114: 0 | Y114: 0 | Z114: 0 | AA114: 0 | AB114: 0 | AC114: 0 | AD114: 0 | AE114: 0 | AF114: 0 | AG114: 0 | AH114: 0 | AI114: 0 | AJ114: 0 | AK114: 0 | AL114: 0 | AM114: 0 | AN114: 0 | AO114: 0 | AP114: 0 | AQ114: 0 | AR114: 0 | AS114: 0 | AT114: 0 | AU114: 0 | AV114: 0 | AW114: 0 | AX114: 0 | AY114: 0 | AZ114: 0 | BA114: 0 | BB114: 0 | BC114: 0 | BD114: 0 | BE114: 0 | BF114: 0 | BG114: 0 | BH114: 0 | BI114: 0 | BJ114: 0 | BK114: 0 | BL114: 0 | BM114: 0 | BN114: 0 | BO114: 0 | BP114: 0 | BQ114: 0 | BR114: 0 | BS114: 0 | BT114: 0 | BU114: 0 | BV114: 0 | BW114: 0 | BX114: 0 | BY114: 0 | BZ114: 0 | CA114: 0 | CB114: 0 | CC114: 0 | CD114: 0 | CE114: 0 | CF114: 0 | CG114: 0 | CH114: 0 | CI114: 0 | CJ114: 0 | CK114: 0 | CL114: 0 | CM114: 0 | CN114: 0 | CO114: 0 | CP114: 0 | CQ114: 0 | CR114: 0 | CS114: 0 | CT114: 0 | CU114: 0 | CV114: 0 | CW114: 0 | CX114: 0 | CY114: 0 | CZ114: 0 | DA114: 0 | DB114: 0 | DC114: 0 | DD114: 0 | DE114: 0 | DF114: 0 | DG114: 0 | DH114: 0 | DI114: 0 | DJ114: 0 | DK114: 0 | DL114: 0 | DM114: 0 | DN114: 0 | DO114: 0 | DP114: 0 | DQ114: 0 | DR114: 0 | DS114: 0 | DT114: 0 | DU114: 0 | DV114: 0 | DW114: 0 | DX114: 0 | DY114: 0 | DZ114: 0 | EA114: 0 | EB114: 0 | EC114: 0 | ED114: 0 | EE114: 0 | EF114: 0 | EG114: 0 | EH114: 0 | EI114: 0 | EJ114: 0 | EK114: 0 | EL114: 0 | EM114: 0 | EN114: 0 | EO114: 0 | EP114: 0 | EQ114: 0 | ER114: 0 | ES114: 0 | ET114: 0 | EU114: 0 | EV114: 0 | EW114: 0 | EX114: 0 | EY114: 0 | EZ114: 0 | FA114: 0 | FB114: 0 | FC114: 0 | FD114: 0 | FE114: 0 | FF114: 0 | FG114: 0 | FH114: 0 | FI114: 0 | FJ114: 0 | FK114: 0 | FL114: 0 | FM114: 0 | FN114: 0 | FO114: 0 | FP114: 0 | FQ114: 0 | FR114: 0 | FS114: 0 | FT114: 0 | FU114: 0 | FV114: 0 | FW114: 0 | FX114: 0 | FY114: 0 | FZ114: 0 | GA114: 0 | GB114: 0 | GC114: 0 | GD114: 0 | GE114: 0 | GF114: 0 | GG114: 0 | GH114: 0 | GI114: 0 | GJ114: 0 | GK114: 0 | GL114: 0 | GM114: 0 | GN114: 0 | GO114: 0 | GP114: 0 | GQ114: 0 | GR114: 0 | GS114: 0 | GT114: 0 | GU114: 0 | GV114: 0 | GW114: 0 | GX114: 0 | GY114: 0 | GZ114: 0 | HA114: 0 | HB114: 0 | HC114: 0 | HD114: 0 | HE114: 0 | HF114: 0 | HG114: 0 | HH114: 0 | HI114: 0 | HJ114: 0 | HK114: 0 | HL114: 0 | HM114: 0 | HN114: 0 | HO114: 0 | HP114: 0 | HQ114: 0 | HR114: 0 | HS114: 0 | HT114: 0 | HU114: 0 | HV114: 0 | HW114: 0
A115: 9 | B115: 0 | C115: 0 | D115: 0 | E115: 0 | F115: 0 | G115: 0 | H115: 0 | I115: 0 | J115: 0 | K115: 0 | L115: 0 | M115: 0 | N115: 0 | O115: 0 | P115: 0 | Q115: 0 | R115: 0 | S115: 0 | T115: 0 | U115: 0 | V115: 0 | W115: 0 | X115: 0 | Y115: 0 | Z115: 0 | AA115: 0 | AB115: 0 | AC115: 0 | AD115: 0 | AE115: 0 | AF115: 0 | AG115: 0 | AH115: 0 | AI115: 0 | AJ115: 0 | AK115: 0 | AL115: 0 | AM115: 0 | AN115: 0 | AO115: 0 | AP115: 0 | AQ115: 0 | AR115: 0 | AS115: 0 | AT115: 0 | AU115: 0 | AV115: 0 | AW115: 0 | AX115: 0 | AY115: 0 | AZ115: 0 | BA115: 0 | BB115: 0 | BC115: 0 | BD115: 0 | BE115: 0 | BF115: 0 | BG115: 0 | BH115: 0 | BI115: 0 | BJ115: 0 | BK115: 0 | BL115: 0 | BM115: 0 | BN115: 0 | BO115: 0 | BP115: 0 | BQ115: 0 | BR115: 0 | BS115: 0 | BT115: 0 | BU115: 0 | BV115: 0 | BW115: 0 | BX115: 0 | BY115: 0 | BZ115: 0 | CA115: 0 | CB115: 0 | CC115: 0 | CD115: 0 | CE115: 0 | CF115: 0 | CG115: 0 | CH115: 0 | CI115: 0 | CJ115: 0 | CK115: 0 | CL115: 0 | CM115: 0 | CN115: 0 | CO115: 0 | CP115: 0 | CQ115: 0 | CR115: 0 | CS115: 0 | CT115: 0 | CU115: 0 | CV115: 0 | CW115: 0 | CX115: 0 | CY115: 0 | CZ115: 0 | DA115: 0 | DB115: 0 | DC115: 0 | DD115: 0 | DE115: 0 | DF115: 0 | DG115: 0 | DH115: 0 | DI115: 0 | DJ115: 0 | DK115: 0 | DL115: 0 | DM115: 0 | DN115: 0 | DO115: 0 | DP115: 0 | DQ115: 0 | DR115: 0 | DS115: 0 | DT115: 0 | DU115: 0 | DV115: 0 | DW115: 0 | DX115: 0 | DY115: 0 | DZ115: 0 | EA115: 0 | EB115: 0 | EC115: 0 | ED115: 0 | EE115: 0 | EF115: 0 | EG115: 0 | EH115: 0 | EI115: 0 | EJ115: 0 | EK115: 0 | EL115: 0 | EM115: 0 | EN115: 0 | EO115: 0 | EP115: 0 | EQ115: 0 | ER115: 0 | ES115: 0 | ET115: 0 | EU115: 0 | EV115: 0 | EW115: 0 | EX115: 0 | EY115: 0 | EZ115: 0 | FA115: 0 | FB115: 0 | FC115: 0 | FD115: 0 | FE115: 0 | FF115: 0 | FG115: 0 | FH115: 0 | FI115: 0 | FJ115: 0 | FK115: 0 | FL115: 0 | FM115: 0 | FN115: 0 | FO115: 0 | FP115: 0 | FQ115: 0 | FR115: 0 | FS115: 0 | FT115: 0 | FU115: 0 | FV115: 0 | FW115: 0 | FX115: 0 | FY115: 0 | FZ115: 0 | GA115: 0 | GB115: 0 | GC115: 0 | GD115: 0 | GE115: 0 | GF115: 0 | GG115: 0 | GH115: 0 | GI115: 0 | GJ115: 0 | GK115: 0 | GL115: 0 | GM115: 0 | GN115: 0 | GO115: 0 | GP115: 0 | GQ115: 0 | GR115: 0 | GS115: 0 | GT115: 0 | GU115: 0 | GV115: 0 | GW115: 0 | GX115: 0 | GY115: 0 | GZ115: 0 | HA115: 0 | HB115: 0 | HC115: 0 | HD115: 0 | HE115: 0 | HF115: 0 | HG115: 0 | HH115: 0 | HI115: 0 | HJ115: 0 | HK115: 0 | HL115: 0 | HM115: 0 | HN115: 0 | HO115: 0 | HP115: 0 | HQ115: 0 | HR115: 0 | HS115: 0 | HT115: 0 | HU115: 0 | HV115: 0 | HW115: 0
A116: 8 | B116: 0 | C116: 0 | D116: 0 | E116: 0 | F116: 0 | G116: 0 | H116: 0 | I116: 0 | J116: 0 | K116: 0 | L116: 0 | M116: 0 | N116: 0 | O116: 0 | P116: 0 | Q116: 0 | R116: 0 | S116: 0 | T116: 0 | U116: 0 | V116: 0 | W116: 0 | X116: 0 | Y116: 0 | Z116: 0 | AA116: 0 | AB116: 0 | AC116: 0 | AD116: 0 | AE116: 0 | AF116: 0 | AG116: 0 | AH116: 0 | AI116: 0 | AJ116: 0 | AK116: 0 | AL116: 0 | AM116: 0 | AN116: 0 | AO116: 0 | AP116: 0 | AQ116: 0 | AR116: 0 | AS116: 0 | AT116: 0 | AU116: 0 | AV116: 0 | AW116: 0 | AX116: 0 | AY116: 0 | AZ116: 0 | BA116: 0 | BB116: 0 | BC116: 0 | BD116: 0 | BE116: 0 | BF116: 0 | BG116: 0 | BH116: 0 | BI116: 0 | BJ116: 0 | BK116: 0 | BL116: 0 | BM116: 0 | BN116: 0 | BO116: 0 | BP116: 0 | BQ116: 0 | BR116: 0 | BS116: 0 | BT116: 0 | BU116: 0 | BV116: 0 | BW116: 0 | BX116: 0 | BY116: 0 | BZ116: 0 | CA116: 0 | CB116: 0 | CC116: 0 | CD116: 0 | CE116: 0 | CF116: 0 | CG116: 0 | CH116: 0 | CI116: 0 | CJ116: 0 | CK116: 0 | CL116: 0 | CM116: 0 | CN116: 0 | CO116: 0 | CP116: 0 | CQ116: 0 | CR116: 0 | CS116: 0 | CT116: 0 | CU116: 0 | CV116: 0 | CW116: 0 | CX116: 0 | CY116: 0 | CZ116: 0 | DA116: 0 | DB116: 0 | DC116: 0 | DD116: 0 | DE116: 0 | DF116: 0 | DG116: 0 | DH116: 0 | DI116: 0 | DJ116: 0 | DK116: 0 | DL116: 0 | DM116: 0 | DN116: 0 | DO116: 0 | DP116: 0 | DQ116: 0 | DR116: 0 | DS116: 0 | DT116: 0 | DU116: 0 | DV116: 0 | DW116: 0 | DX116: 0 | DY116: 0 | DZ116: 0 | EA116: 0 | EB116: 0 | EC116: 0 | ED116: 0 | EE116: 0 | EF116: 0 | EG116: 0 | EH116: 0 | EI116: 0 | EJ116: 0 | EK116: 0 | EL116: 0 | EM116: 0 | EN116: 0 | EO116: 0 | EP116: 0 | EQ116: 0 | ER116: 0 | ES116: 0 | ET116: 0 | EU116: 0 | EV116: 0 | EW116: 0 | EX116: 0 | EY116: 0 | EZ116: 0 | FA116: 0 | FB116: 0 | FC116: 0 | FD116: 0 | FE116: 0 | FF116: 0 | FG116: 0 | FH116: 0 | FI116: 0 | FJ116: 0 | FK116: 0 | FL116: 0 | FM116: 0 | FN116: 0 | FO116: 0 | FP116: 0 | FQ116: 0 | FR116: 0 | FS116: 0 | FT116: 0 | FU116: 0 | FV116: 0 | FW116: 0 | FX116: 0 | FY116: 0 | FZ116: 0 | GA116: 0 | GB116: 0 | GC116: 0 | GD116: 0 | GE116: 0 | GF116: 0 | GG116: 0 | GH116: 0 | GI116: 0 | GJ116: 0 | GK116: 0 | GL116: 0 | GM116: 0 | GN116: 0 | GO116: 0 | GP116: 0 | GQ116: 0 | GR116: 0 | GS116: 0 | GT116: 0 | GU116: 0 | GV116: 0 | GW116: 0 | GX116: 0 | GY116: 0 | GZ116: 0 | HA116: 0 | HB116: 0 | HC116: 0 | HD116: 0 | HE116: 0 | HF116: 0 | HG116: 0 | HH116: 0 | HI116: 0 | HJ116: 0 | HK116: 0 | HL116: 0 | HM116: 0 | HN116: 0 | HO116: 0 | HP116: 0 | HQ116: 0 | HR116: 0 | HS116: 0 | HT116: 0 | HU116: 0 | HV116: 0 | HW116: 0
A117: 7 | B117: 0 | C117: 0 | D117: 0 | E117: 0 | F117: 0 | G117: 0 | H117: 0 | I117: 0 | J117: 0 | K117: 0 | L117: 0 | M117: 0 | N117: 0 | O117: 0 | P117: 0 | Q117: 0 | R117: 0 | S117: 0 | T117: 0 | U117: 0 | V117: 0 | W117: 0 | X117: 0 | Y117: 0 | Z117: 0 | AA117: 0 | AB117: 0 | AC117: 0 | AD117: 0 | AE117: 0 | AF117: 0 | AG117: 0 | AH117: 0 | AI117: 0 | AJ117: 0 | AK117: 0 | AL117: 0 | AM117: 0 | AN117: 0 | AO117: 0 | AP117: 0 | AQ117: 0 | AR117: 0 | AS117: 0 | AT117: 0 | AU117: 0 | AV117: 0 | AW117: 0 | AX117: 0 | AY117: 0 | AZ117: 0 | BA117: 0 | BB117: 0 | BC117: 0 | BD117: 0 | BE117: 0 | BF117: 0 | BG117: 0 | BH117: 0 | BI117: 0 | BJ117: 0 | BK117: 0 | BL117: 0 | BM117: 0 | BN117: 0 | BO117: 0 | BP117: 0 | BQ117: 0 | BR117: 0 | BS117: 0 | BT117: 0 | BU117: 0 | BV117: 0 | BW117: 0 | BX117: 0 | BY117: 0 | BZ117: 0 | CA117: 0 | CB117: 0 | CC117: 0 | CD117: 0 | CE117: 0 | CF117: 0 | CG117: 0 | CH117: 0 | CI117: 0 | CJ117: 0 | CK117: 0 | CL117: 0 | CM117: 0 | CN117: 0 | CO117: 0 | CP117: 0 | CQ117: 0 | CR117: 0 | CS117: 0 | CT117: 0 | CU117: 0 | CV117: 0 | CW117: 0 | CX117: 0 | CY117: 0 | CZ117: 0 | DA117: 0 | DB117: 0 | DC117: 0 | DD117: 0 | DE117: 0 | DF117: 0 | DG117: 0 | DH117: 0 | DI117: 0 | DJ117: 0 | DK117: 0 | DL117: 0 | DM117: 0 | DN117: 0 | DO117: 0 | DP117: 0 | DQ117: 0 | DR117: 0 | DS117: 0 | DT117: 0 | DU117: 0 | DV117: 0 | DW117: 0 | DX117: 0 | DY117: 0 | DZ117: 0 | EA117: 0 | EB117: 0 | EC117: 0 | ED117: 0 | EE117: 0 | EF117: 0 | EG117: 0 | EH117: 0 | EI117: 0 | EJ117: 0 | EK117: 0 | EL117: 0 | EM117: 0 | EN117: 0 | EO117: 0 | EP117: 0 | EQ117: 0 | ER117: 0 | ES117: 0 | ET117: 0 | EU117: 0 | EV117: 0 | EW117: 0 | EX117: 0 | EY117: 0 | EZ117: 0 | FA117: 0 | FB117: 0 | FC117: 0 | FD117: 0 | FE117: 0 | FF117: 0 | FG117: 0 | FH117: 0 | FI117: 0 | FJ117: 0 | FK117: 0 | FL117: 0 | FM117: 0 | FN117: 0 | FO117: 0 | FP117: 0 | FQ117: 0 | FR117: 0 | FS117: 0 | FT117: 0 | FU117: 0 | FV117: 0 | FW117: 0 | FX117: 0 | FY117: 0 | FZ117: 0 | GA117: 0 | GB117: 0 | GC117: 0 | GD117: 0 | GE117: 0 | GF117: 0 | GG117: 0 | GH117: 0 | GI117: 0 | GJ117: 0 | GK117: 0 | GL117: 0 | GM117: 0 | GN117: 0 | GO117: 0 | GP117: 0 | GQ117: 0 | GR117: 0 | GS117: 0 | GT117: 0 | GU117: 0 | GV117: 0 | GW117: 0 | GX117: 0 | GY117: 0 | GZ117: 0 | HA117: 0 | HB117: 0 | HC117: 0 | HD117: 0 | HE117: 0 | HF117: 0 | HG117: 0 | HH117: 0 | HI117: 0 | HJ117: 0 | HK117: 0 | HL117: 0 | HM117: 0 | HN117: 0 | HO117: 0 | HP117: 0 | HQ117: 0 | HR117: 0 | HS117: 0 | HT117: 0 | HU117: 0 | HV117: 0 | HW117: 0
A118: Total general | B118: 0 | C118: 0 | D118: 0 | E118: 0 | F118: 0 | G118: 0 | H118: 0 | I118: 0 | J118: 0 | K118: 0 | L118: 0 | M118: 0 | N118: 0 | O118: 0 | P118: 0 | Q118: 0 | R118: 0 | S118: 0 | T118: 0 | U118: 0 | V118: 0 | W118: 0 | X118: 0 | Y118: 0 | Z118: 0 | AA118: 0 | AB118: 0 | AC118: 0 | AD118: 0 | AE118: 0 | AF118: 0 | AG118: 0 | AH118: 0 | AI118: 0 | AJ118: 0 | AK118: 0 | AL118: 0 | AM118: 0 | AN118: 0 | AO118: 0 | AP118: 0 | AQ118: 0 | AR118: 0 | AS118: 0 | AT118: 0 | AU118: 0 | AV118: 0 | AW118: 0 | AX118: 0 | AY118: 0 | AZ118: 0 | BA118: 0 | BB118: 0 | BC118: 0 | BD118: 0 | BE118: 0 | BF118: 0 | BG118: 0 | BH118: 0 | BI118: 0 | BJ118: 0 | BK118: 0 | BL118: 0 | BM118: 0 | BN118: 0 | BO118: 0 | BP118: 0 | BQ118: 0 | BR118: 0 | BS118: 0 | BT118: 0 | BU118: 0 | BV118: 0 | BW118: 0 | BX118: 0 | BY118: 0 | BZ118: 0 | CA118: 0 | CB118: 0 | CC118: 0 | CD118: 0 | CE118: 0 | CF118: 0 | CG118: 0 | CH118: 0 | CI118: 0 | CJ118: 0 | CK118: 0 | CL118: 0 | CM118: 0 | CN118: 0 | CO118: 0 | CP118: 0 | CQ118: 0 | CR118: 0 | CS118: 0 | CT118: 0 | CU118: 0 | CV118: 0 | CW118: 0 | CX118: 0 | CY118: 0 | CZ118: 0 | DA118: 0 | DB118: 0 | DC118: 0 | DD118: 0 | DE118: 0 | DF118: 0 | DG118: 0 | DH118: 0 | DI118: 0 | DJ118: 0 | DK118: 0 | DL118: 0 | DM118: 0 | DN118: 0 | DO118: 0 | DP118: 0 | DQ118: 0 | DR118: 0 | DS118: 0 | DT118: 0 | DU118: 0 | DV118: 0 | DW118: 0 | DX118: 0 | DY118: 0 | DZ118: 0 | EA118: 0 | EB118: 0 | EC118: 0 | ED118: 0 | EE118: 0 | EF118: 0 | EG118: 0 | EH118: 0 | EI118: 0 | EJ118: 0 | EK118: 0 | EL118: 0 | EM118: 0 | EN118: 0 | EO118: 0 | EP118: 0 | EQ118: 0 | ER118: 0 | ES118: 0 | ET118: 0 | EU118: 0 | EV118: 0 | EW118: 0 | EX118: 0 | EY118: 0 | EZ118: 0 | FA118: 0 | FB118: 0 | FC118: 0 | FD118: 0 | FE118: 0 | FF118: 0 | FG118: 0 | FH118: 0 | FI118: 0 | FJ118: 0 | FK118: 0 | FL118: 0 | FM118: 0 | FN118: 0 | FO118: 0 | FP118: 0 | FQ118: 0 | FR118: 0 | FS118: 0 | FT118: 0 | FU118: 0 | FV118: 0 | FW118: 0 | FX118: 0 | FY118: 0 | FZ118: 0 | GA118: 0 | GB118: 0 | GC118: 0 | GD118: 0 | GE118: 0 | GF118: 0 | GG118: 0 | GH118: 0 | GI118: 0 | GJ118: 0 | GK118: 0 | GL118: 0 | GM118: 0 | GN118: 0 | GO118: 0 | GP118: 0 | GQ118: 0 | GR118: 0 | GS118: 0 | GT118: 0 | GU118: 0 | GV118: 0 | GW118: 0 | GX118: 0 | GY118: 0 | GZ118: 0 | HA118: 0 | HB118: 0 | HC118: 0 | HD118: 0 | HE118: 0 | HF118: 0 | HG118: 0 | HH118: 0 | HI118: 0 | HJ118: 0 | HK118: 0 | HL118: 0 | HM118: 0 | HN118: 0 | HO118: 0 | HP118: 0 | HQ118: 0 | HR118: 0 | HS118: 0 | HT118: 0 | HU118: 0 | HV118: 0 | HW118: 0
A120: TOTAL
A121: =COUNT(A107:A118) -> 11 | B121: =SUM(B107:B118) -> 0 | C121: =SUM(C107:C118) -> 0 | D121: 0 | E121: 0 | F121: 0 | G121: 0 | H121: 0 | I121: 0 | J121: 0 | K121: 0 | L121: 0 | M121: 0 | N121: 0 | O121: 0 | P121: 0 | Q121: 0 | R121: 0 | S121: 0 | T121: 0 | U121: 0 | V121: 0 | W121: 0 | X121: 0 | Y121: 0 | Z121: 0 | AA121: 0 | AB121: 0 | AC121: 0 | AD121: 0 | AE121: 0 | AF121: 0 | AG121: 0 | AH121: 0 | AI121: 0 | AJ121: 0 | AK121: 0 | AL121: 0 | AM121: 0 | AN121: 0 | AO121: 0 | AP121: 0 | AQ121: 0 | AR121: 0 | AS121: 0 | AT121: 0 | AU121: 0 | AV121: 0 | AW121: 0 | AX121: 0 | AY121: 0 | AZ121: 0 | BA121: 0 | BB121: 0 | BC121: 0 | BD121: 0 | BE121: 0 | BF121: 0 | BG121: 0 | BH121: 0 | BI121: 0 | BJ121: 0 | BK121: 0 | BL121: 0 | BM121: 0 | BN121: 0 | BO121: =SUM(BO107:BO118) -> 0 | BP121: 0 | BQ121: 0 | BR121: 0 | BS121: 0 | BT121: 0 | BU121: 0 | BV121: 0 | BW121: 0 | BX121: 0 | BY121: 0 | BZ121: 0 | CA121: 0 | CB121: 0 | CC121: 0 | CD121: 0 | CE121: 0 | CF121: 0 | CG121: 0 | CH121: 0 | CI121: 0 | CJ121: 0 | CK121: 0 | CL121: 0 | CM121: 0 | CN121: 0 | CO121: 0 | CP121: 0 | CQ121: 0 | CR121: 0 | CS121: 0 | CT121: 0 | CU121: 0 | CV121: 0 | CW121: 0 | CX121: 0 | CY121: 0 | CZ121: 0 | DA121: 0 | DB121: 0 | DC121: 0 | DD121: 0 | DE121: 0 | DF121: 0 | DG121: 0 | DH121: 0 | DI121: 0 | DJ121: 0 | DK121: 0 | DL121: 0 | DM121: 0 | DN121: 0 | DO121: 0 | DP121: 0 | DQ121: 0 | DR121: 0 | DS121: 0 | DT121: 0 | DU121: 0 | DV121: 0 | DW121: 0 | DX121: 0 | DY121: 0 | DZ121: 0 | EA121: =SUM(EA107:EA118) -> 0 | EB121: 0 | EC121: 0 | ED121: 0 | EE121: 0 | EF121: 0 | EG121: 0 | EH121: 0 | EI121: 0 | EJ121: 0 | EK121: 0 | EL121: 0 | EM121: 0 | EN121: 0 | EO121: 0 | EP121: 0 | EQ121: 0 | ER121: 0 | ES121: 0 | ET121: 0 | EU121: 0 | EV121: 0 | EW121: 0 | EX121: 0 | EY121: 0 | EZ121: 0 | FA121: 0 | FB121: 0 | FC121: 0 | FD121: 0 | FE121: 0 | FF121: 0 | FG121: 0 | FH121: 0 | FI121: 0 | FJ121: 0 | FK121: 0 | FL121: 0 | FM121: 0 | FN121: 0 | FO121: 0 | FP121: 0 | FQ121: 0 | FR121: 0 | FS121: 0 | FT121: 0 | FU121: 0 | FV121: 0 | FW121: 0 | FX121: 0 | FY121: 0 | FZ121: 0 | GA121: 0 | GB121: 0 | GC121: 0 | GD121: 0 | GE121: 0 | GF121: 0 | GG121: 0 | GH121: 0 | GI121: 0 | GJ121: 0 | GK121: 0 | GL121: 0 | GM121: =SUM(GM107:GM118) -> 0 | GN121: 0 | GO121: 0 | GP121: 0 | GQ121: 0 | GR121: 0 | GS121: 0 | GT121: 0 | GU121: 0 | GV121: 0 | GW121: 0 | GX121: 0 | GY121: 0 | GZ121: 0 | HA121: 0 | HB121: 0 | HC121: 0 | HD121: 0 | HE121: 0 | HF121: 0 | HG121: 0 | HH121: 0 | HI121: 0 | HJ121: 0 | HK121: 0 | HL121: 0 | HM121: 0 | HN121: 0 | HO121: 0 | HP121: 0 | HQ121: 0 | HR121: 0 | HS121: 0 | HT121: 0 | HU121: 0 | HV121: 0 | HW121: 0
A122: =CONCATENATE(A107,"-",A108,"-",A109,"-",A110,"-",A111,"-",A112,"-",A113,"-",A114,"-",A115,"-",A116,"-",A117,"-",A118) -> 1-5-2-3-4-6-11-10-9-8-7-Total general
B123: BAS001 | C123: BAS002 | D123: BAS003 | E123: BAS004 | F123: BAS005 | G123: BAS006 | H123: BAS007 | I123: BAS008 | J123: BAS009 | K123: BAS010 | L123: BAS011 | M123: BAS012 | N123: BAS013 | O123: BAS014 | P123: BAS015 | Q123: BAS016 | R123: BAS017 | S123: BAS018 | T123: BAS019 | U123: BAS020 | V123: BAS021 | W123: BAS022 | X123: BAS023 | Y123: BAS024 | Z123: BAS025 | AA123: BAS026 | AB123: BAS027 | AC123: BAS028 | AD123: BAS029 | AE123: BAS030 | AF123: BAS031 | AG123: BAS032 | AH123: BAS033 | AI123: BAS034 | AJ123: BAS035 | AK123: BAS036 | AL123: BAS037 | AM123: BAS038 | AN123: BAS039 | AO123: BAS040 | AP123: BAS041 | AQ123: BAS042 | AR123: BAS043 | AS123: BAS044 | AT123: BAS045 | AU123: BAS046 | AV123: BAS047 | AW123: BAS048 | AX123: BAS049 | AY123: BAS050 | AZ123: BAS051 | BA123: BAS052 | BB123: BAS053 | BC123: BAS054 | BD123: BAS055 | BE123: BAS056 | BF123: BAS057 | BG123: BAS058 | BH123: BAS059 | BI123: BAS060 | BJ123: BAS061 | BK123: BAS062 | BL123: BAS063 | BM123: BAS064 | BN123: BAS065 | BO123: BAS066 | BP123: BAS067 | BQ123: BAS068 | BR123: BAS069 | BS123: BAS070 | BT123: BAS071 | BU123: BAS072 | BV123: BAS073 | BW123: BAS074 | BX123: BAS075 | BY123: BAS076 | BZ123: BAS077 | CA123: BAS078 | CB123: BAS079 | CC123: BAS080 | CD123: BAS081 | CE123: BAS082 | CF123: BAS083 | CG123: BAS084 | CH123: BAS085 | CI123: BAS086 | CJ123: BAS087 | CK123: BAS088 | CL123: BAS089 | CM123: BAS090 | CN123: BAS091 | CO123: BAS092 | CP123: BAS093 | CQ123: BAS094 | CR123: BAS095 | CS123: BAS096 | CT123: BAS097 | CU123: BAS098 | CV123: BAS099 | CW123: BAS100 | CX123: BAS101 | CY123: BAS102 | CZ123: BAS103 | DA123: BAS104 | DB123: BAS105 | DC123: BAS106 | DD123: BAS107 | DE123: BAS108 | DF123: BAS109 | DG123: BAS110 | DH123: BAS111 | DI123: BAS112 | DJ123: BAS113 | DK123: BAS114 | DL123: BAS115 | DM123: BAS116 | DN123: BAS117 | DO123: BAS118 | DP123: BAS119 | DQ123: BAS120 | DR123: BAS121 | DS123: BAS122 | DT123: BAS123 | DU123: BAS124 | DV123: BAS125 | DW123: BAS126 | DX123: BAS127 | DY123: BAS128 | DZ123: BAS129 | EA123: BAS130 | EB123: BAS131 | EC123: BAS132 | ED123: BAS133 | EE123: BAS134 | EF123: BAS135 | EG123: BAS136 | EH123: BAS137 | EI123: BAS138 | EJ123: BAS139 | EK123: BAS140 | EL123: BAS141 | EM123: BAS142 | EN123: BAS143 | EO123: BAS144 | EP123: BAS145 | EQ123: BAS146 | ER123: BAS147 | ES123: BAS148 | ET123: BAS149 | EU123: BAS150 | EV123: BAS151 | EW123: BAS152 | EX123: BAS153 | EY123: BAS154 | EZ123: BAS155 | FA123: BAS156 | FB123: BAS157 | FC123: BAS158 | FD123: BAS159 | FE123: BAS160 | FF123: BAS161 | FG123: BAS162 | FH123: BAS163 | FI123: BAS164 | FJ123: BAS165 | FK123: BAS166 | FL123: BAS167 | FM123: BAS168 | FN123: BAS169 | FO123: BAS170 | FP123: BAS171 | FQ123: BAS172 | FR123: BAS173 | FS123: BAS174 | FT123: BAS175 | FU123: BAS176 | FV123: BAS177 | FW123: BAS178 | FX123: BAS179 | FY123: BAS180 | FZ123: BAS181 | GA123: BAS182 | GB123: BAS183 | GC123: BAS184 | GD123: BAS185 | GE123: BAS186 | GF123: BAS187 | GG123: BAS188 | GH123: BAS189 | GI123: BAS190 | GJ123: BAS191 | GK123: BAS192 | GL123: BAS193 | GM123: BAS194 | GN123: BAS195 | GO123: BAS196 | GP123: BAS197 | GQ123: BAS198 | GR123: BAS199 | GS123: BAS200 | GT123: BAS201 | GU123: BAS202 | GV123: BAS203 | GW123: BAS204 | GX123: BAS205 | GY123: BAS206 | GZ123: BAS207 | HA123: BAS208 | HB123: BAS209 | HC123: BAS210 | HD123: BAS211 | HE123: BAS212 | HF123: BAS213 | HG123: BAS214 | HH123: BAS215 | HI123: BAS216 | HJ123: BAS217 | HK123: BAS218 | HL123: BAS219 | HM123: BAS220 | HN123: BAS221 | HO123: BAS222 | HP123: BAS223 | HQ123: BAS224 | HR123: BAS225 | HS123: BAS226 | HT123: BAS227 | HU123: BAS228 | HV123: BAS229 | HW123: BAS230
B124: =IF(B123=B106,"SI","NO") -> SI | C124: =IF(C123=C106,"SI","NO") -> SI | D124: =IF(D123=D106,"SI","NO") -> SI | E124: =IF(E123=E106,"SI","NO") -> SI | F124: =IF(F123=F106,"SI","NO") -> SI | G124: =IF(G123=G106,"SI","NO") -> SI | H124: =IF(H123=H106,"SI","NO") -> SI | I124: =IF(I123=I106,"SI","NO") -> SI | J124: =IF(J123=J106,"SI","NO") -> SI | K124: =IF(K123=K106,"SI","NO") -> SI | L124: =IF(L123=L106,"SI","NO") -> SI | M124: =IF(M123=M106,"SI","NO") -> SI | N124: =IF(N123=N106,"SI","NO") -> SI | O124: =IF(O123=O106,"SI","NO") -> SI | P124: =IF(P123=P106,"SI","NO") -> SI | Q124: =IF(Q123=Q106,"SI","NO") -> SI | R124: =IF(R123=R106,"SI","NO") -> SI | S124: =IF(S123=S106,"SI","NO") -> SI | T124: =IF(T123=T106,"SI","NO") -> SI | U124: =IF(U123=U106,"SI","NO") -> SI | V124: =IF(V123=V106,"SI","NO") -> SI | W124: =IF(W123=W106,"SI","NO") -> SI | X124: =IF(X123=X106,"SI","NO") -> SI | Y124: =IF(Y123=Y106,"SI","NO") -> SI | Z124: =IF(Z123=Z106,"SI","NO") -> SI | AA124: =IF(AA123=AA106,"SI","NO") -> SI | AB124: =IF(AB123=AB106,"SI","NO") -> SI | AC124: =IF(AC123=AC106,"SI","NO") -> SI | AD124: =IF(AD123=AD106,"SI","NO") -> SI | AE124: =IF(AE123=AE106,"SI","NO") -> SI | AF124: =IF(AF123=AF106,"SI","NO") -> SI | AG124: =IF(AG123=AG106,"SI","NO") -> SI | AH124: =IF(AH123=AH106,"SI","NO") -> SI | AI124: =IF(AI123=AI106,"SI","NO") -> SI | AJ124: =IF(AJ123=AJ106,"SI","NO") -> SI | AK124: =IF(AK123=AK106,"SI","NO") -> SI | AL124: =IF(AL123=AL106,"SI","NO") -> SI | AM124: =IF(AM123=AM106,"SI","NO") -> SI | AN124: =IF(AN123=AN106,"SI","NO") -> SI | AO124: =IF(AO123=AO106,"SI","NO") -> SI | AP124: =IF(AP123=AP106,"SI","NO") -> SI | AQ124: =IF(AQ123=AQ106,"SI","NO") -> SI | AR124: =IF(AR123=AR106,"SI","NO") -> SI | AS124: =IF(AS123=AS106,"SI","NO") -> SI | AT124: =IF(AT123=AT106,"SI","NO") -> SI | AU124: =IF(AU123=AU106,"SI","NO") -> SI | AV124: =IF(AV123=AV106,"SI","NO") -> SI | AW124: =IF(AW123=AW106,"SI","NO") -> SI | AX124: =IF(AX123=AX106,"SI","NO") -> SI | AY124: =IF(AY123=AY106,"SI","NO") -> SI | AZ124: =IF(AZ123=AZ106,"SI","NO") -> SI | BA124: =IF(BA123=BA106,"SI","NO") -> SI | BB124: =IF(BB123=BB106,"SI","NO") -> SI | BC124: =IF(BC123=BC106,"SI","NO") -> SI | BD124: =IF(BD123=BD106,"SI","NO") -> SI | BE124: =IF(BE123=BE106,"SI","NO") -> SI | BF124: =IF(BF123=BF106,"SI","NO") -> SI | BG124: =IF(BG123=BG106,"SI","NO") -> SI | BH124: =IF(BH123=BH106,"SI","NO") -> SI | BI124: =IF(BI123=BI106,"SI","NO") -> SI | BJ124: =IF(BJ123=BJ106,"SI","NO") -> SI | BK124: =IF(BK123=BK106,"SI","NO") -> SI | BL124: =IF(BL123=BL106,"SI","NO") -> SI | BM124: =IF(BM123=BM106,"SI","NO") -> SI | BN124: =IF(BN123=BN106,"SI","NO") -> SI | BO124: =IF(BO123=BO106,"SI","NO") -> SI | BP124: =IF(BP123=BP106,"SI","NO") -> SI | BQ124: =IF(BQ123=BQ106,"SI","NO") -> SI | BR124: =IF(BR123=BR106,"SI","NO") -> SI | BS124: =IF(BS123=BS106,"SI","NO") -> SI | BT124: =IF(BT123=BT106,"SI","NO") -> SI | BU124: =IF(BU123=BU106,"SI","NO") -> SI | BV124: =IF(BV123=BV106,"SI","NO") -> SI | BW124: =IF(BW123=BW106,"SI","NO") -> SI | BX124: =IF(BX123=BX106,"SI","NO") -> SI | BY124: =IF(BY123=BY106,"SI","NO") -> SI | BZ124: =IF(BZ123=BZ106,"SI","NO") -> SI | CA124: =IF(CA123=CA106,"SI","NO") -> SI | CB124: =IF(CB123=CB106,"SI","NO") -> SI | CC124: =IF(CC123=CC106,"SI","NO") -> SI | CD124: =IF(CD123=CD106,"SI","NO") -> SI | CE124: =IF(CE123=CE106,"SI","NO") -> SI | CF124: =IF(CF123=CF106,"SI","NO") -> SI | CG124: =IF(CG123=CG106,"SI","NO") -> SI | CH124: =IF(CH123=CH106,"SI","NO") -> SI | CI124: =IF(CI123=CI106,"SI","NO") -> SI | CJ124: =IF(CJ123=CJ106,"SI","NO") -> SI | CK124: =IF(CK123=CK106,"SI","NO") -> SI | CL124: =IF(CL123=CL106,"SI","NO") -> SI | CM124: =IF(CM123=CM106,"SI","NO") -> SI | CN124: =IF(CN123=CN106,"SI","NO") -> SI | CO124: =IF(CO123=CO106,"SI","NO") -> SI | CP124: =IF(CP123=CP106,"SI","NO") -> SI | CQ124: =IF(CQ123=CQ106,"SI","NO") -> SI | CR124: =IF(CR123=CR106,"SI","NO") -> SI | CS124: =IF(CS123=CS106,"SI","NO") -> SI | CT124: =IF(CT123=CT106,"SI","NO") -> SI | CU124: =IF(CU123=CU106,"SI","NO") -> SI | CV124: =IF(CV123=CV106,"SI","NO") -> SI | CW124: =IF(CW123=CW106,"SI","NO") -> SI | CX124: =IF(CX123=CX106,"SI","NO") -> SI | CY124: =IF(CY123=CY106,"SI","NO") -> SI | CZ124: =IF(CZ123=CZ106,"SI","NO") -> SI | DA124: =IF(DA123=DA106,"SI","NO") -> SI | DB124: =IF(DB123=DB106,"SI","NO") -> SI | DC124: =IF(DC123=DC106,"SI","NO") -> SI | DD124: =IF(DD123=DD106,"SI","NO") -> SI | DE124: =IF(DE123=DE106,"SI","NO") -> SI | DF124: =IF(DF123=DF106,"SI","NO") -> SI | DG124: =IF(DG123=DG106,"SI","NO") -> SI | DH124: =IF(DH123=DH106,"SI","NO") -> SI | DI124: =IF(DI123=DI106,"SI","NO") -> SI | DJ124: =IF(DJ123=DJ106,"SI","NO") -> SI | DK124: =IF(DK123=DK106,"SI","NO") -> SI | DL124: =IF(DL123=DL106,"SI","NO") -> SI | DM124: =IF(DM123=DM106,"SI","NO") -> SI | DN124: =IF(DN123=DN106,"SI","NO") -> SI | DO124: =IF(DO123=DO106,"SI","NO") -> SI | DP124: =IF(DP123=DP106,"SI","NO") -> SI | DQ124: =IF(DQ123=DQ106,"SI","NO") -> SI | DR124: =IF(DR123=DR106,"SI","NO") -> SI | DS124: =IF(DS123=DS106,"SI","NO") -> SI | DT124: =IF(DT123=DT106,"SI","NO") -> SI | DU124: =IF(DU123=DU106,"SI","NO") -> SI | DV124: =IF(DV123=DV106,"SI","NO") -> SI | DW124: =IF(DW123=DW106,"SI","NO") -> SI | DX124: =IF(DX123=DX106,"SI","NO") -> SI | DY124: =IF(DY123=DY106,"SI","NO") -> SI | DZ124: =IF(DZ123=DZ106,"SI","NO") -> SI | EA124: =IF(EA123=EA106,"SI","NO") -> SI | EB124: =IF(EB123=EB106,"SI","NO") -> SI | EC124: =IF(EC123=EC106,"SI","NO") -> SI | ED124: =IF(ED123=ED106,"SI","NO") -> SI | EE124: =IF(EE123=EE106,"SI","NO") -> SI | EF124: =IF(EF123=EF106,"SI","NO") -> SI | EG124: =IF(EG123=EG106,"SI","NO") -> SI | EH124: =IF(EH123=EH106,"SI","NO") -> SI | EI124: =IF(EI123=EI106,"SI","NO") -> SI | EJ124: =IF(EJ123=EJ106,"SI","NO") -> SI | EK124: =IF(EK123=EK106,"SI","NO") -> SI | EL124: =IF(EL123=EL106,"SI","NO") -> SI | EM124: =IF(EM123=EM106,"SI","NO") -> SI | EN124: =IF(EN123=EN106,"SI","NO") -> SI | EO124: =IF(EO123=EO106,"SI","NO") -> SI | EP124: =IF(EP123=EP106,"SI","NO") -> SI | EQ124: =IF(EQ123=EQ106,"SI","NO") -> SI | ER124: =IF(ER123=ER106,"SI","NO") -> SI | ES124: =IF(ES123=ES106,"SI","NO") -> SI | ET124: =IF(ET123=ET106,"SI","NO") -> SI | EU124: =IF(EU123=EU106,"SI","NO") -> SI | EV124: =IF(EV123=EV106,"SI","NO") -> SI | EW124: =IF(EW123=EW106,"SI","NO") -> SI | EX124: =IF(EX123=EX106,"SI","NO") -> SI | EY124: =IF(EY123=EY106,"SI","NO") -> SI | EZ124: =IF(EZ123=EZ106,"SI","NO") -> SI | FA124: =IF(FA123=FA106,"SI","NO") -> SI | FB124: =IF(FB123=FB106,"SI","NO") -> SI | FC124: =IF(FC123=FC106,"SI","NO") -> SI | FD124: =IF(FD123=FD106,"SI","NO") -> SI | FE124: =IF(FE123=FE106,"SI","NO") -> SI | FF124: =IF(FF123=FF106,"SI","NO") -> SI | FG124: =IF(FG123=FG106,"SI","NO") -> SI | FH124: =IF(FH123=FH106,"SI","NO") -> SI | FI124: =IF(FI123=FI106,"SI","NO") -> SI | FJ124: =IF(FJ123=FJ106,"SI","NO") -> SI | FK124: =IF(FK123=FK106,"SI","NO") -> SI | FL124: =IF(FL123=FL106,"SI","NO") -> SI | FM124: =IF(FM123=FM106,"SI","NO") -> SI | FN124: =IF(FN123=FN106,"SI","NO") -> SI | FO124: =IF(FO123=FO106,"SI","NO") -> SI | FP124: =IF(FP123=FP106,"SI","NO") -> SI | FQ124: =IF(FQ123=FQ106,"SI","NO") -> SI | FR124: =IF(FR123=FR106,"SI","NO") -> SI | FS124: =IF(FS123=FS106,"SI","NO") -> SI | FT124: =IF(FT123=FT106,"SI","NO") -> SI | FU124: =IF(FU123=FU106,"SI","NO") -> SI | FV124: =IF(FV123=FV106,"SI","NO") -> SI | FW124: =IF(FW123=FW106,"SI","NO") -> SI | FX124: =IF(FX123=FX106,"SI","NO") -> SI | FY124: =IF(FY123=FY106,"SI","NO") -> SI | FZ124: =IF(FZ123=FZ106,"SI","NO") -> SI | GA124: =IF(GA123=GA106,"SI","NO") -> SI | GB124: =IF(GB123=GB106,"SI","NO") -> SI | GC124: =IF(GC123=GC106,"SI","NO") -> SI | GD124: =IF(GD123=GD106,"SI","NO") -> SI | GE124: =IF(GE123=GE106,"SI","NO") -> SI | GF124: =IF(GF123=GF106,"SI","NO") -> SI | GG124: =IF(GG123=GG106,"SI","NO") -> SI | GH124: =IF(GH123=GH106,"SI","NO") -> SI | GI124: =IF(GI123=GI106,"SI","NO") -> SI | GJ124: =IF(GJ123=GJ106,"SI","NO") -> SI | GK124: =IF(GK123=GK106,"SI","NO") -> SI | GL124: =IF(GL123=GL106,"SI","NO") -> SI | GM124: =IF(GM123=GM106,"SI","NO") -> SI | GN124: =IF(GN123=GN106,"SI","NO") -> SI | GO124: =IF(GO123=GO106,"SI","NO") -> SI | GP124: =IF(GP123=GP106,"SI","NO") -> SI | GQ124: =IF(GQ123=GQ106,"SI","NO") -> SI | GR124: =IF(GR123=GR106,"SI","NO") -> SI | GS124: =IF(GS123=GS106,"SI","NO") -> SI | GT124: =IF(GT123=GT106,"SI","NO") -> SI | GU124: =IF(GU123=GU106,"SI","NO") -> SI | GV124: =IF(GV123=GV106,"SI","NO") -> SI | GW124: =IF(GW123=GW106,"SI","NO") -> SI | GX124: =IF(GX123=GX106,"SI","NO") -> SI | GY124: =IF(GY123=GY106,"SI","NO") -> SI | GZ124: =IF(GZ123=GZ106,"SI","NO") -> SI | HA124: =IF(HA123=HA106,"SI","NO") -> SI | HB124: =IF(HB123=HB106,"SI","NO") -> SI | HC124: =IF(HC123=HC106,"SI","NO") -> SI | HD124: =IF(HD123=HD106,"SI","NO") -> SI | HE124: =IF(HE123=HE106,"SI","NO") -> SI | HF124: =IF(HF123=HF106,"SI","NO") -> SI | HG124: =IF(HG123=HG106,"SI","NO") -> SI | HH124: =IF(HH123=HH106,"SI","NO") -> SI | HI124: =IF(HI123=HI106,"SI","NO") -> SI | HJ124: =IF(HJ123=HJ106,"SI","NO") -> SI | HK124: =IF(HK123=HK106,"SI","NO") -> SI | HL124: =IF(HL123=HL106,"SI","NO") -> SI | HM124: =IF(HM123=HM106,"SI","NO") -> SI | HN124: =IF(HN123=HN106,"SI","NO") -> SI | HO124: =IF(HO123=HO106,"SI","NO") -> SI | HP124: =IF(HP123=HP106,"SI","NO") -> SI | HQ124: =IF(HQ123=HQ106,"SI","NO") -> SI | HR124: =IF(HR123=HR106,"SI","NO") -> SI | HS124: SI | HT124: SI | HU124: SI | HV124: SI | HW124: SI
A126: AB162007
A127: anno | B127: 2024
A128: cod_red | B128: 03
A129: codmic | B129: (Todas)
A130: cod_prov | B130: (Todas)
A131: coddist | B131: (Todas)
A132: cod_estab | B132: (Todas)
A133: cod_eje | B133: (Todas)
B135: Valores
A136: Etiquetas de fila | B136: BAS001 | C136: BAS002 | D136: BAS003 | E136: BAS004 | F136: BAS005 | G136: BAS006 | H136: BAS007 | I136: BAS008 | J136: BAS009 | K136: BAS010 | L136: BAS011 | M136: BAS012 | N136: BAS013 | O136: BAS014 | P136: BAS015 | Q136: BAS016 | R136: BAS017 | S136: BAS018 | T136: BAS019 | U136: BAS020 | V136: BAS021 | W136: BAS022 | X136: BAS023 | Y136: BAS024 | Z136: BAS025 | AA136: BAS026 | AB136: BAS027 | AC136: BAS028 | AD136: BAS029 | AE136: BAS030 | AF136: BAS031 | AG136: BAS032 | AH136: BAS033 | AI136: BAS034 | AJ136: BAS035 | AK136: BAS036 | AL136: BAS037 | AM136: BAS038 | AN136: BAS039 | AO136: BAS040 | AP136: BAS041 | AQ136: BAS042 | AR136: BAS043 | AS136: BAS044 | AT136: BAS045 | AU136: BAS046 | AV136: BAS047 | AW136: BAS048 | AX136: BAS049 | AY136: BAS050 | AZ136: BAS051 | BA136: BAS052 | BB136: BAS053 | BC136: BAS054 | BD136: BAS055 | BE136: BAS056 | BF136: BAS057 | BG136: BAS058 | BH136: BAS059 | BI136: BAS060 | BJ136: BAS061 | BK136: BAS062 | BL136: BAS063 | BM136: BAS064 | BN136: BAS065 | BO136: BAS066 | BP136: BAS067 | BQ136: BAS068 | BR136: BAS069 | BS136: BAS070 | BT136: BAS071 | BU136: BAS072 | BV136: BAS073 | BW136: BAS074 | BX136: BAS075 | BY136: BAS076 | BZ136: BAS077 | CA136: BAS078 | CB136: BAS079 | CC136: BAS080 | CD136: BAS081 | CE136: BAS082 | CF136: BAS083 | CG136: BAS084 | CH136: BAS085 | CI136: BAS086 | CJ136: BAS087 | CK136: BAS088 | CL136: BAS089 | CM136: BAS090 | CN136: BAS091 | CO136: BAS092 | CP136: BAS093 | CQ136: BAS094 | CR136: BAS095 | CS136: BAS096 | CT136: BAS097 | CU136: BAS098 | CV136: BAS099 | CW136: BAS100 | CX136: BAS101 | CY136: BAS102 | CZ136: BAS103 | DA136: BAS104 | DB136: BAS105 | DC136: BAS106 | DD136: BAS107 | DE136: BAS108 | DF136: BAS109 | DG136: BAS110 | DH136: BAS111 | DI136: BAS112 | DJ136: BAS113 | DK136: BAS114 | DL136: BAS115 | DM136: BAS116 | DN136: BAS117 | DO136: BAS118 | DP136: BAS119 | DQ136: BAS120 | DR136: BAS121 | DS136: BAS122 | DT136: BAS123 | DU136: BAS124 | DV136: BAS125 | DW136: BAS126 | DX136: BAS127 | DY136: BAS128 | DZ136: BAS129 | EA136: BAS130 | EB136: BAS131 | EC136: BAS132 | ED136: BAS133 | EE136: BAS134 | EF136: BAS135 | EG136: BAS136 | EH136: BAS137 | EI136: BAS138 | EJ136: BAS139 | EK136: BAS140 | EL136: BAS141 | EM136: BAS142 | EN136: BAS143 | EO136: BAS144 | EP136: BAS145 | EQ136: BAS146 | ER136: BAS147 | ES136: BAS148 | ET136: BAS149 | EU136: BAS150 | EV136: BAS151 | EW136: BAS152 | EX136: BAS153 | EY136: BAS154 | EZ136: BAS155 | FA136: BAS156 | FB136: BAS157 | FC136: BAS158 | FD136: BAS159 | FE136: BAS160 | FF136: BAS161 | FG136: BAS162 | FH136: BAS163 | FI136: BAS164 | FJ136: BAS165 | FK136: BAS166 | FL136: BAS167 | FM136: BAS168 | FN136: BAS169 | FO136: BAS170 | FP136: BAS171 | FQ136: BAS172 | FR136: BAS173 | FS136: BAS174 | FT136: BAS175 | FU136: BAS176 | FV136: BAS177 | FW136: BAS178 | FX136: BAS179 | FY136: BAS180 | FZ136: BAS181 | GA136: BAS182 | GB136: BAS183 | GC136: BAS184 | GD136: BAS185 | GE136: BAS186 | GF136: BAS187 | GG136: BAS188 | GH136: BAS189 | GI136: BAS190 | GJ136: BAS191 | GK136: BAS192 | GL136: BAS193 | GM136: BAS194 | GN136: BAS195 | GO136: BAS196 | GP136: BAS197 | GQ136: BAS198 | GR136: BAS199 | GS136: BAS200 | GT136: BAS201 | GU136: BAS202 | GV136: BAS203 | GW136: BAS204 | GX136: BAS205 | GY136: BAS206 | GZ136: BAS207 | HA136: BAS208 | HB136: BAS209 | HC136: BAS210 | HD136: BAS211 | HE136: BAS212 | HF136: BAS213 | HG136: BAS214 | HH136: BAS215 | HI136: BAS216 | HJ136: BAS217 | HK136: BAS218 | HL136: BAS219 | HM136: BAS220 | HN136: BAS221 | HO136: BAS222 | HP136: BAS223 | HQ136: BAS224 | HR136: BAS225 | HS136: BAS226 | HT136: BAS227 | HU136: BAS228 | HV136: BAS229 | HW136: BAS230
A137: 1 | B137: 0 | C137: 0 | D137: 0 | E137: 0 | F137: 0 | G137: 0 | H137: 0 | I137: 0 | J137: 0 | K137: 0 | L137: 0 | M137: 0 | N137: 0 | O137: 0 | P137: 0 | Q137: 0 | R137: 0 | S137: 0 | T137: 0 | U137: 0 | V137: 0 | W137: 0 | X137: 0 | Y137: 0 | Z137: 0 | AA137: 0 | AB137: 0 | AC137: 0 | AD137: 0 | AE137: 0 | AF137: 0 | AG137: 0 | AH137: 0 | AI137: 0 | AJ137: 0 | AK137: 0 | AL137: 0 | AM137: 0 | AN137: 0 | AO137: 0 | AP137: 0 | AQ137: 0 | AR137: 0 | AS137: 0 | AT137: 0 | AU137: 0 | AV137: 0 | AW137: 0 | AX137: 0 | AY137: 0 | AZ137: 0 | BA137: 0 | BB137: 0 | BC137: 0 | BD137: 0 | BE137: 0 | BF137: 0 | BG137: 0 | BH137: 0 | BI137: 0 | BJ137: 0 | BK137: 0 | BL137: 0 | BM137: 0 | BN137: 0 | BO137: 0 | BP137: 0 | BQ137: 0 | BR137: 0 | BS137: 0 | BT137: 0 | BU137: 0 | BV137: 0 | BW137: 0 | BX137: 0 | BY137: 0 | BZ137: 0 | CA137: 0 | CB137: 0 | CC137: 0 | CD137: 0 | CE137: 0 | CF137: 0 | CG137: 0 | CH137: 0 | CI137: 0 | CJ137: 0 | CK137: 0 | CL137: 0 | CM137: 0 | CN137: 0 | CO137: 0 | CP137: 0 | CQ137: 0 | CR137: 0 | CS137: 0 | CT137: 0 | CU137: 0 | CV137: 0 | CW137: 0 | CX137: 0 | CY137: 0 | CZ137: 0 | DA137: 0 | DB137: 0 | DC137: 0 | DD137: 0 | DE137: 0 | DF137: 0 | DG137: 0 | DH137: 0 | DI137: 0 | DJ137: 0 | DK137: 0 | DL137: 0 | DM137: 0 | DN137: 0 | DO137: 0 | DP137: 0 | DQ137: 0 | DR137: 0 | DS137: 0 | DT137: 0 | DU137: 0 | DV137: 0 | DW137: 0 | DX137: 0 | DY137: 0 | DZ137: 0 | EA137: 0 | EB137: 0 | EC137: 0 | ED137: 0 | EE137: 0 | EF137: 0 | EG137: 0 | EH137: 0 | EI137: 0 | EJ137: 0 | EK137: 0 | EL137: 0 | EM137: 0 | EN137: 0 | EO137: 0 | EP137: 0 | EQ137: 0 | ER137: 0 | ES137: 0 | ET137: 0 | EU137: 0 | EV137: 0 | EW137: 0 | EX137: 0 | EY137: 0 | EZ137: 0 | FA137: 0 | FB137: 0 | FC137: 0 | FD137: 0 | FE137: 0 | FF137: 0 | FG137: 0 | FH137: 0 | FI137: 0 | FJ137: 0 | FK137: 0 | FL137: 0 | FM137: 0 | FN137: 0 | FO137: 0 | FP137: 0 | FQ137: 0 | FR137: 0 | FS137: 0 | FT137: 0 | FU137: 0 | FV137: 0 | FW137: 0 | FX137: 0 | FY137: 0 | FZ137: 0 | GA137: 0 | GB137: 0 | GC137: 0 | GD137: 0 | GE137: 0 | GF137: 0 | GG137: 0 | GH137: 0 | GI137: 0 | GJ137: 0 | GK137: 0 | GL137: 0 | GM137: 0 | GN137: 0 | GO137: 0 | GP137: 0 | GQ137: 0 | GR137: 0 | GS137: 0 | GT137: 0 | GU137: 0 | GV137: 0 | GW137: 0 | GX137: 0 | GY137: 0 | GZ137: 0 | HA137: 0 | HB137: 0 | HC137: 0 | HD137: 0 | HE137: 0 | HF137: 0 | HG137: 0 | HH137: 0 | HI137: 0 | HJ137: 0 | HK137: 0 | HL137: 0 | HM137: 0 | HN137: 0 | HO137: 0 | HP137: 0 | HQ137: 0 | HR137: 0 | HS137: 0 | HT137: 0 | HU137: 0 | HV137: 0 | HW137: 0
A138: 5 | B138: 0 | C138: 0 | D138: 0 | E138: 0 | F138: 0 | G138: 0 | H138: 0 | I138: 0 | J138: 0 | K138: 0 | L138: 0 | M138: 0 | N138: 0 | O138: 0 | P138: 0 | Q138: 0 | R138: 0 | S138: 0 | T138: 0 | U138: 0 | V138: 0 | W138: 0 | X138: 0 | Y138: 0 | Z138: 0 | AA138: 0 | AB138: 0 | AC138: 0 | AD138: 0 | AE138: 0 | AF138: 0 | AG138: 0 | AH138: 0 | AI138: 0 | AJ138: 0 | AK138: 0 | AL138: 0 | AM138: 0 | AN138: 0 | AO138: 0 | AP138: 0 | AQ138: 0 | AR138: 0 | AS138: 0 | AT138: 0 | AU138: 0 | AV138: 0 | AW138: 0 | AX138: 0 | AY138: 0 | AZ138: 0 | BA138: 0 | BB138: 0 | BC138: 0 | BD138: 0 | BE138: 0 | BF138: 0 | BG138: 0 | BH138: 0 | BI138: 0 | BJ138: 0 | BK138: 0 | BL138: 0 | BM138: 0 | BN138: 0 | BO138: 0 | BP138: 0 | BQ138: 0 | BR138: 0 | BS138: 0 | BT138: 0 | BU138: 0 | BV138: 0 | BW138: 0 | BX138: 0 | BY138: 0 | BZ138: 0 | CA138: 0 | CB138: 0 | CC138: 0 | CD138: 0 | CE138: 0 | CF138: 0 | CG138: 0 | CH138: 0 | CI138: 0 | CJ138: 0 | CK138: 0 | CL138: 0 | CM138: 0 | CN138: 0 | CO138: 0 | CP138: 0 | CQ138: 0 | CR138: 0 | CS138: 0 | CT138: 0 | CU138: 0 | CV138: 0 | CW138: 0 | CX138: 0 | CY138: 0 | CZ138: 0 | DA138: 0 | DB138: 0 | DC138: 0 | DD138: 0 | DE138: 0 | DF138: 0 | DG138: 0 | DH138: 0 | DI138: 0 | DJ138: 0 | DK138: 0 | DL138: 0 | DM138: 0 | DN138: 0 | DO138: 0 | DP138: 0 | DQ138: 0 | DR138: 0 | DS138: 0 | DT138: 0 | DU138: 0 | DV138: 0 | DW138: 0 | DX138: 0 | DY138: 0 | DZ138: 0 | EA138: 0 | EB138: 0 | EC138: 0 | ED138: 0 | EE138: 0 | EF138: 0 | EG138: 0 | EH138: 0 | EI138: 0 | EJ138: 0 | EK138: 0 | EL138: 0 | EM138: 0 | EN138: 0 | EO138: 0 | EP138: 0 | EQ138: 0 | ER138: 0 | ES138: 0 | ET138: 0 | EU138: 0 | EV138: 0 | EW138: 0 | EX138: 0 | EY138: 0 | EZ138: 0 | FA138: 0 | FB138: 0 | FC138: 0 | FD138: 0 | FE138: 0 | FF138: 0 | FG138: 0 | FH138: 0 | FI138: 0 | FJ138: 0 | FK138: 0 | FL138: 0 | FM138: 0 | FN138: 0 | FO138: 0 | FP138: 0 | FQ138: 0 | FR138: 0 | FS138: 0 | FT138: 0 | FU138: 0 | FV138: 0 | FW138: 0 | FX138: 0 | FY138: 0 | FZ138: 0 | GA138: 0 | GB138: 0 | GC138: 0 | GD138: 0 | GE138: 0 | GF138: 0 | GG138: 0 | GH138: 0 | GI138: 0 | GJ138: 0 | GK138: 0 | GL138: 0 | GM138: 0 | GN138: 0 | GO138: 0 | GP138: 0 | GQ138: 0 | GR138: 0 | GS138: 0 | GT138: 0 | GU138: 0 | GV138: 0 | GW138: 0 | GX138: 0 | GY138: 0 | GZ138: 0 | HA138: 0 | HB138: 0 | HC138: 0 | HD138: 0 | HE138: 0 | HF138: 0 | HG138: 0 | HH138: 0 | HI138: 0 | HJ138: 0 | HK138: 0 | HL138: 0 | HM138: 0 | HN138: 0 | HO138: 0 | HP138: 0 | HQ138: 0 | HR138: 0 | HS138: 0 | HT138: 0 | HU138: 0 | HV138: 0 | HW138: 0
A139: 2 | B139: 0 | C139: 0 | D139: 0 | E139: 0 | F139: 0 | G139: 0 | H139: 0 | I139: 0 | J139: 0 | K139: 0 | L139: 0 | M139: 0 | N139: 0 | O139: 0 | P139: 0 | Q139: 0 | R139: 0 | S139: 0 | T139: 0 | U139: 0 | V139: 0 | W139: 0 | X139: 0 | Y139: 0 | Z139: 0 | AA139: 0 | AB139: 0 | AC139: 0 | AD139: 0 | AE139: 0 | AF139: 0 | AG139: 0 | AH139: 0 | AI139: 0 | AJ139: 0 | AK139: 0 | AL139: 0 | AM139: 0 | AN139: 0 | AO139: 0 | AP139: 0 | AQ139: 0 | AR139: 0 | AS139: 0 | AT139: 0 | AU139: 0 | AV139: 0 | AW139: 0 | AX139: 0 | AY139: 0 | AZ139: 0 | BA139: 0 | BB139: 0 | BC139: 0 | BD139: 0 | BE139: 0 | BF139: 0 | BG139: 0 | BH139: 0 | BI139: 0 | BJ139: 0 | BK139: 0 | BL139: 0 | BM139: 0 | BN139: 0 | BO139: 0 | BP139: 0 | BQ139: 0 | BR139: 0 | BS139: 0 | BT139: 0 | BU139: 0 | BV139: 0 | BW139: 0 | BX139: 0 | BY139: 0 | BZ139: 0 | CA139: 0 | CB139: 0 | CC139: 0 | CD139: 0 | CE139: 0 | CF139: 0 | CG139: 0 | CH139: 0 | CI139: 0 | CJ139: 0 | CK139: 0 | CL139: 0 | CM139: 0 | CN139: 0 | CO139: 0 | CP139: 0 | CQ139: 0 | CR139: 0 | CS139: 0 | CT139: 0 | CU139: 0 | CV139: 0 | CW139: 0 | CX139: 0 | CY139: 0 | CZ139: 0 | DA139: 0 | DB139: 0 | DC139: 0 | DD139: 0 | DE139: 0 | DF139: 0 | DG139: 0 | DH139: 0 | DI139: 0 | DJ139: 0 | DK139: 0 | DL139: 0 | DM139: 0 | DN139: 0 | DO139: 0 | DP139: 0 | DQ139: 0 | DR139: 0 | DS139: 0 | DT139: 0 | DU139: 0 | DV139: 0 | DW139: 0 | DX139: 0 | DY139: 0 | DZ139: 0 | EA139: 0 | EB139: 0 | EC139: 0 | ED139: 0 | EE139: 0 | EF139: 0 | EG139: 0 | EH139: 0 | EI139: 0 | EJ139: 0 | EK139: 0 | EL139: 0 | EM139: 0 | EN139: 0 | EO139: 0 | EP139: 0 | EQ139: 0 | ER139: 0 | ES139: 0 | ET139: 0 | EU139: 0 | EV139: 0 | EW139: 0 | EX139: 0 | EY139: 0 | EZ139: 0 | FA139: 0 | FB139: 0 | FC139: 0 | FD139: 0 | FE139: 0 | FF139: 0 | FG139: 0 | FH139: 0 | FI139: 0 | FJ139: 0 | FK139: 0 | FL139: 0 | FM139: 0 | FN139: 0 | FO139: 0 | FP139: 0 | FQ139: 0 | FR139: 0 | FS139: 0 | FT139: 0 | FU139: 0 | FV139: 0 | FW139: 0 | FX139: 0 | FY139: 0 | FZ139: 0 | GA139: 0 | GB139: 0 | GC139: 0 | GD139: 0 | GE139: 0 | GF139: 0 | GG139: 0 | GH139: 0 | GI139: 0 | GJ139: 0 | GK139: 0 | GL139: 0 | GM139: 0 | GN139: 0 | GO139: 0 | GP139: 0 | GQ139: 0 | GR139: 0 | GS139: 0 | GT139: 0 | GU139: 0 | GV139: 0 | GW139: 0 | GX139: 0 | GY139: 0 | GZ139: 0 | HA139: 0 | HB139: 0 | HC139: 0 | HD139: 0 | HE139: 0 | HF139: 0 | HG139: 0 | HH139: 0 | HI139: 0 | HJ139: 0 | HK139: 0 | HL139: 0 | HM139: 0 | HN139: 0 | HO139: 0 | HP139: 0 | HQ139: 0 | HR139: 0 | HS139: 0 | HT139: 0 | HU139: 0 | HV139: 0 | HW139: 0
A140: 3 | B140: 0 | C140: 0 | D140: 0 | E140: 0 | F140: 0 | G140: 0 | H140: 0 | I140: 0 | J140: 0 | K140: 0 | L140: 0 | M140: 0 | N140: 0 | O140: 0 | P140: 0 | Q140: 0 | R140: 0 | S140: 0 | T140: 0 | U140: 0 | V140: 0 | W140: 0 | X140: 0 | Y140: 0 | Z140: 0 | AA140: 0 | AB140: 0 | AC140: 0 | AD140: 0 | AE140: 0 | AF140: 0 | AG140: 0 | AH140: 0 | AI140: 0 | AJ140: 0 | AK140: 0 | AL140: 0 | AM140: 0 | AN140: 0 | AO140: 0 | AP140: 0 | AQ140: 0 | AR140: 0 | AS140: 0 | AT140: 0 | AU140: 0 | AV140: 0 | AW140: 0 | AX140: 0 | AY140: 0 | AZ140: 0 | BA140: 0 | BB140: 0 | BC140: 0 | BD140: 0 | BE140: 0 | BF140: 0 | BG140: 0 | BH140: 0 | BI140: 0 | BJ140: 0 | BK140: 0 | BL140: 0 | BM140: 0 | BN140: 0 | BO140: 0 | BP140: 0 | BQ140: 0 | BR140: 0 | BS140: 0 | BT140: 0 | BU140: 0 | BV140: 0 | BW140: 0 | BX140: 0 | BY140: 0 | BZ140: 0 | CA140: 0 | CB140: 0 | CC140: 0 | CD140: 0 | CE140: 0 | CF140: 0 | CG140: 0 | CH140: 0 | CI140: 0 | CJ140: 0 | CK140: 0 | CL140: 0 | CM140: 0 | CN140: 0 | CO140: 0 | CP140: 0 | CQ140: 0 | CR140: 0 | CS140: 0 | CT140: 0 | CU140: 0 | CV140: 0 | CW140: 0 | CX140: 0 | CY140: 0 | CZ140: 0 | DA140: 0 | DB140: 0 | DC140: 0 | DD140: 0 | DE140: 0 | DF140: 0 | DG140: 0 | DH140: 0 | DI140: 0 | DJ140: 0 | DK140: 0 | DL140: 0 | DM140: 0 | DN140: 0 | DO140: 0 | DP140: 0 | DQ140: 0 | DR140: 0 | DS140: 0 | DT140: 0 | DU140: 0 | DV140: 0 | DW140: 0 | DX140: 0 | DY140: 0 | DZ140: 0 | EA140: 0 | EB140: 0 | EC140: 0 | ED140: 0 | EE140: 0 | EF140: 0 | EG140: 0 | EH140: 0 | EI140: 0 | EJ140: 0 | EK140: 0 | EL140: 0 | EM140: 0 | EN140: 0 | EO140: 0 | EP140: 0 | EQ140: 0 | ER140: 0 | ES140: 0 | ET140: 0 | EU140: 0 | EV140: 0 | EW140: 0 | EX140: 0 | EY140: 0 | EZ140: 0 | FA140: 0 | FB140: 0 | FC140: 0 | FD140: 0 | FE140: 0 | FF140: 0 | FG140: 0 | FH140: 0 | FI140: 0 | FJ140: 0 | FK140: 0 | FL140: 0 | FM140: 0 | FN140: 0 | FO140: 0 | FP140: 0 | FQ140: 0 | FR140: 0 | FS140: 0 | FT140: 0 | FU140: 0 | FV140: 0 | FW140: 0 | FX140: 0 | FY140: 0 | FZ140: 0 | GA140: 0 | GB140: 0 | GC140: 0 | GD140: 0 | GE140: 0 | GF140: 0 | GG140: 0 | GH140: 0 | GI140: 0 | GJ140: 0 | GK140: 0 | GL140: 0 | GM140: 0 | GN140: 0 | GO140: 0 | GP140: 0 | GQ140: 0 | GR140: 0 | GS140: 0 | GT140: 0 | GU140: 0 | GV140: 0 | GW140: 0 | GX140: 0 | GY140: 0 | GZ140: 0 | HA140: 0 | HB140: 0 | HC140: 0 | HD140: 0 | HE140: 0 | HF140: 0 | HG140: 0 | HH140: 0 | HI140: 0 | HJ140: 0 | HK140: 0 | HL140: 0 | HM140: 0 | HN140: 0 | HO140: 0 | HP140: 0 | HQ140: 0 | HR140: 0 | HS140: 0 | HT140: 0 | HU140: 0 | HV140: 0 | HW140: 0
A141: 4 | B141: 0 | C141: 0 | D141: 0 | E141: 0 | F141: 0 | G141: 0 | H141: 0 | I141: 0 | J141: 0 | K141: 0 | L141: 0 | M141: 0 | N141: 0 | O141: 0 | P141: 0 | Q141: 0 | R141: 0 | S141: 0 | T141: 0 | U141: 0 | V141: 0 | W141: 0 | X141: 0 | Y141: 0 | Z141: 0 | AA141: 0 | AB141: 0 | AC141: 0 | AD141: 0 | AE141: 0 | AF141: 0 | AG141: 0 | AH141: 0 | AI141: 0 | AJ141: 0 | AK141: 0 | AL141: 0 | AM141: 0 | AN141: 0 | AO141: 0 | AP141: 0 | AQ141: 0 | AR141: 0 | AS141: 0 | AT141: 0 | AU141: 0 | AV141: 0 | AW141: 0 | AX141: 0 | AY141: 0 | AZ141: 0 | BA141: 0 | BB141: 0 | BC141: 0 | BD141: 0 | BE141: 0 | BF141: 0 | BG141: 0 | BH141: 0 | BI141: 0 | BJ141: 0 | BK141: 0 | BL141: 0 | BM141: 0 | BN141: 0 | BO141: 0 | BP141: 0 | BQ141: 0 | BR141: 0 | BS141: 0 | BT141: 0 | BU141: 0 | BV141: 0 | BW141: 0 | BX141: 0 | BY141: 0 | BZ141: 0 | CA141: 0 | CB141: 0 | CC141: 0 | CD141: 0 | CE141: 0 | CF141: 0 | CG141: 0 | CH141: 0 | CI141: 0 | CJ141: 0 | CK141: 0 | CL141: 0 | CM141: 0 | CN141: 0 | CO141: 0 | CP141: 0 | CQ141: 0 | CR141: 0 | CS141: 0 | CT141: 0 | CU141: 0 | CV141: 0 | CW141: 0 | CX141: 0 | CY141: 0 | CZ141: 0 | DA141: 0 | DB141: 0 | DC141: 0 | DD141: 0 | DE141: 0 | DF141: 0 | DG141: 0 | DH141: 0 | DI141: 0 | DJ141: 0 | DK141: 0 | DL141: 0 | DM141: 0 | DN141: 0 | DO141: 0 | DP141: 0 | DQ141: 0 | DR141: 0 | DS141: 0 | DT141: 0 | DU141: 0 | DV141: 0 | DW141: 0 | DX141: 0 | DY141: 0 | DZ141: 0 | EA141: 0 | EB141: 0 | EC141: 0 | ED141: 0 | EE141: 0 | EF141: 0 | EG141: 0 | EH141: 0 | EI141: 0 | EJ141: 0 | EK141: 0 | EL141: 0 | EM141: 0 | EN141: 0 | EO141: 0 | EP141: 0 | EQ141: 0 | ER141: 0 | ES141: 0 | ET141: 0 | EU141: 0 | EV141: 0 | EW141: 0 | EX141: 0 | EY141: 0 | EZ141: 0 | FA141: 0 | FB141: 0 | FC141: 0 | FD141: 0 | FE141: 0 | FF141: 0 | FG141: 0 | FH141: 0 | FI141: 0 | FJ141: 0 | FK141: 0 | FL141: 0 | FM141: 0 | FN141: 0 | FO141: 0 | FP141: 0 | FQ141: 0 | FR141: 0 | FS141: 0 | FT141: 0 | FU141: 0 | FV141: 0 | FW141: 0 | FX141: 0 | FY141: 0 | FZ141: 0 | GA141: 0 | GB141: 0 | GC141: 0 | GD141: 0 | GE141: 0 | GF141: 0 | GG141: 0 | GH141: 0 | GI141: 0 | GJ141: 0 | GK141: 0 | GL141: 0 | GM141: 0 | GN141: 0 | GO141: 0 | GP141: 0 | GQ141: 0 | GR141: 0 | GS141: 0 | GT141: 0 | GU141: 0 | GV141: 0 | GW141: 0 | GX141: 0 | GY141: 0 | GZ141: 0 | HA141: 0 | HB141: 0 | HC141: 0 | HD141: 0 | HE141: 0 | HF141: 0 | HG141: 0 | HH141: 0 | HI141: 0 | HJ141: 0 | HK141: 0 | HL141: 0 | HM141: 0 | HN141: 0 | HO141: 0 | HP141: 0 | HQ141: 0 | HR141: 0 | HS141: 0 | HT141: 0 | HU141: 0 | HV141: 0 | HW141: 0
A142: 6 | B142: 0 | C142: 0 | D142: 0 | E142: 0 | F142: 0 | G142: 0 | H142: 0 | I142: 0 | J142: 0 | K142: 0 | L142: 0 | M142: 0 | N142: 0 | O142: 0 | P142: 0 | Q142: 0 | R142: 0 | S142: 0 | T142: 0 | U142: 0 | V142: 0 | W142: 0 | X142: 0 | Y142: 0 | Z142: 0 | AA142: 0 | AB142: 0 | AC142: 0 | AD142: 0 | AE142: 0 | AF142: 0 | AG142: 0 | AH142: 0 | AI142: 0 | AJ142: 0 | AK142: 0 | AL142: 0 | AM142: 0 | AN142: 0 | AO142: 0 | AP142: 0 | AQ142: 0 | AR142: 0 | AS142: 0 | AT142: 0 | AU142: 0 | AV142: 0 | AW142: 0 | AX142: 0 | AY142: 0 | AZ142: 0 | BA142: 0 | BB142: 0 | BC142: 0 | BD142: 0 | BE142: 0 | BF142: 0 | BG142: 0 | BH142: 0 | BI142: 0 | BJ142: 0 | BK142: 0 | BL142: 0 | BM142: 0 | BN142: 0 | BO142: 0 | BP142: 0 | BQ142: 0 | BR142: 0 | BS142: 0 | BT142: 0 | BU142: 0 | BV142: 0 | BW142: 0 | BX142: 0 | BY142: 0 | BZ142: 0 | CA142: 0 | CB142: 0 | CC142: 0 | CD142: 0 | CE142: 0 | CF142: 0 | CG142: 0 | CH142: 0 | CI142: 0 | CJ142: 0 | CK142: 0 | CL142: 0 | CM142: 0 | CN142: 0 | CO142: 0 | CP142: 0 | CQ142: 0 | CR142: 0 | CS142: 0 | CT142: 0 | CU142: 0 | CV142: 0 | CW142: 0 | CX142: 0 | CY142: 0 | CZ142: 0 | DA142: 0 | DB142: 0 | DC142: 0 | DD142: 0 | DE142: 0 | DF142: 0 | DG142: 0 | DH142: 0 | DI142: 0 | DJ142: 0 | DK142: 0 | DL142: 0 | DM142: 0 | DN142: 0 | DO142: 0 | DP142: 0 | DQ142: 0 | DR142: 0 | DS142: 0 | DT142: 0 | DU142: 0 | DV142: 0 | DW142: 0 | DX142: 0 | DY142: 0 | DZ142: 0 | EA142: 0 | EB142: 0 | EC142: 0 | ED142: 0 | EE142: 0 | EF142: 0 | EG142: 0 | EH142: 0 | EI142: 0 | EJ142: 0 | EK142: 0 | EL142: 0 | EM142: 0 | EN142: 0 | EO142: 0 | EP142: 0 | EQ142: 0 | ER142: 0 | ES142: 0 | ET142: 0 | EU142: 0 | EV142: 0 | EW142: 0 | EX142: 0 | EY142: 0 | EZ142: 0 | FA142: 0 | FB142: 0 | FC142: 0 | FD142: 0 | FE142: 0 | FF142: 0 | FG142: 0 | FH142: 0 | FI142: 0 | FJ142: 0 | FK142: 0 | FL142: 0 | FM142: 0 | FN142: 0 | FO142: 0 | FP142: 0 | FQ142: 0 | FR142: 0 | FS142: 0 | FT142: 0 | FU142: 0 | FV142: 0 | FW142: 0 | FX142: 0 | FY142: 0 | FZ142: 0 | GA142: 0 | GB142: 0 | GC142: 0 | GD142: 0 | GE142: 0 | GF142: 0 | GG142: 0 | GH142: 0 | GI142: 0 | GJ142: 0 | GK142: 0 | GL142: 0 | GM142: 0 | GN142: 0 | GO142: 0 | GP142: 0 | GQ142: 0 | GR142: 0 | GS142: 0 | GT142: 0 | GU142: 0 | GV142: 0 | GW142: 0 | GX142: 0 | GY142: 0 | GZ142: 0 | HA142: 0 | HB142: 0 | HC142: 0 | HD142: 0 | HE142: 0 | HF142: 0 | HG142: 0 | HH142: 0 | HI142: 0 | HJ142: 0 | HK142: 0 | HL142: 0 | HM142: 0 | HN142: 0 | HO142: 0 | HP142: 0 | HQ142: 0 | HR142: 0 | HS142: 0 | HT142: 0 | HU142: 0 | HV142: 0 | HW142: 0
A143: 11 | B143: 0 | C143: 0 | D143: 0 | E143: 0 | F143: 0 | G143: 0 | H143: 0 | I143: 0 | J143: 0 | K143: 0 | L143: 0 | M143: 0 | N143: 0 | O143: 0 | P143: 0 | Q143: 0 | R143: 0 | S143: 0 | T143: 0 | U143: 0 | V143: 0 | W143: 0 | X143: 0 | Y143: 0 | Z143: 0 | AA143: 0 | AB143: 0 | AC143: 0 | AD143: 0 | AE143: 0 | AF143: 0 | AG143: 0 | AH143: 0 | AI143: 0 | AJ143: 0 | AK143: 0 | AL143: 0 | AM143: 0 | AN143: 0 | AO143: 0 | AP143: 0 | AQ143: 0 | AR143: 0 | AS143: 0 | AT143: 0 | AU143: 0 | AV143: 0 | AW143: 0 | AX143: 0 | AY143: 0 | AZ143: 0 | BA143: 0 | BB143: 0 | BC143: 0 | BD143: 0 | BE143: 0 | BF143: 0 | BG143: 0 | BH143: 0 | BI143: 0 | BJ143: 0 | BK143: 0 | BL143: 0 | BM143: 0 | BN143: 0 | BO143: 0 | BP143: 0 | BQ143: 0 | BR143: 0 | BS143: 0 | BT143: 0 | BU143: 0 | BV143: 0 | BW143: 0 | BX143: 0 | BY143: 0 | BZ143: 0 | CA143: 0 | CB143: 0 | CC143: 0 | CD143: 0 | CE143: 0 | CF143: 0 | CG143: 0 | CH143: 0 | CI143: 0 | CJ143: 0 | CK143: 0 | CL143: 0 | CM143: 0 | CN143: 0 | CO143: 0 | CP143: 0 | CQ143: 0 | CR143: 0 | CS143: 0 | CT143: 0 | CU143: 0 | CV143: 0 | CW143: 0 | CX143: 0 | CY143: 0 | CZ143: 0 | DA143: 0 | DB143: 0 | DC143: 0 | DD143: 0 | DE143: 0 | DF143: 0 | DG143: 0 | DH143: 0 | DI143: 0 | DJ143: 0 | DK143: 0 | DL143: 0 | DM143: 0 | DN143: 0 | DO143: 0 | DP143: 0 | DQ143: 0 | DR143: 0 | DS143: 0 | DT143: 0 | DU143: 0 | DV143: 0 | DW143: 0 | DX143: 0 | DY143: 0 | DZ143: 0 | EA143: 0 | EB143: 0 | EC143: 0 | ED143: 0 | EE143: 0 | EF143: 0 | EG143: 0 | EH143: 0 | EI143: 0 | EJ143: 0 | EK143: 0 | EL143: 0 | EM143: 0 | EN143: 0 | EO143: 0 | EP143: 0 | EQ143: 0 | ER143: 0 | ES143: 0 | ET143: 0 | EU143: 0 | EV143: 0 | EW143: 0 | EX143: 0 | EY143: 0 | EZ143: 0 | FA143: 0 | FB143: 0 | FC143: 0 | FD143: 0 | FE143: 0 | FF143: 0 | FG143: 0 | FH143: 0 | FI143: 0 | FJ143: 0 | FK143: 0 | FL143: 0 | FM143: 0 | FN143: 0 | FO143: 0 | FP143: 0 | FQ143: 0 | FR143: 0 | FS143: 0 | FT143: 0 | FU143: 0 | FV143: 0 | FW143: 0 | FX143: 0 | FY143: 0 | FZ143: 0 | GA143: 0 | GB143: 0 | GC143: 0 | GD143: 0 | GE143: 0 | GF143: 0 | GG143: 0 | GH143: 0 | GI143: 0 | GJ143: 0 | GK143: 0 | GL143: 0 | GM143: 0 | GN143: 0 | GO143: 0 | GP143: 0 | GQ143: 0 | GR143: 0 | GS143: 0 | GT143: 0 | GU143: 0 | GV143: 0 | GW143: 0 | GX143: 0 | GY143: 0 | GZ143: 0 | HA143: 0 | HB143: 0 | HC143: 0 | HD143: 0 | HE143: 0 | HF143: 0 | HG143: 0 | HH143: 0 | HI143: 0 | HJ143: 0 | HK143: 0 | HL143: 0 | HM143: 0 | HN143: 0 | HO143: 0 | HP143: 0 | HQ143: 0 | HR143: 0 | HS143: 0 | HT143: 0 | HU143: 0 | HV143: 0 | HW143: 0
A144: 10 | B144: 0 | C144: 0 | D144: 0 | E144: 0 | F144: 0 | G144: 0 | H144: 0 | I144: 0 | J144: 0 | K144: 0 | L144: 0 | M144: 0 | N144: 0 | O144: 0 | P144: 0 | Q144: 0 | R144: 0 | S144: 0 | T144: 0 | U144: 0 | V144: 0 | W144: 0 | X144: 0 | Y144: 0 | Z144: 0 | AA144: 0 | AB144: 0 | AC144: 0 | AD144: 0 | AE144: 0 | AF144: 0 | AG144: 0 | AH144: 0 | AI144: 0 | AJ144: 0 | AK144: 0 | AL144: 0 | AM144: 0 | AN144: 0 | AO144: 0 | AP144: 0 | AQ144: 0 | AR144: 0 | AS144: 0 | AT144: 0 | AU144: 0 | AV144: 0 | AW144: 0 | AX144: 0 | AY144: 0 | AZ144: 0 | BA144: 0 | BB144: 0 | BC144: 0 | BD144: 0 | BE144: 0 | BF144: 0 | BG144: 0 | BH144: 0 | BI144: 0 | BJ144: 0 | BK144: 0 | BL144: 0 | BM144: 0 | BN144: 0 | BO144: 0 | BP144: 0 | BQ144: 0 | BR144: 0 | BS144: 0 | BT144: 0 | BU144: 0 | BV144: 0 | BW144: 0 | BX144: 0 | BY144: 0 | BZ144: 0 | CA144: 0 | CB144: 0 | CC144: 0 | CD144: 0 | CE144: 0 | CF144: 0 | CG144: 0 | CH144: 0 | CI144: 0 | CJ144: 0 | CK144: 0 | CL144: 0 | CM144: 0 | CN144: 0 | CO144: 0 | CP144: 0 | CQ144: 0 | CR144: 0 | CS144: 0 | CT144: 0 | CU144: 0 | CV144: 0 | CW144: 0 | CX144: 0 | CY144: 0 | CZ144: 0 | DA144: 0 | DB144: 0 | DC144: 0 | DD144: 0 | DE144: 0 | DF144: 0 | DG144: 0 | DH144: 0 | DI144: 0 | DJ144: 0 | DK144: 0 | DL144: 0 | DM144: 0 | DN144: 0 | DO144: 0 | DP144: 0 | DQ144: 0 | DR144: 0 | DS144: 0 | DT144: 0 | DU144: 0 | DV144: 0 | DW144: 0 | DX144: 0 | DY144: 0 | DZ144: 0 | EA144: 0 | EB144: 0 | EC144: 0 | ED144: 0 | EE144: 0 | EF144: 0 | EG144: 0 | EH144: 0 | EI144: 0 | EJ144: 0 | EK144: 0 | EL144: 0 | EM144: 0 | EN144: 0 | EO144: 0 | EP144: 0 | EQ144: 0 | ER144: 0 | ES144: 0 | ET144: 0 | EU144: 0 | EV144: 0 | EW144: 0 | EX144: 0 | EY144: 0 | EZ144: 0 | FA144: 0 | FB144: 0 | FC144: 0 | FD144: 0 | FE144: 0 | FF144: 0 | FG144: 0 | FH144: 0 | FI144: 0 | FJ144: 0 | FK144: 0 | FL144: 0 | FM144: 0 | FN144: 0 | FO144: 0 | FP144: 0 | FQ144: 0 | FR144: 0 | FS144: 0 | FT144: 0 | FU144: 0 | FV144: 0 | FW144: 0 | FX144: 0 | FY144: 0 | FZ144: 0 | GA144: 0 | GB144: 0 | GC144: 0 | GD144: 0 | GE144: 0 | GF144: 0 | GG144: 0 | GH144: 0 | GI144: 0 | GJ144: 0 | GK144: 0 | GL144: 0 | GM144: 0 | GN144: 0 | GO144: 0 | GP144: 0 | GQ144: 0 | GR144: 0 | GS144: 0 | GT144: 0 | GU144: 0 | GV144: 0 | GW144: 0 | GX144: 0 | GY144: 0 | GZ144: 0 | HA144: 0 | HB144: 0 | HC144: 0 | HD144: 0 | HE144: 0 | HF144: 0 | HG144: 0 | HH144: 0 | HI144: 0 | HJ144: 0 | HK144: 0 | HL144: 0 | HM144: 0 | HN144: 0 | HO144: 0 | HP144: 0 | HQ144: 0 | HR144: 0 | HS144: 0 | HT144: 0 | HU144: 0 | HV144: 0 | HW144: 0
A145: 9 | B145: 0 | C145: 0 | D145: 0 | E145: 0 | F145: 0 | G145: 0 | H145: 0 | I145: 0 | J145: 0 | K145: 0 | L145: 0 | M145: 0 | N145: 0 | O145: 0 | P145: 0 | Q145: 0 | R145: 0 | S145: 0 | T145: 0 | U145: 0 | V145: 0 | W145: 0 | X145: 0 | Y145: 0 | Z145: 0 | AA145: 0 | AB145: 0 | AC145: 0 | AD145: 0 | AE145: 0 | AF145: 0 | AG145: 0 | AH145: 0 | AI145: 0 | AJ145: 0 | AK145: 0 | AL145: 0 | AM145: 0 | AN145: 0 | AO145: 0 | AP145: 0 | AQ145: 0 | AR145: 0 | AS145: 0 | AT145: 0 | AU145: 0 | AV145: 0 | AW145: 0 | AX145: 0 | AY145: 0 | AZ145: 0 | BA145: 0 | BB145: 0 | BC145: 0 | BD145: 0 | BE145: 0 | BF145: 0 | BG145: 0 | BH145: 0 | BI145: 0 | BJ145: 0 | BK145: 0 | BL145: 0 | BM145: 0 | BN145: 0 | BO145: 0 | BP145: 0 | BQ145: 0 | BR145: 0 | BS145: 0 | BT145: 0 | BU145: 0 | BV145: 0 | BW145: 0 | BX145: 0 | BY145: 0 | BZ145: 0 | CA145: 0 | CB145: 0 | CC145: 0 | CD145: 0 | CE145: 0 | CF145: 0 | CG145: 0 | CH145: 0 | CI145: 0 | CJ145: 0 | CK145: 0 | CL145: 0 | CM145: 0 | CN145: 0 | CO145: 0 | CP145: 0 | CQ145: 0 | CR145: 0 | CS145: 0 | CT145: 0 | CU145: 0 | CV145: 0 | CW145: 0 | CX145: 0 | CY145: 0 | CZ145: 0 | DA145: 0 | DB145: 0 | DC145: 0 | DD145: 0 | DE145: 0 | DF145: 0 | DG145: 0 | DH145: 0 | DI145: 0 | DJ145: 0 | DK145: 0 | DL145: 0 | DM145: 0 | DN145: 0 | DO145: 0 | DP145: 0 | DQ145: 0 | DR145: 0 | DS145: 0 | DT145: 0 | DU145: 0 | DV145: 0 | DW145: 0 | DX145: 0 | DY145: 0 | DZ145: 0 | EA145: 0 | EB145: 0 | EC145: 0 | ED145: 0 | EE145: 0 | EF145: 0 | EG145: 0 | EH145: 0 | EI145: 0 | EJ145: 0 | EK145: 0 | EL145: 0 | EM145: 0 | EN145: 0 | EO145: 0 | EP145: 0 | EQ145: 0 | ER145: 0 | ES145: 0 | ET145: 0 | EU145: 0 | EV145: 0 | EW145: 0 | EX145: 0 | EY145: 0 | EZ145: 0 | FA145: 0 | FB145: 0 | FC145: 0 | FD145: 0 | FE145: 0 | FF145: 0 | FG145: 0 | FH145: 0 | FI145: 0 | FJ145: 0 | FK145: 0 | FL145: 0 | FM145: 0 | FN145: 0 | FO145: 0 | FP145: 0 | FQ145: 0 | FR145: 0 | FS145: 0 | FT145: 0 | FU145: 0 | FV145: 0 | FW145: 0 | FX145: 0 | FY145: 0 | FZ145: 0 | GA145: 0 | GB145: 0 | GC145: 0 | GD145: 0 | GE145: 0 | GF145: 0 | GG145: 0 | GH145: 0 | GI145: 0 | GJ145: 0 | GK145: 0 | GL145: 0 | GM145: 0 | GN145: 0 | GO145: 0 | GP145: 0 | GQ145: 0 | GR145: 0 | GS145: 0 | GT145: 0 | GU145: 0 | GV145: 0 | GW145: 0 | GX145: 0 | GY145: 0 | GZ145: 0 | HA145: 0 | HB145: 0 | HC145: 0 | HD145: 0 | HE145: 0 | HF145: 0 | HG145: 0 | HH145: 0 | HI145: 0 | HJ145: 0 | HK145: 0 | HL145: 0 | HM145: 0 | HN145: 0 | HO145: 0 | HP145: 0 | HQ145: 0 | HR145: 0 | HS145: 0 | HT145: 0 | HU145: 0 | HV145: 0 | HW145: 0
A146: 8 | B146: 0 | C146: 0 | D146: 0 | E146: 0 | F146: 0 | G146: 0 | H146: 0 | I146: 0 | J146: 0 | K146: 0 | L146: 0 | M146: 0 | N146: 0 | O146: 0 | P146: 0 | Q146: 0 | R146: 0 | S146: 0 | T146: 0 | U146: 0 | V146: 0 | W146: 0 | X146: 0 | Y146: 0 | Z146: 0 | AA146: 0 | AB146: 0 | AC146: 0 | AD146: 0 | AE146: 0 | AF146: 0 | AG146: 0 | AH146: 0 | AI146: 0 | AJ146: 0 | AK146: 0 | AL146: 0 | AM146: 0 | AN146: 0 | AO146: 0 | AP146: 0 | AQ146: 0 | AR146: 0 | AS146: 0 | AT146: 0 | AU146: 0 | AV146: 0 | AW146: 0 | AX146: 0 | AY146: 0 | AZ146: 0 | BA146: 0 | BB146: 0 | BC146: 0 | BD146: 0 | BE146: 0 | BF146: 0 | BG146: 0 | BH146: 0 | BI146: 0 | BJ146: 0 | BK146: 0 | BL146: 0 | BM146: 0 | BN146: 0 | BO146: 0 | BP146: 0 | BQ146: 0 | BR146: 0 | BS146: 0 | BT146: 0 | BU146: 0 | BV146: 0 | BW146: 0 | BX146: 0 | BY146: 0 | BZ146: 0 | CA146: 0 | CB146: 0 | CC146: 0 | CD146: 0 | CE146: 0 | CF146: 0 | CG146: 0 | CH146: 0 | CI146: 0 | CJ146: 0 | CK146: 0 | CL146: 0 | CM146: 0 | CN146: 0 | CO146: 0 | CP146: 0 | CQ146: 0 | CR146: 0 | CS146: 0 | CT146: 0 | CU146: 0 | CV146: 0 | CW146: 0 | CX146: 0 | CY146: 0 | CZ146: 0 | DA146: 0 | DB146: 0 | DC146: 0 | DD146: 0 | DE146: 0 | DF146: 0 | DG146: 0 | DH146: 0 | DI146: 0 | DJ146: 0 | DK146: 0 | DL146: 0 | DM146: 0 | DN146: 0 | DO146: 0 | DP146: 0 | DQ146: 0 | DR146: 0 | DS146: 0 | DT146: 0 | DU146: 0 | DV146: 0 | DW146: 0 | DX146: 0 | DY146: 0 | DZ146: 0 | EA146: 0 | EB146: 0 | EC146: 0 | ED146: 0 | EE146: 0 | EF146: 0 | EG146: 0 | EH146: 0 | EI146: 0 | EJ146: 0 | EK146: 0 | EL146: 0 | EM146: 0 | EN146: 0 | EO146: 0 | EP146: 0 | EQ146: 0 | ER146: 0 | ES146: 0 | ET146: 0 | EU146: 0 | EV146: 0 | EW146: 0 | EX146: 0 | EY146: 0 | EZ146: 0 | FA146: 0 | FB146: 0 | FC146: 0 | FD146: 0 | FE146: 0 | FF146: 0 | FG146: 0 | FH146: 0 | FI146: 0 | FJ146: 0 | FK146: 0 | FL146: 0 | FM146: 0 | FN146: 0 | FO146: 0 | FP146: 0 | FQ146: 0 | FR146: 0 | FS146: 0 | FT146: 0 | FU146: 0 | FV146: 0 | FW146: 0 | FX146: 0 | FY146: 0 | FZ146: 0 | GA146: 0 | GB146: 0 | GC146: 0 | GD146: 0 | GE146: 0 | GF146: 0 | GG146: 0 | GH146: 0 | GI146: 0 | GJ146: 0 | GK146: 0 | GL146: 0 | GM146: 0 | GN146: 0 | GO146: 0 | GP146: 0 | GQ146: 0 | GR146: 0 | GS146: 0 | GT146: 0 | GU146: 0 | GV146: 0 | GW146: 0 | GX146: 0 | GY146: 0 | GZ146: 0 | HA146: 0 | HB146: 0 | HC146: 0 | HD146: 0 | HE146: 0 | HF146: 0 | HG146: 0 | HH146: 0 | HI146: 0 | HJ146: 0 | HK146: 0 | HL146: 0 | HM146: 0 | HN146: 0 | HO146: 0 | HP146: 0 | HQ146: 0 | HR146: 0 | HS146: 0 | HT146: 0 | HU146: 0 | HV146: 0 | HW146: 0
A147: 7 | B147: 0 | C147: 0 | D147: 0 | E147: 0 | F147: 0 | G147: 0 | H147: 0 | I147: 0 | J147: 0 | K147: 0 | L147: 0 | M147: 0 | N147: 0 | O147: 0 | P147: 0 | Q147: 0 | R147: 0 | S147: 0 | T147: 0 | U147: 0 | V147: 0 | W147: 0 | X147: 0 | Y147: 0 | Z147: 0 | AA147: 0 | AB147: 0 | AC147: 0 | AD147: 0 | AE147: 0 | AF147: 0 | AG147: 0 | AH147: 0 | AI147: 0 | AJ147: 0 | AK147: 0 | AL147: 0 | AM147: 0 | AN147: 0 | AO147: 0 | AP147: 0 | AQ147: 0 | AR147: 0 | AS147: 0 | AT147: 0 | AU147: 0 | AV147: 0 | AW147: 0 | AX147: 0 | AY147: 0 | AZ147: 0 | BA147: 0 | BB147: 0 | BC147: 0 | BD147: 0 | BE147: 0 | BF147: 0 | BG147: 0 | BH147: 0 | BI147: 0 | BJ147: 0 | BK147: 0 | BL147: 0 | BM147: 0 | BN147: 0 | BO147: 0 | BP147: 0 | BQ147: 0 | BR147: 0 | BS147: 0 | BT147: 0 | BU147: 0 | BV147: 0 | BW147: 0 | BX147: 0 | BY147: 0 | BZ147: 0 | CA147: 0 | CB147: 0 | CC147: 0 | CD147: 0 | CE147: 0 | CF147: 0 | CG147: 0 | CH147: 0 | CI147: 0 | CJ147: 0 | CK147: 0 | CL147: 0 | CM147: 0 | CN147: 0 | CO147: 0 | CP147: 0 | CQ147: 0 | CR147: 0 | CS147: 0 | CT147: 0 | CU147: 0 | CV147: 0 | CW147: 0 | CX147: 0 | CY147: 0 | CZ147: 0 | DA147: 0 | DB147: 0 | DC147: 0 | DD147: 0 | DE147: 0 | DF147: 0 | DG147: 0 | DH147: 0 | DI147: 0 | DJ147: 0 | DK147: 0 | DL147: 0 | DM147: 0 | DN147: 0 | DO147: 0 | DP147: 0 | DQ147: 0 | DR147: 0 | DS147: 0 | DT147: 0 | DU147: 0 | DV147: 0 | DW147: 0 | DX147: 0 | DY147: 0 | DZ147: 0 | EA147: 0 | EB147: 0 | EC147: 0 | ED147: 0 | EE147: 0 | EF147: 0 | EG147: 0 | EH147: 0 | EI147: 0 | EJ147: 0 | EK147: 0 | EL147: 0 | EM147: 0 | EN147: 0 | EO147: 0 | EP147: 0 | EQ147: 0 | ER147: 0 | ES147: 0 | ET147: 0 | EU147: 0 | EV147: 0 | EW147: 0 | EX147: 0 | EY147: 0 | EZ147: 0 | FA147: 0 | FB147: 0 | FC147: 0 | FD147: 0 | FE147: 0 | FF147: 0 | FG147: 0 | FH147: 0 | FI147: 0 | FJ147: 0 | FK147: 0 | FL147: 0 | FM147: 0 | FN147: 0 | FO147: 0 | FP147: 0 | FQ147: 0 | FR147: 0 | FS147: 0 | FT147: 0 | FU147: 0 | FV147: 0 | FW147: 0 | FX147: 0 | FY147: 0 | FZ147: 0 | GA147: 0 | GB147: 0 | GC147: 0 | GD147: 0 | GE147: 0 | GF147: 0 | GG147: 0 | GH147: 0 | GI147: 0 | GJ147: 0 | GK147: 0 | GL147: 0 | GM147: 0 | GN147: 0 | GO147: 0 | GP147: 0 | GQ147: 0 | GR147: 0 | GS147: 0 | GT147: 0 | GU147: 0 | GV147: 0 | GW147: 0 | GX147: 0 | GY147: 0 | GZ147: 0 | HA147: 0 | HB147: 0 | HC147: 0 | HD147: 0 | HE147: 0 | HF147: 0 | HG147: 0 | HH147: 0 | HI147: 0 | HJ147: 0 | HK147: 0 | HL147: 0 | HM147: 0 | HN147: 0 | HO147: 0 | HP147: 0 | HQ147: 0 | HR147: 0 | HS147: 0 | HT147: 0 | HU147: 0 | HV147: 0 | HW147: 0
A148: Total general | B148: 0 | C148: 0 | D148: 0 | E148: 0 | F148: 0 | G148: 0 | H148: 0 | I148: 0 | J148: 0 | K148: 0 | L148: 0 | M148: 0 | N148: 0 | O148: 0 | P148: 0 | Q148: 0 | R148: 0 | S148: 0 | T148: 0 | U148: 0 | V148: 0 | W148: 0 | X148: 0 | Y148: 0 | Z148: 0 | AA148: 0 | AB148: 0 | AC148: 0 | AD148: 0 | AE148: 0 | AF148: 0 | AG148: 0 | AH148: 0 | AI148: 0 | AJ148: 0 | AK148: 0 | AL148: 0 | AM148: 0 | AN148: 0 | AO148: 0 | AP148: 0 | AQ148: 0 | AR148: 0 | AS148: 0 | AT148: 0 | AU148: 0 | AV148: 0 | AW148: 0 | AX148: 0 | AY148: 0 | AZ148: 0 | BA148: 0 | BB148: 0 | BC148: 0 | BD148: 0 | BE148: 0 | BF148: 0 | BG148: 0 | BH148: 0 | BI148: 0 | BJ148: 0 | BK148: 0 | BL148: 0 | BM148: 0 | BN148: 0 | BO148: 0 | BP148: 0 | BQ148: 0 | BR148: 0 | BS148: 0 | BT148: 0 | BU148: 0 | BV148: 0 | BW148: 0 | BX148: 0 | BY148: 0 | BZ148: 0 | CA148: 0 | CB148: 0 | CC148: 0 | CD148: 0 | CE148: 0 | CF148: 0 | CG148: 0 | CH148: 0 | CI148: 0 | CJ148: 0 | CK148: 0 | CL148: 0 | CM148: 0 | CN148: 0 | CO148: 0 | CP148: 0 | CQ148: 0 | CR148: 0 | CS148: 0 | CT148: 0 | CU148: 0 | CV148: 0 | CW148: 0 | CX148: 0 | CY148: 0 | CZ148: 0 | DA148: 0 | DB148: 0 | DC148: 0 | DD148: 0 | DE148: 0 | DF148: 0 | DG148: 0 | DH148: 0 | DI148: 0 | DJ148: 0 | DK148: 0 | DL148: 0 | DM148: 0 | DN148: 0 | DO148: 0 | DP148: 0 | DQ148: 0 | DR148: 0 | DS148: 0 | DT148: 0 | DU148: 0 | DV148: 0 | DW148: 0 | DX148: 0 | DY148: 0 | DZ148: 0 | EA148: 0 | EB148: 0 | EC148: 0 | ED148: 0 | EE148: 0 | EF148: 0 | EG148: 0 | EH148: 0 | EI148: 0 | EJ148: 0 | EK148: 0 | EL148: 0 | EM148: 0 | EN148: 0 | EO148: 0 | EP148: 0 | EQ148: 0 | ER148: 0 | ES148: 0 | ET148: 0 | EU148: 0 | EV148: 0 | EW148: 0 | EX148: 0 | EY148: 0 | EZ148: 0 | FA148: 0 | FB148: 0 | FC148: 0 | FD148: 0 | FE148: 0 | FF148: 0 | FG148: 0 | FH148: 0 | FI148: 0 | FJ148: 0 | FK148: 0 | FL148: 0 | FM148: 0 | FN148: 0 | FO148: 0 | FP148: 0 | FQ148: 0 | FR148: 0 | FS148: 0 | FT148: 0 | FU148: 0 | FV148: 0 | FW148: 0 | FX148: 0 | FY148: 0 | FZ148: 0 | GA148: 0 | GB148: 0 | GC148: 0 | GD148: 0 | GE148: 0 | GF148: 0 | GG148: 0 | GH148: 0 | GI148: 0 | GJ148: 0 | GK148: 0 | GL148: 0 | GM148: 0 | GN148: 0 | GO148: 0 | GP148: 0 | GQ148: 0 | GR148: 0 | GS148: 0 | GT148: 0 | GU148: 0 | GV148: 0 | GW148: 0 | GX148: 0 | GY148: 0 | GZ148: 0 | HA148: 0 | HB148: 0 | HC148: 0 | HD148: 0 | HE148: 0 | HF148: 0 | HG148: 0 | HH148: 0 | HI148: 0 | HJ148: 0 | HK148: 0 | HL148: 0 | HM148: 0 | HN148: 0 | HO148: 0 | HP148: 0 | HQ148: 0 | HR148: 0 | HS148: 0 | HT148: 0 | HU148: 0 | HV148: 0 | HW148: 0
A150: TOTAL
A151: =COUNT(A137:A148) -> 11 | B151: =SUM(B137:B148) -> 0 | C151: =SUM(C137:C148) -> 0 | D151: 0 | E151: 0 | F151: 0 | G151: 0 | H151: 0 | I151: 0 | J151: 0 | K151: 0 | L151: 0 | M151: 0 | N151: 0 | O151: 0 | P151: 0 | Q151: 0 | R151: 0 | S151: 0 | T151: 0 | U151: 0 | V151: 0 | W151: 0 | X151: 0 | Y151: 0 | Z151: 0 | AA151: 0 | AB151: 0 | AC151: 0 | AD151: 0 | AE151: 0 | AF151: 0 | AG151: 0 | AH151: 0 | AI151: 0 | AJ151: 0 | AK151: 0 | AL151: 0 | AM151: 0 | AN151: 0 | AO151: 0 | AP151: 0 | AQ151: 0 | AR151: 0 | AS151: 0 | AT151: 0 | AU151: 0 | AV151: 0 | AW151: 0 | AX151: 0 | AY151: 0 | AZ151: 0 | BA151: 0 | BB151: 0 | BC151: 0 | BD151: 0 | BE151: 0 | BF151: 0 | BG151: 0 | BH151: 0 | BI151: 0 | BJ151: 0 | BK151: 0 | BL151: 0 | BM151: 0 | BN151: 0 | BO151: =SUM(BO137:BO148) -> 0 | BP151: 0 | BQ151: 0 | BR151: 0 | BS151: 0 | BT151: 0 | BU151: 0 | BV151: 0 | BW151: 0 | BX151: 0 | BY151: 0 | BZ151: 0 | CA151: 0 | CB151: 0 | CC151: 0 | CD151: 0 | CE151: 0 | CF151: 0 | CG151: 0 | CH151: 0 | CI151: 0 | CJ151: 0 | CK151: 0 | CL151: 0 | CM151: 0 | CN151: 0 | CO151: 0 | CP151: 0 | CQ151: 0 | CR151: 0 | CS151: 0 | CT151: 0 | CU151: 0 | CV151: 0 | CW151: 0 | CX151: 0 | CY151: 0 | CZ151: 0 | DA151: 0 | DB151: 0 | DC151: 0 | DD151: 0 | DE151: 0 | DF151: 0 | DG151: 0 | DH151: 0 | DI151: 0 | DJ151: 0 | DK151: 0 | DL151: 0 | DM151: 0 | DN151: 0 | DO151: 0 | DP151: 0 | DQ151: 0 | DR151: 0 | DS151: 0 | DT151: 0 | DU151: 0 | DV151: 0 | DW151: 0 | DX151: 0 | DY151: 0 | DZ151: 0 | EA151: =SUM(EA137:EA148) -> 0 | EB151: 0 | EC151: 0 | ED151: 0 | EE151: 0 | EF151: 0 | EG151: 0 | EH151: 0 | EI151: 0 | EJ151: 0 | EK151: 0 | EL151: 0 | EM151: 0 | EN151: 0 | EO151: 0 | EP151: 0 | EQ151: 0 | ER151: 0 | ES151: 0 | ET151: 0 | EU151: 0 | EV151: 0 | EW151: 0 | EX151: 0 | EY151: 0 | EZ151: 0 | FA151: 0 | FB151: 0 | FC151: 0 | FD151: 0 | FE151: 0 | FF151: 0 | FG151: 0 | FH151: 0 | FI151: 0 | FJ151: 0 | FK151: 0 | FL151: 0 | FM151: 0 | FN151: 0 | FO151: 0 | FP151: 0 | FQ151: 0 | FR151: 0 | FS151: 0 | FT151: 0 | FU151: 0 | FV151: 0 | FW151: 0 | FX151: 0 | FY151: 0 | FZ151: 0 | GA151: 0 | GB151: 0 | GC151: 0 | GD151: 0 | GE151: 0 | GF151: 0 | GG151: 0 | GH151: 0 | GI151: 0 | GJ151: 0 | GK151: 0 | GL151: 0 | GM151: =SUM(GM137:GM148) -> 0 | GN151: 0 | GO151: 0 | GP151: 0 | GQ151: 0 | GR151: 0 | GS151: 0 | GT151: 0 | GU151: 0 | GV151: 0 | GW151: 0 | GX151: 0 | GY151: 0 | GZ151: 0 | HA151: 0 | HB151: 0 | HC151: 0 | HD151: 0 | HE151: 0 | HF151: 0 | HG151: 0 | HH151: 0 | HI151: 0 | HJ151: 0 | HK151: 0 | HL151: 0 | HM151: 0 | HN151: 0 | HO151: 0 | HP151: 0 | HQ151: 0 | HR151: 0 | HS151: 0 | HT151: 0 | HU151: 0 | HV151: 0 | HW151: 0
A152: =CONCATENATE(A137,"-",A138,"-",A139,"-",A140,"-",A141,"-",A142,"-",A143,"-",A144,"-",A145,"-",A146,"-",A147,"-",A148) -> 1-5-2-3-4-6-11-10-9-8-7-Total general
B153: BAS001 | C153: BAS002 | D153: BAS003 | E153: BAS004 | F153: BAS005 | G153: BAS006 | H153: BAS007 | I153: BAS008 | J153: BAS009 | K153: BAS010 | L153: BAS011 | M153: BAS012 | N153: BAS013 | O153: BAS014 | P153: BAS015 | Q153: BAS016 | R153: BAS017 | S153: BAS018 | T153: BAS019 | U153: BAS020 | V153: BAS021 | W153: BAS022 | X153: BAS023 | Y153: BAS024 | Z153: BAS025 | AA153: BAS026 | AB153: BAS027 | AC153: BAS028 | AD153: BAS029 | AE153: BAS030 | AF153: BAS031 | AG153: BAS032 | AH153: BAS033 | AI153: BAS034 | AJ153: BAS035 | AK153: BAS036 | AL153: BAS037 | AM153: BAS038 | AN153: BAS039 | AO153: BAS040 | AP153: BAS041 | AQ153: BAS042 | AR153: BAS043 | AS153: BAS044 | AT153: BAS045 | AU153: BAS046 | AV153: BAS047 | AW153: BAS048 | AX153: BAS049 | AY153: BAS050 | AZ153: BAS051 | BA153: BAS052 | BB153: BAS053 | BC153: BAS054 | BD153: BAS055 | BE153: BAS056 | BF153: BAS057 | BG153: BAS058 | BH153: BAS059 | BI153: BAS060 | BJ153: BAS061 | BK153: BAS062 | BL153: BAS063 | BM153: BAS064 | BN153: BAS065 | BO153: BAS066 | BP153: BAS067 | BQ153: BAS068 | BR153: BAS069 | BS153: BAS070 | BT153: BAS071 | BU153: BAS072 | BV153: BAS073 | BW153: BAS074 | BX153: BAS075 | BY153: BAS076 | BZ153: BAS077 | CA153: BAS078 | CB153: BAS079 | CC153: BAS080 | CD153: BAS081 | CE153: BAS082 | CF153: BAS083 | CG153: BAS084 | CH153: BAS085 | CI153: BAS086 | CJ153: BAS087 | CK153: BAS088 | CL153: BAS089 | CM153: BAS090 | CN153: BAS091 | CO153: BAS092 | CP153: BAS093 | CQ153: BAS094 | CR153: BAS095 | CS153: BAS096 | CT153: BAS097 | CU153: BAS098 | CV153: BAS099 | CW153: BAS100 | CX153: BAS101 | CY153: BAS102 | CZ153: BAS103 | DA153: BAS104 | DB153: BAS105 | DC153: BAS106 | DD153: BAS107 | DE153: BAS108 | DF153: BAS109 | DG153: BAS110 | DH153: BAS111 | DI153: BAS112 | DJ153: BAS113 | DK153: BAS114 | DL153: BAS115 | DM153: BAS116 | DN153: BAS117 | DO153: BAS118 | DP153: BAS119 | DQ153: BAS120 | DR153: BAS121 | DS153: BAS122 | DT153: BAS123 | DU153: BAS124 | DV153: BAS125 | DW153: BAS126 | DX153: BAS127 | DY153: BAS128 | DZ153: BAS129 | EA153: BAS130 | EB153: BAS131 | EC153: BAS132 | ED153: BAS133 | EE153: BAS134 | EF153: BAS135 | EG153: BAS136 | EH153: BAS137 | EI153: BAS138 | EJ153: BAS139 | EK153: BAS140 | EL153: BAS141 | EM153: BAS142 | EN153: BAS143 | EO153: BAS144 | EP153: BAS145 | EQ153: BAS146 | ER153: BAS147 | ES153: BAS148 | ET153: BAS149 | EU153: BAS150 | EV153: BAS151 | EW153: BAS152 | EX153: BAS153 | EY153: BAS154 | EZ153: BAS155 | FA153: BAS156 | FB153: BAS157 | FC153: BAS158 | FD153: BAS159 | FE153: BAS160 | FF153: BAS161 | FG153: BAS162 | FH153: BAS163 | FI153: BAS164 | FJ153: BAS165 | FK153: BAS166 | FL153: BAS167 | FM153: BAS168 | FN153: BAS169 | FO153: BAS170 | FP153: BAS171 | FQ153: BAS172 | FR153: BAS173 | FS153: BAS174 | FT153: BAS175 | FU153: BAS176 | FV153: BAS177 | FW153: BAS178 | FX153: BAS179 | FY153: BAS180 | FZ153: BAS181 | GA153: BAS182 | GB153: BAS183 | GC153: BAS184 | GD153: BAS185 | GE153: BAS186 | GF153: BAS187 | GG153: BAS188 | GH153: BAS189 | GI153: BAS190 | GJ153: BAS191 | GK153: BAS192 | GL153: BAS193 | GM153: BAS194 | GN153: BAS195 | GO153: BAS196 | GP153: BAS197 | GQ153: BAS198 | GR153: BAS199 | GS153: BAS200 | GT153: BAS201 | GU153: BAS202 | GV153: BAS203 | GW153: BAS204 | GX153: BAS205 | GY153: BAS206 | GZ153: BAS207 | HA153: BAS208 | HB153: BAS209 | HC153: BAS210 | HD153: BAS211 | HE153: BAS212 | HF153: BAS213 | HG153: BAS214 | HH153: BAS215 | HI153: BAS216 | HJ153: BAS217 | HK153: BAS218 | HL153: BAS219 | HM153: BAS220 | HN153: BAS221 | HO153: BAS222 | HP153: BAS223 | HQ153: BAS224 | HR153: BAS225 | HS153: BAS226 | HT153: BAS227 | HU153: BAS228 | HV153: BAS229 | HW153: BAS230
B154: =IF(B153=B136,"SI","NO") -> SI | C154: =IF(C153=C136,"SI","NO") -> SI | D154: SI | E154: SI | F154: SI | G154: SI | H154: SI | I154: SI | J154: SI | K154: SI | L154: SI | M154: SI | N154: SI | O154: SI | P154: SI | Q154: SI | R154: SI | S154: SI | T154: SI | U154: SI | V154: SI | W154: SI | X154: SI | Y154: SI | Z154: SI | AA154: SI | AB154: SI | AC154: SI | AD154: SI | AE154: SI | AF154: SI | AG154: SI | AH154: SI | AI154: SI | AJ154: SI | AK154: SI | AL154: SI | AM154: SI | AN154: SI | AO154: SI | AP154: SI | AQ154: SI | AR154: SI | AS154: SI | AT154: SI | AU154: SI | AV154: SI | AW154: SI | AX154: SI | AY154: SI | AZ154: SI | BA154: SI | BB154: SI | BC154: SI | BD154: SI | BE154: SI | BF154: SI | BG154: SI | BH154: SI | BI154: SI | BJ154: SI | BK154: SI | BL154: SI | BM154: SI | BN154: SI | BO154: =IF(BO153=BO136,"SI","NO") -> SI | BP154: SI | BQ154: SI | BR154: SI | BS154: SI | BT154: SI | BU154: SI | BV154: SI | BW154: SI | BX154: SI | BY154: SI | BZ154: SI | CA154: SI | CB154: SI | CC154: SI | CD154: SI | CE154: SI | CF154: SI | CG154: SI | CH154: SI | CI154: SI | CJ154: SI | CK154: SI | CL154: SI | CM154: SI | CN154: SI | CO154: SI | CP154: SI | CQ154: SI | CR154: SI | CS154: SI | CT154: SI | CU154: SI | CV154: SI | CW154: SI | CX154: SI | CY154: SI | CZ154: SI | DA154: SI | DB154: SI | DC154: SI | DD154: SI | DE154: SI | DF154: SI | DG154: SI | DH154: SI | DI154: SI | DJ154: SI | DK154: SI | DL154: SI | DM154: SI | DN154: SI | DO154: SI | DP154: SI | DQ154: SI | DR154: SI | DS154: SI | DT154: SI | DU154: SI | DV154: SI | DW154: SI | DX154: SI | DY154: SI | DZ154: SI | EA154: =IF(EA153=EA136,"SI","NO") -> SI | EB154: SI | EC154: SI | ED154: SI | EE154: SI | EF154: SI | EG154: SI | EH154: SI | EI154: SI | EJ154: SI | EK154: SI | EL154: SI | EM154: SI | EN154: SI | EO154: SI | EP154: SI | EQ154: SI | ER154: SI | ES154: SI | ET154: SI | EU154: SI | EV154: SI | EW154: SI | EX154: SI | EY154: SI | EZ154: SI | FA154: SI | FB154: SI | FC154: SI | FD154: SI | FE154: SI | FF154: SI | FG154: SI | FH154: SI | FI154: SI | FJ154: SI | FK154: SI | FL154: SI | FM154: SI | FN154: SI | FO154: SI | FP154: SI | FQ154: SI | FR154: SI | FS154: SI | FT154: SI | FU154: SI | FV154: SI | FW154: SI | FX154: SI | FY154: SI | FZ154: SI | GA154: SI | GB154: SI | GC154: SI | GD154: SI | GE154: SI | GF154: SI | GG154: SI | GH154: SI | GI154: SI | GJ154: SI | GK154: SI | GL154: SI | GM154: =IF(GM153=GM136,"SI","NO") -> SI | GN154: SI | GO154: SI | GP154: SI | GQ154: SI | GR154: SI | GS154: SI | GT154: SI | GU154: SI | GV154: SI | GW154: SI | GX154: SI | GY154: SI | GZ154: SI | HA154: SI | HB154: SI | HC154: SI | HD154: SI | HE154: SI | HF154: SI | HG154: SI | HH154: SI | HI154: SI | HJ154: SI | HK154: SI | HL154: SI | HM154: SI | HN154: SI | HO154: SI | HP154: SI | HQ154: SI | HR154: SI | HS154: SI | HT154: SI | HU154: SI | HV154: SI | HW154: SI
A157: AB172007
A158: anno | B158: 2024
A159: cod_red | B159: 03
A160: codmic | B160: (Todas)
A161: cod_prov | B161: (Todas)
A162: coddist | B162: (Todas)
A163: cod_estab | B163: (Todas)
A164: cod_eje | B164: (Todas)
B166: Valores
A167: Etiquetas de fila | B167: BAS001 | C167: BAS002 | D167: BAS003 | E167: BAS004 | F167: BAS005 | G167: BAS006 | H167: BAS007 | I167: BAS008 | J167: BAS009 | K167: BAS010 | L167: BAS011 | M167: BAS012 | N167: BAS013 | O167: BAS014 | P167: BAS015 | Q167: BAS016 | R167: BAS017 | S167: BAS018 | T167: BAS019 | U167: BAS020 | V167: BAS021 | W167: BAS022 | X167: BAS023 | Y167: BAS024 | Z167: BAS025 | AA167: BAS026 | AB167: BAS027 | AC167: BAS028 | AD167: BAS029 | AE167: BAS030 | AF167: BAS031 | AG167: BAS032 | AH167: BAS033 | AI167: BAS034 | AJ167: BAS035 | AK167: BAS036 | AL167: BAS037 | AM167: BAS038 | AN167: BAS039 | AO167: BAS040 | AP167: BAS041 | AQ167: BAS042 | AR167: BAS043 | AS167: BAS044 | AT167: BAS045 | AU167: BAS046 | AV167: BAS047 | AW167: BAS048 | AX167: BAS049 | AY167: BAS050 | AZ167: BAS051 | BA167: BAS052 | BB167: BAS053 | BC167: BAS054 | BD167: BAS055 | BE167: BAS056 | BF167: BAS057 | BG167: BAS058 | BH167: BAS059 | BI167: BAS060 | BJ167: BAS061 | BK167: BAS062 | BL167: BAS063 | BM167: BAS064 | BN167: BAS065 | BO167: BAS066 | BP167: BAS067 | BQ167: BAS068 | BR167: BAS069 | BS167: BAS070 | BT167: BAS071 | BU167: BAS072 | BV167: BAS073 | BW167: BAS074 | BX167: BAS075 | BY167: BAS076 | BZ167: BAS077 | CA167: BAS078 | CB167: BAS079 | CC167: BAS080 | CD167: BAS081 | CE167: BAS082 | CF167: BAS083 | CG167: BAS084 | CH167: BAS085 | CI167: BAS086 | CJ167: BAS087 | CK167: BAS088 | CL167: BAS089 | CM167: BAS090 | CN167: BAS091 | CO167: BAS092 | CP167: BAS093 | CQ167: BAS094 | CR167: BAS095 | CS167: BAS096 | CT167: BAS097 | CU167: BAS098 | CV167: BAS099 | CW167: BAS100 | CX167: BAS101 | CY167: BAS102 | CZ167: BAS103 | DA167: BAS104 | DB167: BAS105 | DC167: BAS106 | DD167: BAS107 | DE167: BAS108 | DF167: BAS109 | DG167: BAS110 | DH167: BAS111 | DI167: BAS112 | DJ167: BAS113 | DK167: BAS114 | DL167: BAS115 | DM167: BAS116 | DN167: BAS117 | DO167: BAS118 | DP167: BAS119 | DQ167: BAS120 | DR167: BAS121 | DS167: BAS122 | DT167: BAS123 | DU167: BAS124 | DV167: BAS125 | DW167: BAS126 | DX167: BAS127 | DY167: BAS128 | DZ167: BAS129 | EA167: BAS130 | EB167: BAS131 | EC167: BAS132 | ED167: BAS133 | EE167: BAS134 | EF167: BAS135 | EG167: BAS136 | EH167: BAS137 | EI167: BAS138 | EJ167: BAS139 | EK167: BAS140 | EL167: BAS141 | EM167: BAS142 | EN167: BAS143 | EO167: BAS144 | EP167: BAS145 | EQ167: BAS146 | ER167: BAS147 | ES167: BAS148 | ET167: BAS149 | EU167: BAS150 | EV167: BAS151 | EW167: BAS152 | EX167: BAS153 | EY167: BAS154 | EZ167: BAS155 | FA167: BAS156 | FB167: BAS157 | FC167: BAS158 | FD167: BAS159 | FE167: BAS160 | FF167: BAS161 | FG167: BAS162 | FH167: BAS163 | FI167: BAS164 | FJ167: BAS165 | FK167: BAS166 | FL167: BAS167 | FM167: BAS168 | FN167: BAS169 | FO167: BAS170 | FP167: BAS171 | FQ167: BAS172 | FR167: BAS173 | FS167: BAS174 | FT167: BAS175 | FU167: BAS176 | FV167: BAS177 | FW167: BAS178 | FX167: BAS179 | FY167: BAS180 | FZ167: BAS181 | GA167: BAS182 | GB167: BAS183 | GC167: BAS184 | GD167: BAS185 | GE167: BAS186 | GF167: BAS187 | GG167: BAS188 | GH167: BAS189 | GI167: BAS190 | GJ167: BAS191 | GK167: BAS192 | GL167: BAS193 | GM167: BAS194 | GN167: BAS195 | GO167: BAS196 | GP167: BAS197 | GQ167: BAS198 | GR167: BAS199 | GS167: BAS200 | GT167: BAS201 | GU167: BAS202 | GV167: BAS203 | GW167: BAS204 | GX167: BAS205 | GY167: BAS206 | GZ167: BAS207 | HA167: BAS208 | HB167: BAS209 | HC167: BAS210 | HD167: BAS211 | HE167: BAS212 | HF167: BAS213 | HG167: BAS214 | HH167: BAS215 | HI167: BAS216 | HJ167: BAS217 | HK167: BAS218 | HL167: BAS219 | HM167: BAS220 | HN167: BAS221 | HO167: BAS222 | HP167: BAS223 | HQ167: BAS224 | HR167: BAS225 | HS167: BAS226 | HT167: BAS227 | HU167: BAS228 | HV167: BAS229 | HW167: BAS230
A168: 1 | B168: 0 | C168: 0 | D168: 0 | E168: 0 | F168: 0 | G168: 0 | H168: 0 | I168: 0 | J168: 0 | K168: 0 | L168: 0 | M168: 0 | N168: 0 | O168: 0 | P168: 0 | Q168: 0 | R168: 0 | S168: 0 | T168: 0 | U168: 0 | V168: 0 | W168: 0 | X168: 0 | Y168: 0 | Z168: 0 | AA168: 0 | AB168: 0 | AC168: 0 | AD168: 0 | AE168: 0 | AF168: 0 | AG168: 0 | AH168: 0 | AI168: 0 | AJ168: 0 | AK168: 0 | AL168: 0 | AM168: 0 | AN168: 0 | AO168: 0 | AP168: 0 | AQ168: 0 | AR168: 0 | AS168: 0 | AT168: 0 | AU168: 0 | AV168: 0 | AW168: 0 | AX168: 0 | AY168: 0 | AZ168: 0 | BA168: 0 | BB168: 0 | BC168: 0 | BD168: 0 | BE168: 0 | BF168: 0 | BG168: 0 | BH168: 0 | BI168: 0 | BJ168: 0 | BK168: 0 | BL168: 0 | BM168: 0 | BN168: 0 | BO168: 0 | BP168: 0 | BQ168: 0 | BR168: 0 | BS168: 0 | BT168: 0 | BU168: 0 | BV168: 0 | BW168: 0 | BX168: 0 | BY168: 0 | BZ168: 0 | CA168: 0 | CB168: 0 | CC168: 0 | CD168: 0 | CE168: 0 | CF168: 0 | CG168: 0 | CH168: 0 | CI168: 0 | CJ168: 0 | CK168: 0 | CL168: 0 | CM168: 0 | CN168: 0 | CO168: 0 | CP168: 0 | CQ168: 0 | CR168: 0 | CS168: 0 | CT168: 0 | CU168: 0 | CV168: 0 | CW168: 0 | CX168: 0 | CY168: 0 | CZ168: 0 | DA168: 0 | DB168: 0 | DC168: 0 | DD168: 0 | DE168: 0 | DF168: 0 | DG168: 0 | DH168: 0 | DI168: 0 | DJ168: 0 | DK168: 0 | DL168: 0 | DM168: 0 | DN168: 0 | DO168: 0 | DP168: 0 | DQ168: 0 | DR168: 0 | DS168: 0 | DT168: 0 | DU168: 0 | DV168: 0 | DW168: 0 | DX168: 0 | DY168: 0 | DZ168: 0 | EA168: 0 | EB168: 0 | EC168: 0 | ED168: 0 | EE168: 0 | EF168: 0 | EG168: 0 | EH168: 0 | EI168: 0 | EJ168: 0 | EK168: 0 | EL168: 0 | EM168: 0 | EN168: 0 | EO168: 0 | EP168: 0 | EQ168: 0 | ER168: 0 | ES168: 0 | ET168: 0 | EU168: 0 | EV168: 0 | EW168: 0 | EX168: 0 | EY168: 0 | EZ168: 0 | FA168: 0 | FB168: 0 | FC168: 0 | FD168: 0 | FE168: 0 | FF168: 0 | FG168: 0 | FH168: 0 | FI168: 0 | FJ168: 0 | FK168: 0 | FL168: 0 | FM168: 0 | FN168: 0 | FO168: 0 | FP168: 0 | FQ168: 0 | FR168: 0 | FS168: 0 | FT168: 0 | FU168: 0 | FV168: 0 | FW168: 0 | FX168: 0 | FY168: 0 | FZ168: 0 | GA168: 0 | GB168: 0 | GC168: 0 | GD168: 0 | GE168: 0 | GF168: 0 | GG168: 0 | GH168: 0 | GI168: 0 | GJ168: 0 | GK168: 0 | GL168: 0 | GM168: 0 | GN168: 0 | GO168: 0 | GP168: 0 | GQ168: 0 | GR168: 0 | GS168: 0 | GT168: 0 | GU168: 0 | GV168: 0 | GW168: 0 | GX168: 0 | GY168: 0 | GZ168: 0 | HA168: 0 | HB168: 0 | HC168: 0 | HD168: 0 | HE168: 0 | HF168: 0 | HG168: 0 | HH168: 0 | HI168: 0 | HJ168: 0 | HK168: 0 | HL168: 0 | HM168: 0 | HN168: 0 | HO168: 0 | HP168: 0 | HQ168: 0 | HR168: 0 | HS168: 0 | HT168: 0 | HU168: 0 | HV168: 0 | HW168: 0
A169: 5 | B169: 0 | C169: 0 | D169: 0 | E169: 0 | F169: 0 | G169: 0 | H169: 0 | I169: 0 | J169: 0 | K169: 0 | L169: 0 | M169: 0 | N169: 0 | O169: 0 | P169: 0 | Q169: 0 | R169: 0 | S169: 0 | T169: 0 | U169: 0 | V169: 0 | W169: 0 | X169: 0 | Y169: 0 | Z169: 0 | AA169: 0 | AB169: 0 | AC169: 0 | AD169: 0 | AE169: 0 | AF169: 0 | AG169: 0 | AH169: 0 | AI169: 0 | AJ169: 0 | AK169: 0 | AL169: 0 | AM169: 0 | AN169: 0 | AO169: 0 | AP169: 0 | AQ169: 0 | AR169: 0 | AS169: 0 | AT169: 0 | AU169: 0 | AV169: 0 | AW169: 0 | AX169: 0 | AY169: 0 | AZ169: 0 | BA169: 0 | BB169: 0 | BC169: 0 | BD169: 0 | BE169: 0 | BF169: 0 | BG169: 0 | BH169: 0 | BI169: 0 | BJ169: 0 | BK169: 0 | BL169: 0 | BM169: 0 | BN169: 0 | BO169: 0 | BP169: 0 | BQ169: 0 | BR169: 0 | BS169: 0 | BT169: 0 | BU169: 0 | BV169: 0 | BW169: 0 | BX169: 0 | BY169: 0 | BZ169: 0 | CA169: 0 | CB169: 0 | CC169: 0 | CD169: 0 | CE169: 0 | CF169: 0 | CG169: 0 | CH169: 0 | CI169: 0 | CJ169: 0 | CK169: 0 | CL169: 0 | CM169: 0 | CN169: 0 | CO169: 0 | CP169: 0 | CQ169: 0 | CR169: 0 | CS169: 0 | CT169: 0 | CU169: 0 | CV169: 0 | CW169: 0 | CX169: 0 | CY169: 0 | CZ169: 0 | DA169: 0 | DB169: 0 | DC169: 0 | DD169: 0 | DE169: 0 | DF169: 0 | DG169: 0 | DH169: 0 | DI169: 0 | DJ169: 0 | DK169: 0 | DL169: 0 | DM169: 0 | DN169: 0 | DO169: 0 | DP169: 0 | DQ169: 0 | DR169: 0 | DS169: 0 | DT169: 0 | DU169: 0 | DV169: 0 | DW169: 0 | DX169: 0 | DY169: 0 | DZ169: 0 | EA169: 0 | EB169: 0 | EC169: 0 | ED169: 0 | EE169: 0 | EF169: 0 | EG169: 0 | EH169: 0 | EI169: 0 | EJ169: 0 | EK169: 0 | EL169: 0 | EM169: 0 | EN169: 0 | EO169: 0 | EP169: 0 | EQ169: 0 | ER169: 0 | ES169: 0 | ET169: 0 | EU169: 0 | EV169: 0 | EW169: 0 | EX169: 0 | EY169: 0 | EZ169: 0 | FA169: 0 | FB169: 0 | FC169: 0 | FD169: 0 | FE169: 0 | FF169: 0 | FG169: 0 | FH169: 0 | FI169: 0 | FJ169: 0 | FK169: 0 | FL169: 0 | FM169: 0 | FN169: 0 | FO169: 0 | FP169: 0 | FQ169: 0 | FR169: 0 | FS169: 0 | FT169: 0 | FU169: 0 | FV169: 0 | FW169: 0 | FX169: 0 | FY169: 0 | FZ169: 0 | GA169: 0 | GB169: 0 | GC169: 0 | GD169: 0 | GE169: 0 | GF169: 0 | GG169: 0 | GH169: 0 | GI169: 0 | GJ169: 0 | GK169: 0 | GL169: 0 | GM169: 0 | GN169: 0 | GO169: 0 | GP169: 0 | GQ169: 0 | GR169: 0 | GS169: 0 | GT169: 0 | GU169: 0 | GV169: 0 | GW169: 0 | GX169: 0 | GY169: 0 | GZ169: 0 | HA169: 0 | HB169: 0 | HC169: 0 | HD169: 0 | HE169: 0 | HF169: 0 | HG169: 0 | HH169: 0 | HI169: 0 | HJ169: 0 | HK169: 0 | HL169: 0 | HM169: 0 | HN169: 0 | HO169: 0 | HP169: 0 | HQ169: 0 | HR169: 0 | HS169: 0 | HT169: 0 | HU169: 0 | HV169: 0 | HW169: 0
A170: 2 | B170: 0 | C170: 0 | D170: 0 | E170: 0 | F170: 0 | G170: 0 | H170: 0 | I170: 0 | J170: 0 | K170: 0 | L170: 0 | M170: 0 | N170: 0 | O170: 0 | P170: 0 | Q170: 0 | R170: 0 | S170: 0 | T170: 0 | U170: 0 | V170: 0 | W170: 0 | X170: 0 | Y170: 0 | Z170: 0 | AA170: 0 | AB170: 0 | AC170: 0 | AD170: 0 | AE170: 0 | AF170: 0 | AG170: 0 | AH170: 0 | AI170: 0 | AJ170: 0 | AK170: 0 | AL170: 0 | AM170: 0 | AN170: 0 | AO170: 0 | AP170: 0 | AQ170: 0 | AR170: 0 | AS170: 0 | AT170: 0 | AU170: 0 | AV170: 0 | AW170: 0 | AX170: 0 | AY170: 0 | AZ170: 0 | BA170: 0 | BB170: 0 | BC170: 0 | BD170: 0 | BE170: 0 | BF170: 0 | BG170: 0 | BH170: 0 | BI170: 0 | BJ170: 0 | BK170: 0 | BL170: 0 | BM170: 0 | BN170: 0 | BO170: 0 | BP170: 0 | BQ170: 0 | BR170: 0 | BS170: 0 | BT170: 0 | BU170: 0 | BV170: 0 | BW170: 0 | BX170: 0 | BY170: 0 | BZ170: 0 | CA170: 0 | CB170: 0 | CC170: 0 | CD170: 0 | CE170: 0 | CF170: 0 | CG170: 0 | CH170: 0 | CI170: 0 | CJ170: 0 | CK170: 0 | CL170: 0 | CM170: 0 | CN170: 0 | CO170: 0 | CP170: 0 | CQ170: 0 | CR170: 0 | CS170: 0 | CT170: 0 | CU170: 0 | CV170: 0 | CW170: 0 | CX170: 0 | CY170: 0 | CZ170: 0 | DA170: 0 | DB170: 0 | DC170: 0 | DD170: 0 | DE170: 0 | DF170: 0 | DG170: 0 | DH170: 0 | DI170: 0 | DJ170: 0 | DK170: 0 | DL170: 0 | DM170: 0 | DN170: 0 | DO170: 0 | DP170: 0 | DQ170: 0 | DR170: 0 | DS170: 0 | DT170: 0 | DU170: 0 | DV170: 0 | DW170: 0 | DX170: 0 | DY170: 0 | DZ170: 0 | EA170: 0 | EB170: 0 | EC170: 0 | ED170: 0 | EE170: 0 | EF170: 0 | EG170: 0 | EH170: 0 | EI170: 0 | EJ170: 0 | EK170: 0 | EL170: 0 | EM170: 0 | EN170: 0 | EO170: 0 | EP170: 0 | EQ170: 0 | ER170: 0 | ES170: 0 | ET170: 0 | EU170: 0 | EV170: 0 | EW170: 0 | EX170: 0 | EY170: 0 | EZ170: 0 | FA170: 0 | FB170: 0 | FC170: 0 | FD170: 0 | FE170: 0 | FF170: 0 | FG170: 0 | FH170: 0 | FI170: 0 | FJ170: 0 | FK170: 0 | FL170: 0 | FM170: 0 | FN170: 0 | FO170: 0 | FP170: 0 | FQ170: 0 | FR170: 0 | FS170: 0 | FT170: 0 | FU170: 0 | FV170: 0 | FW170: 0 | FX170: 0 | FY170: 0 | FZ170: 0 | GA170: 0 | GB170: 0 | GC170: 0 | GD170: 0 | GE170: 0 | GF170: 0 | GG170: 0 | GH170: 0 | GI170: 0 | GJ170: 0 | GK170: 0 | GL170: 0 | GM170: 0 | GN170: 0 | GO170: 0 | GP170: 0 | GQ170: 0 | GR170: 0 | GS170: 0 | GT170: 0 | GU170: 0 | GV170: 0 | GW170: 0 | GX170: 0 | GY170: 0 | GZ170: 0 | HA170: 0 | HB170: 0 | HC170: 0 | HD170: 0 | HE170: 0 | HF170: 0 | HG170: 0 | HH170: 0 | HI170: 0 | HJ170: 0 | HK170: 0 | HL170: 0 | HM170: 0 | HN170: 0 | HO170: 0 | HP170: 0 | HQ170: 0 | HR170: 0 | HS170: 0 | HT170: 0 | HU170: 0 | HV170: 0 | HW170: 0
A171: 3 | B171: 0 | C171: 0 | D171: 0 | E171: 0 | F171: 0 | G171: 0 | H171: 0 | I171: 0 | J171: 0 | K171: 0 | L171: 0 | M171: 0 | N171: 0 | O171: 0 | P171: 0 | Q171: 0 | R171: 0 | S171: 0 | T171: 0 | U171: 0 | V171: 0 | W171: 0 | X171: 0 | Y171: 0 | Z171: 0 | AA171: 0 | AB171: 0 | AC171: 0 | AD171: 0 | AE171: 0 | AF171: 0 | AG171: 0 | AH171: 0 | AI171: 0 | AJ171: 0 | AK171: 0 | AL171: 0 | AM171: 0 | AN171: 0 | AO171: 0 | AP171: 0 | AQ171: 0 | AR171: 0 | AS171: 0 | AT171: 0 | AU171: 0 | AV171: 0 | AW171: 0 | AX171: 0 | AY171: 0 | AZ171: 0 | BA171: 0 | BB171: 0 | BC171: 0 | BD171: 0 | BE171: 0 | BF171: 0 | BG171: 0 | BH171: 0 | BI171: 0 | BJ171: 0 | BK171: 0 | BL171: 0 | BM171: 0 | BN171: 0 | BO171: 0 | BP171: 0 | BQ171: 0 | BR171: 0 | BS171: 0 | BT171: 0 | BU171: 0 | BV171: 0 | BW171: 0 | BX171: 0 | BY171: 0 | BZ171: 0 | CA171: 0 | CB171: 0 | CC171: 0 | CD171: 0 | CE171: 0 | CF171: 0 | CG171: 0 | CH171: 0 | CI171: 0 | CJ171: 0 | CK171: 0 | CL171: 0 | CM171: 0 | CN171: 0 | CO171: 0 | CP171: 0 | CQ171: 0 | CR171: 0 | CS171: 0 | CT171: 0 | CU171: 0 | CV171: 0 | CW171: 0 | CX171: 0 | CY171: 0 | CZ171: 0 | DA171: 0 | DB171: 0 | DC171: 0 | DD171: 0 | DE171: 0 | DF171: 0 | DG171: 0 | DH171: 0 | DI171: 0 | DJ171: 0 | DK171: 0 | DL171: 0 | DM171: 0 | DN171: 0 | DO171: 0 | DP171: 0 | DQ171: 0 | DR171: 0 | DS171: 0 | DT171: 0 | DU171: 0 | DV171: 0 | DW171: 0 | DX171: 0 | DY171: 0 | DZ171: 0 | EA171: 0 | EB171: 0 | EC171: 0 | ED171: 0 | EE171: 0 | EF171: 0 | EG171: 0 | EH171: 0 | EI171: 0 | EJ171: 0 | EK171: 0 | EL171: 0 | EM171: 0 | EN171: 0 | EO171: 0 | EP171: 0 | EQ171: 0 | ER171: 0 | ES171: 0 | ET171: 0 | EU171: 0 | EV171: 0 | EW171: 0 | EX171: 0 | EY171: 0 | EZ171: 0 | FA171: 0 | FB171: 0 | FC171: 0 | FD171: 0 | FE171: 0 | FF171: 0 | FG171: 0 | FH171: 0 | FI171: 0 | FJ171: 0 | FK171: 0 | FL171: 0 | FM171: 0 | FN171: 0 | FO171: 0 | FP171: 0 | FQ171: 0 | FR171: 0 | FS171: 0 | FT171: 0 | FU171: 0 | FV171: 0 | FW171: 0 | FX171: 0 | FY171: 0 | FZ171: 0 | GA171: 0 | GB171: 0 | GC171: 0 | GD171: 0 | GE171: 0 | GF171: 0 | GG171: 0 | GH171: 0 | GI171: 0 | GJ171: 0 | GK171: 0 | GL171: 0 | GM171: 0 | GN171: 0 | GO171: 0 | GP171: 0 | GQ171: 0 | GR171: 0 | GS171: 0 | GT171: 0 | GU171: 0 | GV171: 0 | GW171: 0 | GX171: 0 | GY171: 0 | GZ171: 0 | HA171: 0 | HB171: 0 | HC171: 0 | HD171: 0 | HE171: 0 | HF171: 0 | HG171: 0 | HH171: 0 | HI171: 0 | HJ171: 0 | HK171: 0 | HL171: 0 | HM171: 0 | HN171: 0 | HO171: 0 | HP171: 0 | HQ171: 0 | HR171: 0 | HS171: 0 | HT171: 0 | HU171: 0 | HV171: 0 | HW171: 0
A172: 4 | B172: 0 | C172: 0 | D172: 0 | E172: 0 | F172: 0 | G172: 0 | H172: 0 | I172: 0 | J172: 0 | K172: 0 | L172: 0 | M172: 0 | N172: 0 | O172: 0 | P172: 0 | Q172: 0 | R172: 0 | S172: 0 | T172: 0 | U172: 0 | V172: 0 | W172: 0 | X172: 0 | Y172: 0 | Z172: 0 | AA172: 0 | AB172: 0 | AC172: 0 | AD172: 0 | AE172: 0 | AF172: 0 | AG172: 0 | AH172: 0 | AI172: 0 | AJ172: 0 | AK172: 0 | AL172: 0 | AM172: 0 | AN172: 0 | AO172: 0 | AP172: 0 | AQ172: 0 | AR172: 0 | AS172: 0 | AT172: 0 | AU172: 0 | AV172: 0 | AW172: 0 | AX172: 0 | AY172: 0 | AZ172: 0 | BA172: 0 | BB172: 0 | BC172: 0 | BD172: 0 | BE172: 0 | BF172: 0 | BG172: 0 | BH172: 0 | BI172: 0 | BJ172: 0 | BK172: 0 | BL172: 0 | BM172: 0 | BN172: 0 | BO172: 0 | BP172: 0 | BQ172: 0 | BR172: 0 | BS172: 0 | BT172: 0 | BU172: 0 | BV172: 0 | BW172: 0 | BX172: 0 | BY172: 0 | BZ172: 0 | CA172: 0 | CB172: 0 | CC172: 0 | CD172: 0 | CE172: 0 | CF172: 0 | CG172: 0 | CH172: 0 | CI172: 0 | CJ172: 0 | CK172: 0 | CL172: 0 | CM172: 0 | CN172: 0 | CO172: 0 | CP172: 0 | CQ172: 0 | CR172: 0 | CS172: 0 | CT172: 0 | CU172: 0 | CV172: 0 | CW172: 0 | CX172: 0 | CY172: 0 | CZ172: 0 | DA172: 0 | DB172: 0 | DC172: 0 | DD172: 0 | DE172: 0 | DF172: 0 | DG172: 0 | DH172: 0 | DI172: 0 | DJ172: 0 | DK172: 0 | DL172: 0 | DM172: 0 | DN172: 0 | DO172: 0 | DP172: 0 | DQ172: 0 | DR172: 0 | DS172: 0 | DT172: 0 | DU172: 0 | DV172: 0 | DW172: 0 | DX172: 0 | DY172: 0 | DZ172: 0 | EA172: 0 | EB172: 0 | EC172: 0 | ED172: 0 | EE172: 0 | EF172: 0 | EG172: 0 | EH172: 0 | EI172: 0 | EJ172: 0 | EK172: 0 | EL172: 0 | EM172: 0 | EN172: 0 | EO172: 0 | EP172: 0 | EQ172: 0 | ER172: 0 | ES172: 0 | ET172: 0 | EU172: 0 | EV172: 0 | EW172: 0 | EX172: 0 | EY172: 0 | EZ172: 0 | FA172: 0 | FB172: 0 | FC172: 0 | FD172: 0 | FE172: 0 | FF172: 0 | FG172: 0 | FH172: 0 | FI172: 0 | FJ172: 0 | FK172: 0 | FL172: 0 | FM172: 0 | FN172: 0 | FO172: 0 | FP172: 0 | FQ172: 0 | FR172: 0 | FS172: 0 | FT172: 0 | FU172: 0 | FV172: 0 | FW172: 0 | FX172: 0 | FY172: 0 | FZ172: 0 | GA172: 0 | GB172: 0 | GC172: 0 | GD172: 0 | GE172: 0 | GF172: 0 | GG172: 0 | GH172: 0 | GI172: 0 | GJ172: 0 | GK172: 0 | GL172: 0 | GM172: 0 | GN172: 0 | GO172: 0 | GP172: 0 | GQ172: 0 | GR172: 0 | GS172: 0 | GT172: 0 | GU172: 0 | GV172: 0 | GW172: 0 | GX172: 0 | GY172: 0 | GZ172: 0 | HA172: 0 | HB172: 0 | HC172: 0 | HD172: 0 | HE172: 0 | HF172: 0 | HG172: 0 | HH172: 0 | HI172: 0 | HJ172: 0 | HK172: 0 | HL172: 0 | HM172: 0 | HN172: 0 | HO172: 0 | HP172: 0 | HQ172: 0 | HR172: 0 | HS172: 0 | HT172: 0 | HU172: 0 | HV172: 0 | HW172: 0
A173: 6 | B173: 0 | C173: 0 | D173: 0 | E173: 0 | F173: 0 | G173: 0 | H173: 0 | I173: 0 | J173: 0 | K173: 0 | L173: 0 | M173: 0 | N173: 0 | O173: 0 | P173: 0 | Q173: 0 | R173: 0 | S173: 0 | T173: 0 | U173: 0 | V173: 0 | W173: 0 | X173: 0 | Y173: 0 | Z173: 0 | AA173: 0 | AB173: 0 | AC173: 0 | AD173: 0 | AE173: 0 | AF173: 0 | AG173: 0 | AH173: 0 | AI173: 0 | AJ173: 0 | AK173: 0 | AL173: 0 | AM173: 0 | AN173: 0 | AO173: 0 | AP173: 0 | AQ173: 0 | AR173: 0 | AS173: 0 | AT173: 0 | AU173: 0 | AV173: 0 | AW173: 0 | AX173: 0 | AY173: 0 | AZ173: 0 | BA173: 0 | BB173: 0 | BC173: 0 | BD173: 0 | BE173: 0 | BF173: 0 | BG173: 0 | BH173: 0 | BI173: 0 | BJ173: 0 | BK173: 0 | BL173: 0 | BM173: 0 | BN173: 0 | BO173: 0 | BP173: 0 | BQ173: 0 | BR173: 0 | BS173: 0 | BT173: 0 | BU173: 0 | BV173: 0 | BW173: 0 | BX173: 0 | BY173: 0 | BZ173: 0 | CA173: 0 | CB173: 0 | CC173: 0 | CD173: 0 | CE173: 0 | CF173: 0 | CG173: 0 | CH173: 0 | CI173: 0 | CJ173: 0 | CK173: 0 | CL173: 0 | CM173: 0 | CN173: 0 | CO173: 0 | CP173: 0 | CQ173: 0 | CR173: 0 | CS173: 0 | CT173: 0 | CU173: 0 | CV173: 0 | CW173: 0 | CX173: 0 | CY173: 0 | CZ173: 0 | DA173: 0 | DB173: 0 | DC173: 0 | DD173: 0 | DE173: 0 | DF173: 0 | DG173: 0 | DH173: 0 | DI173: 0 | DJ173: 0 | DK173: 0 | DL173: 0 | DM173: 0 | DN173: 0 | DO173: 0 | DP173: 0 | DQ173: 0 | DR173: 0 | DS173: 0 | DT173: 0 | DU173: 0 | DV173: 0 | DW173: 0 | DX173: 0 | DY173: 0 | DZ173: 0 | EA173: 0 | EB173: 0 | EC173: 0 | ED173: 0 | EE173: 0 | EF173: 0 | EG173: 0 | EH173: 0 | EI173: 0 | EJ173: 0 | EK173: 0 | EL173: 0 | EM173: 0 | EN173: 0 | EO173: 0 | EP173: 0 | EQ173: 0 | ER173: 0 | ES173: 0 | ET173: 0 | EU173: 0 | EV173: 0 | EW173: 0 | EX173: 0 | EY173: 0 | EZ173: 0 | FA173: 0 | FB173: 0 | FC173: 0 | FD173: 0 | FE173: 0 | FF173: 0 | FG173: 0 | FH173: 0 | FI173: 0 | FJ173: 0 | FK173: 0 | FL173: 0 | FM173: 0 | FN173: 0 | FO173: 0 | FP173: 0 | FQ173: 0 | FR173: 0 | FS173: 0 | FT173: 0 | FU173: 0 | FV173: 0 | FW173: 0 | FX173: 0 | FY173: 0 | FZ173: 0 | GA173: 0 | GB173: 0 | GC173: 0 | GD173: 0 | GE173: 0 | GF173: 0 | GG173: 0 | GH173: 0 | GI173: 0 | GJ173: 0 | GK173: 0 | GL173: 0 | GM173: 0 | GN173: 0 | GO173: 0 | GP173: 0 | GQ173: 0 | GR173: 0 | GS173: 0 | GT173: 0 | GU173: 0 | GV173: 0 | GW173: 0 | GX173: 0 | GY173: 0 | GZ173: 0 | HA173: 0 | HB173: 0 | HC173: 0 | HD173: 0 | HE173: 0 | HF173: 0 | HG173: 0 | HH173: 0 | HI173: 0 | HJ173: 0 | HK173: 0 | HL173: 0 | HM173: 0 | HN173: 0 | HO173: 0 | HP173: 0 | HQ173: 0 | HR173: 0 | HS173: 0 | HT173: 0 | HU173: 0 | HV173: 0 | HW173: 0
A174: 11 | B174: 0 | C174: 0 | D174: 0 | E174: 0 | F174: 0 | G174: 0 | H174: 0 | I174: 0 | J174: 0 | K174: 0 | L174: 0 | M174: 0 | N174: 0 | O174: 0 | P174: 0 | Q174: 0 | R174: 0 | S174: 0 | T174: 0 | U174: 0 | V174: 0 | W174: 0 | X174: 0 | Y174: 0 | Z174: 0 | AA174: 0 | AB174: 0 | AC174: 0 | AD174: 0 | AE174: 0 | AF174: 0 | AG174: 0 | AH174: 0 | AI174: 0 | AJ174: 0 | AK174: 0 | AL174: 0 | AM174: 0 | AN174: 0 | AO174: 0 | AP174: 0 | AQ174: 0 | AR174: 0 | AS174: 0 | AT174: 0 | AU174: 0 | AV174: 0 | AW174: 0 | AX174: 0 | AY174: 0 | AZ174: 0 | BA174: 0 | BB174: 0 | BC174: 0 | BD174: 0 | BE174: 0 | BF174: 0 | BG174: 0 | BH174: 0 | BI174: 0 | BJ174: 0 | BK174: 0 | BL174: 0 | BM174: 0 | BN174: 0 | BO174: 0 | BP174: 0 | BQ174: 0 | BR174: 0 | BS174: 0 | BT174: 0 | BU174: 0 | BV174: 0 | BW174: 0 | BX174: 0 | BY174: 0 | BZ174: 0 | CA174: 0 | CB174: 0 | CC174: 0 | CD174: 0 | CE174: 0 | CF174: 0 | CG174: 0 | CH174: 0 | CI174: 0 | CJ174: 0 | CK174: 0 | CL174: 0 | CM174: 0 | CN174: 0 | CO174: 0 | CP174: 0 | CQ174: 0 | CR174: 0 | CS174: 0 | CT174: 0 | CU174: 0 | CV174: 0 | CW174: 0 | CX174: 0 | CY174: 0 | CZ174: 0 | DA174: 0 | DB174: 0 | DC174: 0 | DD174: 0 | DE174: 0 | DF174: 0 | DG174: 0 | DH174: 0 | DI174: 0 | DJ174: 0 | DK174: 0 | DL174: 0 | DM174: 0 | DN174: 0 | DO174: 0 | DP174: 0 | DQ174: 0 | DR174: 0 | DS174: 0 | DT174: 0 | DU174: 0 | DV174: 0 | DW174: 0 | DX174: 0 | DY174: 0 | DZ174: 0 | EA174: 0 | EB174: 0 | EC174: 0 | ED174: 0 | EE174: 0 | EF174: 0 | EG174: 0 | EH174: 0 | EI174: 0 | EJ174: 0 | EK174: 0 | EL174: 0 | EM174: 0 | EN174: 0 | EO174: 0 | EP174: 0 | EQ174: 0 | ER174: 0 | ES174: 0 | ET174: 0 | EU174: 0 | EV174: 0 | EW174: 0 | EX174: 0 | EY174: 0 | EZ174: 0 | FA174: 0 | FB174: 0 | FC174: 0 | FD174: 0 | FE174: 0 | FF174: 0 | FG174: 0 | FH174: 0 | FI174: 0 | FJ174: 0 | FK174: 0 | FL174: 0 | FM174: 0 | FN174: 0 | FO174: 0 | FP174: 0 | FQ174: 0 | FR174: 0 | FS174: 0 | FT174: 0 | FU174: 0 | FV174: 0 | FW174: 0 | FX174: 0 | FY174: 0 | FZ174: 0 | GA174: 0 | GB174: 0 | GC174: 0 | GD174: 0 | GE174: 0 | GF174: 0 | GG174: 0 | GH174: 0 | GI174: 0 | GJ174: 0 | GK174: 0 | GL174: 0 | GM174: 0 | GN174: 0 | GO174: 0 | GP174: 0 | GQ174: 0 | GR174: 0 | GS174: 0 | GT174: 0 | GU174: 0 | GV174: 0 | GW174: 0 | GX174: 0 | GY174: 0 | GZ174: 0 | HA174: 0 | HB174: 0 | HC174: 0 | HD174: 0 | HE174: 0 | HF174: 0 | HG174: 0 | HH174: 0 | HI174: 0 | HJ174: 0 | HK174: 0 | HL174: 0 | HM174: 0 | HN174: 0 | HO174: 0 | HP174: 0 | HQ174: 0 | HR174: 0 | HS174: 0 | HT174: 0 | HU174: 0 | HV174: 0 | HW174: 0
A175: 10 | B175: 0 | C175: 0 | D175: 0 | E175: 0 | F175: 0 | G175: 0 | H175: 0 | I175: 0 | J175: 0 | K175: 0 | L175: 0 | M175: 0 | N175: 0 | O175: 0 | P175: 0 | Q175: 0 | R175: 0 | S175: 0 | T175: 0 | U175: 0 | V175: 0 | W175: 0 | X175: 0 | Y175: 0 | Z175: 0 | AA175: 0 | AB175: 0 | AC175: 0 | AD175: 0 | AE175: 0 | AF175: 0 | AG175: 0 | AH175: 0 | AI175: 0 | AJ175: 0 | AK175: 0 | AL175: 0 | AM175: 0 | AN175: 0 | AO175: 0 | AP175: 0 | AQ175: 0 | AR175: 0 | AS175: 0 | AT175: 0 | AU175: 0 | AV175: 0 | AW175: 0 | AX175: 0 | AY175: 0 | AZ175: 0 | BA175: 0 | BB175: 0 | BC175: 0 | BD175: 0 | BE175: 0 | BF175: 0 | BG175: 0 | BH175: 0 | BI175: 0 | BJ175: 0 | BK175: 0 | BL175: 0 | BM175: 0 | BN175: 0 | BO175: 0 | BP175: 0 | BQ175: 0 | BR175: 0 | BS175: 0 | BT175: 0 | BU175: 0 | BV175: 0 | BW175: 0 | BX175: 0 | BY175: 0 | BZ175: 0 | CA175: 0 | CB175: 0 | CC175: 0 | CD175: 0 | CE175: 0 | CF175: 0 | CG175: 0 | CH175: 0 | CI175: 0 | CJ175: 0 | CK175: 0 | CL175: 0 | CM175: 0 | CN175: 0 | CO175: 0 | CP175: 0 | CQ175: 0 | CR175: 0 | CS175: 0 | CT175: 0 | CU175: 0 | CV175: 0 | CW175: 0 | CX175: 0 | CY175: 0 | CZ175: 0 | DA175: 0 | DB175: 0 | DC175: 0 | DD175: 0 | DE175: 0 | DF175: 0 | DG175: 0 | DH175: 0 | DI175: 0 | DJ175: 0 | DK175: 0 | DL175: 0 | DM175: 0 | DN175: 0 | DO175: 0 | DP175: 0 | DQ175: 0 | DR175: 0 | DS175: 0 | DT175: 0 | DU175: 0 | DV175: 0 | DW175: 0 | DX175: 0 | DY175: 0 | DZ175: 0 | EA175: 0 | EB175: 0 | EC175: 0 | ED175: 0 | EE175: 0 | EF175: 0 | EG175: 0 | EH175: 0 | EI175: 0 | EJ175: 0 | EK175: 0 | EL175: 0 | EM175: 0 | EN175: 0 | EO175: 0 | EP175: 0 | EQ175: 0 | ER175: 0 | ES175: 0 | ET175: 0 | EU175: 0 | EV175: 0 | EW175: 0 | EX175: 0 | EY175: 0 | EZ175: 0 | FA175: 0 | FB175: 0 | FC175: 0 | FD175: 0 | FE175: 0 | FF175: 0 | FG175: 0 | FH175: 0 | FI175: 0 | FJ175: 0 | FK175: 0 | FL175: 0 | FM175: 0 | FN175: 0 | FO175: 0 | FP175: 0 | FQ175: 0 | FR175: 0 | FS175: 0 | FT175: 0 | FU175: 0 | FV175: 0 | FW175: 0 | FX175: 0 | FY175: 0 | FZ175: 0 | GA175: 0 | GB175: 0 | GC175: 0 | GD175: 0 | GE175: 0 | GF175: 0 | GG175: 0 | GH175: 0 | GI175: 0 | GJ175: 0 | GK175: 0 | GL175: 0 | GM175: 0 | GN175: 0 | GO175: 0 | GP175: 0 | GQ175: 0 | GR175: 0 | GS175: 0 | GT175: 0 | GU175: 0 | GV175: 0 | GW175: 0 | GX175: 0 | GY175: 0 | GZ175: 0 | HA175: 0 | HB175: 0 | HC175: 0 | HD175: 0 | HE175: 0 | HF175: 0 | HG175: 0 | HH175: 0 | HI175: 0 | HJ175: 0 | HK175: 0 | HL175: 0 | HM175: 0 | HN175: 0 | HO175: 0 | HP175: 0 | HQ175: 0 | HR175: 0 | HS175: 0 | HT175: 0 | HU175: 0 | HV175: 0 | HW175: 0
A176: 9 | B176: 0 | C176: 0 | D176: 0 | E176: 0 | F176: 0 | G176: 0 | H176: 0 | I176: 0 | J176: 0 | K176: 0 | L176: 0 | M176: 0 | N176: 0 | O176: 0 | P176: 0 | Q176: 0 | R176: 0 | S176: 0 | T176: 0 | U176: 0 | V176: 0 | W176: 0 | X176: 0 | Y176: 0 | Z176: 0 | AA176: 0 | AB176: 0 | AC176: 0 | AD176: 0 | AE176: 0 | AF176: 0 | AG176: 0 | AH176: 0 | AI176: 0 | AJ176: 0 | AK176: 0 | AL176: 0 | AM176: 0 | AN176: 0 | AO176: 0 | AP176: 0 | AQ176: 0 | AR176: 0 | AS176: 0 | AT176: 0 | AU176: 0 | AV176: 0 | AW176: 0 | AX176: 0 | AY176: 0 | AZ176: 0 | BA176: 0 | BB176: 0 | BC176: 0 | BD176: 0 | BE176: 0 | BF176: 0 | BG176: 0 | BH176: 0 | BI176: 0 | BJ176: 0 | BK176: 0 | BL176: 0 | BM176: 0 | BN176: 0 | BO176: 0 | BP176: 0 | BQ176: 0 | BR176: 0 | BS176: 0 | BT176: 0 | BU176: 0 | BV176: 0 | BW176: 0 | BX176: 0 | BY176: 0 | BZ176: 0 | CA176: 0 | CB176: 0 | CC176: 0 | CD176: 0 | CE176: 0 | CF176: 0 | CG176: 0 | CH176: 0 | CI176: 0 | CJ176: 0 | CK176: 0 | CL176: 0 | CM176: 0 | CN176: 0 | CO176: 0 | CP176: 0 | CQ176: 0 | CR176: 0 | CS176: 0 | CT176: 0 | CU176: 0 | CV176: 0 | CW176: 0 | CX176: 0 | CY176: 0 | CZ176: 0 | DA176: 0 | DB176: 0 | DC176: 0 | DD176: 0 | DE176: 0 | DF176: 0 | DG176: 0 | DH176: 0 | DI176: 0 | DJ176: 0 | DK176: 0 | DL176: 0 | DM176: 0 | DN176: 0 | DO176: 0 | DP176: 0 | DQ176: 0 | DR176: 0 | DS176: 0 | DT176: 0 | DU176: 0 | DV176: 0 | DW176: 0 | DX176: 0 | DY176: 0 | DZ176: 0 | EA176: 0 | EB176: 0 | EC176: 0 | ED176: 0 | EE176: 0 | EF176: 0 | EG176: 0 | EH176: 0 | EI176: 0 | EJ176: 0 | EK176: 0 | EL176: 0 | EM176: 0 | EN176: 0 | EO176: 0 | EP176: 0 | EQ176: 0 | ER176: 0 | ES176: 0 | ET176: 0 | EU176: 0 | EV176: 0 | EW176: 0 | EX176: 0 | EY176: 0 | EZ176: 0 | FA176: 0 | FB176: 0 | FC176: 0 | FD176: 0 | FE176: 0 | FF176: 0 | FG176: 0 | FH176: 0 | FI176: 0 | FJ176: 0 | FK176: 0 | FL176: 0 | FM176: 0 | FN176: 0 | FO176: 0 | FP176: 0 | FQ176: 0 | FR176: 0 | FS176: 0 | FT176: 0 | FU176: 0 | FV176: 0 | FW176: 0 | FX176: 0 | FY176: 0 | FZ176: 0 | GA176: 0 | GB176: 0 | GC176: 0 | GD176: 0 | GE176: 0 | GF176: 0 | GG176: 0 | GH176: 0 | GI176: 0 | GJ176: 0 | GK176: 0 | GL176: 0 | GM176: 0 | GN176: 0 | GO176: 0 | GP176: 0 | GQ176: 0 | GR176: 0 | GS176: 0 | GT176: 0 | GU176: 0 | GV176: 0 | GW176: 0 | GX176: 0 | GY176: 0 | GZ176: 0 | HA176: 0 | HB176: 0 | HC176: 0 | HD176: 0 | HE176: 0 | HF176: 0 | HG176: 0 | HH176: 0 | HI176: 0 | HJ176: 0 | HK176: 0 | HL176: 0 | HM176: 0 | HN176: 0 | HO176: 0 | HP176: 0 | HQ176: 0 | HR176: 0 | HS176: 0 | HT176: 0 | HU176: 0 | HV176: 0 | HW176: 0
A177: 8 | B177: 0 | C177: 0 | D177: 0 | E177: 0 | F177: 0 | G177: 0 | H177: 0 | I177: 0 | J177: 0 | K177: 0 | L177: 0 | M177: 0 | N177: 0 | O177: 0 | P177: 0 | Q177: 0 | R177: 0 | S177: 0 | T177: 0 | U177: 0 | V177: 0 | W177: 0 | X177: 0 | Y177: 0 | Z177: 0 | AA177: 0 | AB177: 0 | AC177: 0 | AD177: 0 | AE177: 0 | AF177: 0 | AG177: 0 | AH177: 0 | AI177: 0 | AJ177: 0 | AK177: 0 | AL177: 0 | AM177: 0 | AN177: 0 | AO177: 0 | AP177: 0 | AQ177: 0 | AR177: 0 | AS177: 0 | AT177: 0 | AU177: 0 | AV177: 0 | AW177: 0 | AX177: 0 | AY177: 0 | AZ177: 0 | BA177: 0 | BB177: 0 | BC177: 0 | BD177: 0 | BE177: 0 | BF177: 0 | BG177: 0 | BH177: 0 | BI177: 0 | BJ177: 0 | BK177: 0 | BL177: 0 | BM177: 0 | BN177: 0 | BO177: 0 | BP177: 0 | BQ177: 0 | BR177: 0 | BS177: 0 | BT177: 0 | BU177: 0 | BV177: 0 | BW177: 0 | BX177: 0 | BY177: 0 | BZ177: 0 | CA177: 0 | CB177: 0 | CC177: 0 | CD177: 0 | CE177: 0 | CF177: 0 | CG177: 0 | CH177: 0 | CI177: 0 | CJ177: 0 | CK177: 0 | CL177: 0 | CM177: 0 | CN177: 0 | CO177: 0 | CP177: 0 | CQ177: 0 | CR177: 0 | CS177: 0 | CT177: 0 | CU177: 0 | CV177: 0 | CW177: 0 | CX177: 0 | CY177: 0 | CZ177: 0 | DA177: 0 | DB177: 0 | DC177: 0 | DD177: 0 | DE177: 0 | DF177: 0 | DG177: 0 | DH177: 0 | DI177: 0 | DJ177: 0 | DK177: 0 | DL177: 0 | DM177: 0 | DN177: 0 | DO177: 0 | DP177: 0 | DQ177: 0 | DR177: 0 | DS177: 0 | DT177: 0 | DU177: 0 | DV177: 0 | DW177: 0 | DX177: 0 | DY177: 0 | DZ177: 0 | EA177: 0 | EB177: 0 | EC177: 0 | ED177: 0 | EE177: 0 | EF177: 0 | EG177: 0 | EH177: 0 | EI177: 0 | EJ177: 0 | EK177: 0 | EL177: 0 | EM177: 0 | EN177: 0 | EO177: 0 | EP177: 0 | EQ177: 0 | ER177: 0 | ES177: 0 | ET177: 0 | EU177: 0 | EV177: 0 | EW177: 0 | EX177: 0 | EY177: 0 | EZ177: 0 | FA177: 0 | FB177: 0 | FC177: 0 | FD177: 0 | FE177: 0 | FF177: 0 | FG177: 0 | FH177: 0 | FI177: 0 | FJ177: 0 | FK177: 0 | FL177: 0 | FM177: 0 | FN177: 0 | FO177: 0 | FP177: 0 | FQ177: 0 | FR177: 0 | FS177: 0 | FT177: 0 | FU177: 0 | FV177: 0 | FW177: 0 | FX177: 0 | FY177: 0 | FZ177: 0 | GA177: 0 | GB177: 0 | GC177: 0 | GD177: 0 | GE177: 0 | GF177: 0 | GG177: 0 | GH177: 0 | GI177: 0 | GJ177: 0 | GK177: 0 | GL177: 0 | GM177: 0 | GN177: 0 | GO177: 0 | GP177: 0 | GQ177: 0 | GR177: 0 | GS177: 0 | GT177: 0 | GU177: 0 | GV177: 0 | GW177: 0 | GX177: 0 | GY177: 0 | GZ177: 0 | HA177: 0 | HB177: 0 | HC177: 0 | HD177: 0 | HE177: 0 | HF177: 0 | HG177: 0 | HH177: 0 | HI177: 0 | HJ177: 0 | HK177: 0 | HL177: 0 | HM177: 0 | HN177: 0 | HO177: 0 | HP177: 0 | HQ177: 0 | HR177: 0 | HS177: 0 | HT177: 0 | HU177: 0 | HV177: 0 | HW177: 0
A178: 7 | B178: 0 | C178: 0 | D178: 0 | E178: 0 | F178: 0 | G178: 0 | H178: 0 | I178: 0 | J178: 0 | K178: 0 | L178: 0 | M178: 0 | N178: 0 | O178: 0 | P178: 0 | Q178: 0 | R178: 0 | S178: 0 | T178: 0 | U178: 0 | V178: 0 | W178: 0 | X178: 0 | Y178: 0 | Z178: 0 | AA178: 0 | AB178: 0 | AC178: 0 | AD178: 0 | AE178: 0 | AF178: 0 | AG178: 0 | AH178: 0 | AI178: 0 | AJ178: 0 | AK178: 0 | AL178: 0 | AM178: 0 | AN178: 0 | AO178: 0 | AP178: 0 | AQ178: 0 | AR178: 0 | AS178: 0 | AT178: 0 | AU178: 0 | AV178: 0 | AW178: 0 | AX178: 0 | AY178: 0 | AZ178: 0 | BA178: 0 | BB178: 0 | BC178: 0 | BD178: 0 | BE178: 0 | BF178: 0 | BG178: 0 | BH178: 0 | BI178: 0 | BJ178: 0 | BK178: 0 | BL178: 0 | BM178: 0 | BN178: 0 | BO178: 0 | BP178: 0 | BQ178: 0 | BR178: 0 | BS178: 0 | BT178: 0 | BU178: 0 | BV178: 0 | BW178: 0 | BX178: 0 | BY178: 0 | BZ178: 0 | CA178: 0 | CB178: 0 | CC178: 0 | CD178: 0 | CE178: 0 | CF178: 0 | CG178: 0 | CH178: 0 | CI178: 0 | CJ178: 0 | CK178: 0 | CL178: 0 | CM178: 0 | CN178: 0 | CO178: 0 | CP178: 0 | CQ178: 0 | CR178: 0 | CS178: 0 | CT178: 0 | CU178: 0 | CV178: 0 | CW178: 0 | CX178: 0 | CY178: 0 | CZ178: 0 | DA178: 0 | DB178: 0 | DC178: 0 | DD178: 0 | DE178: 0 | DF178: 0 | DG178: 0 | DH178: 0 | DI178: 0 | DJ178: 0 | DK178: 0 | DL178: 0 | DM178: 0 | DN178: 0 | DO178: 0 | DP178: 0 | DQ178: 0 | DR178: 0 | DS178: 0 | DT178: 0 | DU178: 0 | DV178: 0 | DW178: 0 | DX178: 0 | DY178: 0 | DZ178: 0 | EA178: 0 | EB178: 0 | EC178: 0 | ED178: 0 | EE178: 0 | EF178: 0 | EG178: 0 | EH178: 0 | EI178: 0 | EJ178: 0 | EK178: 0 | EL178: 0 | EM178: 0 | EN178: 0 | EO178: 0 | EP178: 0 | EQ178: 0 | ER178: 0 | ES178: 0 | ET178: 0 | EU178: 0 | EV178: 0 | EW178: 0 | EX178: 0 | EY178: 0 | EZ178: 0 | FA178: 0 | FB178: 0 | FC178: 0 | FD178: 0 | FE178: 0 | FF178: 0 | FG178: 0 | FH178: 0 | FI178: 0 | FJ178: 0 | FK178: 0 | FL178: 0 | FM178: 0 | FN178: 0 | FO178: 0 | FP178: 0 | FQ178: 0 | FR178: 0 | FS178: 0 | FT178: 0 | FU178: 0 | FV178: 0 | FW178: 0 | FX178: 0 | FY178: 0 | FZ178: 0 | GA178: 0 | GB178: 0 | GC178: 0 | GD178: 0 | GE178: 0 | GF178: 0 | GG178: 0 | GH178: 0 | GI178: 0 | GJ178: 0 | GK178: 0 | GL178: 0 | GM178: 0 | GN178: 0 | GO178: 0 | GP178: 0 | GQ178: 0 | GR178: 0 | GS178: 0 | GT178: 0 | GU178: 0 | GV178: 0 | GW178: 0 | GX178: 0 | GY178: 0 | GZ178: 0 | HA178: 0 | HB178: 0 | HC178: 0 | HD178: 0 | HE178: 0 | HF178: 0 | HG178: 0 | HH178: 0 | HI178: 0 | HJ178: 0 | HK178: 0 | HL178: 0 | HM178: 0 | HN178: 0 | HO178: 0 | HP178: 0 | HQ178: 0 | HR178: 0 | HS178: 0 | HT178: 0 | HU178: 0 | HV178: 0 | HW178: 0
A179: Total general | B179: 0 | C179: 0 | D179: 0 | E179: 0 | F179: 0 | G179: 0 | H179: 0 | I179: 0 | J179: 0 | K179: 0 | L179: 0 | M179: 0 | N179: 0 | O179: 0 | P179: 0 | Q179: 0 | R179: 0 | S179: 0 | T179: 0 | U179: 0 | V179: 0 | W179: 0 | X179: 0 | Y179: 0 | Z179: 0 | AA179: 0 | AB179: 0 | AC179: 0 | AD179: 0 | AE179: 0 | AF179: 0 | AG179: 0 | AH179: 0 | AI179: 0 | AJ179: 0 | AK179: 0 | AL179: 0 | AM179: 0 | AN179: 0 | AO179: 0 | AP179: 0 | AQ179: 0 | AR179: 0 | AS179: 0 | AT179: 0 | AU179: 0 | AV179: 0 | AW179: 0 | AX179: 0 | AY179: 0 | AZ179: 0 | BA179: 0 | BB179: 0 | BC179: 0 | BD179: 0 | BE179: 0 | BF179: 0 | BG179: 0 | BH179: 0 | BI179: 0 | BJ179: 0 | BK179: 0 | BL179: 0 | BM179: 0 | BN179: 0 | BO179: 0 | BP179: 0 | BQ179: 0 | BR179: 0 | BS179: 0 | BT179: 0 | BU179: 0 | BV179: 0 | BW179: 0 | BX179: 0 | BY179: 0 | BZ179: 0 | CA179: 0 | CB179: 0 | CC179: 0 | CD179: 0 | CE179: 0 | CF179: 0 | CG179: 0 | CH179: 0 | CI179: 0 | CJ179: 0 | CK179: 0 | CL179: 0 | CM179: 0 | CN179: 0 | CO179: 0 | CP179: 0 | CQ179: 0 | CR179: 0 | CS179: 0 | CT179: 0 | CU179: 0 | CV179: 0 | CW179: 0 | CX179: 0 | CY179: 0 | CZ179: 0 | DA179: 0 | DB179: 0 | DC179: 0 | DD179: 0 | DE179: 0 | DF179: 0 | DG179: 0 | DH179: 0 | DI179: 0 | DJ179: 0 | DK179: 0 | DL179: 0 | DM179: 0 | DN179: 0 | DO179: 0 | DP179: 0 | DQ179: 0 | DR179: 0 | DS179: 0 | DT179: 0 | DU179: 0 | DV179: 0 | DW179: 0 | DX179: 0 | DY179: 0 | DZ179: 0 | EA179: 0 | EB179: 0 | EC179: 0 | ED179: 0 | EE179: 0 | EF179: 0 | EG179: 0 | EH179: 0 | EI179: 0 | EJ179: 0 | EK179: 0 | EL179: 0 | EM179: 0 | EN179: 0 | EO179: 0 | EP179: 0 | EQ179: 0 | ER179: 0 | ES179: 0 | ET179: 0 | EU179: 0 | EV179: 0 | EW179: 0 | EX179: 0 | EY179: 0 | EZ179: 0 | FA179: 0 | FB179: 0 | FC179: 0 | FD179: 0 | FE179: 0 | FF179: 0 | FG179: 0 | FH179: 0 | FI179: 0 | FJ179: 0 | FK179: 0 | FL179: 0 | FM179: 0 | FN179: 0 | FO179: 0 | FP179: 0 | FQ179: 0 | FR179: 0 | FS179: 0 | FT179: 0 | FU179: 0 | FV179: 0 | FW179: 0 | FX179: 0 | FY179: 0 | FZ179: 0 | GA179: 0 | GB179: 0 | GC179: 0 | GD179: 0 | GE179: 0 | GF179: 0 | GG179: 0 | GH179: 0 | GI179: 0 | GJ179: 0 | GK179: 0 | GL179: 0 | GM179: 0 | GN179: 0 | GO179: 0 | GP179: 0 | GQ179: 0 | GR179: 0 | GS179: 0 | GT179: 0 | GU179: 0 | GV179: 0 | GW179: 0 | GX179: 0 | GY179: 0 | GZ179: 0 | HA179: 0 | HB179: 0 | HC179: 0 | HD179: 0 | HE179: 0 | HF179: 0 | HG179: 0 | HH179: 0 | HI179: 0 | HJ179: 0 | HK179: 0 | HL179: 0 | HM179: 0 | HN179: 0 | HO179: 0 | HP179: 0 | HQ179: 0 | HR179: 0 | HS179: 0 | HT179: 0 | HU179: 0 | HV179: 0 | HW179: 0
A181: TOTAL
A182: =COUNT(A168:A179) -> 11 | B182: =SUM(B168:B179) -> 0 | C182: =SUM(C168:C179) -> 0 | D182: 0 | E182: 0 | F182: 0 | G182: 0 | H182: 0 | I182: 0 | J182: 0 | K182: 0 | L182: 0 | M182: 0 | N182: 0 | O182: 0 | P182: 0 | Q182: 0 | R182: 0 | S182: 0 | T182: 0 | U182: 0 | V182: 0 | W182: 0 | X182: 0 | Y182: 0 | Z182: 0 | AA182: 0 | AB182: 0 | AC182: 0 | AD182: 0 | AE182: 0 | AF182: 0 | AG182: 0 | AH182: 0 | AI182: 0 | AJ182: 0 | AK182: 0 | AL182: 0 | AM182: 0 | AN182: 0 | AO182: 0 | AP182: 0 | AQ182: 0 | AR182: 0 | AS182: 0 | AT182: 0 | AU182: 0 | AV182: 0 | AW182: 0 | AX182: 0 | AY182: 0 | AZ182: 0 | BA182: 0 | BB182: 0 | BC182: 0 | BD182: 0 | BE182: 0 | BF182: 0 | BG182: 0 | BH182: 0 | BI182: 0 | BJ182: 0 | BK182: 0 | BL182: 0 | BM182: 0 | BN182: 0 | BO182: =SUM(BO168:BO179) -> 0 | BP182: 0 | BQ182: 0 | BR182: 0 | BS182: 0 | BT182: 0 | BU182: 0 | BV182: 0 | BW182: 0 | BX182: 0 | BY182: 0 | BZ182: 0 | CA182: 0 | CB182: 0 | CC182: 0 | CD182: 0 | CE182: 0 | CF182: 0 | CG182: 0 | CH182: 0 | CI182: 0 | CJ182: 0 | CK182: 0 | CL182: 0 | CM182: 0 | CN182: 0 | CO182: 0 | CP182: 0 | CQ182: 0 | CR182: 0 | CS182: 0 | CT182: 0 | CU182: 0 | CV182: 0 | CW182: 0 | CX182: 0 | CY182: 0 | CZ182: 0 | DA182: 0 | DB182: 0 | DC182: 0 | DD182: 0 | DE182: 0 | DF182: 0 | DG182: 0 | DH182: 0 | DI182: 0 | DJ182: 0 | DK182: 0 | DL182: 0 | DM182: 0 | DN182: 0 | DO182: 0 | DP182: 0 | DQ182: 0 | DR182: 0 | DS182: 0 | DT182: 0 | DU182: 0 | DV182: 0 | DW182: 0 | DX182: 0 | DY182: 0 | DZ182: 0 | EA182: =SUM(EA168:EA179) -> 0 | EB182: 0 | EC182: 0 | ED182: 0 | EE182: 0 | EF182: 0 | EG182: 0 | EH182: 0 | EI182: 0 | EJ182: 0 | EK182: 0 | EL182: 0 | EM182: 0 | EN182: 0 | EO182: 0 | EP182: 0 | EQ182: 0 | ER182: 0 | ES182: 0 | ET182: 0 | EU182: 0 | EV182: 0 | EW182: 0 | EX182: 0 | EY182: 0 | EZ182: 0 | FA182: 0 | FB182: 0 | FC182: 0 | FD182: 0 | FE182: 0 | FF182: 0 | FG182: 0 | FH182: 0 | FI182: 0 | FJ182: 0 | FK182: 0 | FL182: 0 | FM182: 0 | FN182: 0 | FO182: 0 | FP182: 0 | FQ182: 0 | FR182: 0 | FS182: 0 | FT182: 0 | FU182: 0 | FV182: 0 | FW182: 0 | FX182: 0 | FY182: 0 | FZ182: 0 | GA182: 0 | GB182: 0 | GC182: 0 | GD182: 0 | GE182: 0 | GF182: 0 | GG182: 0 | GH182: 0 | GI182: 0 | GJ182: 0 | GK182: 0 | GL182: 0 | GM182: =SUM(GM168:GM179) -> 0 | GN182: 0 | GO182: 0 | GP182: 0 | GQ182: 0 | GR182: 0 | GS182: 0 | GT182: 0 | GU182: 0 | GV182: 0 | GW182: 0 | GX182: 0 | GY182: 0 | GZ182: 0 | HA182: 0 | HB182: 0 | HC182: 0 | HD182: 0 | HE182: 0 | HF182: 0 | HG182: 0 | HH182: 0 | HI182: 0 | HJ182: 0 | HK182: 0 | HL182: 0 | HM182: 0 | HN182: 0 | HO182: 0 | HP182: 0 | HQ182: 0 | HR182: 0 | HS182: 0 | HT182: 0 | HU182: 0 | HV182: 0 | HW182: 0
A183: =CONCATENATE(A168,"-",A169,"-",A170,"-",A171,"-",A172,"-",A173,"-",A174,"-",A175,"-",A176,"-",A177,"-",A178,"-",A179) -> 1-5-2-3-4-6-11-10-9-8-7-Total general
B184: BAS001 | C184: BAS002 | D184: BAS003 | E184: BAS004 | F184: BAS005 | G184: BAS006 | H184: BAS007 | I184: BAS008 | J184: BAS009 | K184: BAS010 | L184: BAS011 | M184: BAS012 | N184: BAS013 | O184: BAS014 | P184: BAS015 | Q184: BAS016 | R184: BAS017 | S184: BAS018 | T184: BAS019 | U184: BAS020 | V184: BAS021 | W184: BAS022 | X184: BAS023 | Y184: BAS024 | Z184: BAS025 | AA184: BAS026 | AB184: BAS027 | AC184: BAS028 | AD184: BAS029 | AE184: BAS030 | AF184: BAS031 | AG184: BAS032 | AH184: BAS033 | AI184: BAS034 | AJ184: BAS035 | AK184: BAS036 | AL184: BAS037 | AM184: BAS038 | AN184: BAS039 | AO184: BAS040 | AP184: BAS041 | AQ184: BAS042 | AR184: BAS043 | AS184: BAS044 | AT184: BAS045 | AU184: BAS046 | AV184: BAS047 | AW184: BAS048 | AX184: BAS049 | AY184: BAS050 | AZ184: BAS051 | BA184: BAS052 | BB184: BAS053 | BC184: BAS054 | BD184: BAS055 | BE184: BAS056 | BF184: BAS057 | BG184: BAS058 | BH184: BAS059 | BI184: BAS060 | BJ184: BAS061 | BK184: BAS062 | BL184: BAS063 | BM184: BAS064 | BN184: BAS065 | BO184: BAS066 | BP184: BAS067 | BQ184: BAS068 | BR184: BAS069 | BS184: BAS070 | BT184: BAS071 | BU184: BAS072 | BV184: BAS073 | BW184: BAS074 | BX184: BAS075 | BY184: BAS076 | BZ184: BAS077 | CA184: BAS078 | CB184: BAS079 | CC184: BAS080 | CD184: BAS081 | CE184: BAS082 | CF184: BAS083 | CG184: BAS084 | CH184: BAS085 | CI184: BAS086 | CJ184: BAS087 | CK184: BAS088 | CL184: BAS089 | CM184: BAS090 | CN184: BAS091 | CO184: BAS092 | CP184: BAS093 | CQ184: BAS094 | CR184: BAS095 | CS184: BAS096 | CT184: BAS097 | CU184: BAS098 | CV184: BAS099 | CW184: BAS100 | CX184: BAS101 | CY184: BAS102 | CZ184: BAS103 | DA184: BAS104 | DB184: BAS105 | DC184: BAS106 | DD184: BAS107 | DE184: BAS108 | DF184: BAS109 | DG184: BAS110 | DH184: BAS111 | DI184: BAS112 | DJ184: BAS113 | DK184: BAS114 | DL184: BAS115 | DM184: BAS116 | DN184: BAS117 | DO184: BAS118 | DP184: BAS119 | DQ184: BAS120 | DR184: BAS121 | DS184: BAS122 | DT184: BAS123 | DU184: BAS124 | DV184: BAS125 | DW184: BAS126 | DX184: BAS127 | DY184: BAS128 | DZ184: BAS129 | EA184: BAS130 | EB184: BAS131 | EC184: BAS132 | ED184: BAS133 | EE184: BAS134 | EF184: BAS135 | EG184: BAS136 | EH184: BAS137 | EI184: BAS138 | EJ184: BAS139 | EK184: BAS140 | EL184: BAS141 | EM184: BAS142 | EN184: BAS143 | EO184: BAS144 | EP184: BAS145 | EQ184: BAS146 | ER184: BAS147 | ES184: BAS148 | ET184: BAS149 | EU184: BAS150 | EV184: BAS151 | EW184: BAS152 | EX184: BAS153 | EY184: BAS154 | EZ184: BAS155 | FA184: BAS156 | FB184: BAS157 | FC184: BAS158 | FD184: BAS159 | FE184: BAS160 | FF184: BAS161 | FG184: BAS162 | FH184: BAS163 | FI184: BAS164 | FJ184: BAS165 | FK184: BAS166 | FL184: BAS167 | FM184: BAS168 | FN184: BAS169 | FO184: BAS170 | FP184: BAS171 | FQ184: BAS172 | FR184: BAS173 | FS184: BAS174 | FT184: BAS175 | FU184: BAS176 | FV184: BAS177 | FW184: BAS178 | FX184: BAS179 | FY184: BAS180 | FZ184: BAS181 | GA184: BAS182 | GB184: BAS183 | GC184: BAS184 | GD184: BAS185 | GE184: BAS186 | GF184: BAS187 | GG184: BAS188 | GH184: BAS189 | GI184: BAS190 | GJ184: BAS191 | GK184: BAS192 | GL184: BAS193 | GM184: BAS194 | GN184: BAS195 | GO184: BAS196 | GP184: BAS197 | GQ184: BAS198 | GR184: BAS199 | GS184: BAS200 | GT184: BAS201 | GU184: BAS202 | GV184: BAS203 | GW184: BAS204 | GX184: BAS205 | GY184: BAS206 | GZ184: BAS207 | HA184: BAS208 | HB184: BAS209 | HC184: BAS210 | HD184: BAS211 | HE184: BAS212 | HF184: BAS213 | HG184: BAS214 | HH184: BAS215 | HI184: BAS216 | HJ184: BAS217 | HK184: BAS218 | HL184: BAS219 | HM184: BAS220 | HN184: BAS221 | HO184: BAS222 | HP184: BAS223 | HQ184: BAS224 | HR184: BAS225 | HS184: BAS226 | HT184: BAS227 | HU184: BAS228 | HV184: BAS229 | HW184: BAS230
B185: =IF(B184=B167,"SI","NO") -> SI | C185: =IF(C184=C167,"SI","NO") -> SI | D185: SI | E185: SI | F185: SI | G185: SI | H185: SI | I185: SI | J185: SI | K185: SI | L185: SI | M185: SI | N185: SI | O185: SI | P185: SI | Q185: SI | R185: SI | S185: SI | T185: SI | U185: SI | V185: SI | W185: SI | X185: SI | Y185: SI | Z185: SI | AA185: SI | AB185: SI | AC185: SI | AD185: SI | AE185: SI | AF185: SI | AG185: SI | AH185: SI | AI185: SI | AJ185: SI | AK185: SI | AL185: SI | AM185: SI | AN185: SI | AO185: SI | AP185: SI | AQ185: SI | AR185: SI | AS185: SI | AT185: SI | AU185: SI | AV185: SI | AW185: SI | AX185: SI | AY185: SI | AZ185: SI | BA185: SI | BB185: SI | BC185: SI | BD185: SI | BE185: SI | BF185: SI | BG185: SI | BH185: SI | BI185: SI | BJ185: SI | BK185: SI | BL185: SI | BM185: SI | BN185: SI | BO185: =IF(BO184=BO167,"SI","NO") -> SI | BP185: SI | BQ185: SI | BR185: SI | BS185: SI | BT185: SI | BU185: SI | BV185: SI | BW185: SI | BX185: SI | BY185: SI | BZ185: SI | CA185: SI | CB185: SI | CC185: SI | CD185: SI | CE185: SI | CF185: SI | CG185: SI | CH185: SI | CI185: SI | CJ185: SI | CK185: SI | CL185: SI | CM185: SI | CN185: SI | CO185: SI | CP185: SI | CQ185: SI | CR185: SI | CS185: SI | CT185: SI | CU185: SI | CV185: SI | CW185: SI | CX185: SI | CY185: SI | CZ185: SI | DA185: SI | DB185: SI | DC185: SI | DD185: SI | DE185: SI | DF185: SI | DG185: SI | DH185: SI | DI185: SI | DJ185: SI | DK185: SI | DL185: SI | DM185: SI | DN185: SI | DO185: SI | DP185: SI | DQ185: SI | DR185: SI | DS185: SI | DT185: SI | DU185: SI | DV185: SI | DW185: SI | DX185: SI | DY185: SI | DZ185: SI | EA185: =IF(EA184=EA167,"SI","NO") -> SI | EB185: SI | EC185: SI | ED185: SI | EE185: SI | EF185: SI | EG185: SI | EH185: SI | EI185: SI | EJ185: SI | EK185: SI | EL185: SI | EM185: SI | EN185: SI | EO185: SI | EP185: SI | EQ185: SI | ER185: SI | ES185: SI | ET185: SI | EU185: SI | EV185: SI | EW185: SI | EX185: SI | EY185: SI | EZ185: SI | FA185: SI | FB185: SI | FC185: SI | FD185: SI | FE185: SI | FF185: SI | FG185: SI | FH185: SI | FI185: SI | FJ185: SI | FK185: SI | FL185: SI | FM185: SI | FN185: SI | FO185: SI | FP185: SI | FQ185: SI | FR185: SI | FS185: SI | FT185: SI | FU185: SI | FV185: SI | FW185: SI | FX185: SI | FY185: SI | FZ185: SI | GA185: SI | GB185: SI | GC185: SI | GD185: SI | GE185: SI | GF185: SI | GG185: SI | GH185: SI | GI185: SI | GJ185: SI | GK185: SI | GL185: SI | GM185: =IF(GM184=GM167,"SI","NO") -> SI | GN185: SI | GO185: SI | GP185: SI | GQ185: SI | GR185: SI | GS185: SI | GT185: SI | GU185: SI | GV185: SI | GW185: SI | GX185: SI | GY185: SI | GZ185: SI | HA185: SI | HB185: SI | HC185: SI | HD185: SI | HE185: SI | HF185: SI | HG185: SI | HH185: SI | HI185: SI | HJ185: SI | HK185: SI | HL185: SI | HM185: SI | HN185: SI | HO185: SI | HP185: SI | HQ185: SI | HR185: SI | HS185: SI | HT185: SI | HU185: SI | HV185: SI | HW185: SI
A190: AB202007
A191: anno | B191: 2024
A192: cod_red | B192: 03
A193: codmic | B193: (Todas)
A194: cod_prov | B194: (Todas)
A195: coddist | B195: (Todas)
A196: cod_estab | B196: (Todas)
A197: cod_eje | B197: (Todas)
B199: Valores
A200: Etiquetas de fila | B200: BAS001 | C200: BAS002 | D200: BAS003 | E200: BAS004 | F200: BAS005 | G200: BAS006 | H200: BAS007 | I200: BAS008 | J200: BAS009 | K200: BAS010 | L200: BAS011 | M200: BAS012 | N200: BAS013 | O200: BAS014 | P200: BAS015 | Q200: BAS016 | R200: BAS017 | S200: BAS018 | T200: BAS019 | U200: BAS020 | V200: BAS021 | W200: BAS022 | X200: BAS023 | Y200: BAS024 | Z200: BAS025 | AA200: BAS026 | AB200: BAS027 | AC200: BAS028 | AD200: BAS029 | AE200: BAS030 | AF200: BAS031 | AG200: BAS032 | AH200: BAS033 | AI200: BAS034 | AJ200: BAS035 | AK200: BAS036 | AL200: BAS037 | AM200: BAS038 | AN200: BAS039 | AO200: BAS040 | AP200: BAS041 | AQ200: BAS042 | AR200: BAS043 | AS200: BAS044 | AT200: BAS045 | AU200: BAS046 | AV200: BAS047 | AW200: BAS048 | AX200: BAS049 | AY200: BAS050 | AZ200: BAS051 | BA200: BAS052 | BB200: BAS053 | BC200: BAS054 | BD200: BAS055 | BE200: BAS056 | BF200: BAS057 | BG200: BAS058 | BH200: BAS059 | BI200: BAS060 | BJ200: BAS061 | BK200: BAS062 | BL200: BAS063 | BM200: BAS064 | BN200: BAS065 | BO200: BAS066 | BP200: BAS067 | BQ200: BAS068 | BR200: BAS069 | BS200: BAS070 | BT200: BAS071 | BU200: BAS072 | BV200: BAS073 | BW200: BAS074 | BX200: BAS075 | BY200: BAS076 | BZ200: BAS077 | CA200: BAS078 | CB200: BAS079 | CC200: BAS080 | CD200: BAS081 | CE200: BAS082 | CF200: BAS083 | CG200: BAS084 | CH200: BAS085 | CI200: BAS086 | CJ200: BAS087 | CK200: BAS088 | CL200: BAS089 | CM200: BAS090 | CN200: BAS091 | CO200: BAS092 | CP200: BAS093 | CQ200: BAS094 | CR200: BAS095 | CS200: BAS096 | CT200: BAS097 | CU200: BAS098 | CV200: BAS099 | CW200: BAS100 | CX200: BAS101 | CY200: BAS102 | CZ200: BAS103 | DA200: BAS104 | DB200: BAS105 | DC200: BAS106 | DD200: BAS107 | DE200: BAS108 | DF200: BAS109 | DG200: BAS110 | DH200: BAS111 | DI200: BAS112 | DJ200: BAS113 | DK200: BAS114 | DL200: BAS115 | DM200: BAS116 | DN200: BAS117 | DO200: BAS118 | DP200: BAS119 | DQ200: BAS120 | DR200: BAS121 | DS200: BAS122 | DT200: BAS123 | DU200: BAS124 | DV200: BAS125 | DW200: BAS126 | DX200: BAS127 | DY200: BAS128 | DZ200: BAS129 | EA200: BAS130 | EB200: BAS131 | EC200: BAS132 | ED200: BAS133 | EE200: BAS134 | EF200: BAS135 | EG200: BAS136 | EH200: BAS137 | EI200: BAS138 | EJ200: BAS139 | EK200: BAS140 | EL200: BAS141 | EM200: BAS142 | EN200: BAS143 | EO200: BAS144 | EP200: BAS145 | EQ200: BAS146 | ER200: BAS147 | ES200: BAS148 | ET200: BAS149 | EU200: BAS150 | EV200: BAS151 | EW200: BAS152 | EX200: BAS153 | EY200: BAS154 | EZ200: BAS155 | FA200: BAS156 | FB200: BAS157 | FC200: BAS158 | FD200: BAS159 | FE200: BAS160 | FF200: BAS161 | FG200: BAS162 | FH200: BAS163 | FI200: BAS164 | FJ200: BAS165 | FK200: BAS166 | FL200: BAS167 | FM200: BAS168 | FN200: BAS169 | FO200: BAS170 | FP200: BAS171 | FQ200: BAS172 | FR200: BAS173 | FS200: BAS174 | FT200: BAS175 | FU200: BAS176 | FV200: BAS177 | FW200: BAS178 | FX200: BAS179 | FY200: BAS180 | FZ200: BAS181 | GA200: BAS182 | GB200: BAS183 | GC200: BAS184 | GD200: BAS185 | GE200: BAS186 | GF200: BAS187 | GG200: BAS188 | GH200: BAS189 | GI200: BAS190 | GJ200: BAS191 | GK200: BAS192 | GL200: BAS193 | GM200: BAS194 | GN200: BAS195 | GO200: BAS196 | GP200: BAS197 | GQ200: BAS198 | GR200: BAS199 | GS200: BAS200 | GT200: BAS201 | GU200: BAS202 | GV200: BAS203 | GW200: BAS204 | GX200: BAS205 | GY200: BAS206 | GZ200: BAS207 | HA200: BAS208 | HB200: BAS209 | HC200: BAS210 | HD200: BAS211 | HE200: BAS212 | HF200: BAS213 | HG200: BAS214 | HH200: BAS215 | HI200: BAS216 | HJ200: BAS217 | HK200: BAS218 | HL200: BAS219 | HM200: BAS220 | HN200: BAS221 | HO200: BAS222 | HP200: BAS223 | HQ200: BAS224 | HR200: BAS225 | HS200: BAS226 | HT200: BAS227 | HU200: BAS228 | HV200: BAS229 | HW200: BAS230 | HX200: BAS231 | HY200: BAS232 | HZ200: BAS233 | IA200: BAS234 | IB200: BAS235
A201: 1 | B201: 0 | C201: 0 | D201: 0 | E201: 0 | F201: 0 | G201: 0 | H201: 0 | I201: 0 | J201: 0 | K201: 0 | L201: 0 | M201: 0 | N201: 0 | O201: 0 | P201: 0 | Q201: 0 | R201: 0 | S201: 0 | T201: 0 | U201: 0 | V201: 0 | W201: 0 | X201: 0 | Y201: 0 | Z201: 0 | AA201: 0 | AB201: 0 | AC201: 0 | AD201: 0 | AE201: 0 | AF201: 0 | AG201: 0 | AH201: 0 | AI201: 0 | AJ201: 0 | AK201: 0 | AL201: 0 | AM201: 0 | AN201: 0 | AO201: 0 | AP201: 0 | AQ201: 0 | AR201: 0 | AS201: 0 | AT201: 0 | AU201: 0 | AV201: 0 | AW201: 0 | AX201: 0 | AY201: 0 | AZ201: 0 | BA201: 0 | BB201: 0 | BC201: 0 | BD201: 0 | BE201: 0 | BF201: 0 | BG201: 0 | BH201: 0 | BI201: 0 | BJ201: 0 | BK201: 0 | BL201: 0 | BM201: 0 | BN201: 0 | BO201: 0 | BP201: 0 | BQ201: 0 | BR201: 0 | BS201: 0 | BT201: 0 | BU201: 0 | BV201: 0 | BW201: 0 | BX201: 0 | BY201: 0 | BZ201: 0 | CA201: 0 | CB201: 0 | CC201: 0 | CD201: 0 | CE201: 0 | CF201: 0 | CG201: 0 | CH201: 0 | CI201: 0 | CJ201: 0 | CK201: 0 | CL201: 0 | CM201: 0 | CN201: 0 | CO201: 0 | CP201: 0 | CQ201: 0 | CR201: 0 | CS201: 0 | CT201: 0 | CU201: 0 | CV201: 0 | CW201: 0 | CX201: 0 | CY201: 0 | CZ201: 0 | DA201: 0 | DB201: 0 | DC201: 0 | DD201: 0 | DE201: 0 | DF201: 0 | DG201: 0 | DH201: 0 | DI201: 0 | DJ201: 0 | DK201: 0 | DL201: 0 | DM201: 0 | DN201: 0 | DO201: 0 | DP201: 0 | DQ201: 0 | DR201: 0 | DS201: 0 | DT201: 0 | DU201: 0 | DV201: 0 | DW201: 0 | DX201: 0 | DY201: 0 | DZ201: 0 | EA201: 0 | EB201: 0 | EC201: 0 | ED201: 0 | EE201: 0 | EF201: 0 | EG201: 0 | EH201: 0 | EI201: 0 | EJ201: 0 | EK201: 0 | EL201: 0 | EM201: 0 | EN201: 0 | EO201: 0 | EP201: 0 | EQ201: 0 | ER201: 0 | ES201: 0 | ET201: 0 | EU201: 0 | EV201: 0 | EW201: 0 | EX201: 0 | EY201: 0 | EZ201: 0 | FA201: 0 | FB201: 0 | FC201: 0 | FD201: 0 | FE201: 0 | FF201: 0 | FG201: 0 | FH201: 0 | FI201: 0 | FJ201: 0 | FK201: 0 | FL201: 0 | FM201: 0 | FN201: 0 | FO201: 0 | FP201: 0 | FQ201: 0 | FR201: 0 | FS201: 0 | FT201: 0 | FU201: 0 | FV201: 0 | FW201: 0 | FX201: 0 | FY201: 0 | FZ201: 0 | GA201: 0 | GB201: 0 | GC201: 0 | GD201: 0 | GE201: 0 | GF201: 0 | GG201: 0 | GH201: 0 | GI201: 0 | GJ201: 0 | GK201: 0 | GL201: 0 | GM201: 0 | GN201: 0 | GO201: 0 | GP201: 0 | GQ201: 0 | GR201: 0 | GS201: 0 | GT201: 0 | GU201: 0 | GV201: 0 | GW201: 0 | GX201: 0 | GY201: 0 | GZ201: 0 | HA201: 0 | HB201: 0 | HC201: 0 | HD201: 0 | HE201: 0 | HF201: 0 | HG201: 0 | HH201: 0 | HI201: 0 | HJ201: 0 | HK201: 0 | HL201: 0 | HM201: 0 | HN201: 0 | HO201: 0 | HP201: 0 | HQ201: 0 | HR201: 0 | HS201: 0 | HT201: 0 | HU201: 0 | HV201: 0 | HW201: 0 | HX201: 0 | HY201: 0 | HZ201: 0 | IA201: 0 | IB201: 0
A202: 5 | B202: 0 | C202: 0 | D202: 0 | E202: 0 | F202: 0 | G202: 0 | H202: 0 | I202: 0 | J202: 0 | K202: 0 | L202: 0 | M202: 0 | N202: 0 | O202: 0 | P202: 0 | Q202: 0 | R202: 0 | S202: 0 | T202: 0 | U202: 0 | V202: 0 | W202: 0 | X202: 0 | Y202: 0 | Z202: 0 | AA202: 0 | AB202: 0 | AC202: 0 | AD202: 0 | AE202: 0 | AF202: 0 | AG202: 0 | AH202: 0 | AI202: 0 | AJ202: 0 | AK202: 0 | AL202: 0 | AM202: 0 | AN202: 0 | AO202: 0 | AP202: 0 | AQ202: 0 | AR202: 0 | AS202: 0 | AT202: 0 | AU202: 0 | AV202: 0 | AW202: 0 | AX202: 0 | AY202: 0 | AZ202: 0 | BA202: 0 | BB202: 0 | BC202: 0 | BD202: 0 | BE202: 0 | BF202: 0 | BG202: 0 | BH202: 0 | BI202: 0 | BJ202: 0 | BK202: 0 | BL202: 0 | BM202: 0 | BN202: 0 | BO202: 0 | BP202: 0 | BQ202: 0 | BR202: 0 | BS202: 0 | BT202: 0 | BU202: 0 | BV202: 0 | BW202: 0 | BX202: 0 | BY202: 0 | BZ202: 0 | CA202: 0 | CB202: 0 | CC202: 0 | CD202: 0 | CE202: 0 | CF202: 0 | CG202: 0 | CH202: 0 | CI202: 0 | CJ202: 0 | CK202: 0 | CL202: 0 | CM202: 0 | CN202: 0 | CO202: 0 | CP202: 0 | CQ202: 0 | CR202: 0 | CS202: 0 | CT202: 0 | CU202: 0 | CV202: 0 | CW202: 0 | CX202: 0 | CY202: 0 | CZ202: 0 | DA202: 0 | DB202: 0 | DC202: 0 | DD202: 0 | DE202: 0 | DF202: 0 | DG202: 0 | DH202: 0 | DI202: 0 | DJ202: 0 | DK202: 0 | DL202: 0 | DM202: 0 | DN202: 0 | DO202: 0 | DP202: 0 | DQ202: 0 | DR202: 0 | DS202: 0 | DT202: 0 | DU202: 0 | DV202: 0 | DW202: 0 | DX202: 0 | DY202: 0 | DZ202: 0 | EA202: 0 | EB202: 0 | EC202: 0 | ED202: 0 | EE202: 0 | EF202: 0 | EG202: 0 | EH202: 0 | EI202: 0 | EJ202: 0 | EK202: 0 | EL202: 0 | EM202: 0 | EN202: 0 | EO202: 0 | EP202: 0 | EQ202: 0 | ER202: 0 | ES202: 0 | ET202: 0 | EU202: 0 | EV202: 0 | EW202: 0 | EX202: 0 | EY202: 0 | EZ202: 0 | FA202: 0 | FB202: 0 | FC202: 0 | FD202: 0 | FE202: 0 | FF202: 0 | FG202: 0 | FH202: 0 | FI202: 0 | FJ202: 0 | FK202: 0 | FL202: 0 | FM202: 0 | FN202: 0 | FO202: 0 | FP202: 0 | FQ202: 0 | FR202: 0 | FS202: 0 | FT202: 0 | FU202: 0 | FV202: 0 | FW202: 0 | FX202: 0 | FY202: 0 | FZ202: 0 | GA202: 0 | GB202: 0 | GC202: 0 | GD202: 0 | GE202: 0 | GF202: 0 | GG202: 0 | GH202: 0 | GI202: 0 | GJ202: 0 | GK202: 0 | GL202: 0 | GM202: 0 | GN202: 0 | GO202: 0 | GP202: 0 | GQ202: 0 | GR202: 0 | GS202: 0 | GT202: 0 | GU202: 0 | GV202: 0 | GW202: 0 | GX202: 0 | GY202: 0 | GZ202: 0 | HA202: 0 | HB202: 0 | HC202: 0 | HD202: 0 | HE202: 0 | HF202: 0 | HG202: 0 | HH202: 0 | HI202: 0 | HJ202: 0 | HK202: 0 | HL202: 0 | HM202: 0 | HN202: 0 | HO202: 0 | HP202: 0 | HQ202: 0 | HR202: 0 | HS202: 0 | HT202: 0 | HU202: 0 | HV202: 0 | HW202: 0 | HX202: 0 | HY202: 0 | HZ202: 0 | IA202: 0 | IB202: 0
A203: 2 | B203: 0 | C203: 0 | D203: 0 | E203: 0 | F203: 0 | G203: 0 | H203: 0 | I203: 0 | J203: 0 | K203: 0 | L203: 0 | M203: 0 | N203: 0 | O203: 0 | P203: 0 | Q203: 0 | R203: 0 | S203: 0 | T203: 0 | U203: 0 | V203: 0 | W203: 0 | X203: 0 | Y203: 0 | Z203: 0 | AA203: 0 | AB203: 0 | AC203: 0 | AD203: 0 | AE203: 0 | AF203: 0 | AG203: 0 | AH203: 0 | AI203: 0 | AJ203: 0 | AK203: 0 | AL203: 0 | AM203: 0 | AN203: 0 | AO203: 0 | AP203: 0 | AQ203: 0 | AR203: 0 | AS203: 0 | AT203: 0 | AU203: 0 | AV203: 0 | AW203: 0 | AX203: 0 | AY203: 0 | AZ203: 0 | BA203: 0 | BB203: 0 | BC203: 0 | BD203: 0 | BE203: 0 | BF203: 0 | BG203: 0 | BH203: 0 | BI203: 0 | BJ203: 0 | BK203: 0 | BL203: 0 | BM203: 0 | BN203: 0 | BO203: 0 | BP203: 0 | BQ203: 0 | BR203: 0 | BS203: 0 | BT203: 0 | BU203: 0 | BV203: 0 | BW203: 0 | BX203: 0 | BY203: 0 | BZ203: 0 | CA203: 0 | CB203: 0 | CC203: 0 | CD203: 0 | CE203: 0 | CF203: 0 | CG203: 0 | CH203: 0 | CI203: 0 | CJ203: 0 | CK203: 0 | CL203: 0 | CM203: 0 | CN203: 0 | CO203: 0 | CP203: 0 | CQ203: 0 | CR203: 0 | CS203: 0 | CT203: 0 | CU203: 0 | CV203: 0 | CW203: 0 | CX203: 0 | CY203: 0 | CZ203: 0 | DA203: 0 | DB203: 0 | DC203: 0 | DD203: 0 | DE203: 0 | DF203: 0 | DG203: 0 | DH203: 0 | DI203: 0 | DJ203: 0 | DK203: 0 | DL203: 0 | DM203: 0 | DN203: 0 | DO203: 0 | DP203: 0 | DQ203: 0 | DR203: 0 | DS203: 0 | DT203: 0 | DU203: 0 | DV203: 0 | DW203: 0 | DX203: 0 | DY203: 0 | DZ203: 0 | EA203: 0 | EB203: 0 | EC203: 0 | ED203: 0 | EE203: 0 | EF203: 0 | EG203: 0 | EH203: 0 | EI203: 0 | EJ203: 0 | EK203: 0 | EL203: 0 | EM203: 0 | EN203: 0 | EO203: 0 | EP203: 0 | EQ203: 0 | ER203: 0 | ES203: 0 | ET203: 0 | EU203: 0 | EV203: 0 | EW203: 0 | EX203: 0 | EY203: 0 | EZ203: 0 | FA203: 0 | FB203: 0 | FC203: 0 | FD203: 0 | FE203: 0 | FF203: 0 | FG203: 0 | FH203: 0 | FI203: 0 | FJ203: 0 | FK203: 0 | FL203: 0 | FM203: 0 | FN203: 0 | FO203: 0 | FP203: 0 | FQ203: 0 | FR203: 0 | FS203: 0 | FT203: 0 | FU203: 0 | FV203: 0 | FW203: 0 | FX203: 0 | FY203: 0 | FZ203: 0 | GA203: 0 | GB203: 0 | GC203: 0 | GD203: 0 | GE203: 0 | GF203: 0 | GG203: 0 | GH203: 0 | GI203: 0 | GJ203: 0 | GK203: 0 | GL203: 0 | GM203: 0 | GN203: 0 | GO203: 0 | GP203: 0 | GQ203: 0 | GR203: 0 | GS203: 0 | GT203: 0 | GU203: 0 | GV203: 0 | GW203: 0 | GX203: 0 | GY203: 0 | GZ203: 0 | HA203: 0 | HB203: 0 | HC203: 0 | HD203: 0 | HE203: 0 | HF203: 0 | HG203: 0 | HH203: 0 | HI203: 0 | HJ203: 0 | HK203: 0 | HL203: 0 | HM203: 0 | HN203: 0 | HO203: 0 | HP203: 0 | HQ203: 0 | HR203: 0 | HS203: 0 | HT203: 0 | HU203: 0 | HV203: 0 | HW203: 0 | HX203: 0 | HY203: 0 | HZ203: 0 | IA203: 0 | IB203: 0
A204: 3 | B204: 0 | C204: 0 | D204: 0 | E204: 0 | F204: 0 | G204: 0 | H204: 0 | I204: 0 | J204: 0 | K204: 0 | L204: 0 | M204: 0 | N204: 0 | O204: 0 | P204: 0 | Q204: 0 | R204: 0 | S204: 0 | T204: 0 | U204: 0 | V204: 0 | W204: 0 | X204: 0 | Y204: 0 | Z204: 0 | AA204: 0 | AB204: 0 | AC204: 0 | AD204: 0 | AE204: 0 | AF204: 0 | AG204: 0 | AH204: 0 | AI204: 0 | AJ204: 0 | AK204: 0 | AL204: 0 | AM204: 0 | AN204: 0 | AO204: 0 | AP204: 0 | AQ204: 0 | AR204: 0 | AS204: 0 | AT204: 0 | AU204: 0 | AV204: 0 | AW204: 0 | AX204: 0 | AY204: 0 | AZ204: 0 | BA204: 0 | BB204: 0 | BC204: 0 | BD204: 0 | BE204: 0 | BF204: 0 | BG204: 0 | BH204: 0 | BI204: 0 | BJ204: 0 | BK204: 0 | BL204: 0 | BM204: 0 | BN204: 0 | BO204: 0 | BP204: 0 | BQ204: 0 | BR204: 0 | BS204: 0 | BT204: 0 | BU204: 0 | BV204: 0 | BW204: 0 | BX204: 0 | BY204: 0 | BZ204: 0 | CA204: 0 | CB204: 0 | CC204: 0 | CD204: 0 | CE204: 0 | CF204: 0 | CG204: 0 | CH204: 0 | CI204: 0 | CJ204: 0 | CK204: 0 | CL204: 0 | CM204: 0 | CN204: 0 | CO204: 0 | CP204: 0 | CQ204: 0 | CR204: 0 | CS204: 0 | CT204: 0 | CU204: 0 | CV204: 0 | CW204: 0 | CX204: 0 | CY204: 0 | CZ204: 0 | DA204: 0 | DB204: 0 | DC204: 0 | DD204: 0 | DE204: 0 | DF204: 0 | DG204: 0 | DH204: 0 | DI204: 0 | DJ204: 0 | DK204: 0 | DL204: 0 | DM204: 0 | DN204: 0 | DO204: 0 | DP204: 0 | DQ204: 0 | DR204: 0 | DS204: 0 | DT204: 0 | DU204: 0 | DV204: 0 | DW204: 0 | DX204: 0 | DY204: 0 | DZ204: 0 | EA204: 0 | EB204: 0 | EC204: 0 | ED204: 0 | EE204: 0 | EF204: 0 | EG204: 0 | EH204: 0 | EI204: 0 | EJ204: 0 | EK204: 0 | EL204: 0 | EM204: 0 | EN204: 0 | EO204: 0 | EP204: 0 | EQ204: 0 | ER204: 0 | ES204: 0 | ET204: 0 | EU204: 0 | EV204: 0 | EW204: 0 | EX204: 0 | EY204: 0 | EZ204: 0 | FA204: 0 | FB204: 0 | FC204: 0 | FD204: 0 | FE204: 0 | FF204: 0 | FG204: 0 | FH204: 0 | FI204: 0 | FJ204: 0 | FK204: 0 | FL204: 0 | FM204: 0 | FN204: 0 | FO204: 0 | FP204: 0 | FQ204: 0 | FR204: 0 | FS204: 0 | FT204: 0 | FU204: 0 | FV204: 0 | FW204: 0 | FX204: 0 | FY204: 0 | FZ204: 0 | GA204: 0 | GB204: 0 | GC204: 0 | GD204: 0 | GE204: 0 | GF204: 0 | GG204: 0 | GH204: 0 | GI204: 0 | GJ204: 0 | GK204: 0 | GL204: 0 | GM204: 0 | GN204: 0 | GO204: 0 | GP204: 0 | GQ204: 0 | GR204: 0 | GS204: 0 | GT204: 0 | GU204: 0 | GV204: 0 | GW204: 0 | GX204: 0 | GY204: 0 | GZ204: 0 | HA204: 0 | HB204: 0 | HC204: 0 | HD204: 0 | HE204: 0 | HF204: 0 | HG204: 0 | HH204: 0 | HI204: 0 | HJ204: 0 | HK204: 0 | HL204: 0 | HM204: 0 | HN204: 0 | HO204: 0 | HP204: 0 | HQ204: 0 | HR204: 0 | HS204: 0 | HT204: 0 | HU204: 0 | HV204: 0 | HW204: 0 | HX204: 0 | HY204: 0 | HZ204: 0 | IA204: 0 | IB204: 0
A205: 4 | B205: 0 | C205: 0 | D205: 0 | E205: 0 | F205: 0 | G205: 0 | H205: 0 | I205: 0 | J205: 0 | K205: 0 | L205: 0 | M205: 0 | N205: 0 | O205: 0 | P205: 0 | Q205: 0 | R205: 0 | S205: 0 | T205: 0 | U205: 0 | V205: 0 | W205: 0 | X205: 0 | Y205: 0 | Z205: 0 | AA205: 0 | AB205: 0 | AC205: 0 | AD205: 0 | AE205: 0 | AF205: 0 | AG205: 0 | AH205: 0 | AI205: 0 | AJ205: 0 | AK205: 0 | AL205: 0 | AM205: 0 | AN205: 0 | AO205: 0 | AP205: 0 | AQ205: 0 | AR205: 0 | AS205: 0 | AT205: 0 | AU205: 0 | AV205: 0 | AW205: 0 | AX205: 0 | AY205: 0 | AZ205: 0 | BA205: 0 | BB205: 0 | BC205: 0 | BD205: 0 | BE205: 0 | BF205: 0 | BG205: 0 | BH205: 0 | BI205: 0 | BJ205: 0 | BK205: 0 | BL205: 0 | BM205: 0 | BN205: 0 | BO205: 0 | BP205: 0 | BQ205: 0 | BR205: 0 | BS205: 0 | BT205: 0 | BU205: 0 | BV205: 0 | BW205: 0 | BX205: 0 | BY205: 0 | BZ205: 0 | CA205: 0 | CB205: 0 | CC205: 0 | CD205: 0 | CE205: 0 | CF205: 0 | CG205: 0 | CH205: 0 | CI205: 0 | CJ205: 0 | CK205: 0 | CL205: 0 | CM205: 0 | CN205: 0 | CO205: 0 | CP205: 0 | CQ205: 0 | CR205: 0 | CS205: 0 | CT205: 0 | CU205: 0 | CV205: 0 | CW205: 0 | CX205: 0 | CY205: 0 | CZ205: 0 | DA205: 0 | DB205: 0 | DC205: 0 | DD205: 0 | DE205: 0 | DF205: 0 | DG205: 0 | DH205: 0 | DI205: 0 | DJ205: 0 | DK205: 0 | DL205: 0 | DM205: 0 | DN205: 0 | DO205: 0 | DP205: 0 | DQ205: 0 | DR205: 0 | DS205: 0 | DT205: 0 | DU205: 0 | DV205: 0 | DW205: 0 | DX205: 0 | DY205: 0 | DZ205: 0 | EA205: 0 | EB205: 0 | EC205: 0 | ED205: 0 | EE205: 0 | EF205: 0 | EG205: 0 | EH205: 0 | EI205: 0 | EJ205: 0 | EK205: 0 | EL205: 0 | EM205: 0 | EN205: 0 | EO205: 0 | EP205: 0 | EQ205: 0 | ER205: 0 | ES205: 0 | ET205: 0 | EU205: 0 | EV205: 0 | EW205: 0 | EX205: 0 | EY205: 0 | EZ205: 0 | FA205: 0 | FB205: 0 | FC205: 0 | FD205: 0 | FE205: 0 | FF205: 0 | FG205: 0 | FH205: 0 | FI205: 0 | FJ205: 0 | FK205: 0 | FL205: 0 | FM205: 0 | FN205: 0 | FO205: 0 | FP205: 0 | FQ205: 0 | FR205: 0 | FS205: 0 | FT205: 0 | FU205: 0 | FV205: 0 | FW205: 0 | FX205: 0 | FY205: 0 | FZ205: 0 | GA205: 0 | GB205: 0 | GC205: 0 | GD205: 0 | GE205: 0 | GF205: 0 | GG205: 0 | GH205: 0 | GI205: 0 | GJ205: 0 | GK205: 0 | GL205: 0 | GM205: 0 | GN205: 0 | GO205: 0 | GP205: 0 | GQ205: 0 | GR205: 0 | GS205: 0 | GT205: 0 | GU205: 0 | GV205: 0 | GW205: 0 | GX205: 0 | GY205: 0 | GZ205: 0 | HA205: 0 | HB205: 0 | HC205: 0 | HD205: 0 | HE205: 0 | HF205: 0 | HG205: 0 | HH205: 0 | HI205: 0 | HJ205: 0 | HK205: 0 | HL205: 0 | HM205: 0 | HN205: 0 | HO205: 0 | HP205: 0 | HQ205: 0 | HR205: 0 | HS205: 0 | HT205: 0 | HU205: 0 | HV205: 0 | HW205: 0 | HX205: 0 | HY205: 0 | HZ205: 0 | IA205: 0 | IB205: 0
A206: 6 | B206: 0 | C206: 0 | D206: 0 | E206: 0 | F206: 0 | G206: 0 | H206: 0 | I206: 0 | J206: 0 | K206: 0 | L206: 0 | M206: 0 | N206: 0 | O206: 0 | P206: 0 | Q206: 0 | R206: 0 | S206: 0 | T206: 0 | U206: 0 | V206: 0 | W206: 0 | X206: 0 | Y206: 0 | Z206: 0 | AA206: 0 | AB206: 0 | AC206: 0 | AD206: 0 | AE206: 0 | AF206: 0 | AG206: 0 | AH206: 0 | AI206: 0 | AJ206: 0 | AK206: 0 | AL206: 0 | AM206: 0 | AN206: 0 | AO206: 0 | AP206: 0 | AQ206: 0 | AR206: 0 | AS206: 0 | AT206: 0 | AU206: 0 | AV206: 0 | AW206: 0 | AX206: 0 | AY206: 0 | AZ206: 0 | BA206: 0 | BB206: 0 | BC206: 0 | BD206: 0 | BE206: 0 | BF206: 0 | BG206: 0 | BH206: 0 | BI206: 0 | BJ206: 0 | BK206: 0 | BL206: 0 | BM206: 0 | BN206: 0 | BO206: 0 | BP206: 0 | BQ206: 0 | BR206: 0 | BS206: 0 | BT206: 0 | BU206: 0 | BV206: 0 | BW206: 0 | BX206: 0 | BY206: 0 | BZ206: 0 | CA206: 0 | CB206: 0 | CC206: 0 | CD206: 0 | CE206: 0 | CF206: 0 | CG206: 0 | CH206: 0 | CI206: 0 | CJ206: 0 | CK206: 0 | CL206: 0 | CM206: 0 | CN206: 0 | CO206: 0 | CP206: 0 | CQ206: 0 | CR206: 0 | CS206: 0 | CT206: 0 | CU206: 0 | CV206: 0 | CW206: 0 | CX206: 0 | CY206: 0 | CZ206: 0 | DA206: 0 | DB206: 0 | DC206: 0 | DD206: 0 | DE206: 0 | DF206: 0 | DG206: 0 | DH206: 0 | DI206: 0 | DJ206: 0 | DK206: 0 | DL206: 0 | DM206: 0 | DN206: 0 | DO206: 0 | DP206: 0 | DQ206: 0 | DR206: 0 | DS206: 0 | DT206: 0 | DU206: 0 | DV206: 0 | DW206: 0 | DX206: 0 | DY206: 0 | DZ206: 0 | EA206: 0 | EB206: 0 | EC206: 0 | ED206: 0 | EE206: 0 | EF206: 0 | EG206: 0 | EH206: 0 | EI206: 0 | EJ206: 0 | EK206: 0 | EL206: 0 | EM206: 0 | EN206: 0 | EO206: 0 | EP206: 0 | EQ206: 0 | ER206: 0 | ES206: 0 | ET206: 0 | EU206: 0 | EV206: 0 | EW206: 0 | EX206: 0 | EY206: 0 | EZ206: 0 | FA206: 0 | FB206: 0 | FC206: 0 | FD206: 0 | FE206: 0 | FF206: 0 | FG206: 0 | FH206: 0 | FI206: 0 | FJ206: 0 | FK206: 0 | FL206: 0 | FM206: 0 | FN206: 0 | FO206: 0 | FP206: 0 | FQ206: 0 | FR206: 0 | FS206: 0 | FT206: 0 | FU206: 0 | FV206: 0 | FW206: 0 | FX206: 0 | FY206: 0 | FZ206: 0 | GA206: 0 | GB206: 0 | GC206: 0 | GD206: 0 | GE206: 0 | GF206: 0 | GG206: 0 | GH206: 0 | GI206: 0 | GJ206: 0 | GK206: 0 | GL206: 0 | GM206: 0 | GN206: 0 | GO206: 0 | GP206: 0 | GQ206: 0 | GR206: 0 | GS206: 0 | GT206: 0 | GU206: 0 | GV206: 0 | GW206: 0 | GX206: 0 | GY206: 0 | GZ206: 0 | HA206: 0 | HB206: 0 | HC206: 0 | HD206: 0 | HE206: 0 | HF206: 0 | HG206: 0 | HH206: 0 | HI206: 0 | HJ206: 0 | HK206: 0 | HL206: 0 | HM206: 0 | HN206: 0 | HO206: 0 | HP206: 0 | HQ206: 0 | HR206: 0 | HS206: 0 | HT206: 0 | HU206: 0 | HV206: 0 | HW206: 0 | HX206: 0 | HY206: 0 | HZ206: 0 | IA206: 0 | IB206: 0
A207: 11 | B207: 0 | C207: 0 | D207: 0 | E207: 0 | F207: 0 | G207: 0 | H207: 0 | I207: 0 | J207: 0 | K207: 0 | L207: 0 | M207: 0 | N207: 0 | O207: 0 | P207: 0 | Q207: 0 | R207: 0 | S207: 0 | T207: 0 | U207: 0 | V207: 0 | W207: 0 | X207: 0 | Y207: 0 | Z207: 0 | AA207: 0 | AB207: 0 | AC207: 0 | AD207: 0 | AE207: 0 | AF207: 0 | AG207: 0 | AH207: 0 | AI207: 0 | AJ207: 0 | AK207: 0 | AL207: 0 | AM207: 0 | AN207: 0 | AO207: 0 | AP207: 0 | AQ207: 0 | AR207: 0 | AS207: 0 | AT207: 0 | AU207: 0 | AV207: 0 | AW207: 0 | AX207: 0 | AY207: 0 | AZ207: 0 | BA207: 0 | BB207: 0 | BC207: 0 | BD207: 0 | BE207: 0 | BF207: 0 | BG207: 0 | BH207: 0 | BI207: 0 | BJ207: 0 | BK207: 0 | BL207: 0 | BM207: 0 | BN207: 0 | BO207: 0 | BP207: 0 | BQ207: 0 | BR207: 0 | BS207: 0 | BT207: 0 | BU207: 0 | BV207: 0 | BW207: 0 | BX207: 0 | BY207: 0 | BZ207: 0 | CA207: 0 | CB207: 0 | CC207: 0 | CD207: 0 | CE207: 0 | CF207: 0 | CG207: 0 | CH207: 0 | CI207: 0 | CJ207: 0 | CK207: 0 | CL207: 0 | CM207: 0 | CN207: 0 | CO207: 0 | CP207: 0 | CQ207: 0 | CR207: 0 | CS207: 0 | CT207: 0 | CU207: 0 | CV207: 0 | CW207: 0 | CX207: 0 | CY207: 0 | CZ207: 0 | DA207: 0 | DB207: 0 | DC207: 0 | DD207: 0 | DE207: 0 | DF207: 0 | DG207: 0 | DH207: 0 | DI207: 0 | DJ207: 0 | DK207: 0 | DL207: 0 | DM207: 0 | DN207: 0 | DO207: 0 | DP207: 0 | DQ207: 0 | DR207: 0 | DS207: 0 | DT207: 0 | DU207: 0 | DV207: 0 | DW207: 0 | DX207: 0 | DY207: 0 | DZ207: 0 | EA207: 0 | EB207: 0 | EC207: 0 | ED207: 0 | EE207: 0 | EF207: 0 | EG207: 0 | EH207: 0 | EI207: 0 | EJ207: 0 | EK207: 0 | EL207: 0 | EM207: 0 | EN207: 0 | EO207: 0 | EP207: 0 | EQ207: 0 | ER207: 0 | ES207: 0 | ET207: 0 | EU207: 0 | EV207: 0 | EW207: 0 | EX207: 0 | EY207: 0 | EZ207: 0 | FA207: 0 | FB207: 0 | FC207: 0 | FD207: 0 | FE207: 0 | FF207: 0 | FG207: 0 | FH207: 0 | FI207: 0 | FJ207: 0 | FK207: 0 | FL207: 0 | FM207: 0 | FN207: 0 | FO207: 0 | FP207: 0 | FQ207: 0 | FR207: 0 | FS207: 0 | FT207: 0 | FU207: 0 | FV207: 0 | FW207: 0 | FX207: 0 | FY207: 0 | FZ207: 0 | GA207: 0 | GB207: 0 | GC207: 0 | GD207: 0 | GE207: 0 | GF207: 0 | GG207: 0 | GH207: 0 | GI207: 0 | GJ207: 0 | GK207: 0 | GL207: 0 | GM207: 0 | GN207: 0 | GO207: 0 | GP207: 0 | GQ207: 0 | GR207: 0 | GS207: 0 | GT207: 0 | GU207: 0 | GV207: 0 | GW207: 0 | GX207: 0 | GY207: 0 | GZ207: 0 | HA207: 0 | HB207: 0 | HC207: 0 | HD207: 0 | HE207: 0 | HF207: 0 | HG207: 0 | HH207: 0 | HI207: 0 | HJ207: 0 | HK207: 0 | HL207: 0 | HM207: 0 | HN207: 0 | HO207: 0 | HP207: 0 | HQ207: 0 | HR207: 0 | HS207: 0 | HT207: 0 | HU207: 0 | HV207: 0 | HW207: 0 | HX207: 0 | HY207: 0 | HZ207: 0 | IA207: 0 | IB207: 0
A208: 10 | B208: 0 | C208: 0 | D208: 0 | E208: 0 | F208: 0 | G208: 0 | H208: 0 | I208: 0 | J208: 0 | K208: 0 | L208: 0 | M208: 0 | N208: 0 | O208: 0 | P208: 0 | Q208: 0 | R208: 0 | S208: 0 | T208: 0 | U208: 0 | V208: 0 | W208: 0 | X208: 0 | Y208: 0 | Z208: 0 | AA208: 0 | AB208: 0 | AC208: 0 | AD208: 0 | AE208: 0 | AF208: 0 | AG208: 0 | AH208: 0 | AI208: 0 | AJ208: 0 | AK208: 0 | AL208: 0 | AM208: 0 | AN208: 0 | AO208: 0 | AP208: 0 | AQ208: 0 | AR208: 0 | AS208: 0 | AT208: 0 | AU208: 0 | AV208: 0 | AW208: 0 | AX208: 0 | AY208: 0 | AZ208: 0 | BA208: 0 | BB208: 0 | BC208: 0 | BD208: 0 | BE208: 0 | BF208: 0 | BG208: 0 | BH208: 0 | BI208: 0 | BJ208: 0 | BK208: 0 | BL208: 0 | BM208: 0 | BN208: 0 | BO208: 0 | BP208: 0 | BQ208: 0 | BR208: 0 | BS208: 0 | BT208: 0 | BU208: 0 | BV208: 0 | BW208: 0 | BX208: 0 | BY208: 0 | BZ208: 0 | CA208: 0 | CB208: 0 | CC208: 0 | CD208: 0 | CE208: 0 | CF208: 0 | CG208: 0 | CH208: 0 | CI208: 0 | CJ208: 0 | CK208: 0 | CL208: 0 | CM208: 0 | CN208: 0 | CO208: 0 | CP208: 0 | CQ208: 0 | CR208: 0 | CS208: 0 | CT208: 0 | CU208: 0 | CV208: 0 | CW208: 0 | CX208: 0 | CY208: 0 | CZ208: 0 | DA208: 0 | DB208: 0 | DC208: 0 | DD208: 0 | DE208: 0 | DF208: 0 | DG208: 0 | DH208: 0 | DI208: 0 | DJ208: 0 | DK208: 0 | DL208: 0 | DM208: 0 | DN208: 0 | DO208: 0 | DP208: 0 | DQ208: 0 | DR208: 0 | DS208: 0 | DT208: 0 | DU208: 0 | DV208: 0 | DW208: 0 | DX208: 0 | DY208: 0 | DZ208: 0 | EA208: 0 | EB208: 0 | EC208: 0 | ED208: 0 | EE208: 0 | EF208: 0 | EG208: 0 | EH208: 0 | EI208: 0 | EJ208: 0 | EK208: 0 | EL208: 0 | EM208: 0 | EN208: 0 | EO208: 0 | EP208: 0 | EQ208: 0 | ER208: 0 | ES208: 0 | ET208: 0 | EU208: 0 | EV208: 0 | EW208: 0 | EX208: 0 | EY208: 0 | EZ208: 0 | FA208: 0 | FB208: 0 | FC208: 0 | FD208: 0 | FE208: 0 | FF208: 0 | FG208: 0 | FH208: 0 | FI208: 0 | FJ208: 0 | FK208: 0 | FL208: 0 | FM208: 0 | FN208: 0 | FO208: 0 | FP208: 0 | FQ208: 0 | FR208: 0 | FS208: 0 | FT208: 0 | FU208: 0 | FV208: 0 | FW208: 0 | FX208: 0 | FY208: 0 | FZ208: 0 | GA208: 0 | GB208: 0 | GC208: 0 | GD208: 0 | GE208: 0 | GF208: 0 | GG208: 0 | GH208: 0 | GI208: 0 | GJ208: 0 | GK208: 0 | GL208: 0 | GM208: 0 | GN208: 0 | GO208: 0 | GP208: 0 | GQ208: 0 | GR208: 0 | GS208: 0 | GT208: 0 | GU208: 0 | GV208: 0 | GW208: 0 | GX208: 0 | GY208: 0 | GZ208: 0 | HA208: 0 | HB208: 0 | HC208: 0 | HD208: 0 | HE208: 0 | HF208: 0 | HG208: 0 | HH208: 0 | HI208: 0 | HJ208: 0 | HK208: 0 | HL208: 0 | HM208: 0 | HN208: 0 | HO208: 0 | HP208: 0 | HQ208: 0 | HR208: 0 | HS208: 0 | HT208: 0 | HU208: 0 | HV208: 0 | HW208: 0 | HX208: 0 | HY208: 0 | HZ208: 0 | IA208: 0 | IB208: 0
A209: 9 | B209: 0 | C209: 0 | D209: 0 | E209: 0 | F209: 0 | G209: 0 | H209: 0 | I209: 0 | J209: 0 | K209: 0 | L209: 0 | M209: 0 | N209: 0 | O209: 0 | P209: 0 | Q209: 0 | R209: 0 | S209: 0 | T209: 0 | U209: 0 | V209: 0 | W209: 0 | X209: 0 | Y209: 0 | Z209: 0 | AA209: 0 | AB209: 0 | AC209: 0 | AD209: 0 | AE209: 0 | AF209: 0 | AG209: 0 | AH209: 0 | AI209: 0 | AJ209: 0 | AK209: 0 | AL209: 0 | AM209: 0 | AN209: 0 | AO209: 0 | AP209: 0 | AQ209: 0 | AR209: 0 | AS209: 0 | AT209: 0 | AU209: 0 | AV209: 0 | AW209: 0 | AX209: 0 | AY209: 0 | AZ209: 0 | BA209: 0 | BB209: 0 | BC209: 0 | BD209: 0 | BE209: 0 | BF209: 0 | BG209: 0 | BH209: 0 | BI209: 0 | BJ209: 0 | BK209: 0 | BL209: 0 | BM209: 0 | BN209: 0 | BO209: 0 | BP209: 0 | BQ209: 0 | BR209: 0 | BS209: 0 | BT209: 0 | BU209: 0 | BV209: 0 | BW209: 0 | BX209: 0 | BY209: 0 | BZ209: 0 | CA209: 0 | CB209: 0 | CC209: 0 | CD209: 0 | CE209: 0 | CF209: 0 | CG209: 0 | CH209: 0 | CI209: 0 | CJ209: 0 | CK209: 0 | CL209: 0 | CM209: 0 | CN209: 0 | CO209: 0 | CP209: 0 | CQ209: 0 | CR209: 0 | CS209: 0 | CT209: 0 | CU209: 0 | CV209: 0 | CW209: 0 | CX209: 0 | CY209: 0 | CZ209: 0 | DA209: 0 | DB209: 0 | DC209: 0 | DD209: 0 | DE209: 0 | DF209: 0 | DG209: 0 | DH209: 0 | DI209: 0 | DJ209: 0 | DK209: 0 | DL209: 0 | DM209: 0 | DN209: 0 | DO209: 0 | DP209: 0 | DQ209: 0 | DR209: 0 | DS209: 0 | DT209: 0 | DU209: 0 | DV209: 0 | DW209: 0 | DX209: 0 | DY209: 0 | DZ209: 0 | EA209: 0 | EB209: 0 | EC209: 0 | ED209: 0 | EE209: 0 | EF209: 0 | EG209: 0 | EH209: 0 | EI209: 0 | EJ209: 0 | EK209: 0 | EL209: 0 | EM209: 0 | EN209: 0 | EO209: 0 | EP209: 0 | EQ209: 0 | ER209: 0 | ES209: 0 | ET209: 0 | EU209: 0 | EV209: 0 | EW209: 0 | EX209: 0 | EY209: 0 | EZ209: 0 | FA209: 0 | FB209: 0 | FC209: 0 | FD209: 0 | FE209: 0 | FF209: 0 | FG209: 0 | FH209: 0 | FI209: 0 | FJ209: 0 | FK209: 0 | FL209: 0 | FM209: 0 | FN209: 0 | FO209: 0 | FP209: 0 | FQ209: 0 | FR209: 0 | FS209: 0 | FT209: 0 | FU209: 0 | FV209: 0 | FW209: 0 | FX209: 0 | FY209: 0 | FZ209: 0 | GA209: 0 | GB209: 0 | GC209: 0 | GD209: 0 | GE209: 0 | GF209: 0 | GG209: 0 | GH209: 0 | GI209: 0 | GJ209: 0 | GK209: 0 | GL209: 0 | GM209: 0 | GN209: 0 | GO209: 0 | GP209: 0 | GQ209: 0 | GR209: 0 | GS209: 0 | GT209: 0 | GU209: 0 | GV209: 0 | GW209: 0 | GX209: 0 | GY209: 0 | GZ209: 0 | HA209: 0 | HB209: 0 | HC209: 0 | HD209: 0 | HE209: 0 | HF209: 0 | HG209: 0 | HH209: 0 | HI209: 0 | HJ209: 0 | HK209: 0 | HL209: 0 | HM209: 0 | HN209: 0 | HO209: 0 | HP209: 0 | HQ209: 0 | HR209: 0 | HS209: 0 | HT209: 0 | HU209: 0 | HV209: 0 | HW209: 0 | HX209: 0 | HY209: 0 | HZ209: 0 | IA209: 0 | IB209: 0
A210: 8 | B210: 0 | C210: 0 | D210: 0 | E210: 0 | F210: 0 | G210: 0 | H210: 0 | I210: 0 | J210: 0 | K210: 0 | L210: 0 | M210: 0 | N210: 0 | O210: 0 | P210: 0 | Q210: 0 | R210: 0 | S210: 0 | T210: 0 | U210: 0 | V210: 0 | W210: 0 | X210: 0 | Y210: 0 | Z210: 0 | AA210: 0 | AB210: 0 | AC210: 0 | AD210: 0 | AE210: 0 | AF210: 0 | AG210: 0 | AH210: 0 | AI210: 0 | AJ210: 0 | AK210: 0 | AL210: 0 | AM210: 0 | AN210: 0 | AO210: 0 | AP210: 0 | AQ210: 0 | AR210: 0 | AS210: 0 | AT210: 0 | AU210: 0 | AV210: 0 | AW210: 0 | AX210: 0 | AY210: 0 | AZ210: 0 | BA210: 0 | BB210: 0 | BC210: 0 | BD210: 0 | BE210: 0 | BF210: 0 | BG210: 0 | BH210: 0 | BI210: 0 | BJ210: 0 | BK210: 0 | BL210: 0 | BM210: 0 | BN210: 0 | BO210: 0 | BP210: 0 | BQ210: 0 | BR210: 0 | BS210: 0 | BT210: 0 | BU210: 0 | BV210: 0 | BW210: 0 | BX210: 0 | BY210: 0 | BZ210: 0 | CA210: 0 | CB210: 0 | CC210: 0 | CD210: 0 | CE210: 0 | CF210: 0 | CG210: 0 | CH210: 0 | CI210: 0 | CJ210: 0 | CK210: 0 | CL210: 0 | CM210: 0 | CN210: 0 | CO210: 0 | CP210: 0 | CQ210: 0 | CR210: 0 | CS210: 0 | CT210: 0 | CU210: 0 | CV210: 0 | CW210: 0 | CX210: 0 | CY210: 0 | CZ210: 0 | DA210: 0 | DB210: 0 | DC210: 0 | DD210: 0 | DE210: 0 | DF210: 0 | DG210: 0 | DH210: 0 | DI210: 0 | DJ210: 0 | DK210: 0 | DL210: 0 | DM210: 0 | DN210: 0 | DO210: 0 | DP210: 0 | DQ210: 0 | DR210: 0 | DS210: 0 | DT210: 0 | DU210: 0 | DV210: 0 | DW210: 0 | DX210: 0 | DY210: 0 | DZ210: 0 | EA210: 0 | EB210: 0 | EC210: 0 | ED210: 0 | EE210: 0 | EF210: 0 | EG210: 0 | EH210: 0 | EI210: 0 | EJ210: 0 | EK210: 0 | EL210: 0 | EM210: 0 | EN210: 0 | EO210: 0 | EP210: 0 | EQ210: 0 | ER210: 0 | ES210: 0 | ET210: 0 | EU210: 0 | EV210: 0 | EW210: 0 | EX210: 0 | EY210: 0 | EZ210: 0 | FA210: 0 | FB210: 0 | FC210: 0 | FD210: 0 | FE210: 0 | FF210: 0 | FG210: 0 | FH210: 0 | FI210: 0 | FJ210: 0 | FK210: 0 | FL210: 0 | FM210: 0 | FN210: 0 | FO210: 0 | FP210: 0 | FQ210: 0 | FR210: 0 | FS210: 0 | FT210: 0 | FU210: 0 | FV210: 0 | FW210: 0 | FX210: 0 | FY210: 0 | FZ210: 0 | GA210: 0 | GB210: 0 | GC210: 0 | GD210: 0 | GE210: 0 | GF210: 0 | GG210: 0 | GH210: 0 | GI210: 0 | GJ210: 0 | GK210: 0 | GL210: 0 | GM210: 0 | GN210: 0 | GO210: 0 | GP210: 0 | GQ210: 0 | GR210: 0 | GS210: 0 | GT210: 0 | GU210: 0 | GV210: 0 | GW210: 0 | GX210: 0 | GY210: 0 | GZ210: 0 | HA210: 0 | HB210: 0 | HC210: 0 | HD210: 0 | HE210: 0 | HF210: 0 | HG210: 0 | HH210: 0 | HI210: 0 | HJ210: 0 | HK210: 0 | HL210: 0 | HM210: 0 | HN210: 0 | HO210: 0 | HP210: 0 | HQ210: 0 | HR210: 0 | HS210: 0 | HT210: 0 | HU210: 0 | HV210: 0 | HW210: 0 | HX210: 0 | HY210: 0 | HZ210: 0 | IA210: 0 | IB210: 0
A211: 7 | B211: 0 | C211: 0 | D211: 0 | E211: 0 | F211: 0 | G211: 0 | H211: 0 | I211: 0 | J211: 0 | K211: 0 | L211: 0 | M211: 0 | N211: 0 | O211: 0 | P211: 0 | Q211: 0 | R211: 0 | S211: 0 | T211: 0 | U211: 0 | V211: 0 | W211: 0 | X211: 0 | Y211: 0 | Z211: 0 | AA211: 0 | AB211: 0 | AC211: 0 | AD211: 0 | AE211: 0 | AF211: 0 | AG211: 0 | AH211: 0 | AI211: 0 | AJ211: 0 | AK211: 0 | AL211: 0 | AM211: 0 | AN211: 0 | AO211: 0 | AP211: 0 | AQ211: 0 | AR211: 0 | AS211: 0 | AT211: 0 | AU211: 0 | AV211: 0 | AW211: 0 | AX211: 0 | AY211: 0 | AZ211: 0 | BA211: 0 | BB211: 0 | BC211: 0 | BD211: 0 | BE211: 0 | BF211: 0 | BG211: 0 | BH211: 0 | BI211: 0 | BJ211: 0 | BK211: 0 | BL211: 0 | BM211: 0 | BN211: 0 | BO211: 0 | BP211: 0 | BQ211: 0 | BR211: 0 | BS211: 0 | BT211: 0 | BU211: 0 | BV211: 0 | BW211: 0 | BX211: 0 | BY211: 0 | BZ211: 0 | CA211: 0 | CB211: 0 | CC211: 0 | CD211: 0 | CE211: 0 | CF211: 0 | CG211: 0 | CH211: 0 | CI211: 0 | CJ211: 0 | CK211: 0 | CL211: 0 | CM211: 0 | CN211: 0 | CO211: 0 | CP211: 0 | CQ211: 0 | CR211: 0 | CS211: 0 | CT211: 0 | CU211: 0 | CV211: 0 | CW211: 0 | CX211: 0 | CY211: 0 | CZ211: 0 | DA211: 0 | DB211: 0 | DC211: 0 | DD211: 0 | DE211: 0 | DF211: 0 | DG211: 0 | DH211: 0 | DI211: 0 | DJ211: 0 | DK211: 0 | DL211: 0 | DM211: 0 | DN211: 0 | DO211: 0 | DP211: 0 | DQ211: 0 | DR211: 0 | DS211: 0 | DT211: 0 | DU211: 0 | DV211: 0 | DW211: 0 | DX211: 0 | DY211: 0 | DZ211: 0 | EA211: 0 | EB211: 0 | EC211: 0 | ED211: 0 | EE211: 0 | EF211: 0 | EG211: 0 | EH211: 0 | EI211: 0 | EJ211: 0 | EK211: 0 | EL211: 0 | EM211: 0 | EN211: 0 | EO211: 0 | EP211: 0 | EQ211: 0 | ER211: 0 | ES211: 0 | ET211: 0 | EU211: 0 | EV211: 0 | EW211: 0 | EX211: 0 | EY211: 0 | EZ211: 0 | FA211: 0 | FB211: 0 | FC211: 0 | FD211: 0 | FE211: 0 | FF211: 0 | FG211: 0 | FH211: 0 | FI211: 0 | FJ211: 0 | FK211: 0 | FL211: 0 | FM211: 0 | FN211: 0 | FO211: 0 | FP211: 0 | FQ211: 0 | FR211: 0 | FS211: 0 | FT211: 0 | FU211: 0 | FV211: 0 | FW211: 0 | FX211: 0 | FY211: 0 | FZ211: 0 | GA211: 0 | GB211: 0 | GC211: 0 | GD211: 0 | GE211: 0 | GF211: 0 | GG211: 0 | GH211: 0 | GI211: 0 | GJ211: 0 | GK211: 0 | GL211: 0 | GM211: 0 | GN211: 0 | GO211: 0 | GP211: 0 | GQ211: 0 | GR211: 0 | GS211: 0 | GT211: 0 | GU211: 0 | GV211: 0 | GW211: 0 | GX211: 0 | GY211: 0 | GZ211: 0 | HA211: 0 | HB211: 0 | HC211: 0 | HD211: 0 | HE211: 0 | HF211: 0 | HG211: 0 | HH211: 0 | HI211: 0 | HJ211: 0 | HK211: 0 | HL211: 0 | HM211: 0 | HN211: 0 | HO211: 0 | HP211: 0 | HQ211: 0 | HR211: 0 | HS211: 0 | HT211: 0 | HU211: 0 | HV211: 0 | HW211: 0 | HX211: 0 | HY211: 0 | HZ211: 0 | IA211: 0 | IB211: 0
A212: Total general | B212: 0 | C212: 0 | D212: 0 | E212: 0 | F212: 0 | G212: 0 | H212: 0 | I212: 0 | J212: 0 | K212: 0 | L212: 0 | M212: 0 | N212: 0 | O212: 0 | P212: 0 | Q212: 0 | R212: 0 | S212: 0 | T212: 0 | U212: 0 | V212: 0 | W212: 0 | X212: 0 | Y212: 0 | Z212: 0 | AA212: 0 | AB212: 0 | AC212: 0 | AD212: 0 | AE212: 0 | AF212: 0 | AG212: 0 | AH212: 0 | AI212: 0 | AJ212: 0 | AK212: 0 | AL212: 0 | AM212: 0 | AN212: 0 | AO212: 0 | AP212: 0 | AQ212: 0 | AR212: 0 | AS212: 0 | AT212: 0 | AU212: 0 | AV212: 0 | AW212: 0 | AX212: 0 | AY212: 0 | AZ212: 0 | BA212: 0 | BB212: 0 | BC212: 0 | BD212: 0 | BE212: 0 | BF212: 0 | BG212: 0 | BH212: 0 | BI212: 0 | BJ212: 0 | BK212: 0 | BL212: 0 | BM212: 0 | BN212: 0 | BO212: 0 | BP212: 0 | BQ212: 0 | BR212: 0 | BS212: 0 | BT212: 0 | BU212: 0 | BV212: 0 | BW212: 0 | BX212: 0 | BY212: 0 | BZ212: 0 | CA212: 0 | CB212: 0 | CC212: 0 | CD212: 0 | CE212: 0 | CF212: 0 | CG212: 0 | CH212: 0 | CI212: 0 | CJ212: 0 | CK212: 0 | CL212: 0 | CM212: 0 | CN212: 0 | CO212: 0 | CP212: 0 | CQ212: 0 | CR212: 0 | CS212: 0 | CT212: 0 | CU212: 0 | CV212: 0 | CW212: 0 | CX212: 0 | CY212: 0 | CZ212: 0 | DA212: 0 | DB212: 0 | DC212: 0 | DD212: 0 | DE212: 0 | DF212: 0 | DG212: 0 | DH212: 0 | DI212: 0 | DJ212: 0 | DK212: 0 | DL212: 0 | DM212: 0 | DN212: 0 | DO212: 0 | DP212: 0 | DQ212: 0 | DR212: 0 | DS212: 0 | DT212: 0 | DU212: 0 | DV212: 0 | DW212: 0 | DX212: 0 | DY212: 0 | DZ212: 0 | EA212: 0 | EB212: 0 | EC212: 0 | ED212: 0 | EE212: 0 | EF212: 0 | EG212: 0 | EH212: 0 | EI212: 0 | EJ212: 0 | EK212: 0 | EL212: 0 | EM212: 0 | EN212: 0 | EO212: 0 | EP212: 0 | EQ212: 0 | ER212: 0 | ES212: 0 | ET212: 0 | EU212: 0 | EV212: 0 | EW212: 0 | EX212: 0 | EY212: 0 | EZ212: 0 | FA212: 0 | FB212: 0 | FC212: 0 | FD212: 0 | FE212: 0 | FF212: 0 | FG212: 0 | FH212: 0 | FI212: 0 | FJ212: 0 | FK212: 0 | FL212: 0 | FM212: 0 | FN212: 0 | FO212: 0 | FP212: 0 | FQ212: 0 | FR212: 0 | FS212: 0 | FT212: 0 | FU212: 0 | FV212: 0 | FW212: 0 | FX212: 0 | FY212: 0 | FZ212: 0 | GA212: 0 | GB212: 0 | GC212: 0 | GD212: 0 | GE212: 0 | GF212: 0 | GG212: 0 | GH212: 0 | GI212: 0 | GJ212: 0 | GK212: 0 | GL212: 0 | GM212: 0 | GN212: 0 | GO212: 0 | GP212: 0 | GQ212: 0 | GR212: 0 | GS212: 0 | GT212: 0 | GU212: 0 | GV212: 0 | GW212: 0 | GX212: 0 | GY212: 0 | GZ212: 0 | HA212: 0 | HB212: 0 | HC212: 0 | HD212: 0 | HE212: 0 | HF212: 0 | HG212: 0 | HH212: 0 | HI212: 0 | HJ212: 0 | HK212: 0 | HL212: 0 | HM212: 0 | HN212: 0 | HO212: 0 | HP212: 0 | HQ212: 0 | HR212: 0 | HS212: 0 | HT212: 0 | HU212: 0 | HV212: 0 | HW212: 0 | HX212: 0 | HY212: 0 | HZ212: 0 | IA212: 0 | IB212: 0
A214: TOTAL
A215: =COUNT(A201:A212) -> 11 | B215: =SUM(B201:B212) -> 0 | C215: =SUM(C201:C212) -> 0 | D215: 0 | E215: 0 | F215: 0 | G215: 0 | H215: 0 | I215: 0 | J215: 0 | K215: 0 | L215: 0 | M215: 0 | N215: 0 | O215: 0 | P215: 0 | Q215: 0 | R215: 0 | S215: 0 | T215: 0 | U215: 0 | V215: 0 | W215: 0 | X215: 0 | Y215: 0 | Z215: 0 | AA215: 0 | AB215: 0 | AC215: 0 | AD215: 0 | AE215: 0 | AF215: 0 | AG215: 0 | AH215: 0 | AI215: 0 | AJ215: 0 | AK215: 0 | AL215: 0 | AM215: 0 | AN215: 0 | AO215: 0 | AP215: 0 | AQ215: 0 | AR215: 0 | AS215: 0 | AT215: 0 | AU215: 0 | AV215: 0 | AW215: 0 | AX215: 0 | AY215: 0 | AZ215: 0 | BA215: 0 | BB215: 0 | BC215: 0 | BD215: 0 | BE215: 0 | BF215: 0 | BG215: 0 | BH215: 0 | BI215: 0 | BJ215: 0 | BK215: 0 | BL215: 0 | BM215: 0 | BN215: 0 | BO215: =SUM(BO201:BO212) -> 0 | BP215: 0 | BQ215: 0 | BR215: 0 | BS215: 0 | BT215: 0 | BU215: 0 | BV215: 0 | BW215: 0 | BX215: 0 | BY215: 0 | BZ215: 0 | CA215: 0 | CB215: 0 | CC215: 0 | CD215: 0 | CE215: 0 | CF215: 0 | CG215: 0 | CH215: 0 | CI215: 0 | CJ215: 0 | CK215: 0 | CL215: 0 | CM215: 0 | CN215: 0 | CO215: 0 | CP215: 0 | CQ215: 0 | CR215: 0 | CS215: 0 | CT215: 0 | CU215: 0 | CV215: 0 | CW215: 0 | CX215: 0 | CY215: 0 | CZ215: 0 | DA215: 0 | DB215: 0 | DC215: 0 | DD215: 0 | DE215: 0 | DF215: 0 | DG215: 0 | DH215: 0 | DI215: 0 | DJ215: 0 | DK215: 0 | DL215: 0 | DM215: 0 | DN215: 0 | DO215: 0 | DP215: 0 | DQ215: 0 | DR215: 0 | DS215: 0 | DT215: 0 | DU215: 0 | DV215: 0 | DW215: 0 | DX215: 0 | DY215: 0 | DZ215: 0 | EA215: =SUM(EA201:EA212) -> 0 | EB215: 0 | EC215: 0 | ED215: 0 | EE215: 0 | EF215: 0 | EG215: 0 | EH215: 0 | EI215: 0 | EJ215: 0 | EK215: 0 | EL215: 0 | EM215: 0 | EN215: 0 | EO215: 0 | EP215: 0 | EQ215: 0 | ER215: 0 | ES215: 0 | ET215: 0 | EU215: 0 | EV215: 0 | EW215: 0 | EX215: 0 | EY215: 0 | EZ215: 0 | FA215: 0 | FB215: 0 | FC215: 0 | FD215: 0 | FE215: 0 | FF215: 0 | FG215: 0 | FH215: 0 | FI215: 0 | FJ215: 0 | FK215: 0 | FL215: 0 | FM215: 0 | FN215: 0 | FO215: 0 | FP215: 0 | FQ215: 0 | FR215: 0 | FS215: 0 | FT215: 0 | FU215: 0 | FV215: 0 | FW215: 0 | FX215: 0 | FY215: 0 | FZ215: 0 | GA215: 0 | GB215: 0 | GC215: 0 | GD215: 0 | GE215: 0 | GF215: 0 | GG215: 0 | GH215: 0 | GI215: 0 | GJ215: 0 | GK215: 0 | GL215: 0 | GM215: =SUM(GM201:GM212) -> 0 | GN215: 0 | GO215: 0 | GP215: 0 | GQ215: 0 | GR215: 0 | GS215: 0 | GT215: 0 | GU215: 0 | GV215: 0 | GW215: 0 | GX215: 0 | GY215: 0 | GZ215: 0 | HA215: 0 | HB215: 0 | HC215: 0 | HD215: 0 | HE215: 0 | HF215: 0 | HG215: 0 | HH215: 0 | HI215: 0 | HJ215: 0 | HK215: 0 | HL215: 0 | HM215: 0 | HN215: 0 | HO215: 0 | HP215: 0 | HQ215: 0 | HR215: 0 | HS215: 0 | HT215: 0 | HU215: 0 | HV215: 0 | HW215: 0 | HX215: =SUM(HX201:HX212) -> 0 | HY215: 0 | HZ215: 0 | IA215: 0 | IB215: 0
A216: =CONCATENATE(A201,"-",A202,"-",A203,"-",A204,"-",A205,"-",A206,"-",A207,"-",A208,"-",A209,"-",A210,"-",A211,"-",A212) -> 1-5-2-3-4-6-11-10-9-8-7-Total general
B217: BAS001 | C217: BAS002 | D217: BAS003 | E217: BAS004 | F217: BAS005 | G217: BAS006 | H217: BAS007 | I217: BAS008 | J217: BAS009 | K217: BAS010 | L217: BAS011 | M217: BAS012 | N217: BAS013 | O217: BAS014 | P217: BAS015 | Q217: BAS016 | R217: BAS017 | S217: BAS018 | T217: BAS019 | U217: BAS020 | V217: BAS021 | W217: BAS022 | X217: BAS023 | Y217: BAS024 | Z217: BAS025 | AA217: BAS026 | AB217: BAS027 | AC217: BAS028 | AD217: BAS029 | AE217: BAS030 | AF217: BAS031 | AG217: BAS032 | AH217: BAS033 | AI217: BAS034 | AJ217: BAS035 | AK217: BAS036 | AL217: BAS037 | AM217: BAS038 | AN217: BAS039 | AO217: BAS040 | AP217: BAS041 | AQ217: BAS042 | AR217: BAS043 | AS217: BAS044 | AT217: BAS045 | AU217: BAS046 | AV217: BAS047 | AW217: BAS048 | AX217: BAS049 | AY217: BAS050 | AZ217: BAS051 | BA217: BAS052 | BB217: BAS053 | BC217: BAS054 | BD217: BAS055 | BE217: BAS056 | BF217: BAS057 | BG217: BAS058 | BH217: BAS059 | BI217: BAS060 | BJ217: BAS061 | BK217: BAS062 | BL217: BAS063 | BM217: BAS064 | BN217: BAS065 | BO217: BAS066 | BP217: BAS067 | BQ217: BAS068 | BR217: BAS069 | BS217: BAS070 | BT217: BAS071 | BU217: BAS072 | BV217: BAS073 | BW217: BAS074 | BX217: BAS075 | BY217: BAS076 | BZ217: BAS077 | CA217: BAS078 | CB217: BAS079 | CC217: BAS080 | CD217: BAS081 | CE217: BAS082 | CF217: BAS083 | CG217: BAS084 | CH217: BAS085 | CI217: BAS086 | CJ217: BAS087 | CK217: BAS088 | CL217: BAS089 | CM217: BAS090 | CN217: BAS091 | CO217: BAS092 | CP217: BAS093 | CQ217: BAS094 | CR217: BAS095 | CS217: BAS096 | CT217: BAS097 | CU217: BAS098 | CV217: BAS099 | CW217: BAS100 | CX217: BAS101 | CY217: BAS102 | CZ217: BAS103 | DA217: BAS104 | DB217: BAS105 | DC217: BAS106 | DD217: BAS107 | DE217: BAS108 | DF217: BAS109 | DG217: BAS110 | DH217: BAS111 | DI217: BAS112 | DJ217: BAS113 | DK217: BAS114 | DL217: BAS115 | DM217: BAS116 | DN217: BAS117 | DO217: BAS118 | DP217: BAS119 | DQ217: BAS120 | DR217: BAS121 | DS217: BAS122 | DT217: BAS123 | DU217: BAS124 | DV217: BAS125 | DW217: BAS126 | DX217: BAS127 | DY217: BAS128 | DZ217: BAS129 | EA217: BAS130 | EB217: BAS131 | EC217: BAS132 | ED217: BAS133 | EE217: BAS134 | EF217: BAS135 | EG217: BAS136 | EH217: BAS137 | EI217: BAS138 | EJ217: BAS139 | EK217: BAS140 | EL217: BAS141 | EM217: BAS142 | EN217: BAS143 | EO217: BAS144 | EP217: BAS145 | EQ217: BAS146 | ER217: BAS147 | ES217: BAS148 | ET217: BAS149 | EU217: BAS150 | EV217: BAS151 | EW217: BAS152 | EX217: BAS153 | EY217: BAS154 | EZ217: BAS155 | FA217: BAS156 | FB217: BAS157 | FC217: BAS158 | FD217: BAS159 | FE217: BAS160 | FF217: BAS161 | FG217: BAS162 | FH217: BAS163 | FI217: BAS164 | FJ217: BAS165 | FK217: BAS166 | FL217: BAS167 | FM217: BAS168 | FN217: BAS169 | FO217: BAS170 | FP217: BAS171 | FQ217: BAS172 | FR217: BAS173 | FS217: BAS174 | FT217: BAS175 | FU217: BAS176 | FV217: BAS177 | FW217: BAS178 | FX217: BAS179 | FY217: BAS180 | FZ217: BAS181 | GA217: BAS182 | GB217: BAS183 | GC217: BAS184 | GD217: BAS185 | GE217: BAS186 | GF217: BAS187 | GG217: BAS188 | GH217: BAS189 | GI217: BAS190 | GJ217: BAS191 | GK217: BAS192 | GL217: BAS193 | GM217: BAS194 | GN217: BAS195 | GO217: BAS196 | GP217: BAS197 | GQ217: BAS198 | GR217: BAS199 | GS217: BAS200 | GT217: BAS201 | GU217: BAS202 | GV217: BAS203 | GW217: BAS204 | GX217: BAS205 | GY217: BAS206 | GZ217: BAS207 | HA217: BAS208 | HB217: BAS209 | HC217: BAS210 | HD217: BAS211 | HE217: BAS212 | HF217: BAS213 | HG217: BAS214 | HH217: BAS215 | HI217: BAS216 | HJ217: BAS217 | HK217: BAS218 | HL217: BAS219 | HM217: BAS220 | HN217: BAS221 | HO217: BAS222 | HP217: BAS223 | HQ217: BAS224 | HR217: BAS225 | HS217: BAS226 | HT217: BAS227 | HU217: BAS228 | HV217: BAS229 | HW217: BAS230 | HX217: BAS231 | HY217: BAS232 | HZ217: BAS233 | IA217: BAS234 | IB217: BAS235
B218: =IF(B217=B200,"SI","NO") -> SI | C218: =IF(C217=C200,"SI","NO") -> SI | D218: SI | E218: SI | F218: SI | G218: SI | H218: SI | I218: SI | J218: SI | K218: SI | L218: SI | M218: SI | N218: SI | O218: SI | P218: SI | Q218: SI | R218: SI | S218: SI | T218: SI | U218: SI | V218: SI | W218: SI | X218: SI | Y218: SI | Z218: SI | AA218: SI | AB218: SI | AC218: SI | AD218: SI | AE218: SI | AF218: SI | AG218: SI | AH218: SI | AI218: SI | AJ218: SI | AK218: SI | AL218: SI | AM218: SI | AN218: SI | AO218: SI | AP218: SI | AQ218: SI | AR218: SI | AS218: SI | AT218: SI | AU218: SI | AV218: SI | AW218: SI | AX218: SI | AY218: SI | AZ218: SI | BA218: SI | BB218: SI | BC218: SI | BD218: SI | BE218: SI | BF218: SI | BG218: SI | BH218: SI | BI218: SI | BJ218: SI | BK218: SI | BL218: SI | BM218: SI | BN218: SI | BO218: =IF(BO217=BO200,"SI","NO") -> SI | BP218: SI | BQ218: SI | BR218: SI | BS218: SI | BT218: SI | BU218: SI | BV218: SI | BW218: SI | BX218: SI | BY218: SI | BZ218: SI | CA218: SI | CB218: SI | CC218: SI | CD218: SI | CE218: SI | CF218: SI | CG218: SI | CH218: SI | CI218: SI | CJ218: SI | CK218: SI | CL218: SI | CM218: SI | CN218: SI | CO218: SI | CP218: SI | CQ218: SI | CR218: SI | CS218: SI | CT218: SI | CU218: SI | CV218: SI | CW218: SI | CX218: SI | CY218: SI | CZ218: SI | DA218: SI | DB218: SI | DC218: SI | DD218: SI | DE218: SI | DF218: SI | DG218: SI | DH218: SI | DI218: SI | DJ218: SI | DK218: SI | DL218: SI | DM218: SI | DN218: SI | DO218: SI | DP218: SI | DQ218: SI | DR218: SI | DS218: SI | DT218: SI | DU218: SI | DV218: SI | DW218: SI | DX218: SI | DY218: SI | DZ218: SI | EA218: =IF(EA217=EA200,"SI","NO") -> SI | EB218: SI | EC218: SI | ED218: SI | EE218: SI | EF218: SI | EG218: SI | EH218: SI | EI218: SI | EJ218: SI | EK218: SI | EL218: SI | EM218: SI | EN218: SI | EO218: SI | EP218: SI | EQ218: SI | ER218: SI | ES218: SI | ET218: SI | EU218: SI | EV218: SI | EW218: SI | EX218: SI | EY218: SI | EZ218: SI | FA218: SI | FB218: SI | FC218: SI | FD218: SI | FE218: SI | FF218: SI | FG218: SI | FH218: SI | FI218: SI | FJ218: SI | FK218: SI | FL218: SI | FM218: SI | FN218: SI | FO218: SI | FP218: SI | FQ218: SI | FR218: SI | FS218: SI | FT218: SI | FU218: SI | FV218: SI | FW218: SI | FX218: SI | FY218: SI | FZ218: SI | GA218: SI | GB218: SI | GC218: SI | GD218: SI | GE218: SI | GF218: SI | GG218: SI | GH218: SI | GI218: SI | GJ218: SI | GK218: SI | GL218: SI | GM218: =IF(GM217=GM200,"SI","NO") -> SI | GN218: SI | GO218: SI | GP218: SI | GQ218: SI | GR218: SI | GS218: SI | GT218: SI | GU218: SI | GV218: SI | GW218: SI | GX218: SI | GY218: SI | GZ218: SI | HA218: SI | HB218: SI | HC218: SI | HD218: SI | HE218: SI | HF218: SI | HG218: SI | HH218: SI | HI218: SI | HJ218: SI | HK218: SI | HL218: SI | HM218: SI | HN218: SI | HO218: SI | HP218: SI | HQ218: SI | HR218: SI | HS218: SI | HT218: SI | HU218: SI | HV218: SI | HW218: SI | HX218: =IF(HX217=HX200,"SI","NO") -> SI | HY218: SI | HZ218: SI | IA218: SI | IB218: SI
A221: AB212007
A222: anno | B222: 2024
A223: cod_red | B223: 03
A224: codmic | B224: (Todas)
A225: cod_prov | B225: (Todas)
A226: coddist | B226: (Todas)
A227: cod_estab | B227: (Todas)
A228: cod_eje | B228: (Todas)
B230: Valores
A231: Etiquetas de fila | B231: BAS001 | C231: BAS002 | D231: BAS003 | E231: BAS004 | F231: BAS005 | G231: BAS006 | H231: BAS007 | I231: BAS008 | J231: BAS009 | K231: BAS010 | L231: BAS011 | M231: BAS012 | N231: BAS013 | O231: BAS014 | P231: BAS015 | Q231: BAS016 | R231: BAS017 | S231: BAS018 | T231: BAS019 | U231: BAS020 | V231: BAS021 | W231: BAS022 | X231: BAS023 | Y231: BAS024 | Z231: BAS025 | AA231: BAS026 | AB231: BAS027 | AC231: BAS028 | AD231: BAS029 | AE231: BAS030 | AF231: BAS031 | AG231: BAS032 | AH231: BAS033 | AI231: BAS034 | AJ231: BAS035 | AK231: BAS036 | AL231: BAS037 | AM231: BAS038 | AN231: BAS039 | AO231: BAS040 | AP231: BAS041 | AQ231: BAS042 | AR231: BAS043 | AS231: BAS044 | AT231: BAS045 | AU231: BAS046 | AV231: BAS047 | AW231: BAS048 | AX231: BAS049 | AY231: BAS050 | AZ231: BAS051 | BA231: BAS052 | BB231: BAS053 | BC231: BAS054 | BD231: BAS055 | BE231: BAS056 | BF231: BAS057 | BG231: BAS058 | BH231: BAS059 | BI231: BAS060 | BJ231: BAS061 | BK231: BAS062 | BL231: BAS063 | BM231: BAS064 | BN231: BAS065 | BO231: BAS066 | BP231: BAS067 | BQ231: BAS068 | BR231: BAS069 | BS231: BAS070 | BT231: BAS071 | BU231: BAS072 | BV231: BAS073 | BW231: BAS074 | BX231: BAS075 | BY231: BAS076 | BZ231: BAS077 | CA231: BAS078 | CB231: BAS079 | CC231: BAS080 | CD231: BAS081 | CE231: BAS082 | CF231: BAS083 | CG231: BAS084 | CH231: BAS085 | CI231: BAS086 | CJ231: BAS087 | CK231: BAS088 | CL231: BAS089 | CM231: BAS090 | CN231: BAS091 | CO231: BAS092 | CP231: BAS093 | CQ231: BAS094 | CR231: BAS095 | CS231: BAS096 | CT231: BAS097 | CU231: BAS098 | CV231: BAS099 | CW231: BAS100 | CX231: BAS101 | CY231: BAS102 | CZ231: BAS103 | DA231: BAS104 | DB231: BAS105 | DC231: BAS106 | DD231: BAS107 | DE231: BAS108 | DF231: BAS109 | DG231: BAS110 | DH231: BAS111 | DI231: BAS112 | DJ231: BAS113 | DK231: BAS114 | DL231: BAS115 | DM231: BAS116 | DN231: BAS117 | DO231: BAS118 | DP231: BAS119 | DQ231: BAS120 | DR231: BAS121 | DS231: BAS122 | DT231: BAS123 | DU231: BAS124 | DV231: BAS125 | DW231: BAS126 | DX231: BAS127 | DY231: BAS128 | DZ231: BAS129 | EA231: BAS130 | EB231: BAS131 | EC231: BAS132 | ED231: BAS133 | EE231: BAS134 | EF231: BAS135 | EG231: BAS136 | EH231: BAS137 | EI231: BAS138 | EJ231: BAS139 | EK231: BAS140 | EL231: BAS141 | EM231: BAS142 | EN231: BAS143 | EO231: BAS144 | EP231: BAS145 | EQ231: BAS146 | ER231: BAS147 | ES231: BAS148 | ET231: BAS149 | EU231: BAS150 | EV231: BAS151 | EW231: BAS152 | EX231: BAS153 | EY231: BAS154 | EZ231: BAS155 | FA231: BAS156 | FB231: BAS157 | FC231: BAS158 | FD231: BAS159 | FE231: BAS160 | FF231: BAS161 | FG231: BAS162 | FH231: BAS163 | FI231: BAS164 | FJ231: BAS165 | FK231: BAS166 | FL231: BAS167 | FM231: BAS168 | FN231: BAS169 | FO231: BAS170 | FP231: BAS171 | FQ231: BAS172 | FR231: BAS173 | FS231: BAS174 | FT231: BAS175 | FU231: BAS176 | FV231: BAS177 | FW231: BAS178 | FX231: BAS179 | FY231: BAS180 | FZ231: BAS181 | GA231: BAS182 | GB231: BAS183 | GC231: BAS184 | GD231: BAS185 | GE231: BAS186 | GF231: BAS187 | GG231: BAS188 | GH231: BAS189 | GI231: BAS190 | GJ231: BAS191 | GK231: BAS192 | GL231: BAS193 | GM231: BAS194 | GN231: BAS195 | GO231: BAS196 | GP231: BAS197 | GQ231: BAS198 | GR231: BAS199 | GS231: BAS200 | GT231: BAS201 | GU231: BAS202 | GV231: BAS203 | GW231: BAS204 | GX231: BAS205 | GY231: BAS206 | GZ231: BAS207 | HA231: BAS208 | HB231: BAS209 | HC231: BAS210 | HD231: BAS211 | HE231: BAS212 | HF231: BAS213 | HG231: BAS214 | HH231: BAS215 | HI231: BAS216 | HJ231: BAS217 | HK231: BAS218 | HL231: BAS219 | HM231: BAS220 | HN231: BAS221 | HO231: BAS222 | HP231: BAS223 | HQ231: BAS224 | HR231: BAS225 | HS231: BAS226 | HT231: BAS227 | HU231: BAS228 | HV231: BAS229 | HW231: BAS230 | HX231: BAS231 | HY231: BAS232 | HZ231: BAS233 | IA231: BAS234 | IB231: BAS235
A232: 1 | B232: 0 | C232: 0 | D232: 0 | E232: 0 | F232: 0 | G232: 0 | H232: 0 | I232: 0 | J232: 0 | K232: 0 | L232: 0 | M232: 0 | N232: 0 | O232: 0 | P232: 0 | Q232: 0 | R232: 0 | S232: 0 | T232: 0 | U232: 0 | V232: 0 | W232: 0 | X232: 0 | Y232: 0 | Z232: 0 | AA232: 0 | AB232: 0 | AC232: 0 | AD232: 0 | AE232: 0 | AF232: 0 | AG232: 0 | AH232: 0 | AI232: 0 | AJ232: 0 | AK232: 0 | AL232: 0 | AM232: 0 | AN232: 0 | AO232: 0 | AP232: 0 | AQ232: 0 | AR232: 0 | AS232: 0 | AT232: 0 | AU232: 0 | AV232: 0 | AW232: 0 | AX232: 0 | AY232: 0 | AZ232: 0 | BA232: 0 | BB232: 0 | BC232: 0 | BD232: 0 | BE232: 0 | BF232: 0 | BG232: 0 | BH232: 0 | BI232: 0 | BJ232: 0 | BK232: 0 | BL232: 0 | BM232: 0 | BN232: 0 | BO232: 0 | BP232: 0 | BQ232: 0 | BR232: 0 | BS232: 0 | BT232: 0 | BU232: 0 | BV232: 0 | BW232: 0 | BX232: 0 | BY232: 0 | BZ232: 0 | CA232: 0 | CB232: 0 | CC232: 0 | CD232: 0 | CE232: 0 | CF232: 0 | CG232: 0 | CH232: 0 | CI232: 0 | CJ232: 0 | CK232: 0 | CL232: 0 | CM232: 0 | CN232: 0 | CO232: 0 | CP232: 0 | CQ232: 0 | CR232: 0 | CS232: 0 | CT232: 0 | CU232: 0 | CV232: 0 | CW232: 0 | CX232: 0 | CY232: 0 | CZ232: 0 | DA232: 0 | DB232: 0 | DC232: 0 | DD232: 0 | DE232: 0 | DF232: 0 | DG232: 0 | DH232: 0 | DI232: 0 | DJ232: 0 | DK232: 0 | DL232: 0 | DM232: 0 | DN232: 0 | DO232: 0 | DP232: 0 | DQ232: 0 | DR232: 0 | DS232: 0 | DT232: 0 | DU232: 0 | DV232: 0 | DW232: 0 | DX232: 0 | DY232: 0 | DZ232: 0 | EA232: 0 | EB232: 0 | EC232: 0 | ED232: 0 | EE232: 0 | EF232: 0 | EG232: 0 | EH232: 0 | EI232: 0 | EJ232: 0 | EK232: 0 | EL232: 0 | EM232: 0 | EN232: 0 | EO232: 0 | EP232: 0 | EQ232: 0 | ER232: 0 | ES232: 0 | ET232: 0 | EU232: 0 | EV232: 0 | EW232: 0 | EX232: 0 | EY232: 0 | EZ232: 0 | FA232: 0 | FB232: 0 | FC232: 0 | FD232: 0 | FE232: 0 | FF232: 0 | FG232: 0 | FH232: 0 | FI232: 0 | FJ232: 0 | FK232: 0 | FL232: 0 | FM232: 0 | FN232: 0 | FO232: 0 | FP232: 0 | FQ232: 0 | FR232: 0 | FS232: 0 | FT232: 0 | FU232: 0 | FV232: 0 | FW232: 0 | FX232: 0 | FY232: 0 | FZ232: 0 | GA232: 0 | GB232: 0 | GC232: 0 | GD232: 0 | GE232: 0 | GF232: 0 | GG232: 0 | GH232: 0 | GI232: 0 | GJ232: 0 | GK232: 0 | GL232: 0 | GM232: 0 | GN232: 0 | GO232: 0 | GP232: 0 | GQ232: 0 | GR232: 0 | GS232: 0 | GT232: 0 | GU232: 0 | GV232: 0 | GW232: 0 | GX232: 0 | GY232: 0 | GZ232: 0 | HA232: 0 | HB232: 0 | HC232: 0 | HD232: 0 | HE232: 0 | HF232: 0 | HG232: 0 | HH232: 0 | HI232: 0 | HJ232: 0 | HK232: 0 | HL232: 0 | HM232: 0 | HN232: 0 | HO232: 0 | HP232: 0 | HQ232: 0 | HR232: 0 | HS232: 0 | HT232: 0 | HU232: 0 | HV232: 0 | HW232: 0 | HX232: 0 | HY232: 0 | HZ232: 0 | IA232: 0 | IB232: 0
A233: 5 | B233: 0 | C233: 0 | D233: 0 | E233: 0 | F233: 0 | G233: 0 | H233: 0 | I233: 0 | J233: 0 | K233: 0 | L233: 0 | M233: 0 | N233: 0 | O233: 0 | P233: 0 | Q233: 0 | R233: 0 | S233: 0 | T233: 0 | U233: 0 | V233: 0 | W233: 0 | X233: 0 | Y233: 0 | Z233: 0 | AA233: 0 | AB233: 0 | AC233: 0 | AD233: 0 | AE233: 0 | AF233: 0 | AG233: 0 | AH233: 0 | AI233: 0 | AJ233: 0 | AK233: 0 | AL233: 0 | AM233: 0 | AN233: 0 | AO233: 0 | AP233: 0 | AQ233: 0 | AR233: 0 | AS233: 0 | AT233: 0 | AU233: 0 | AV233: 0 | AW233: 0 | AX233: 0 | AY233: 0 | AZ233: 0 | BA233: 0 | BB233: 0 | BC233: 0 | BD233: 0 | BE233: 0 | BF233: 0 | BG233: 0 | BH233: 0 | BI233: 0 | BJ233: 0 | BK233: 0 | BL233: 0 | BM233: 0 | BN233: 0 | BO233: 0 | BP233: 0 | BQ233: 0 | BR233: 0 | BS233: 0 | BT233: 0 | BU233: 0 | BV233: 0 | BW233: 0 | BX233: 0 | BY233: 0 | BZ233: 0 | CA233: 0 | CB233: 0 | CC233: 0 | CD233: 0 | CE233: 0 | CF233: 0 | CG233: 0 | CH233: 0 | CI233: 0 | CJ233: 0 | CK233: 0 | CL233: 0 | CM233: 0 | CN233: 0 | CO233: 0 | CP233: 0 | CQ233: 0 | CR233: 0 | CS233: 0 | CT233: 0 | CU233: 0 | CV233: 0 | CW233: 0 | CX233: 0 | CY233: 0 | CZ233: 0 | DA233: 0 | DB233: 0 | DC233: 0 | DD233: 0 | DE233: 0 | DF233: 0 | DG233: 0 | DH233: 0 | DI233: 0 | DJ233: 0 | DK233: 0 | DL233: 0 | DM233: 0 | DN233: 0 | DO233: 0 | DP233: 0 | DQ233: 0 | DR233: 0 | DS233: 0 | DT233: 0 | DU233: 0 | DV233: 0 | DW233: 0 | DX233: 0 | DY233: 0 | DZ233: 0 | EA233: 0 | EB233: 0 | EC233: 0 | ED233: 0 | EE233: 0 | EF233: 0 | EG233: 0 | EH233: 0 | EI233: 0 | EJ233: 0 | EK233: 0 | EL233: 0 | EM233: 0 | EN233: 0 | EO233: 0 | EP233: 0 | EQ233: 0 | ER233: 0 | ES233: 0 | ET233: 0 | EU233: 0 | EV233: 0 | EW233: 0 | EX233: 0 | EY233: 0 | EZ233: 0 | FA233: 0 | FB233: 0 | FC233: 0 | FD233: 0 | FE233: 0 | FF233: 0 | FG233: 0 | FH233: 0 | FI233: 0 | FJ233: 0 | FK233: 0 | FL233: 0 | FM233: 0 | FN233: 0 | FO233: 0 | FP233: 0 | FQ233: 0 | FR233: 0 | FS233: 0 | FT233: 0 | FU233: 0 | FV233: 0 | FW233: 0 | FX233: 0 | FY233: 0 | FZ233: 0 | GA233: 0 | GB233: 0 | GC233: 0 | GD233: 0 | GE233: 0 | GF233: 0 | GG233: 0 | GH233: 0 | GI233: 0 | GJ233: 0 | GK233: 0 | GL233: 0 | GM233: 0 | GN233: 0 | GO233: 0 | GP233: 0 | GQ233: 0 | GR233: 0 | GS233: 0 | GT233: 0 | GU233: 0 | GV233: 0 | GW233: 0 | GX233: 0 | GY233: 0 | GZ233: 0 | HA233: 0 | HB233: 0 | HC233: 0 | HD233: 0 | HE233: 0 | HF233: 0 | HG233: 0 | HH233: 0 | HI233: 0 | HJ233: 0 | HK233: 0 | HL233: 0 | HM233: 0 | HN233: 0 | HO233: 0 | HP233: 0 | HQ233: 0 | HR233: 0 | HS233: 0 | HT233: 0 | HU233: 0 | HV233: 0 | HW233: 0 | HX233: 0 | HY233: 0 | HZ233: 0 | IA233: 0 | IB233: 0
A234: 2 | B234: 0 | C234: 0 | D234: 0 | E234: 0 | F234: 0 | G234: 0 | H234: 0 | I234: 0 | J234: 0 | K234: 0 | L234: 0 | M234: 0 | N234: 0 | O234: 0 | P234: 0 | Q234: 0 | R234: 0 | S234: 0 | T234: 0 | U234: 0 | V234: 0 | W234: 0 | X234: 0 | Y234: 0 | Z234: 0 | AA234: 0 | AB234: 0 | AC234: 0 | AD234: 0 | AE234: 0 | AF234: 0 | AG234: 0 | AH234: 0 | AI234: 0 | AJ234: 0 | AK234: 0 | AL234: 0 | AM234: 0 | AN234: 0 | AO234: 0 | AP234: 0 | AQ234: 0 | AR234: 0 | AS234: 0 | AT234: 0 | AU234: 0 | AV234: 0 | AW234: 0 | AX234: 0 | AY234: 0 | AZ234: 0 | BA234: 0 | BB234: 0 | BC234: 0 | BD234: 0 | BE234: 0 | BF234: 0 | BG234: 0 | BH234: 0 | BI234: 0 | BJ234: 0 | BK234: 0 | BL234: 0 | BM234: 0 | BN234: 0 | BO234: 0 | BP234: 0 | BQ234: 0 | BR234: 0 | BS234: 0 | BT234: 0 | BU234: 0 | BV234: 0 | BW234: 0 | BX234: 0 | BY234: 0 | BZ234: 0 | CA234: 0 | CB234: 0 | CC234: 0 | CD234: 0 | CE234: 0 | CF234: 0 | CG234: 0 | CH234: 0 | CI234: 0 | CJ234: 0 | CK234: 0 | CL234: 0 | CM234: 0 | CN234: 0 | CO234: 0 | CP234: 0 | CQ234: 0 | CR234: 0 | CS234: 0 | CT234: 0 | CU234: 0 | CV234: 0 | CW234: 0 | CX234: 0 | CY234: 0 | CZ234: 0 | DA234: 0 | DB234: 0 | DC234: 0 | DD234: 0 | DE234: 0 | DF234: 0 | DG234: 0 | DH234: 0 | DI234: 0 | DJ234: 0 | DK234: 0 | DL234: 0 | DM234: 0 | DN234: 0 | DO234: 0 | DP234: 0 | DQ234: 0 | DR234: 0 | DS234: 0 | DT234: 0 | DU234: 0 | DV234: 0 | DW234: 0 | DX234: 0 | DY234: 0 | DZ234: 0 | EA234: 0 | EB234: 0 | EC234: 0 | ED234: 0 | EE234: 0 | EF234: 0 | EG234: 0 | EH234: 0 | EI234: 0 | EJ234: 0 | EK234: 0 | EL234: 0 | EM234: 0 | EN234: 0 | EO234: 0 | EP234: 0 | EQ234: 0 | ER234: 0 | ES234: 0 | ET234: 0 | EU234: 0 | EV234: 0 | EW234: 0 | EX234: 0 | EY234: 0 | EZ234: 0 | FA234: 0 | FB234: 0 | FC234: 0 | FD234: 0 | FE234: 0 | FF234: 0 | FG234: 0 | FH234: 0 | FI234: 0 | FJ234: 0 | FK234: 0 | FL234: 0 | FM234: 0 | FN234: 0 | FO234: 0 | FP234: 0 | FQ234: 0 | FR234: 0 | FS234: 0 | FT234: 0 | FU234: 0 | FV234: 0 | FW234: 0 | FX234: 0 | FY234: 0 | FZ234: 0 | GA234: 0 | GB234: 0 | GC234: 0 | GD234: 0 | GE234: 0 | GF234: 0 | GG234: 0 | GH234: 0 | GI234: 0 | GJ234: 0 | GK234: 0 | GL234: 0 | GM234: 0 | GN234: 0 | GO234: 0 | GP234: 0 | GQ234: 0 | GR234: 0 | GS234: 0 | GT234: 0 | GU234: 0 | GV234: 0 | GW234: 0 | GX234: 0 | GY234: 0 | GZ234: 0 | HA234: 0 | HB234: 0 | HC234: 0 | HD234: 0 | HE234: 0 | HF234: 0 | HG234: 0 | HH234: 0 | HI234: 0 | HJ234: 0 | HK234: 0 | HL234: 0 | HM234: 0 | HN234: 0 | HO234: 0 | HP234: 0 | HQ234: 0 | HR234: 0 | HS234: 0 | HT234: 0 | HU234: 0 | HV234: 0 | HW234: 0 | HX234: 0 | HY234: 0 | HZ234: 0 | IA234: 0 | IB234: 0
A235: 3 | B235: 0 | C235: 0 | D235: 0 | E235: 0 | F235: 0 | G235: 0 | H235: 0 | I235: 0 | J235: 0 | K235: 0 | L235: 0 | M235: 0 | N235: 0 | O235: 0 | P235: 0 | Q235: 0 | R235: 0 | S235: 0 | T235: 0 | U235: 0 | V235: 0 | W235: 0 | X235: 0 | Y235: 0 | Z235: 0 | AA235: 0 | AB235: 0 | AC235: 0 | AD235: 0 | AE235: 0 | AF235: 0 | AG235: 0 | AH235: 0 | AI235: 0 | AJ235: 0 | AK235: 0 | AL235: 0 | AM235: 0 | AN235: 0 | AO235: 0 | AP235: 0 | AQ235: 0 | AR235: 0 | AS235: 0 | AT235: 0 | AU235: 0 | AV235: 0 | AW235: 0 | AX235: 0 | AY235: 0 | AZ235: 0 | BA235: 0 | BB235: 0 | BC235: 0 | BD235: 0 | BE235: 0 | BF235: 0 | BG235: 0 | BH235: 0 | BI235: 0 | BJ235: 0 | BK235: 0 | BL235: 0 | BM235: 0 | BN235: 0 | BO235: 0 | BP235: 0 | BQ235: 0 | BR235: 0 | BS235: 0 | BT235: 0 | BU235: 0 | BV235: 0 | BW235: 0 | BX235: 0 | BY235: 0 | BZ235: 0 | CA235: 0 | CB235: 0 | CC235: 0 | CD235: 0 | CE235: 0 | CF235: 0 | CG235: 0 | CH235: 0 | CI235: 0 | CJ235: 0 | CK235: 0 | CL235: 0 | CM235: 0 | CN235: 0 | CO235: 0 | CP235: 0 | CQ235: 0 | CR235: 0 | CS235: 0 | CT235: 0 | CU235: 0 | CV235: 0 | CW235: 0 | CX235: 0 | CY235: 0 | CZ235: 0 | DA235: 0 | DB235: 0 | DC235: 0 | DD235: 0 | DE235: 0 | DF235: 0 | DG235: 0 | DH235: 0 | DI235: 0 | DJ235: 0 | DK235: 0 | DL235: 0 | DM235: 0 | DN235: 0 | DO235: 0 | DP235: 0 | DQ235: 0 | DR235: 0 | DS235: 0 | DT235: 0 | DU235: 0 | DV235: 0 | DW235: 0 | DX235: 0 | DY235: 0 | DZ235: 0 | EA235: 0 | EB235: 0 | EC235: 0 | ED235: 0 | EE235: 0 | EF235: 0 | EG235: 0 | EH235: 0 | EI235: 0 | EJ235: 0 | EK235: 0 | EL235: 0 | EM235: 0 | EN235: 0 | EO235: 0 | EP235: 0 | EQ235: 0 | ER235: 0 | ES235: 0 | ET235: 0 | EU235: 0 | EV235: 0 | EW235: 0 | EX235: 0 | EY235: 0 | EZ235: 0 | FA235: 0 | FB235: 0 | FC235: 0 | FD235: 0 | FE235: 0 | FF235: 0 | FG235: 0 | FH235: 0 | FI235: 0 | FJ235: 0 | FK235: 0 | FL235: 0 | FM235: 0 | FN235: 0 | FO235: 0 | FP235: 0 | FQ235: 0 | FR235: 0 | FS235: 0 | FT235: 0 | FU235: 0 | FV235: 0 | FW235: 0 | FX235: 0 | FY235: 0 | FZ235: 0 | GA235: 0 | GB235: 0 | GC235: 0 | GD235: 0 | GE235: 0 | GF235: 0 | GG235: 0 | GH235: 0 | GI235: 0 | GJ235: 0 | GK235: 0 | GL235: 0 | GM235: 0 | GN235: 0 | GO235: 0 | GP235: 0 | GQ235: 0 | GR235: 0 | GS235: 0 | GT235: 0 | GU235: 0 | GV235: 0 | GW235: 0 | GX235: 0 | GY235: 0 | GZ235: 0 | HA235: 0 | HB235: 0 | HC235: 0 | HD235: 0 | HE235: 0 | HF235: 0 | HG235: 0 | HH235: 0 | HI235: 0 | HJ235: 0 | HK235: 0 | HL235: 0 | HM235: 0 | HN235: 0 | HO235: 0 | HP235: 0 | HQ235: 0 | HR235: 0 | HS235: 0 | HT235: 0 | HU235: 0 | HV235: 0 | HW235: 0 | HX235: 0 | HY235: 0 | HZ235: 0 | IA235: 0 | IB235: 0
A236: 4 | B236: 0 | C236: 0 | D236: 0 | E236: 0 | F236: 0 | G236: 0 | H236: 0 | I236: 0 | J236: 0 | K236: 0 | L236: 0 | M236: 0 | N236: 0 | O236: 0 | P236: 0 | Q236: 0 | R236: 0 | S236: 0 | T236: 0 | U236: 0 | V236: 0 | W236: 0 | X236: 0 | Y236: 0 | Z236: 0 | AA236: 0 | AB236: 0 | AC236: 0 | AD236: 0 | AE236: 0 | AF236: 0 | AG236: 0 | AH236: 0 | AI236: 0 | AJ236: 0 | AK236: 0 | AL236: 0 | AM236: 0 | AN236: 0 | AO236: 0 | AP236: 0 | AQ236: 0 | AR236: 0 | AS236: 0 | AT236: 0 | AU236: 0 | AV236: 0 | AW236: 0 | AX236: 0 | AY236: 0 | AZ236: 0 | BA236: 0 | BB236: 0 | BC236: 0 | BD236: 0 | BE236: 0 | BF236: 0 | BG236: 0 | BH236: 0 | BI236: 0 | BJ236: 0 | BK236: 0 | BL236: 0 | BM236: 0 | BN236: 0 | BO236: 0 | BP236: 0 | BQ236: 0 | BR236: 0 | BS236: 0 | BT236: 0 | BU236: 0 | BV236: 0 | BW236: 0 | BX236: 0 | BY236: 0 | BZ236: 0 | CA236: 0 | CB236: 0 | CC236: 0 | CD236: 0 | CE236: 0 | CF236: 0 | CG236: 0 | CH236: 0 | CI236: 0 | CJ236: 0 | CK236: 0 | CL236: 0 | CM236: 0 | CN236: 0 | CO236: 0 | CP236: 0 | CQ236: 0 | CR236: 0 | CS236: 0 | CT236: 0 | CU236: 0 | CV236: 0 | CW236: 0 | CX236: 0 | CY236: 0 | CZ236: 0 | DA236: 0 | DB236: 0 | DC236: 0 | DD236: 0 | DE236: 0 | DF236: 0 | DG236: 0 | DH236: 0 | DI236: 0 | DJ236: 0 | DK236: 0 | DL236: 0 | DM236: 0 | DN236: 0 | DO236: 0 | DP236: 0 | DQ236: 0 | DR236: 0 | DS236: 0 | DT236: 0 | DU236: 0 | DV236: 0 | DW236: 0 | DX236: 0 | DY236: 0 | DZ236: 0 | EA236: 0 | EB236: 0 | EC236: 0 | ED236: 0 | EE236: 0 | EF236: 0 | EG236: 0 | EH236: 0 | EI236: 0 | EJ236: 0 | EK236: 0 | EL236: 0 | EM236: 0 | EN236: 0 | EO236: 0 | EP236: 0 | EQ236: 0 | ER236: 0 | ES236: 0 | ET236: 0 | EU236: 0 | EV236: 0 | EW236: 0 | EX236: 0 | EY236: 0 | EZ236: 0 | FA236: 0 | FB236: 0 | FC236: 0 | FD236: 0 | FE236: 0 | FF236: 0 | FG236: 0 | FH236: 0 | FI236: 0 | FJ236: 0 | FK236: 0 | FL236: 0 | FM236: 0 | FN236: 0 | FO236: 0 | FP236: 0 | FQ236: 0 | FR236: 0 | FS236: 0 | FT236: 0 | FU236: 0 | FV236: 0 | FW236: 0 | FX236: 0 | FY236: 0 | FZ236: 0 | GA236: 0 | GB236: 0 | GC236: 0 | GD236: 0 | GE236: 0 | GF236: 0 | GG236: 0 | GH236: 0 | GI236: 0 | GJ236: 0 | GK236: 0 | GL236: 0 | GM236: 0 | GN236: 0 | GO236: 0 | GP236: 0 | GQ236: 0 | GR236: 0 | GS236: 0 | GT236: 0 | GU236: 0 | GV236: 0 | GW236: 0 | GX236: 0 | GY236: 0 | GZ236: 0 | HA236: 0 | HB236: 0 | HC236: 0 | HD236: 0 | HE236: 0 | HF236: 0 | HG236: 0 | HH236: 0 | HI236: 0 | HJ236: 0 | HK236: 0 | HL236: 0 | HM236: 0 | HN236: 0 | HO236: 0 | HP236: 0 | HQ236: 0 | HR236: 0 | HS236: 0 | HT236: 0 | HU236: 0 | HV236: 0 | HW236: 0 | HX236: 0 | HY236: 0 | HZ236: 0 | IA236: 0 | IB236: 0
A237: 6 | B237: 0 | C237: 0 | D237: 0 | E237: 0 | F237: 0 | G237: 0 | H237: 0 | I237: 0 | J237: 0 | K237: 0 | L237: 0 | M237: 0 | N237: 0 | O237: 0 | P237: 0 | Q237: 0 | R237: 0 | S237: 0 | T237: 0 | U237: 0 | V237: 0 | W237: 0 | X237: 0 | Y237: 0 | Z237: 0 | AA237: 0 | AB237: 0 | AC237: 0 | AD237: 0 | AE237: 0 | AF237: 0 | AG237: 0 | AH237: 0 | AI237: 0 | AJ237: 0 | AK237: 0 | AL237: 0 | AM237: 0 | AN237: 0 | AO237: 0 | AP237: 0 | AQ237: 0 | AR237: 0 | AS237: 0 | AT237: 0 | AU237: 0 | AV237: 0 | AW237: 0 | AX237: 0 | AY237: 0 | AZ237: 0 | BA237: 0 | BB237: 0 | BC237: 0 | BD237: 0 | BE237: 0 | BF237: 0 | BG237: 0 | BH237: 0 | BI237: 0 | BJ237: 0 | BK237: 0 | BL237: 0 | BM237: 0 | BN237: 0 | BO237: 0 | BP237: 0 | BQ237: 0 | BR237: 0 | BS237: 0 | BT237: 0 | BU237: 0 | BV237: 0 | BW237: 0 | BX237: 0 | BY237: 0 | BZ237: 0 | CA237: 0 | CB237: 0 | CC237: 0 | CD237: 0 | CE237: 0 | CF237: 0 | CG237: 0 | CH237: 0 | CI237: 0 | CJ237: 0 | CK237: 0 | CL237: 0 | CM237: 0 | CN237: 0 | CO237: 0 | CP237: 0 | CQ237: 0 | CR237: 0 | CS237: 0 | CT237: 0 | CU237: 0 | CV237: 0 | CW237: 0 | CX237: 0 | CY237: 0 | CZ237: 0 | DA237: 0 | DB237: 0 | DC237: 0 | DD237: 0 | DE237: 0 | DF237: 0 | DG237: 0 | DH237: 0 | DI237: 0 | DJ237: 0 | DK237: 0 | DL237: 0 | DM237: 0 | DN237: 0 | DO237: 0 | DP237: 0 | DQ237: 0 | DR237: 0 | DS237: 0 | DT237: 0 | DU237: 0 | DV237: 0 | DW237: 0 | DX237: 0 | DY237: 0 | DZ237: 0 | EA237: 0 | EB237: 0 | EC237: 0 | ED237: 0 | EE237: 0 | EF237: 0 | EG237: 0 | EH237: 0 | EI237: 0 | EJ237: 0 | EK237: 0 | EL237: 0 | EM237: 0 | EN237: 0 | EO237: 0 | EP237: 0 | EQ237: 0 | ER237: 0 | ES237: 0 | ET237: 0 | EU237: 0 | EV237: 0 | EW237: 0 | EX237: 0 | EY237: 0 | EZ237: 0 | FA237: 0 | FB237: 0 | FC237: 0 | FD237: 0 | FE237: 0 | FF237: 0 | FG237: 0 | FH237: 0 | FI237: 0 | FJ237: 0 | FK237: 0 | FL237: 0 | FM237: 0 | FN237: 0 | FO237: 0 | FP237: 0 | FQ237: 0 | FR237: 0 | FS237: 0 | FT237: 0 | FU237: 0 | FV237: 0 | FW237: 0 | FX237: 0 | FY237: 0 | FZ237: 0 | GA237: 0 | GB237: 0 | GC237: 0 | GD237: 0 | GE237: 0 | GF237: 0 | GG237: 0 | GH237: 0 | GI237: 0 | GJ237: 0 | GK237: 0 | GL237: 0 | GM237: 0 | GN237: 0 | GO237: 0 | GP237: 0 | GQ237: 0 | GR237: 0 | GS237: 0 | GT237: 0 | GU237: 0 | GV237: 0 | GW237: 0 | GX237: 0 | GY237: 0 | GZ237: 0 | HA237: 0 | HB237: 0 | HC237: 0 | HD237: 0 | HE237: 0 | HF237: 0 | HG237: 0 | HH237: 0 | HI237: 0 | HJ237: 0 | HK237: 0 | HL237: 0 | HM237: 0 | HN237: 0 | HO237: 0 | HP237: 0 | HQ237: 0 | HR237: 0 | HS237: 0 | HT237: 0 | HU237: 0 | HV237: 0 | HW237: 0 | HX237: 0 | HY237: 0 | HZ237: 0 | IA237: 0 | IB237: 0
A238: 11 | B238: 0 | C238: 0 | D238: 0 | E238: 0 | F238: 0 | G238: 0 | H238: 0 | I238: 0 | J238: 0 | K238: 0 | L238: 0 | M238: 0 | N238: 0 | O238: 0 | P238: 0 | Q238: 0 | R238: 0 | S238: 0 | T238: 0 | U238: 0 | V238: 0 | W238: 0 | X238: 0 | Y238: 0 | Z238: 0 | AA238: 0 | AB238: 0 | AC238: 0 | AD238: 0 | AE238: 0 | AF238: 0 | AG238: 0 | AH238: 0 | AI238: 0 | AJ238: 0 | AK238: 0 | AL238: 0 | AM238: 0 | AN238: 0 | AO238: 0 | AP238: 0 | AQ238: 0 | AR238: 0 | AS238: 0 | AT238: 0 | AU238: 0 | AV238: 0 | AW238: 0 | AX238: 0 | AY238: 0 | AZ238: 0 | BA238: 0 | BB238: 0 | BC238: 0 | BD238: 0 | BE238: 0 | BF238: 0 | BG238: 0 | BH238: 0 | BI238: 0 | BJ238: 0 | BK238: 0 | BL238: 0 | BM238: 0 | BN238: 0 | BO238: 0 | BP238: 0 | BQ238: 0 | BR238: 0 | BS238: 0 | BT238: 0 | BU238: 0 | BV238: 0 | BW238: 0 | BX238: 0 | BY238: 0 | BZ238: 0 | CA238: 0 | CB238: 0 | CC238: 0 | CD238: 0 | CE238: 0 | CF238: 0 | CG238: 0 | CH238: 0 | CI238: 0 | CJ238: 0 | CK238: 0 | CL238: 0 | CM238: 0 | CN238: 0 | CO238: 0 | CP238: 0 | CQ238: 0 | CR238: 0 | CS238: 0 | CT238: 0 | CU238: 0 | CV238: 0 | CW238: 0 | CX238: 0 | CY238: 0 | CZ238: 0 | DA238: 0 | DB238: 0 | DC238: 0 | DD238: 0 | DE238: 0 | DF238: 0 | DG238: 0 | DH238: 0 | DI238: 0 | DJ238: 0 | DK238: 0 | DL238: 0 | DM238: 0 | DN238: 0 | DO238: 0 | DP238: 0 | DQ238: 0 | DR238: 0 | DS238: 0 | DT238: 0 | DU238: 0 | DV238: 0 | DW238: 0 | DX238: 0 | DY238: 0 | DZ238: 0 | EA238: 0 | EB238: 0 | EC238: 0 | ED238: 0 | EE238: 0 | EF238: 0 | EG238: 0 | EH238: 0 | EI238: 0 | EJ238: 0 | EK238: 0 | EL238: 0 | EM238: 0 | EN238: 0 | EO238: 0 | EP238: 0 | EQ238: 0 | ER238: 0 | ES238: 0 | ET238: 0 | EU238: 0 | EV238: 0 | EW238: 0 | EX238: 0 | EY238: 0 | EZ238: 0 | FA238: 0 | FB238: 0 | FC238: 0 | FD238: 0 | FE238: 0 | FF238: 0 | FG238: 0 | FH238: 0 | FI238: 0 | FJ238: 0 | FK238: 0 | FL238: 0 | FM238: 0 | FN238: 0 | FO238: 0 | FP238: 0 | FQ238: 0 | FR238: 0 | FS238: 0 | FT238: 0 | FU238: 0 | FV238: 0 | FW238: 0 | FX238: 0 | FY238: 0 | FZ238: 0 | GA238: 0 | GB238: 0 | GC238: 0 | GD238: 0 | GE238: 0 | GF238: 0 | GG238: 0 | GH238: 0 | GI238: 0 | GJ238: 0 | GK238: 0 | GL238: 0 | GM238: 0 | GN238: 0 | GO238: 0 | GP238: 0 | GQ238: 0 | GR238: 0 | GS238: 0 | GT238: 0 | GU238: 0 | GV238: 0 | GW238: 0 | GX238: 0 | GY238: 0 | GZ238: 0 | HA238: 0 | HB238: 0 | HC238: 0 | HD238: 0 | HE238: 0 | HF238: 0 | HG238: 0 | HH238: 0 | HI238: 0 | HJ238: 0 | HK238: 0 | HL238: 0 | HM238: 0 | HN238: 0 | HO238: 0 | HP238: 0 | HQ238: 0 | HR238: 0 | HS238: 0 | HT238: 0 | HU238: 0 | HV238: 0 | HW238: 0 | HX238: 0 | HY238: 0 | HZ238: 0 | IA238: 0 | IB238: 0
A239: 10 | B239: 0 | C239: 0 | D239: 0 | E239: 0 | F239: 0 | G239: 0 | H239: 0 | I239: 0 | J239: 0 | K239: 0 | L239: 0 | M239: 0 | N239: 0 | O239: 0 | P239: 0 | Q239: 0 | R239: 0 | S239: 0 | T239: 0 | U239: 0 | V239: 0 | W239: 0 | X239: 0 | Y239: 0 | Z239: 0 | AA239: 0 | AB239: 0 | AC239: 0 | AD239: 0 | AE239: 0 | AF239: 0 | AG239: 0 | AH239: 0 | AI239: 0 | AJ239: 0 | AK239: 0 | AL239: 0 | AM239: 0 | AN239: 0 | AO239: 0 | AP239: 0 | AQ239: 0 | AR239: 0 | AS239: 0 | AT239: 0 | AU239: 0 | AV239: 0 | AW239: 0 | AX239: 0 | AY239: 0 | AZ239: 0 | BA239: 0 | BB239: 0 | BC239: 0 | BD239: 0 | BE239: 0 | BF239: 0 | BG239: 0 | BH239: 0 | BI239: 0 | BJ239: 0 | BK239: 0 | BL239: 0 | BM239: 0 | BN239: 0 | BO239: 0 | BP239: 0 | BQ239: 0 | BR239: 0 | BS239: 0 | BT239: 0 | BU239: 0 | BV239: 0 | BW239: 0 | BX239: 0 | BY239: 0 | BZ239: 0 | CA239: 0 | CB239: 0 | CC239: 0 | CD239: 0 | CE239: 0 | CF239: 0 | CG239: 0 | CH239: 0 | CI239: 0 | CJ239: 0 | CK239: 0 | CL239: 0 | CM239: 0 | CN239: 0 | CO239: 0 | CP239: 0 | CQ239: 0 | CR239: 0 | CS239: 0 | CT239: 0 | CU239: 0 | CV239: 0 | CW239: 0 | CX239: 0 | CY239: 0 | CZ239: 0 | DA239: 0 | DB239: 0 | DC239: 0 | DD239: 0 | DE239: 0 | DF239: 0 | DG239: 0 | DH239: 0 | DI239: 0 | DJ239: 0 | DK239: 0 | DL239: 0 | DM239: 0 | DN239: 0 | DO239: 0 | DP239: 0 | DQ239: 0 | DR239: 0 | DS239: 0 | DT239: 0 | DU239: 0 | DV239: 0 | DW239: 0 | DX239: 0 | DY239: 0 | DZ239: 0 | EA239: 0 | EB239: 0 | EC239: 0 | ED239: 0 | EE239: 0 | EF239: 0 | EG239: 0 | EH239: 0 | EI239: 0 | EJ239: 0 | EK239: 0 | EL239: 0 | EM239: 0 | EN239: 0 | EO239: 0 | EP239: 0 | EQ239: 0 | ER239: 0 | ES239: 0 | ET239: 0 | EU239: 0 | EV239: 0 | EW239: 0 | EX239: 0 | EY239: 0 | EZ239: 0 | FA239: 0 | FB239: 0 | FC239: 0 | FD239: 0 | FE239: 0 | FF239: 0 | FG239: 0 | FH239: 0 | FI239: 0 | FJ239: 0 | FK239: 0 | FL239: 0 | FM239: 0 | FN239: 0 | FO239: 0 | FP239: 0 | FQ239: 0 | FR239: 0 | FS239: 0 | FT239: 0 | FU239: 0 | FV239: 0 | FW239: 0 | FX239: 0 | FY239: 0 | FZ239: 0 | GA239: 0 | GB239: 0 | GC239: 0 | GD239: 0 | GE239: 0 | GF239: 0 | GG239: 0 | GH239: 0 | GI239: 0 | GJ239: 0 | GK239: 0 | GL239: 0 | GM239: 0 | GN239: 0 | GO239: 0 | GP239: 0 | GQ239: 0 | GR239: 0 | GS239: 0 | GT239: 0 | GU239: 0 | GV239: 0 | GW239: 0 | GX239: 0 | GY239: 0 | GZ239: 0 | HA239: 0 | HB239: 0 | HC239: 0 | HD239: 0 | HE239: 0 | HF239: 0 | HG239: 0 | HH239: 0 | HI239: 0 | HJ239: 0 | HK239: 0 | HL239: 0 | HM239: 0 | HN239: 0 | HO239: 0 | HP239: 0 | HQ239: 0 | HR239: 0 | HS239: 0 | HT239: 0 | HU239: 0 | HV239: 0 | HW239: 0 | HX239: 0 | HY239: 0 | HZ239: 0 | IA239: 0 | IB239: 0
A240: 9 | B240: 0 | C240: 0 | D240: 0 | E240: 0 | F240: 0 | G240: 0 | H240: 0 | I240: 0 | J240: 0 | K240: 0 | L240: 0 | M240: 0 | N240: 0 | O240: 0 | P240: 0 | Q240: 0 | R240: 0 | S240: 0 | T240: 0 | U240: 0 | V240: 0 | W240: 0 | X240: 0 | Y240: 0 | Z240: 0 | AA240: 0 | AB240: 0 | AC240: 0 | AD240: 0 | AE240: 0 | AF240: 0 | AG240: 0 | AH240: 0 | AI240: 0 | AJ240: 0 | AK240: 0 | AL240: 0 | AM240: 0 | AN240: 0 | AO240: 0 | AP240: 0 | AQ240: 0 | AR240: 0 | AS240: 0 | AT240: 0 | AU240: 0 | AV240: 0 | AW240: 0 | AX240: 0 | AY240: 0 | AZ240: 0 | BA240: 0 | BB240: 0 | BC240: 0 | BD240: 0 | BE240: 0 | BF240: 0 | BG240: 0 | BH240: 0 | BI240: 0 | BJ240: 0 | BK240: 0 | BL240: 0 | BM240: 0 | BN240: 0 | BO240: 0 | BP240: 0 | BQ240: 0 | BR240: 0 | BS240: 0 | BT240: 0 | BU240: 0 | BV240: 0 | BW240: 0 | BX240: 0 | BY240: 0 | BZ240: 0 | CA240: 0 | CB240: 0 | CC240: 0 | CD240: 0 | CE240: 0 | CF240: 0 | CG240: 0 | CH240: 0 | CI240: 0 | CJ240: 0 | CK240: 0 | CL240: 0 | CM240: 0 | CN240: 0 | CO240: 0 | CP240: 0 | CQ240: 0 | CR240: 0 | CS240: 0 | CT240: 0 | CU240: 0 | CV240: 0 | CW240: 0 | CX240: 0 | CY240: 0 | CZ240: 0 | DA240: 0 | DB240: 0 | DC240: 0 | DD240: 0 | DE240: 0 | DF240: 0 | DG240: 0 | DH240: 0 | DI240: 0 | DJ240: 0 | DK240: 0 | DL240: 0 | DM240: 0 | DN240: 0 | DO240: 0 | DP240: 0 | DQ240: 0 | DR240: 0 | DS240: 0 | DT240: 0 | DU240: 0 | DV240: 0 | DW240: 0 | DX240: 0 | DY240: 0 | DZ240: 0 | EA240: 0 | EB240: 0 | EC240: 0 | ED240: 0 | EE240: 0 | EF240: 0 | EG240: 0 | EH240: 0 | EI240: 0 | EJ240: 0 | EK240: 0 | EL240: 0 | EM240: 0 | EN240: 0 | EO240: 0 | EP240: 0 | EQ240: 0 | ER240: 0 | ES240: 0 | ET240: 0 | EU240: 0 | EV240: 0 | EW240: 0 | EX240: 0 | EY240: 0 | EZ240: 0 | FA240: 0 | FB240: 0 | FC240: 0 | FD240: 0 | FE240: 0 | FF240: 0 | FG240: 0 | FH240: 0 | FI240: 0 | FJ240: 0 | FK240: 0 | FL240: 0 | FM240: 0 | FN240: 0 | FO240: 0 | FP240: 0 | FQ240: 0 | FR240: 0 | FS240: 0 | FT240: 0 | FU240: 0 | FV240: 0 | FW240: 0 | FX240: 0 | FY240: 0 | FZ240: 0 | GA240: 0 | GB240: 0 | GC240: 0 | GD240: 0 | GE240: 0 | GF240: 0 | GG240: 0 | GH240: 0 | GI240: 0 | GJ240: 0 | GK240: 0 | GL240: 0 | GM240: 0 | GN240: 0 | GO240: 0 | GP240: 0 | GQ240: 0 | GR240: 0 | GS240: 0 | GT240: 0 | GU240: 0 | GV240: 0 | GW240: 0 | GX240: 0 | GY240: 0 | GZ240: 0 | HA240: 0 | HB240: 0 | HC240: 0 | HD240: 0 | HE240: 0 | HF240: 0 | HG240: 0 | HH240: 0 | HI240: 0 | HJ240: 0 | HK240: 0 | HL240: 0 | HM240: 0 | HN240: 0 | HO240: 0 | HP240: 0 | HQ240: 0 | HR240: 0 | HS240: 0 | HT240: 0 | HU240: 0 | HV240: 0 | HW240: 0 | HX240: 0 | HY240: 0 | HZ240: 0 | IA240: 0 | IB240: 0
A241: 8 | B241: 0 | C241: 0 | D241: 0 | E241: 0 | F241: 0 | G241: 0 | H241: 0 | I241: 0 | J241: 0 | K241: 0 | L241: 0 | M241: 0 | N241: 0 | O241: 0 | P241: 0 | Q241: 0 | R241: 0 | S241: 0 | T241: 0 | U241: 0 | V241: 0 | W241: 0 | X241: 0 | Y241: 0 | Z241: 0 | AA241: 0 | AB241: 0 | AC241: 0 | AD241: 0 | AE241: 0 | AF241: 0 | AG241: 0 | AH241: 0 | AI241: 0 | AJ241: 0 | AK241: 0 | AL241: 0 | AM241: 0 | AN241: 0 | AO241: 0 | AP241: 0 | AQ241: 0 | AR241: 0 | AS241: 0 | AT241: 0 | AU241: 0 | AV241: 0 | AW241: 0 | AX241: 0 | AY241: 0 | AZ241: 0 | BA241: 0 | BB241: 0 | BC241: 0 | BD241: 0 | BE241: 0 | BF241: 0 | BG241: 0 | BH241: 0 | BI241: 0 | BJ241: 0 | BK241: 0 | BL241: 0 | BM241: 0 | BN241: 0 | BO241: 0 | BP241: 0 | BQ241: 0 | BR241: 0 | BS241: 0 | BT241: 0 | BU241: 0 | BV241: 0 | BW241: 0 | BX241: 0 | BY241: 0 | BZ241: 0 | CA241: 0 | CB241: 0 | CC241: 0 | CD241: 0 | CE241: 0 | CF241: 0 | CG241: 0 | CH241: 0 | CI241: 0 | CJ241: 0 | CK241: 0 | CL241: 0 | CM241: 0 | CN241: 0 | CO241: 0 | CP241: 0 | CQ241: 0 | CR241: 0 | CS241: 0 | CT241: 0 | CU241: 0 | CV241: 0 | CW241: 0 | CX241: 0 | CY241: 0 | CZ241: 0 | DA241: 0 | DB241: 0 | DC241: 0 | DD241: 0 | DE241: 0 | DF241: 0 | DG241: 0 | DH241: 0 | DI241: 0 | DJ241: 0 | DK241: 0 | DL241: 0 | DM241: 0 | DN241: 0 | DO241: 0 | DP241: 0 | DQ241: 0 | DR241: 0 | DS241: 0 | DT241: 0 | DU241: 0 | DV241: 0 | DW241: 0 | DX241: 0 | DY241: 0 | DZ241: 0 | EA241: 0 | EB241: 0 | EC241: 0 | ED241: 0 | EE241: 0 | EF241: 0 | EG241: 0 | EH241: 0 | EI241: 0 | EJ241: 0 | EK241: 0 | EL241: 0 | EM241: 0 | EN241: 0 | EO241: 0 | EP241: 0 | EQ241: 0 | ER241: 0 | ES241: 0 | ET241: 0 | EU241: 0 | EV241: 0 | EW241: 0 | EX241: 0 | EY241: 0 | EZ241: 0 | FA241: 0 | FB241: 0 | FC241: 0 | FD241: 0 | FE241: 0 | FF241: 0 | FG241: 0 | FH241: 0 | FI241: 0 | FJ241: 0 | FK241: 0 | FL241: 0 | FM241: 0 | FN241: 0 | FO241: 0 | FP241: 0 | FQ241: 0 | FR241: 0 | FS241: 0 | FT241: 0 | FU241: 0 | FV241: 0 | FW241: 0 | FX241: 0 | FY241: 0 | FZ241: 0 | GA241: 0 | GB241: 0 | GC241: 0 | GD241: 0 | GE241: 0 | GF241: 0 | GG241: 0 | GH241: 0 | GI241: 0 | GJ241: 0 | GK241: 0 | GL241: 0 | GM241: 0 | GN241: 0 | GO241: 0 | GP241: 0 | GQ241: 0 | GR241: 0 | GS241: 0 | GT241: 0 | GU241: 0 | GV241: 0 | GW241: 0 | GX241: 0 | GY241: 0 | GZ241: 0 | HA241: 0 | HB241: 0 | HC241: 0 | HD241: 0 | HE241: 0 | HF241: 0 | HG241: 0 | HH241: 0 | HI241: 0 | HJ241: 0 | HK241: 0 | HL241: 0 | HM241: 0 | HN241: 0 | HO241: 0 | HP241: 0 | HQ241: 0 | HR241: 0 | HS241: 0 | HT241: 0 | HU241: 0 | HV241: 0 | HW241: 0 | HX241: 0 | HY241: 0 | HZ241: 0 | IA241: 0 | IB241: 0
A242: 7 | B242: 0 | C242: 0 | D242: 0 | E242: 0 | F242: 0 | G242: 0 | H242: 0 | I242: 0 | J242: 0 | K242: 0 | L242: 0 | M242: 0 | N242: 0 | O242: 0 | P242: 0 | Q242: 0 | R242: 0 | S242: 0 | T242: 0 | U242: 0 | V242: 0 | W242: 0 | X242: 0 | Y242: 0 | Z242: 0 | AA242: 0 | AB242: 0 | AC242: 0 | AD242: 0 | AE242: 0 | AF242: 0 | AG242: 0 | AH242: 0 | AI242: 0 | AJ242: 0 | AK242: 0 | AL242: 0 | AM242: 0 | AN242: 0 | AO242: 0 | AP242: 0 | AQ242: 0 | AR242: 0 | AS242: 0 | AT242: 0 | AU242: 0 | AV242: 0 | AW242: 0 | AX242: 0 | AY242: 0 | AZ242: 0 | BA242: 0 | BB242: 0 | BC242: 0 | BD242: 0 | BE242: 0 | BF242: 0 | BG242: 0 | BH242: 0 | BI242: 0 | BJ242: 0 | BK242: 0 | BL242: 0 | BM242: 0 | BN242: 0 | BO242: 0 | BP242: 0 | BQ242: 0 | BR242: 0 | BS242: 0 | BT242: 0 | BU242: 0 | BV242: 0 | BW242: 0 | BX242: 0 | BY242: 0 | BZ242: 0 | CA242: 0 | CB242: 0 | CC242: 0 | CD242: 0 | CE242: 0 | CF242: 0 | CG242: 0 | CH242: 0 | CI242: 0 | CJ242: 0 | CK242: 0 | CL242: 0 | CM242: 0 | CN242: 0 | CO242: 0 | CP242: 0 | CQ242: 0 | CR242: 0 | CS242: 0 | CT242: 0 | CU242: 0 | CV242: 0 | CW242: 0 | CX242: 0 | CY242: 0 | CZ242: 0 | DA242: 0 | DB242: 0 | DC242: 0 | DD242: 0 | DE242: 0 | DF242: 0 | DG242: 0 | DH242: 0 | DI242: 0 | DJ242: 0 | DK242: 0 | DL242: 0 | DM242: 0 | DN242: 0 | DO242: 0 | DP242: 0 | DQ242: 0 | DR242: 0 | DS242: 0 | DT242: 0 | DU242: 0 | DV242: 0 | DW242: 0 | DX242: 0 | DY242: 0 | DZ242: 0 | EA242: 0 | EB242: 0 | EC242: 0 | ED242: 0 | EE242: 0 | EF242: 0 | EG242: 0 | EH242: 0 | EI242: 0 | EJ242: 0 | EK242: 0 | EL242: 0 | EM242: 0 | EN242: 0 | EO242: 0 | EP242: 0 | EQ242: 0 | ER242: 0 | ES242: 0 | ET242: 0 | EU242: 0 | EV242: 0 | EW242: 0 | EX242: 0 | EY242: 0 | EZ242: 0 | FA242: 0 | FB242: 0 | FC242: 0 | FD242: 0 | FE242: 0 | FF242: 0 | FG242: 0 | FH242: 0 | FI242: 0 | FJ242: 0 | FK242: 0 | FL242: 0 | FM242: 0 | FN242: 0 | FO242: 0 | FP242: 0 | FQ242: 0 | FR242: 0 | FS242: 0 | FT242: 0 | FU242: 0 | FV242: 0 | FW242: 0 | FX242: 0 | FY242: 0 | FZ242: 0 | GA242: 0 | GB242: 0 | GC242: 0 | GD242: 0 | GE242: 0 | GF242: 0 | GG242: 0 | GH242: 0 | GI242: 0 | GJ242: 0 | GK242: 0 | GL242: 0 | GM242: 0 | GN242: 0 | GO242: 0 | GP242: 0 | GQ242: 0 | GR242: 0 | GS242: 0 | GT242: 0 | GU242: 0 | GV242: 0 | GW242: 0 | GX242: 0 | GY242: 0 | GZ242: 0 | HA242: 0 | HB242: 0 | HC242: 0 | HD242: 0 | HE242: 0 | HF242: 0 | HG242: 0 | HH242: 0 | HI242: 0 | HJ242: 0 | HK242: 0 | HL242: 0 | HM242: 0 | HN242: 0 | HO242: 0 | HP242: 0 | HQ242: 0 | HR242: 0 | HS242: 0 | HT242: 0 | HU242: 0 | HV242: 0 | HW242: 0 | HX242: 0 | HY242: 0 | HZ242: 0 | IA242: 0 | IB242: 0
A243: Total general | B243: 0 | C243: 0 | D243: 0 | E243: 0 | F243: 0 | G243: 0 | H243: 0 | I243: 0 | J243: 0 | K243: 0 | L243: 0 | M243: 0 | N243: 0 | O243: 0 | P243: 0 | Q243: 0 | R243: 0 | S243: 0 | T243: 0 | U243: 0 | V243: 0 | W243: 0 | X243: 0 | Y243: 0 | Z243: 0 | AA243: 0 | AB243: 0 | AC243: 0 | AD243: 0 | AE243: 0 | AF243: 0 | AG243: 0 | AH243: 0 | AI243: 0 | AJ243: 0 | AK243: 0 | AL243: 0 | AM243: 0 | AN243: 0 | AO243: 0 | AP243: 0 | AQ243: 0 | AR243: 0 | AS243: 0 | AT243: 0 | AU243: 0 | AV243: 0 | AW243: 0 | AX243: 0 | AY243: 0 | AZ243: 0 | BA243: 0 | BB243: 0 | BC243: 0 | BD243: 0 | BE243: 0 | BF243: 0 | BG243: 0 | BH243: 0 | BI243: 0 | BJ243: 0 | BK243: 0 | BL243: 0 | BM243: 0 | BN243: 0 | BO243: 0 | BP243: 0 | BQ243: 0 | BR243: 0 | BS243: 0 | BT243: 0 | BU243: 0 | BV243: 0 | BW243: 0 | BX243: 0 | BY243: 0 | BZ243: 0 | CA243: 0 | CB243: 0 | CC243: 0 | CD243: 0 | CE243: 0 | CF243: 0 | CG243: 0 | CH243: 0 | CI243: 0 | CJ243: 0 | CK243: 0 | CL243: 0 | CM243: 0 | CN243: 0 | CO243: 0 | CP243: 0 | CQ243: 0 | CR243: 0 | CS243: 0 | CT243: 0 | CU243: 0 | CV243: 0 | CW243: 0 | CX243: 0 | CY243: 0 | CZ243: 0 | DA243: 0 | DB243: 0 | DC243: 0 | DD243: 0 | DE243: 0 | DF243: 0 | DG243: 0 | DH243: 0 | DI243: 0 | DJ243: 0 | DK243: 0 | DL243: 0 | DM243: 0 | DN243: 0 | DO243: 0 | DP243: 0 | DQ243: 0 | DR243: 0 | DS243: 0 | DT243: 0 | DU243: 0 | DV243: 0 | DW243: 0 | DX243: 0 | DY243: 0 | DZ243: 0 | EA243: 0 | EB243: 0 | EC243: 0 | ED243: 0 | EE243: 0 | EF243: 0 | EG243: 0 | EH243: 0 | EI243: 0 | EJ243: 0 | EK243: 0 | EL243: 0 | EM243: 0 | EN243: 0 | EO243: 0 | EP243: 0 | EQ243: 0 | ER243: 0 | ES243: 0 | ET243: 0 | EU243: 0 | EV243: 0 | EW243: 0 | EX243: 0 | EY243: 0 | EZ243: 0 | FA243: 0 | FB243: 0 | FC243: 0 | FD243: 0 | FE243: 0 | FF243: 0 | FG243: 0 | FH243: 0 | FI243: 0 | FJ243: 0 | FK243: 0 | FL243: 0 | FM243: 0 | FN243: 0 | FO243: 0 | FP243: 0 | FQ243: 0 | FR243: 0 | FS243: 0 | FT243: 0 | FU243: 0 | FV243: 0 | FW243: 0 | FX243: 0 | FY243: 0 | FZ243: 0 | GA243: 0 | GB243: 0 | GC243: 0 | GD243: 0 | GE243: 0 | GF243: 0 | GG243: 0 | GH243: 0 | GI243: 0 | GJ243: 0 | GK243: 0 | GL243: 0 | GM243: 0 | GN243: 0 | GO243: 0 | GP243: 0 | GQ243: 0 | GR243: 0 | GS243: 0 | GT243: 0 | GU243: 0 | GV243: 0 | GW243: 0 | GX243: 0 | GY243: 0 | GZ243: 0 | HA243: 0 | HB243: 0 | HC243: 0 | HD243: 0 | HE243: 0 | HF243: 0 | HG243: 0 | HH243: 0 | HI243: 0 | HJ243: 0 | HK243: 0 | HL243: 0 | HM243: 0 | HN243: 0 | HO243: 0 | HP243: 0 | HQ243: 0 | HR243: 0 | HS243: 0 | HT243: 0 | HU243: 0 | HV243: 0 | HW243: 0 | HX243: 0 | HY243: 0 | HZ243: 0 | IA243: 0 | IB243: 0
A245: TOTAL
A246: =COUNT(A232:A243) -> 11 | B246: =SUM(B232:B243) -> 0 | C246: =SUM(C232:C243) -> 0 | D246: 0 | E246: 0 | F246: 0 | G246: 0 | H246: 0 | I246: 0 | J246: 0 | K246: 0 | L246: 0 | M246: 0 | N246: 0 | O246: 0 | P246: 0 | Q246: 0 | R246: 0 | S246: 0 | T246: 0 | U246: 0 | V246: 0 | W246: 0 | X246: 0 | Y246: 0 | Z246: 0 | AA246: 0 | AB246: 0 | AC246: 0 | AD246: 0 | AE246: 0 | AF246: 0 | AG246: 0 | AH246: 0 | AI246: 0 | AJ246: 0 | AK246: 0 | AL246: 0 | AM246: 0 | AN246: 0 | AO246: 0 | AP246: 0 | AQ246: 0 | AR246: 0 | AS246: 0 | AT246: 0 | AU246: 0 | AV246: 0 | AW246: 0 | AX246: 0 | AY246: 0 | AZ246: 0 | BA246: 0 | BB246: 0 | BC246: 0 | BD246: 0 | BE246: 0 | BF246: 0 | BG246: 0 | BH246: 0 | BI246: 0 | BJ246: 0 | BK246: 0 | BL246: 0 | BM246: 0 | BN246: 0 | BO246: =SUM(BO232:BO243) -> 0 | BP246: 0 | BQ246: 0 | BR246: 0 | BS246: 0 | BT246: 0 | BU246: 0 | BV246: 0 | BW246: 0 | BX246: 0 | BY246: 0 | BZ246: 0 | CA246: 0 | CB246: 0 | CC246: 0 | CD246: 0 | CE246: 0 | CF246: 0 | CG246: 0 | CH246: 0 | CI246: 0 | CJ246: 0 | CK246: 0 | CL246: 0 | CM246: 0 | CN246: 0 | CO246: 0 | CP246: 0 | CQ246: 0 | CR246: 0 | CS246: 0 | CT246: 0 | CU246: 0 | CV246: 0 | CW246: 0 | CX246: 0 | CY246: 0 | CZ246: 0 | DA246: 0 | DB246: 0 | DC246: 0 | DD246: 0 | DE246: 0 | DF246: 0 | DG246: 0 | DH246: 0 | DI246: 0 | DJ246: 0 | DK246: 0 | DL246: 0 | DM246: 0 | DN246: 0 | DO246: 0 | DP246: 0 | DQ246: 0 | DR246: 0 | DS246: 0 | DT246: 0 | DU246: 0 | DV246: 0 | DW246: 0 | DX246: 0 | DY246: 0 | DZ246: 0 | EA246: =SUM(EA232:EA243) -> 0 | EB246: 0 | EC246: 0 | ED246: 0 | EE246: 0 | EF246: 0 | EG246: 0 | EH246: 0 | EI246: 0 | EJ246: 0 | EK246: 0 | EL246: 0 | EM246: 0 | EN246: 0 | EO246: 0 | EP246: 0 | EQ246: 0 | ER246: 0 | ES246: 0 | ET246: 0 | EU246: 0 | EV246: 0 | EW246: 0 | EX246: 0 | EY246: 0 | EZ246: 0 | FA246: 0 | FB246: 0 | FC246: 0 | FD246: 0 | FE246: 0 | FF246: 0 | FG246: 0 | FH246: 0 | FI246: 0 | FJ246: 0 | FK246: 0 | FL246: 0 | FM246: 0 | FN246: 0 | FO246: 0 | FP246: 0 | FQ246: 0 | FR246: 0 | FS246: 0 | FT246: 0 | FU246: 0 | FV246: 0 | FW246: 0 | FX246: 0 | FY246: 0 | FZ246: 0 | GA246: 0 | GB246: 0 | GC246: 0 | GD246: 0 | GE246: 0 | GF246: 0 | GG246: 0 | GH246: 0 | GI246: 0 | GJ246: 0 | GK246: 0 | GL246: 0 | GM246: =SUM(GM232:GM243) -> 0 | GN246: 0 | GO246: 0 | GP246: 0 | GQ246: 0 | GR246: 0 | GS246: 0 | GT246: 0 | GU246: 0 | GV246: 0 | GW246: 0 | GX246: 0 | GY246: 0 | GZ246: 0 | HA246: 0 | HB246: 0 | HC246: 0 | HD246: 0 | HE246: 0 | HF246: 0 | HG246: 0 | HH246: 0 | HI246: 0 | HJ246: 0 | HK246: 0 | HL246: 0 | HM246: 0 | HN246: 0 | HO246: 0 | HP246: 0 | HQ246: 0 | HR246: 0 | HS246: 0 | HT246: 0 | HU246: 0 | HV246: 0 | HW246: 0 | HX246: =SUM(HX232:HX243) -> 0 | HY246: 0 | HZ246: 0 | IA246: 0 | IB246: 0
A247: =CONCATENATE(A232,"-",A233,"-",A234,"-",A235,"-",A236,"-",A237,"-",A238,"-",A239,"-",A240,"-",A241,"-",A242,"-",A243) -> 1-5-2-3-4-6-11-10-9-8-7-Total general
B248: BAS001 | C248: BAS002 | D248: BAS003 | E248: BAS004 | F248: BAS005 | G248: BAS006 | H248: BAS007 | I248: BAS008 | J248: BAS009 | K248: BAS010 | L248: BAS011 | M248: BAS012 | N248: BAS013 | O248: BAS014 | P248: BAS015 | Q248: BAS016 | R248: BAS017 | S248: BAS018 | T248: BAS019 | U248: BAS020 | V248: BAS021 | W248: BAS022 | X248: BAS023 | Y248: BAS024 | Z248: BAS025 | AA248: BAS026 | AB248: BAS027 | AC248: BAS028 | AD248: BAS029 | AE248: BAS030 | AF248: BAS031 | AG248: BAS032 | AH248: BAS033 | AI248: BAS034 | AJ248: BAS035 | AK248: BAS036 | AL248: BAS037 | AM248: BAS038 | AN248: BAS039 | AO248: BAS040 | AP248: BAS041 | AQ248: BAS042 | AR248: BAS043 | AS248: BAS044 | AT248: BAS045 | AU248: BAS046 | AV248: BAS047 | AW248: BAS048 | AX248: BAS049 | AY248: BAS050 | AZ248: BAS051 | BA248: BAS052 | BB248: BAS053 | BC248: BAS054 | BD248: BAS055 | BE248: BAS056 | BF248: BAS057 | BG248: BAS058 | BH248: BAS059 | BI248: BAS060 | BJ248: BAS061 | BK248: BAS062 | BL248: BAS063 | BM248: BAS064 | BN248: BAS065 | BO248: BAS066 | BP248: BAS067 | BQ248: BAS068 | BR248: BAS069 | BS248: BAS070 | BT248: BAS071 | BU248: BAS072 | BV248: BAS073 | BW248: BAS074 | BX248: BAS075 | BY248: BAS076 | BZ248: BAS077 | CA248: BAS078 | CB248: BAS079 | CC248: BAS080 | CD248: BAS081 | CE248: BAS082 | CF248: BAS083 | CG248: BAS084 | CH248: BAS085 | CI248: BAS086 | CJ248: BAS087 | CK248: BAS088 | CL248: BAS089 | CM248: BAS090 | CN248: BAS091 | CO248: BAS092 | CP248: BAS093 | CQ248: BAS094 | CR248: BAS095 | CS248: BAS096 | CT248: BAS097 | CU248: BAS098 | CV248: BAS099 | CW248: BAS100 | CX248: BAS101 | CY248: BAS102 | CZ248: BAS103 | DA248: BAS104 | DB248: BAS105 | DC248: BAS106 | DD248: BAS107 | DE248: BAS108 | DF248: BAS109 | DG248: BAS110 | DH248: BAS111 | DI248: BAS112 | DJ248: BAS113 | DK248: BAS114 | DL248: BAS115 | DM248: BAS116 | DN248: BAS117 | DO248: BAS118 | DP248: BAS119 | DQ248: BAS120 | DR248: BAS121 | DS248: BAS122 | DT248: BAS123 | DU248: BAS124 | DV248: BAS125 | DW248: BAS126 | DX248: BAS127 | DY248: BAS128 | DZ248: BAS129 | EA248: BAS130 | EB248: BAS131 | EC248: BAS132 | ED248: BAS133 | EE248: BAS134 | EF248: BAS135 | EG248: BAS136 | EH248: BAS137 | EI248: BAS138 | EJ248: BAS139 | EK248: BAS140 | EL248: BAS141 | EM248: BAS142 | EN248: BAS143 | EO248: BAS144 | EP248: BAS145 | EQ248: BAS146 | ER248: BAS147 | ES248: BAS148 | ET248: BAS149 | EU248: BAS150 | EV248: BAS151 | EW248: BAS152 | EX248: BAS153 | EY248: BAS154 | EZ248: BAS155 | FA248: BAS156 | FB248: BAS157 | FC248: BAS158 | FD248: BAS159 | FE248: BAS160 | FF248: BAS161 | FG248: BAS162 | FH248: BAS163 | FI248: BAS164 | FJ248: BAS165 | FK248: BAS166 | FL248: BAS167 | FM248: BAS168 | FN248: BAS169 | FO248: BAS170 | FP248: BAS171 | FQ248: BAS172 | FR248: BAS173 | FS248: BAS174 | FT248: BAS175 | FU248: BAS176 | FV248: BAS177 | FW248: BAS178 | FX248: BAS179 | FY248: BAS180 | FZ248: BAS181 | GA248: BAS182 | GB248: BAS183 | GC248: BAS184 | GD248: BAS185 | GE248: BAS186 | GF248: BAS187 | GG248: BAS188 | GH248: BAS189 | GI248: BAS190 | GJ248: BAS191 | GK248: BAS192 | GL248: BAS193 | GM248: BAS194 | GN248: BAS195 | GO248: BAS196 | GP248: BAS197 | GQ248: BAS198 | GR248: BAS199 | GS248: BAS200 | GT248: BAS201 | GU248: BAS202 | GV248: BAS203 | GW248: BAS204 | GX248: BAS205 | GY248: BAS206 | GZ248: BAS207 | HA248: BAS208 | HB248: BAS209 | HC248: BAS210 | HD248: BAS211 | HE248: BAS212 | HF248: BAS213 | HG248: BAS214 | HH248: BAS215 | HI248: BAS216 | HJ248: BAS217 | HK248: BAS218 | HL248: BAS219 | HM248: BAS220 | HN248: BAS221 | HO248: BAS222 | HP248: BAS223 | HQ248: BAS224 | HR248: BAS225 | HS248: BAS226 | HT248: BAS227 | HU248: BAS228 | HV248: BAS229 | HW248: BAS230 | HX248: BAS231 | HY248: BAS232 | HZ248: BAS233 | IA248: BAS234 | IB248: BAS235
B249: =IF(B248=B231,"SI","NO") -> SI | C249: =IF(C248=C231,"SI","NO") -> SI | D249: SI | E249: SI | F249: SI | G249: SI | H249: SI | I249: SI | J249: SI | K249: SI | L249: SI | M249: SI | N249: SI | O249: SI | P249: SI | Q249: SI | R249: SI | S249: SI | T249: SI | U249: SI | V249: SI | W249: SI | X249: SI | Y249: SI | Z249: SI | AA249: SI | AB249: SI | AC249: SI | AD249: SI | AE249: SI | AF249: SI | AG249: SI | AH249: SI | AI249: SI | AJ249: SI | AK249: SI | AL249: SI | AM249: SI | AN249: SI | AO249: SI | AP249: SI | AQ249: SI | AR249: SI | AS249: SI | AT249: SI | AU249: SI | AV249: SI | AW249: SI | AX249: SI | AY249: SI | AZ249: SI | BA249: SI | BB249: SI | BC249: SI | BD249: SI | BE249: SI | BF249: SI | BG249: SI | BH249: SI | BI249: SI | BJ249: SI | BK249: SI | BL249: SI | BM249: SI | BN249: SI | BO249: =IF(BO248=BO231,"SI","NO") -> SI | BP249: SI | BQ249: SI | BR249: SI | BS249: SI | BT249: SI | BU249: SI | BV249: SI | BW249: SI | BX249: SI | BY249: SI | BZ249: SI | CA249: SI | CB249: SI | CC249: SI | CD249: SI | CE249: SI | CF249: SI | CG249: SI | CH249: SI | CI249: SI | CJ249: SI | CK249: SI | CL249: SI | CM249: SI | CN249: SI | CO249: SI | CP249: SI | CQ249: SI | CR249: SI | CS249: SI | CT249: SI | CU249: SI | CV249: SI | CW249: SI | CX249: SI | CY249: SI | CZ249: SI | DA249: SI | DB249: SI | DC249: SI | DD249: SI | DE249: SI | DF249: SI | DG249: SI | DH249: SI | DI249: SI | DJ249: SI | DK249: SI | DL249: SI | DM249: SI | DN249: SI | DO249: SI | DP249: SI | DQ249: SI | DR249: SI | DS249: SI | DT249: SI | DU249: SI | DV249: SI | DW249: SI | DX249: SI | DY249: SI | DZ249: SI | EA249: =IF(EA248=EA231,"SI","NO") -> SI | EB249: SI | EC249: SI | ED249: SI | EE249: SI | EF249: SI | EG249: SI | EH249: SI | EI249: SI | EJ249: SI | EK249: SI | EL249: SI | EM249: SI | EN249: SI | EO249: SI | EP249: SI | EQ249: SI | ER249: SI | ES249: SI | ET249: SI | EU249: SI | EV249: SI | EW249: SI | EX249: SI | EY249: SI | EZ249: SI | FA249: SI | FB249: SI | FC249: SI | FD249: SI | FE249: SI | FF249: SI | FG249: SI | FH249: SI | FI249: SI | FJ249: SI | FK249: SI | FL249: SI | FM249: SI | FN249: SI | FO249: SI | FP249: SI | FQ249: SI | FR249: SI | FS249: SI | FT249: SI | FU249: SI | FV249: SI | FW249: SI | FX249: SI | FY249: SI | FZ249: SI | GA249: SI | GB249: SI | GC249: SI | GD249: SI | GE249: SI | GF249: SI | GG249: SI | GH249: SI | GI249: SI | GJ249: SI | GK249: SI | GL249: SI | GM249: =IF(GM248=GM231,"SI","NO") -> SI | GN249: SI | GO249: SI | GP249: SI | GQ249: SI | GR249: SI | GS249: SI | GT249: SI | GU249: SI | GV249: SI | GW249: SI | GX249: SI | GY249: SI | GZ249: SI | HA249: SI | HB249: SI | HC249: SI | HD249: SI | HE249: SI | HF249: SI | HG249: SI | HH249: SI | HI249: SI | HJ249: SI | HK249: SI | HL249: SI | HM249: SI | HN249: SI | HO249: SI | HP249: SI | HQ249: SI | HR249: SI | HS249: SI | HT249: SI | HU249: SI | HV249: SI | HW249: SI | HX249: =IF(HX248=HX231,"SI","NO") -> SI | HY249: SI | HZ249: SI | IA249: SI | IB249: SI
... 279 more rows

Sheet LAB_ANALISIS_CLINICO
A1: DIRECCION REGIONAL DE SALUD CUSCO
A2: DIRECCION EJECUTIVA DE INTELIGENCIA SANITARIA
A3: DIRECCION DE ESTADISTICA, INFORMATICA Y TELECOMUNICACION
A5: CONSOLIDADO MENSUAL - ANALISIS CLINICO
C8: DIRESA | F8: CUSCO | L8: Micro Red de Salud | O8: =+TABLAS!O10 ->  | Y8: Provincia | AA8: =+TABLAS!O12 ->  | AF8: Ejecutora | AH8: =+TABLAS!O14 ->  | AM8: Año | AN8: =+TABLAS!D16 -> 2024
C10: Red de Salud | F10: =+TABLAS!O9 -> 03 - LA CONVENCION | L10: Establecimiento de Salud | O10: =+TABLAS!O11 ->  | Y10: Distrito | AA10: =+TABLAS!O13 ->  | AF10: Ipress | AM10: Mes | AN10: =+TABLAS!N26 -> ENE - NOV
A12: Tipo | D12: TOTAL REALIZADO | X12: SIS
D13: CONSULTA EXTERNA | J13: HOSPITALIZACION | P13: EMERGENCIA | V13: Total | X13: CONSULTA EXTERNA | AD13: HOSPITALIZACION | AJ13: EMERGENCIA | AP13: Total | AS13: =+IMPORTARDATOSDINAMICOS(" | AV13: BAS | AW13: ",TABLAS!$A$1011)
D14: 0 - 11a | E14: 12-17a | F14: 18-29 a | G14: 30-59 a | H14: 60- + a | I14: Total | J14: 0 - 11a | K14: 12-17a | L14: 18-29 a | M14: 30-59 a | N14: 60- + a | O14: Total | P14: 0 - 11a | Q14: 12-17a | R14: 18-29 a | S14: 30-59 a | T14: 60- + a | U14: Total | X14: 0 - 11a | Y14: 12-17a | Z14: 18-29 a | AA14: 30-59 a | AB14: 60- + a | AC14: Total | AD14: 0 - 11a | AE14: 12-17a | AF14: 18-29 a | AG14: 30-59 a | AH14: 60- + a | AI14: Total | AJ14: 0 - 11a | AK14: 12-17a | AL14: 18-29 a | AM14: 30-59 a | AN14: 60- + a | AO14: Total
A15: Total Pacientes (Se mostrara los pacientes que solicitan Analisis) | D15: =+GETPIVOTDATA("BAS001",TABLAS!$A$199) -> 0 | E15: =+GETPIVOTDATA("BAS002",TABLAS!$A$199) -> 0 | F15: =+GETPIVOTDATA("BAS003",TABLAS!$A$199) -> 0 | G15: =+GETPIVOTDATA("BAS004",TABLAS!$A$199) -> 0 | H15: =+GETPIVOTDATA("BAS005",TABLAS!$A$199) -> 0 | I15: =SUM(D15:H15) -> 0 | J15: =+GETPIVOTDATA("BAS001",TABLAS!$A$321) -> 0 | K15: =+GETPIVOTDATA("BAS002",TABLAS!$A$321) -> 0 | L15: =+GETPIVOTDATA("BAS003",TABLAS!$A$321) -> 0 | M15: =+GETPIVOTDATA("BAS004",TABLAS!$A$321) -> 0 | N15: =+GETPIVOTDATA("BAS005",TABLAS!$A$321) -> 0 | O15: =SUM(J15:N15) -> 0 | P15: =+GETPIVOTDATA("BAS001",TABLAS!$A$471) -> 0 | Q15: =+GETPIVOTDATA("BAS002",TABLAS!$A$471) -> 0 | R15: =+GETPIVOTDATA("BAS003",TABLAS!$A$471) -> 0 | S15: =+GETPIVOTDATA("BAS004",TABLAS!$A$471) -> 0 | T15: =+GETPIVOTDATA("BAS005",TABLAS!$A$471) -> 0 | U15: =SUM(P15:T15) -> 0 | V15: =+I15+O15+U15 -> 0 | X15: =+GETPIVOTDATA("BAS001",TABLAS!$A$621) -> 0 | Y15: =+GETPIVOTDATA("BAS002",TABLAS!$A$621) -> 0 | Z15: =+GETPIVOTDATA("BAS003",TABLAS!$A$621) -> 0 | AA15: =+GETPIVOTDATA("BAS004",TABLAS!$A$621) -> 0 | AB15: =+GETPIVOTDATA("BAS005",TABLAS!$A$621) -> 0 | AC15: =SUM(X15:AB15) -> 0 | AD15: =+GETPIVOTDATA("BAS001",TABLAS!$A$741) -> 0 | AE15: =+GETPIVOTDATA("BAS002",TABLAS!$A$741) -> 0 | AF15: =+GETPIVOTDATA("BAS003",TABLAS!$A$741) -> 0 | AG15: =+GETPIVOTDATA("BAS004",TABLAS!$A$741) -> 0 | AH15: =+GETPIVOTDATA("BAS005",TABLAS!$A$741) -> 0 | AI15: =SUM(AD15:AH15) -> 0 | AJ15: =+GETPIVOTDATA("BAS001",TABLAS!$A$891) -> 0 | AK15: =+GETPIVOTDATA("BAS002",TABLAS!$A$891) -> 0 | AL15: =+GETPIVOTDATA("BAS003",TABLAS!$A$891) -> 0 | AM15: =+GETPIVOTDATA("BAS004",TABLAS!$A$891) -> 0 | AN15: =+GETPIVOTDATA("BAS005",TABLAS!$A$891) -> 0 | AO15: =SUM(AJ15:AN15) -> 0 | AP15: =+AC15+AI15+AO15 -> 0 | AS15: 1 | AT15: =+AS15+1 -> 2 | AU15: =+AT15+1 -> 3 | AV15: 4 | AW15: 5 | AY15: =IF(AS15<=9,CONCATENATE($AS$13,$AV$13,"00",AS15,$AW$13),IF(AND(AS15>=10,AS15<=99),CONCATENATE($AS$13,$AV$13,"0",AS15,$AW$13),CONCATENATE($AS$13,$AV$13,AS15,$AW$13))) -> =+IMPORTARDATOSDINAMICOS("BAS001",TABLAS!$A$1011) | AZ15: =IF(AT15<=9,CONCATENATE($AS$13,$AV$13,"00",AT15,$AW$13),IF(AND(AT15>=10,AT15<=99),CONCATENATE($AS$13,$AV$13,"0",AT15,$AW$13),CONCATENATE($AS$13,$AV$13,AT15,$AW$13))) -> =+IMPORTARDATOSDINAMICOS("BAS002",TABLAS!$A$1011) | BA15: =+IMPORTARDATOSDINAMICOS("BAS003",TABLAS!$A$1011) | BB15: =+IMPORTARDATOSDINAMICOS("BAS004",TABLAS!$A$1011) | BC15: =+IMPORTARDATOSDINAMICOS("BAS005",TABLAS!$A$1011)
A16: Total toma de muestra [U2142] | D16: =+GETPIVOTDATA("BAS006",TABLAS!$A$199) -> 0 | E16: =+GETPIVOTDATA("BAS007",TABLAS!$A$199) -> 0 | F16: =+GETPIVOTDATA("BAS008",TABLAS!$A$199) -> 0 | G16: =+GETPIVOTDATA("BAS009",TABLAS!$A$199) -> 0 | H16: =+GETPIVOTDATA("BAS010",TABLAS!$A$199) -> 0 | I16: 0 | J16: =+GETPIVOTDATA("BAS006",TABLAS!$A$321) -> 0 | K16: =+GETPIVOTDATA("BAS007",TABLAS!$A$321) -> 0 | L16: =+GETPIVOTDATA("BAS008",TABLAS!$A$321) -> 0 | M16: =+GETPIVOTDATA("BAS009",TABLAS!$A$321) -> 0 | N16: =+GETPIVOTDATA("BAS010",TABLAS!$A$321) -> 0 | O16: 0 | P16: =+GETPIVOTDATA("BAS006",TABLAS!$A$471) -> 0 | Q16: =+GETPIVOTDATA("BAS007",TABLAS!$A$471) -> 0 | R16: =+GETPIVOTDATA("BAS008",TABLAS!$A$471) -> 0 | S16: =+GETPIVOTDATA("BAS009",TABLAS!$A$471) -> 0 | T16: =+GETPIVOTDATA("BAS010",TABLAS!$A$471) -> 0 | U16: 0 | V16: 0 | X16: =+GETPIVOTDATA("BAS006",TABLAS!$A$621) -> 0 | Y16: =+GETPIVOTDATA("BAS007",TABLAS!$A$621) -> 0 | Z16: =+GETPIVOTDATA("BAS008",TABLAS!$A$621) -> 0 | AA16: =+GETPIVOTDATA("BAS009",TABLAS!$A$621) -> 0 | AB16: =+GETPIVOTDATA("BAS010",TABLAS!$A$621) -> 0 | AC16: 0 | AD16: =+GETPIVOTDATA("BAS006",TABLAS!$A$741) -> 0 | AE16: =+GETPIVOTDATA("BAS007",TABLAS!$A$741) -> 0 | AF16: =+GETPIVOTDATA("BAS008",TABLAS!$A$741) -> 0 | AG16: =+GETPIVOTDATA("BAS009",TABLAS!$A$741) -> 0 | AH16: =+GETPIVOTDATA("BAS010",TABLAS!$A$741) -> 0 | AI16: 0 | AJ16: =+GETPIVOTDATA("BAS006",TABLAS!$A$891) -> 0 | AK16: =+GETPIVOTDATA("BAS007",TABLAS!$A$891) -> 0 | AL16: =+GETPIVOTDATA("BAS008",TABLAS!$A$891) -> 0 | AM16: =+GETPIVOTDATA("BAS009",TABLAS!$A$891) -> 0 | AN16: =+GETPIVOTDATA("BAS010",TABLAS!$A$891) -> 0 | AO16: 0 | AP16: 0 | AS16: =+AW15+1 -> 6 | AT16: =+AS16+1 -> 7 | AU16: 8 | AV16: 9 | AW16: 10 | AY16: =IF(AS16<=9,CONCATENATE($AS$13,$AV$13,"00",AS16,$AW$13),IF(AND(AS16>=10,AS16<=99),CONCATENATE($AS$13,$AV$13,"0",AS16,$AW$13),CONCATENATE($AS$13,$AV$13,AS16,$AW$13))) -> =+IMPORTARDATOSDINAMICOS("BAS006",TABLAS!$A$1011) | AZ16: =IF(AT16<=9,CONCATENATE($AS$13,$AV$13,"00",AT16,$AW$13),IF(AND(AT16>=10,AT16<=99),CONCATENATE($AS$13,$AV$13,"0",AT16,$AW$13),CONCATENATE($AS$13,$AV$13,AT16,$AW$13))) -> =+IMPORTARDATOSDINAMICOS("BAS007",TABLAS!$A$1011) | BA16: =IF(AU16<=9,CONCATENATE($AS$13,$AV$13,"00",AU16,$AW$13),IF(AND(AU16>=10,AU16<=99),CONCATENATE($AS$13,$AV$13,"0",AU16,$AW$13),CONCATENATE($AS$13,$AV$13,AU16,$AW$13))) -> =+IMPORTARDATOSDINAMICOS("BAS008",TABLAS!$A$1011) | BB16: =IF(AV16<=9,CONCATENATE($AS$13,$AV$13,"00",AV16,$AW$13),IF(AND(AV16>=10,AV16<=99),CONCATENATE($AS$13,$AV$13,"0",AV16,$AW$13),CONCATENATE($AS$13,$AV$13,AV16,$AW$13))) -> =+IMPORTARDATOSDINAMICOS("BAS009",TABLAS!$A$1011) | BC16: =IF(AW16<=9,CONCATENATE($AS$13,$AV$13,"00",AW16,$AW$13),IF(AND(AW16>=10,AW16<=99),CONCATENATE($AS$13,$AV$13,"0",AW16,$AW$13),CONCATENATE($AS$13,$AV$13,AW16,$AW$13))) -> =+IMPORTARDATOSDINAMICOS("BAS010",TABLAS!$A$1011)
D18: CONSULTA EXTERNA | J18: HOSPITALIZACION | P18: EMERGENCIA | V18: Total | X18: CONSULTA EXTERNA | AD18: HOSPITALIZACION | AJ18: EMERGENCIA | AP18: Total
A19: HEMATOLOGIA | D19: 0 - 11a | E19: 12-17a | F19: 18-29 a | G19: 30-59 a | H19: 60- + a | I19: Total | J19: 0 - 11a | K19: 12-17a | L19: 18-29 a | M19: 30-59 a | N19: 60- + a | O19: Total | P19: 0 - 11a | Q19: 12-17a | R19: 18-29 a | S19: 30-59 a | T19: 60- + a | U19: Total | X19: 0 - 11a | Y19: 12-17a | Z19: 18-29 a | AA19: 30-59 a | AB19: 60- + a | AC19: Total | AD19: 0 - 11a | AE19: 12-17a | AF19: 18-29 a | AG19: 30-59 a | AH19: 60- + a | AI19: Total | AJ19: 0 - 11a | AK19: 12-17a | AL19: 18-29 a | AM19: 30-59 a | AN19: 60- + a | AO19: Total
A20: TOTAL | D20: =SUM(D21:D38) -> 0 | E20: =SUM(E21:E38) -> 0 | F20: 0 | G20: 0 | H20: 0 | I20: 0 | J20: 0 | K20: 0 | L20: 0 | M20: 0 | N20: 0 | O20: 0 | P20: 0 | Q20: 0 | R20: 0 | S20: 0 | T20: 0 | U20: 0 | V20: 0 | X20: =SUM(X21:X38) -> 0 | Y20: =SUM(Y21:Y38) -> 0 | Z20: 0 | AA20: 0 | AB20: 0 | AC20: 0 | AD20: 0 | AE20: 0 | AF20: 0 | AG20: 0 | AH20: 0 | AI20: 0 | AJ20: 0 | AK20: 0 | AL20: 0 | AM20: 0 | AN20: 0 | AO20: 0 | AP20: 0
A21: HEMATOCRITO [85014] | D21: =+GETPIVOTDATA("BAS011",TABLAS!$A$199) -> 0 | E21: =+GETPIVOTDATA("BAS012",TABLAS!$A$199) -> 0 | F21: =+GETPIVOTDATA("BAS013",TABLAS!$A$199) -> 0 | G21: =+GETPIVOTDATA("BAS014",TABLAS!$A$199) -> 0 | H21: =+GETPIVOTDATA("BAS015",TABLAS!$A$199) -> 0 | I21: =SUM(D21:H21) -> 0 | J21: =+GETPIVOTDATA("BAS011",TABLAS!$A$321) -> 0 | K21: =+GETPIVOTDATA("BAS012",TABLAS!$A$321) -> 0 | L21: =+GETPIVOTDATA("BAS013",TABLAS!$A$321) -> 0 | M21: =+GETPIVOTDATA("BAS014",TABLAS!$A$321) -> 0 | N21: =+GETPIVOTDATA("BAS015",TABLAS!$A$321) -> 0 | O21: =SUM(J21:N21) -> 0 | P21: =+GETPIVOTDATA("BAS011",TABLAS!$A$471) -> 0 | Q21: =+GETPIVOTDATA("BAS012",TABLAS!$A$471) -> 0 | R21: =+GETPIVOTDATA("BAS013",TABLAS!$A$471) -> 0 | S21: =+GETPIVOTDATA("BAS014",TABLAS!$A$471) -> 0 | T21: =+GETPIVOTDATA("BAS015",TABLAS!$A$471) -> 0 | U21: =SUM(P21:T21) -> 0 | V21: =+I21+O21+U21 -> 0 | X21: =+GETPIVOTDATA("BAS011",TABLAS!$A$621) -> 0 | Y21: =+GETPIVOTDATA("BAS012",TABLAS!$A$621) -> 0 | Z21: =+GETPIVOTDATA("BAS013",TABLAS!$A$621) -> 0 | AA21: =+GETPIVOTDATA("BAS014",TABLAS!$A$621) -> 0 | AB21: =+GETPIVOTDATA("BAS015",TABLAS!$A$621) -> 0 | AC21: =SUM(X21:AB21) -> 0 | AD21: =+GETPIVOTDATA("BAS011",TABLAS!$A$741) -> 0 | AE21: =+GETPIVOTDATA("BAS012",TABLAS!$A$741) -> 0 | AF21: =+GETPIVOTDATA("BAS013",TABLAS!$A$741) -> 0 | AG21: =+GETPIVOTDATA("BAS014",TABLAS!$A$741) -> 0 | AH21: =+GETPIVOTDATA("BAS015",TABLAS!$A$741) -> 0 | AI21: =SUM(AD21:AH21) -> 0 | AJ21: =+GETPIVOTDATA("BAS011",TABLAS!$A$891) -> 0 | AK21: =+GETPIVOTDATA("BAS012",TABLAS!$A$891) -> 0 | AL21: =+GETPIVOTDATA("BAS013",TABLAS!$A$891) -> 0 | AM21: =+GETPIVOTDATA("BAS014",TABLAS!$A$891) -> 0 | AN21: =+GETPIVOTDATA("BAS015",TABLAS!$A$891) -> 0 | AO21: =SUM(AJ21:AN21) -> 0 | AP21: =+AC21+AI21+AO21 -> 0 | AS21: =+AW16+1 -> 11 | AT21: =+AS21+1 -> 12 | AU21: 13 | AV21: 14 | AW21: 15 | AY21: =IF(AS21<=9,CONCATENATE($AS$13,$AV$13,"00",AS21,$AW$13),IF(AND(AS21>=10,AS21<=99),CONCATENATE($AS$13,$AV$13,"0",AS21,$AW$13),CONCATENATE($AS$13,$AV$13,AS21,$AW$13))) -> =+IMPORTARDATOSDINAMICOS("BAS011",TABLAS!$A$1011) | AZ21: =IF(AT21<=9,CONCATENATE($AS$13,$AV$13,"00",AT21,$AW$13),IF(AND(AT21>=10,AT21<=99),CONCATENATE($AS$13,$AV$13,"0",AT21,$AW$13),CONCATENATE($AS$13,$AV$13,AT21,$AW$13))) -> =+IMPORTARDATOSDINAMICOS("BAS012",TABLAS!$A$1011) | BA21: =IF(AU21<=9,CONCATENATE($AS$13,$AV$13,"00",AU21,$AW$13),IF(AND(AU21>=10,AU21<=99),CONCATENATE($AS$13,$AV$13,"0",AU21,$AW$13),CONCATENATE($AS$13,$AV$13,AU21,$AW$13))) -> =+IMPORTARDATOSDINAMICOS("BAS013",TABLAS!$A$1011) | BB21: =IF(AV21<=9,CONCATENATE($AS$13,$AV$13,"00",AV21,$AW$13),IF(AND(AV21>=10,AV21<=99),CONCATENATE($AS$13,$AV$13,"0",AV21,$AW$13),CONCATENATE($AS$13,$AV$13,AV21,$AW$13))) -> =+IMPORTARDATOSDINAMICOS("BAS014",TABLAS!$A$1011) | BC21: =IF(AW21<=9,CONCATENATE($AS$13,$AV$13,"00",AW21,$AW$13),IF(AND(AW21>=10,AW21<=99),CONCATENATE($AS$13,$AV$13,"0",AW21,$AW$13),CONCATENATE($AS$13,$AV$13,AW21,$AW$13))) -> =+IMPORTARDATOSDINAMICOS("BAS015",TABLAS!$A$1011)
A22: HEMOGLOBINA [85018] | D22: =+GETPIVOTDATA("BAS016",TABLAS!$A$199) -> 0 | E22: =+GETPIVOTDATA("BAS017",TABLAS!$A$199) -> 0 | F22: =+GETPIVOTDATA("BAS018",TABLAS!$A$199) -> 0 | G22: =+GETPIVOTDATA("BAS019",TABLAS!$A$199) -> 0 | H22: =+GETPIVOTDATA("BAS020",TABLAS!$A$199) -> 0 | I22: =SUM(D22:H22) -> 0 | J22: =+GETPIVOTDATA("BAS016",TABLAS!$A$321) -> 0 | K22: =+GETPIVOTDATA("BAS017",TABLAS!$A$321) -> 0 | L22: =+GETPIVOTDATA("BAS018",TABLAS!$A$321) -> 0 | M22: =+GETPIVOTDATA("BAS019",TABLAS!$A$321) -> 0 | N22: =+GETPIVOTDATA("BAS020",TABLAS!$A$321) -> 0 | O22: =SUM(J22:N22) -> 0 | P22: =+GETPIVOTDATA("BAS016",TABLAS!$A$471) -> 0 | Q22: =+GETPIVOTDATA("BAS017",TABLAS!$A$471) -> 0 | R22: =+GETPIVOTDATA("BAS018",TABLAS!$A$471) -> 0 | S22: =+GETPIVOTDATA("BAS019",TABLAS!$A$471) -> 0 | T22: =+GETPIVOTDATA("BAS020",TABLAS!$A$471) -> 0 | U22: =SUM(P22:T22) -> 0 | V22: =+I22+O22+U22 -> 0 | X22: =+GETPIVOTDATA("BAS016",TABLAS!$A$621) -> 0 | Y22: =+GETPIVOTDATA("BAS017",TABLAS!$A$621) -> 0 | Z22: =+GETPIVOTDATA("BAS018",TABLAS!$A$621) -> 0 | AA22: =+GETPIVOTDATA("BAS019",TABLAS!$A$621) -> 0 | AB22: =+GETPIVOTDATA("BAS020",TABLAS!$A$621) -> 0 | AC22: =SUM(X22:AB22) -> 0 | AD22: =+GETPIVOTDATA("BAS016",TABLAS!$A$741) -> 0 | AE22: =+GETPIVOTDATA("BAS017",TABLAS!$A$741) -> 0 | AF22: =+GETPIVOTDATA("BAS018",TABLAS!$A$741) -> 0 | AG22: =+GETPIVOTDATA("BAS019",TABLAS!$A$741) -> 0 | AH22: =+GETPIVOTDATA("BAS020",TABLAS!$A$741) -> 0 | AI22: =SUM(AD22:AH22) -> 0 | AJ22: =+GETPIVOTDATA("BAS016",TABLAS!$A$891) -> 0 | AK22: =+GETPIVOTDATA("BAS017",TABLAS!$A$891) -> 0 | AL22: =+GETPIVOTDATA("BAS018",TABLAS!$A$891) -> 0 | AM22: =+GETPIVOTDATA("BAS019",TABLAS!$A$891) -> 0 | AN22: =+GETPIVOTDATA("BAS020",TABLAS!$A$891) -> 0 | AO22: =SUM(AJ22:AN22) -> 0 | AP22: =+AC22+AI22+AO22 -> 0 | AS22: =+AW21+1 -> 16 | AT22: =+AS22+1 -> 17 | AU22: 18 | AV22: 19 | AW22: 20 | AY22: =IF(AS22<=9,CONCATENATE($AS$13,$AV$13,"00",AS22,$AW$13),IF(AND(AS22>=10,AS22<=99),CONCATENATE($AS$13,$AV$13,"0",AS22,$AW$13),CONCATENATE($AS$13,$AV$13,AS22,$AW$13))) -> =+IMPORTARDATOSDINAMICOS("BAS016",TABLAS!$A$1011) | AZ22: =IF(AT22<=9,CONCATENATE($AS$13,$AV$13,"00",AT22,$AW$13),IF(AND(AT22>=10,AT22<=99),CONCATENATE($AS$13,$AV$13,"0",AT22,$AW$13),CONCATENATE($AS$13,$AV$13,AT22,$AW$13))) -> =+IMPORTARDATOSDINAMICOS("BAS017",TABLAS!$A$1011) | BA22: =IF(AU22<=9,CONCATENATE($AS$13,$AV$13,"00",AU22,$AW$13),IF(AND(AU22>=10,AU22<=99),CONCATENATE($AS$13,$AV$13,"0",AU22,$AW$13),CONCATENATE($AS$13,$AV$13,AU22,$AW$13))) -> =+IMPORTARDATOSDINAMICOS("BAS018",TABLAS!$A$1011) | BB22: =IF(AV22<=9,CONCATENATE($AS$13,$AV$13,"00",AV22,$AW$13),IF(AND(AV22>=10,AV22<=99),CONCATENATE($AS$13,$AV$13,"0",AV22,$AW$13),CONCATENATE($AS$13,$AV$13,AV22,$AW$13))) -> =+IMPORTARDATOSDINAMICOS("BAS019",TABLAS!$A$1011) | BC22: =IF(AW22<=9,CONCATENATE($AS$13,$AV$13,"00",AW22,$AW$13),IF(AND(AW22>=10,AW22<=99),CONCATENATE($AS$13,$AV$13,"0",AW22,$AW$13),CONCATENATE($AS$13,$AV$13,AW22,$AW$13))) -> =+IMPORTARDATOSDINAMICOS("BAS020",TABLAS!$A$1011)
A23: HEMOGRAMA COMPLETO (MANUAL) [85032] | D23: =+GETPIVOTDATA("BAS021",TABLAS!$A$199) -> 0 | E23: =+GETPIVOTDATA("BAS022",TABLAS!$A$199) -> 0 | F23: =+GETPIVOTDATA("BAS023",TABLAS!$A$199) -> 0 | G23: =+GETPIVOTDATA("BAS024",TABLAS!$A$199) -> 0 | H23: =+GETPIVOTDATA("BAS025",TABLAS!$A$199) -> 0 | I23: 0 | J23: =+GETPIVOTDATA("BAS021",TABLAS!$A$321) -> 0 | K23: =+GETPIVOTDATA("BAS022",TABLAS!$A$321) -> 0 | L23: =+GETPIVOTDATA("BAS023",TABLAS!$A$321) -> 0 | M23: =+GETPIVOTDATA("BAS024",TABLAS!$A$321) -> 0 | N23: =+GETPIVOTDATA("BAS025",TABLAS!$A$321) -> 0 | O23: 0 | P23: =+GETPIVOTDATA("BAS021",TABLAS!$A$471) -> 0 | Q23: =+GETPIVOTDATA("BAS022",TABLAS!$A$471) -> 0 | R23: =+GETPIVOTDATA("BAS023",TABLAS!$A$471) -> 0 | S23: =+GETPIVOTDATA("BAS024",TABLAS!$A$471) -> 0 | T23: =+GETPIVOTDATA("BAS025",TABLAS!$A$471) -> 0 | U23: 0 | V23: 0 | X23: =+GETPIVOTDATA("BAS021",TABLAS!$A$621) -> 0 | Y23: =+GETPIVOTDATA("BAS022",TABLAS!$A$621) -> 0 | Z23: =+GETPIVOTDATA("BAS023",TABLAS!$A$621) -> 0 | AA23: =+GETPIVOTDATA("BAS024",TABLAS!$A$621) -> 0 | AB23: =+GETPIVOTDATA("BAS025",TABLAS!$A$621) -> 0 | AC23: 0 | AD23: =+GETPIVOTDATA("BAS021",TABLAS!$A$741) -> 0 | AE23: =+GETPIVOTDATA("BAS022",TABLAS!$A$741) -> 0 | AF23: =+GETPIVOTDATA("BAS023",TABLAS!$A$741) -> 0 | AG23: =+GETPIVOTDATA("BAS024",TABLAS!$A$741) -> 0 | AH23: =+GETPIVOTDATA("BAS025",TABLAS!$A$741) -> 0 | AI23: 0 | AJ23: =+GETPIVOTDATA("BAS021",TABLAS!$A$891) -> 0 | AK23: =+GETPIVOTDATA("BAS022",TABLAS!$A$891) -> 0 | AL23: =+GETPIVOTDATA("BAS023",TABLAS!$A$891) -> 0 | AM23: =+GETPIVOTDATA("BAS024",TABLAS!$A$891) -> 0 | AN23: =+GETPIVOTDATA("BAS025",TABLAS!$A$891) -> 0 | AO23: 0 | AP23: 0 | AS23: =+AW22+1 -> 21 | AT23: =+AS23+1 -> 22 | AU23: 23 | AV23: 24 | AW23: 25 | AY23: =+IMPORTARDATOSDINAMICOS("BAS021",TABLAS!$A$1011) | AZ23: =+IMPORTARDATOSDINAMICOS("BAS022",TABLAS!$A$1011) | BA23: =+IMPORTARDATOSDINAMICOS("BAS023",TABLAS!$A$1011) | BB23: =+IMPORTARDATOSDINAMICOS("BAS024",TABLAS!$A$1011) | BC23: =+IMPORTARDATOSDINAMICOS("BAS025",TABLAS!$A$1011)
A24: HEMOGRAMA AUTOMATIZADO [85025] | D24: =+GETPIVOTDATA("BAS026",TABLAS!$A$199) -> 0 | E24: =+GETPIVOTDATA("BAS027",TABLAS!$A$199) -> 0 | F24: =+GETPIVOTDATA("BAS028",TABLAS!$A$199) -> 0 | G24: =+GETPIVOTDATA("BAS029",TABLAS!$A$199) -> 0 | H24: =+GETPIVOTDATA("BAS030",TABLAS!$A$199) -> 0 | I24: 0 | J24: =+GETPIVOTDATA("BAS026",TABLAS!$A$321) -> 0 | K24: =+GETPIVOTDATA("BAS027",TABLAS!$A$321) -> 0 | L24: =+GETPIVOTDATA("BAS028",TABLAS!$A$321) -> 0 | M24: =+GETPIVOTDATA("BAS029",TABLAS!$A$321) -> 0 | N24: =+GETPIVOTDATA("BAS030",TABLAS!$A$321) -> 0 | O24: 0 | P24: =+GETPIVOTDATA("BAS026",TABLAS!$A$471) -> 0 | Q24: =+GETPIVOTDATA("BAS027",TABLAS!$A$471) -> 0 | R24: =+GETPIVOTDATA("BAS028",TABLAS!$A$471) -> 0 | S24: =+GETPIVOTDATA("BAS029",TABLAS!$A$471) -> 0 | T24: =+GETPIVOTDATA("BAS030",TABLAS!$A$471) -> 0 | U24: 0 | V24: 0 | X24: =+GETPIVOTDATA("BAS026",TABLAS!$A$621) -> 0 | Y24: =+GETPIVOTDATA("BAS027",TABLAS!$A$621) -> 0 | Z24: =+GETPIVOTDATA("BAS028",TABLAS!$A$621) -> 0 | AA24: =+GETPIVOTDATA("BAS029",TABLAS!$A$621) -> 0 | AB24: =+GETPIVOTDATA("BAS030",TABLAS!$A$621) -> 0 | AC24: 0 | AD24: =+GETPIVOTDATA("BAS026",TABLAS!$A$741) -> 0 | AE24: =+GETPIVOTDATA("BAS027",TABLAS!$A$741) -> 0 | AF24: =+GETPIVOTDATA("BAS028",TABLAS!$A$741) -> 0 | AG24: =+GETPIVOTDATA("BAS029",TABLAS!$A$741) -> 0 | AH24: =+GETPIVOTDATA("BAS030",TABLAS!$A$741) -> 0 | AI24: 0 | AJ24: =+GETPIVOTDATA("BAS026",TABLAS!$A$891) -> 0 | AK24: =+GETPIVOTDATA("BAS027",TABLAS!$A$891) -> 0 | AL24: =+GETPIVOTDATA("BAS028",TABLAS!$A$891) -> 0 | AM24: =+GETPIVOTDATA("BAS029",TABLAS!$A$891) -> 0 | AN24: =+GETPIVOTDATA("BAS030",TABLAS!$A$891) -> 0 | AO24: 0 | AP24: 0 | AS24: 26 | AT24: =+AS24+1 -> 27 | AU24: 28 | AV24: 29 | AW24: 30 | AY24: =+IMPORTARDATOSDINAMICOS("BAS026",TABLAS!$A$1011) | AZ24: =+IMPORTARDATOSDINAMICOS("BAS027",TABLAS!$A$1011) | BA24: =+IMPORTARDATOSDINAMICOS("BAS028",TABLAS!$A$1011) | BB24: =+IMPORTARDATOSDINAMICOS("BAS029",TABLAS!$A$1011) | BC24: =+IMPORTARDATOSDINAMICOS("BAS030",TABLAS!$A$1011)
A25: DETECCION DE CELULAS L.E [85599] | D25: =+GETPIVOTDATA("BAS031",TABLAS!$A$199) -> 0 | E25: =+GETPIVOTDATA("BAS032",TABLAS!$A$199) -> 0 | F25: =+GETPIVOTDATA("BAS033",TABLAS!$A$199) -> 0 | G25: =+GETPIVOTDATA("BAS034",TABLAS!$A$199) -> 0 | H25: =+GETPIVOTDATA("BAS035",TABLAS!$A$199) -> 0 | I25: 0 | J25: =+GETPIVOTDATA("BAS031",TABLAS!$A$321) -> 0 | K25: =+GETPIVOTDATA("BAS032",TABLAS!$A$321) -> 0 | L25: =+GETPIVOTDATA("BAS033",TABLAS!$A$321) -> 0 | M25: =+GETPIVOTDATA("BAS034",TABLAS!$A$321) -> 0 | N25: =+GETPIVOTDATA("BAS035",TABLAS!$A$321) -> 0 | O25: 0 | P25: =+GETPIVOTDATA("BAS031",TABLAS!$A$471) -> 0 | Q25: =+GETPIVOTDATA("BAS032",TABLAS!$A$471) -> 0 | R25: =+GETPIVOTDATA("BAS033",TABLAS!$A$471) -> 0 | S25: =+GETPIVOTDATA("BAS034",TABLAS!$A$471) -> 0 | T25: =+GETPIVOTDATA("BAS035",TABLAS!$A$471) -> 0 | U25: 0 | V25: 0 | X25: =+GETPIVOTDATA("BAS031",TABLAS!$A$621) -> 0 | Y25: =+GETPIVOTDATA("BAS032",TABLAS!$A$621) -> 0 | Z25: =+GETPIVOTDATA("BAS033",TABLAS!$A$621) -> 0 | AA25: =+GETPIVOTDATA("BAS034",TABLAS!$A$621) -> 0 | AB25: =+GETPIVOTDATA("BAS035",TABLAS!$A$621) -> 0 | AC25: 0 | AD25: =+GETPIVOTDATA("BAS031",TABLAS!$A$741) -> 0 | AE25: =+GETPIVOTDATA("BAS032",TABLAS!$A$741) -> 0 | AF25: =+GETPIVOTDATA("BAS033",TABLAS!$A$741) -> 0 | AG25: =+GETPIVOTDATA("BAS034",TABLAS!$A$741) -> 0 | AH25: =+GETPIVOTDATA("BAS035",TABLAS!$A$741) -> 0 | AI25: 0 | AJ25: =+GETPIVOTDATA("BAS031",TABLAS!$A$891) -> 0 | AK25: =+GETPIVOTDATA("BAS032",TABLAS!$A$891) -> 0 | AL25: =+GETPIVOTDATA("BAS033",TABLAS!$A$891) -> 0 | AM25: =+GETPIVOTDATA("BAS034",TABLAS!$A$891) -> 0 | AN25: =+GETPIVOTDATA("BAS035",TABLAS!$A$891) -> 0 | AO25: 0 | AP25: 0 | AS25: 31 | AT25: =+AS25+1 -> 32 | AU25: 33 | AV25: 34 | AW25: 35 | AY25: =+IMPORTARDATOSDINAMICOS("BAS031",TABLAS!$A$1011) | AZ25: =+IMPORTARDATOSDINAMICOS("BAS032",TABLAS!$A$1011) | BA25: =+IMPORTARDATOSDINAMICOS("BAS033",TABLAS!$A$1011) | BB25: =+IMPORTARDATOSDINAMICOS("BAS034",TABLAS!$A$1011) | BC25: =+IMPORTARDATOSDINAMICOS("BAS035",TABLAS!$A$1011)
A26: RECUENTO DE PLAQUETAS [85590] | D26: =+GETPIVOTDATA("BAS036",TABLAS!$A$199) -> 0 | E26: =+GETPIVOTDATA("BAS037",TABLAS!$A$199) -> 0 | F26: =+GETPIVOTDATA("BAS038",TABLAS!$A$199) -> 0 | G26: =+GETPIVOTDATA("BAS039",TABLAS!$A$199) -> 0 | H26: =+GETPIVOTDATA("BAS040",TABLAS!$A$199) -> 0 | I26: 0 | J26: =+GETPIVOTDATA("BAS036",TABLAS!$A$321) -> 0 | K26: =+GETPIVOTDATA("BAS037",TABLAS!$A$321) -> 0 | L26: =+GETPIVOTDATA("BAS038",TABLAS!$A$321) -> 0 | M26: =+GETPIVOTDATA("BAS039",TABLAS!$A$321) -> 0 | N26: =+GETPIVOTDATA("BAS040",TABLAS!$A$321) -> 0 | O26: 0 | P26: =+GETPIVOTDATA("BAS036",TABLAS!$A$471) -> 0 | Q26: =+GETPIVOTDATA("BAS037",TABLAS!$A$471) -> 0 | R26: =+GETPIVOTDATA("BAS038",TABLAS!$A$471) -> 0 | S26: =+GETPIVOTDATA("BAS039",TABLAS!$A$471) -> 0 | T26: =+GETPIVOTDATA("BAS040",TABLAS!$A$471) -> 0 | U26: 0 | V26: 0 | X26: =+GETPIVOTDATA("BAS036",TABLAS!$A$621) -> 0 | Y26: =+GETPIVOTDATA("BAS037",TABLAS!$A$621) -> 0 | Z26: =+GETPIVOTDATA("BAS038",TABLAS!$A$621) -> 0 | AA26: =+GETPIVOTDATA("BAS039",TABLAS!$A$621) -> 0 | AB26: =+GETPIVOTDATA("BAS040",TABLAS!$A$621) -> 0 | AC26: 0 | AD26: =+GETPIVOTDATA("BAS036",TABLAS!$A$741) -> 0 | AE26: =+GETPIVOTDATA("BAS037",TABLAS!$A$741) -> 0 | AF26: =+GETPIVOTDATA("BAS038",TABLAS!$A$741) -> 0 | AG26: =+GETPIVOTDATA("BAS039",TABLAS!$A$741) -> 0 | AH26: =+GETPIVOTDATA("BAS040",TABLAS!$A$741) -> 0 | AI26: 0 | AJ26: =+GETPIVOTDATA("BAS036",TABLAS!$A$891) -> 0 | AK26: =+GETPIVOTDATA("BAS037",TABLAS!$A$891) -> 0 | AL26: =+GETPIVOTDATA("BAS038",TABLAS!$A$891) -> 0 | AM26: =+GETPIVOTDATA("BAS039",TABLAS!$A$891) -> 0 | AN26: =+GETPIVOTDATA("BAS040",TABLAS!$A$891) -> 0 | AO26: 0 | AP26: 0 | AS26: 36 | AT26: =+AS26+1 -> 37 | AU26: 38 | AV26: 39 | AW26: 40 | AY26: =+IMPORTARDATOSDINAMICOS("BAS036",TABLAS!$A$1011) | AZ26: =+IMPORTARDATOSDINAMICOS("BAS037",TABLAS!$A$1011) | BA26: =+IMPORTARDATOSDINAMICOS("BAS038",TABLAS!$A$1011) | BB26: =+IMPORTARDATOSDINAMICOS("BAS039",TABLAS!$A$1011) | BC26: =+IMPORTARDATOSDINAMICOS("BAS040",TABLAS!$A$1011)
A27: RECUENTO DE RETICULOCITOS [85045] | D27: =+GETPIVOTDATA("BAS041",TABLAS!$A$199) -> 0 | E27: =+GETPIVOTDATA("BAS042",TABLAS!$A$199) -> 0 | F27: =+GETPIVOTDATA("BAS043",TABLAS!$A$199) -> 0 | G27: =+GETPIVOTDATA("BAS044",TABLAS!$A$199) -> 0 | H27: =+GETPIVOTDATA("BAS045",TABLAS!$A$199) -> 0 | I27: 0 | J27: =+GETPIVOTDATA("BAS041",TABLAS!$A$321) -> 0 | K27: =+GETPIVOTDATA("BAS042",TABLAS!$A$321) -> 0 | L27: =+GETPIVOTDATA("BAS043",TABLAS!$A$321) -> 0 | M27: =+GETPIVOTDATA("BAS044",TABLAS!$A$321) -> 0 | N27: =+GETPIVOTDATA("BAS045",TABLAS!$A$321) -> 0 | O27: 0 | P27: =+GETPIVOTDATA("BAS041",TABLAS!$A$471) -> 0 | Q27: =+GETPIVOTDATA("BAS042",TABLAS!$A$471) -> 0 | R27: =+GETPIVOTDATA("BAS043",TABLAS!$A$471) -> 0 | S27: =+GETPIVOTDATA("BAS044",TABLAS!$A$471) -> 0 | T27: =+GETPIVOTDATA("BAS045",TABLAS!$A$471) -> 0 | U27: 0 | V27: 0 | X27: =+GETPIVOTDATA("BAS041",TABLAS!$A$621) -> 0 | Y27: =+GETPIVOTDATA("BAS042",TABLAS!$A$621) -> 0 | Z27: =+GETPIVOTDATA("BAS043",TABLAS!$A$621) -> 0 | AA27: =+GETPIVOTDATA("BAS044",TABLAS!$A$621) -> 0 | AB27: =+GETPIVOTDATA("BAS045",TABLAS!$A$621) -> 0 | AC27: 0 | AD27: =+GETPIVOTDATA("BAS041",TABLAS!$A$741) -> 0 | AE27: =+GETPIVOTDATA("BAS042",TABLAS!$A$741) -> 0 | AF27: =+GETPIVOTDATA("BAS043",TABLAS!$A$741) -> 0 | AG27: =+GETPIVOTDATA("BAS044",TABLAS!$A$741) -> 0 | AH27: =+GETPIVOTDATA("BAS045",TABLAS!$A$741) -> 0 | AI27: 0 | AJ27: =+GETPIVOTDATA("BAS041",TABLAS!$A$891) -> 0 | AK27: =+GETPIVOTDATA("BAS042",TABLAS!$A$891) -> 0 | AL27: =+GETPIVOTDATA("BAS043",TABLAS!$A$891) -> 0 | AM27: =+GETPIVOTDATA("BAS044",TABLAS!$A$891) -> 0 | AN27: =+GETPIVOTDATA("BAS045",TABLAS!$A$891) -> 0 | AO27: 0 | AP27: 0 | AS27: 41 | AT27: =+AS27+1 -> 42 | AU27: 43 | AV27: 44 | AW27: 45 | AY27: =+IMPORTARDATOSDINAMICOS("BAS041",TABLAS!$A$1011) | AZ27: =+IMPORTARDATOSDINAMICOS("BAS042",TABLAS!$A$1011) | BA27: =+IMPORTARDATOSDINAMICOS("BAS043",TABLAS!$A$1011) | BB27: =+IMPORTARDATOSDINAMICOS("BAS044",TABLAS!$A$1011) | BC27: =+IMPORTARDATOSDINAMICOS("BAS045",TABLAS!$A$1011)
A28: TIEMPO DE COAGULACION [85345] | D28: =+GETPIVOTDATA("BAS046",TABLAS!$A$199) -> 0 | E28: =+GETPIVOTDATA("BAS047",TABLAS!$A$199) -> 0 | F28: =+GETPIVOTDATA("BAS048",TABLAS!$A$199) -> 0 | G28: =+GETPIVOTDATA("BAS049",TABLAS!$A$199) -> 0 | H28: =+GETPIVOTDATA("BAS050",TABLAS!$A$199) -> 0 | I28: 0 | J28: =+GETPIVOTDATA("BAS046",TABLAS!$A$321) -> 0 | K28: =+GETPIVOTDATA("BAS047",TABLAS!$A$321) -> 0 | L28: =+GETPIVOTDATA("BAS048",TABLAS!$A$321) -> 0 | M28: =+GETPIVOTDATA("BAS049",TABLAS!$A$321) -> 0 | N28: =+GETPIVOTDATA("BAS050",TABLAS!$A$321) -> 0 | O28: 0 | P28: =+GETPIVOTDATA("BAS046",TABLAS!$A$471) -> 0 | Q28: =+GETPIVOTDATA("BAS047",TABLAS!$A$471) -> 0 | R28: =+GETPIVOTDATA("BAS048",TABLAS!$A$471) -> 0 | S28: =+GETPIVOTDATA("BAS049",TABLAS!$A$471) -> 0 | T28: =+GETPIVOTDATA("BAS050",TABLAS!$A$471) -> 0 | U28: 0 | V28: 0 | X28: =+GETPIVOTDATA("BAS046",TABLAS!$A$621) -> 0 | Y28: =+GETPIVOTDATA("BAS047",TABLAS!$A$621) -> 0 | Z28: =+GETPIVOTDATA("BAS048",TABLAS!$A$621) -> 0 | AA28: =+GETPIVOTDATA("BAS049",TABLAS!$A$621) -> 0 | AB28: =+GETPIVOTDATA("BAS050",TABLAS!$A$621) -> 0 | AC28: 0 | AD28: =+GETPIVOTDATA("BAS046",TABLAS!$A$741) -> 0 | AE28: =+GETPIVOTDATA("BAS047",TABLAS!$A$741) -> 0 | AF28: =+GETPIVOTDATA("BAS048",TABLAS!$A$741) -> 0 | AG28: =+GETPIVOTDATA("BAS049",TABLAS!$A$741) -> 0 | AH28: =+GETPIVOTDATA("BAS050",TABLAS!$A$741) -> 0 | AI28: 0 | AJ28: =+GETPIVOTDATA("BAS046",TABLAS!$A$891) -> 0 | AK28: =+GETPIVOTDATA("BAS047",TABLAS!$A$891) -> 0 | AL28: =+GETPIVOTDATA("BAS048",TABLAS!$A$891) -> 0 | AM28: =+GETPIVOTDATA("BAS049",TABLAS!$A$891) -> 0 | AN28: =+GETPIVOTDATA("BAS050",TABLAS!$A$891) -> 0 | AO28: 0 | AP28: 0 | AS28: 46 | AT28: =+AS28+1 -> 47 | AU28: 48 | AV28: 49 | AW28: 50 | AY28: =+IMPORTARDATOSDINAMICOS("BAS046",TABLAS!$A$1011) | AZ28: =+IMPORTARDATOSDINAMICOS("BAS047",TABLAS!$A$1011) | BA28: =+IMPORTARDATOSDINAMICOS("BAS048",TABLAS!$A$1011) | BB28: =+IMPORTARDATOSDINAMICOS("BAS049",TABLAS!$A$1011) | BC28: =+IMPORTARDATOSDINAMICOS("BAS050",TABLAS!$A$1011)
A29: TIEMPO DE SANGRIA [85002] | D29: =+GETPIVOTDATA("BAS051",TABLAS!$A$199) -> 0 | E29: =+GETPIVOTDATA("BAS052",TABLAS!$A$199) -> 0 | F29: =+GETPIVOTDATA("BAS053",TABLAS!$A$199) -> 0 | G29: =+GETPIVOTDATA("BAS054",TABLAS!$A$199) -> 0 | H29: =+GETPIVOTDATA("BAS055",TABLAS!$A$199) -> 0 | I29: 0 | J29: =+GETPIVOTDATA("BAS051",TABLAS!$A$321) -> 0 | K29: =+GETPIVOTDATA("BAS052",TABLAS!$A$321) -> 0 | L29: =+GETPIVOTDATA("BAS053",TABLAS!$A$321) -> 0 | M29: =+GETPIVOTDATA("BAS054",TABLAS!$A$321) -> 0 | N29: =+GETPIVOTDATA("BAS055",TABLAS!$A$321) -> 0 | O29: 0 | P29: =+GETPIVOTDATA("BAS051",TABLAS!$A$471) -> 0 | Q29: =+GETPIVOTDATA("BAS052",TABLAS!$A$471) -> 0 | R29: =+GETPIVOTDATA("BAS053",TABLAS!$A$471) -> 0 | S29: =+GETPIVOTDATA("BAS054",TABLAS!$A$471) -> 0 | T29: =+GETPIVOTDATA("BAS055",TABLAS!$A$471) -> 0 | U29: 0 | V29: 0 | X29: =+GETPIVOTDATA("BAS051",TABLAS!$A$621) -> 0 | Y29: =+GETPIVOTDATA("BAS052",TABLAS!$A$621) -> 0 | Z29: =+GETPIVOTDATA("BAS053",TABLAS!$A$621) -> 0 | AA29: =+GETPIVOTDATA("BAS054",TABLAS!$A$621) -> 0 | AB29: =+GETPIVOTDATA("BAS055",TABLAS!$A$621) -> 0 | AC29: 0 | AD29: =+GETPIVOTDATA("BAS051",TABLAS!$A$741) -> 0 | AE29: =+GETPIVOTDATA("BAS052",TABLAS!$A$741) -> 0 | AF29: =+GETPIVOTDATA("BAS053",TABLAS!$A$741) -> 0 | AG29: =+GETPIVOTDATA("BAS054",TABLAS!$A$741) -> 0 | AH29: =+GETPIVOTDATA("BAS055",TABLAS!$A$741) -> 0 | AI29: 0 | AJ29: =+GETPIVOTDATA("BAS051",TABLAS!$A$891) -> 0 | AK29: =+GETPIVOTDATA("BAS052",TABLAS!$A$891) -> 0 | AL29: =+GETPIVOTDATA("BAS053",TABLAS!$A$891) -> 0 | AM29: =+GETPIVOTDATA("BAS054",TABLAS!$A$891) -> 0 | AN29: =+GETPIVOTDATA("BAS055",TABLAS!$A$891) -> 0 | AO29: 0 | AP29: 0 | AS29: 51 | AT29: =+AS29+1 -> 52 | AU29: 53 | AV29: 54 | AW29: 55 | AY29: =+IMPORTARDATOSDINAMICOS("BAS051",TABLAS!$A$1011) | AZ29: =+IMPORTARDATOSDINAMICOS("BAS052",TABLAS!$A$1011) | BA29: =+IMPORTARDATOSDINAMICOS("BAS053",TABLAS!$A$1011) | BB29: =+IMPORTARDATOSDINAMICOS("BAS054",TABLAS!$A$1011) | BC29: =+IMPORTARDATOSDINAMICOS("BAS055",TABLAS!$A$1011)
